Workbook

Sheet Historical scenario - input
B1: Unit cost - historical | C1: Calibration period: 2015-16 to 2018-19
B2: Replacement lives - calibrated | C2: Reference to 2020 refers to 2019-20
C3: All expenditure values are in $2019-20 | D3: Unit cost | E3: Replacement life | G3: Method | H3: Volume | CV3: Replacement Cost (NOT depreciated)
H4: Installation date | CV4: Installation date
A5: ID | B5: Asset group | C5: Asset category | D5: $ ('000) | E5: μ | F5: σ | G5: # | H5: 2019 | I5: 2018 | J5: 2017 | K5: 2016 | L5: 2015 | M5: 2014 | N5: 2013 | O5: 2012 | P5: 2011 | Q5: 2010 | R5: 2009 | S5: 2008 | T5: 2007 | U5: 2006 | V5: 2005 | W5: 2004 | X5: 2003 | Y5: 2002 | Z5: 2001 | AA5: 2000 | AB5: 1999 | AC5: 1998 | AD5: 1997 | AE5: 1996 | AF5: 1995 | AG5: 1994 | AH5: 1993 | AI5: 1992 | AJ5: 1991 | AK5: 1990 | AL5: 1989 | AM5: 1988 | AN5: 1987 | AO5: 1986 | AP5: 1985 | AQ5: 1984 | AR5: 1983 | AS5: 1982 | AT5: 1981 | AU5: 1980 | AV5: 1979 | AW5: 1978 | AX5: 1977 | AY5: 1976 | AZ5: 1975 | BA5: 1974 | BB5: 1973 | BC5: 1972 | BD5: 1971 | BE5: 1970 | BF5: 1969 | BG5: 1968 | BH5: 1967 | BI5: 1966 | BJ5: 1965 | BK5: 1964 | BL5: 1963 | BM5: 1962 | BN5: 1961 | BO5: 1960 | BP5: 1959 | BQ5: 1958 | BR5: 1957 | BS5: 1956 | BT5: 1955 | BU5: 1954 | BV5: 1953 | BW5: 1952 | BX5: 1951 | BY5: 1950 | BZ5: 1949 | CA5: 1948 | CB5: 1947 | CC5: 1946 | CD5: 1945 | CE5: 1944 | CF5: 1943 | CG5: 1942 | CH5: 1941 | CI5: 1940 | CJ5: 1939 | CK5: 1938 | CL5: 1937 | CM5: 1936 | CN5: 1935 | CO5: 1934 | CP5: 1933 | CQ5: 1932 | CR5: 1931 | CS5: 1930 | CT5: 1929 | CV5: 2019 | CW5: 2018 | CX5: 2017 | CY5: 2016 | CZ5: 2015 | DA5: 2014 | DB5: 2013 | DC5: 2012 | DD5: 2011 | DE5: 2010 | DF5: 2009 | DG5: 2008 | DH5: 2007 | DI5: 2006 | DJ5: 2005 | DK5: 2004 | DL5: 2003 | DM5: 2002 | DN5: 2001 | DO5: 2000 | DP5: 1999 | DQ5: 1998 | DR5: 1997 | DS5: 1996 | DT5: 1995 | DU5: 1994 | DV5: 1993 | DW5: 1992 | DX5: 1991 | DY5: 1990 | DZ5: 1989 | EA5: 1988 | EB5: 1987 | EC5: 1986 | ED5: 1985 | EE5: 1984 | EF5: 1983 | EG5: 1982 | EH5: 1981 | EI5: 1980 | EJ5: 1979 | EK5: 1978 | EL5: 1977 | EM5: 1976 | EN5: 1975 | EO5: 1974 | EP5: 1973 | EQ5: 1972 | ER5: 1971 | ES5: 1970 | ET5: 1969 | EU5: 1968 | EV5: 1967 | EW5: 1966 | EX5: 1965 | EY5: 1964 | EZ5: 1963 | FA5: 1962 | FB5: 1961 | FC5: 1960 | FD5: 1959 | FE5: 1958 | FF5: 1957 | FG5: 1956 | FH5: 1955 | FI5: 1954 | FJ5: 1953 | FK5: 1952 | FL5: 1951 | FM5: 1950 | FN5: 1949 | FO5: 1948 | FP5: 1947 | FQ5: 1946 | FR5: 1945 | FS5: 1944 | FT5: 1943 | FU5: 1942 | FV5: 1941 | FW5: 1940 | FX5: 1939 | FY5: 1938 | FZ5: 1937 | GA5: 1936 | GB5: 1935 | GC5: 1934 | GD5: 1933 | GE5: 1932 | GF5: 1931 | GG5: 1930 | GH5: 1929
A6: 1 | B6: OVERHEAD CONDUCTORS | C6: ˂ = 1 kv | D6: 73.57670776 | E6: 71.83742989 | F6: 8.475696425 | G6: 2 | H6: 28.9 | I6: 68.8 | J6: 67.2 | K6: 171.1 | L6: 141.4 | M6: 142.7 | N6: 162.7 | O6: 185.8 | P6: 168.2 | Q6: 229.3 | R6: 226.5 | S6: 224.6 | T6: 274.9 | U6: 238.7 | V6: 211.2 | W6: 120 | X6: 102.3 | Y6: 129.3 | Z6: 120.5 | AA6: 144.7 | AB6: 132.4 | AC6: 155.9 | AD6: 158.4 | AE6: 276.2 | AF6: 223.4 | AG6: 225.5 | AH6: 209.9 | AI6: 264.8 | AJ6: 254.4 | AK6: 276.2 | AL6: 299.4 | AM6: 207 | AN6: 205.1 | AO6: 287.7 | AP6: 373.1 | AQ6: 361 | AR6: 311.9 | AS6: 422.4 | AT6: 417.3 | AU6: 377.7 | AV6: 256.4 | AW6: 321.2 | AX6: 357.3 | AY6: 344.7 | AZ6: 350.7 | BA6: 349.9 | BB6: 311.2 | BC6: 339 | BD6: 324.8 | BE6: 372.5 | BF6: 337.9 | BG6: 298.8 | BH6: 251 | BI6: 239.2 | BJ6: 260.3 | BK6: 228.3 | BL6: 269.3 | BM6: 150.3 | BN6: 166.3 | BO6: 175.3 | BP6: 171.8 | BQ6: 179.3 | BR6: 194.5 | BS6: 206.7 | BT6: 208.9 | BU6: 205 | BV6: 263.2 | BW6: 263.9 | BX6: 262.1 | BY6: 325.2 | BZ6: 0.9 | CA6: 0 | CB6: 5 | CC6: 0 | CD6: 0 | CE6: 0 | CF6: 0 | CG6: 0 | CH6: 0 | CI6: 0 | CJ6: 0 | CK6: 0 | CL6: 0 | CM6: 0 | CN6: 0 | CO6: 0 | CP6: 0 | CQ6: 0 | CR6: 0 | CS6: 0 | CT6: 0 | CV6: =IFERROR($D6*H6,"") -> 2126.366854 | CW6: =IFERROR($D6*I6,"") -> 5062.077494 | CX6: =IFERROR($D6*J6,"") -> 4944.354761 | CY6: =IFERROR($D6*K6,"") -> 12588.9747 | CZ6: =IFERROR($D6*L6,"") -> 10403.74648 | DA6: =IFERROR($D6*M6,"") -> 10499.3962 | DB6: =IFERROR($D6*N6,"") -> 11970.93035 | DC6: =IFERROR($D6*O6,"") -> 13670.5523 | DD6: =IFERROR($D6*P6,"") -> 12375.60224 | DE6: =IFERROR($D6*Q6,"") -> 16871.13909 | DF6: =IFERROR($D6*R6,"") -> 16665.12431 | DG6: =IFERROR($D6*S6,"") -> 16525.32856 | DH6: =IFERROR($D6*T6,"") -> 20226.23696 | DI6: =IFERROR($D6*U6,"") -> 17562.76014 | DJ6: =IFERROR($D6*V6,"") -> 15539.40068 | DK6: =IFERROR($D6*W6,"") -> 8829.204931 | DL6: =IFERROR($D6*X6,"") -> 7526.897203 | DM6: =IFERROR($D6*Y6,"") -> 9513.468313 | DN6: =IFERROR($D6*Z6,"") -> 8865.993285 | DO6: =IFERROR($D6*AA6,"") -> 10646.54961 | DP6: =IFERROR($D6*AB6,"") -> 9741.556107 | DQ6: =IFERROR($D6*AC6,"") -> 11470.60874 | DR6: =IFERROR($D6*AD6,"") -> 11654.55051 | DS6: =IFERROR($D6*AE6,"") -> 20321.88668 | DT6: =IFERROR($D6*AF6,"") -> 16437.03651 | DU6: =IFERROR($D6*AG6,"") -> 16591.5476 | DV6: =IFERROR($D6*AH6,"") -> 15443.75096 | DW6: =IFERROR($D6*AI6,"") -> 19483.11221 | DX6: =IFERROR($D6*AJ6,"") -> 18717.91445 | DY6: =IFERROR($D6*AK6,"") -> 20321.88668 | DZ6: =IFERROR($D6*AL6,"") -> 22028.8663 | EA6: =IFERROR($D6*AM6,"") -> 15230.37851 | EB6: =IFERROR($D6*AN6,"") -> 15090.58276 | EC6: =IFERROR($D6*AO6,"") -> 21168.01882 | ED6: =IFERROR($D6*AP6,"") -> 27451.46966 | EE6: =IFERROR($D6*AQ6,"") -> 26561.1915 | EF6: =IFERROR($D6*AR6,"") -> 22948.57515 | EG6: =IFERROR($D6*AS6,"") -> 31078.80136 | EH6: =IFERROR($D6*AT6,"") -> 30703.56015 | EI6: =IFERROR($D6*AU6,"") -> 27789.92252 | EJ6: =IFERROR($D6*AV6,"") -> 18865.06787 | EK6: =IFERROR($D6*AW6,"") -> 23632.83853 | EL6: =IFERROR($D6*AX6,"") -> 26288.95768 | EM6: =IFERROR($D6*AY6,"") -> 25361.89116 | EN6: =IFERROR($D6*AZ6,"") -> 25803.35141 | EO6: =IFERROR($D6*BA6,"") -> 25744.49004 | EP6: =IFERROR($D6*BB6,"") -> 22897.07145 | EQ6: =IFERROR($D6*BC6,"") -> 24942.50393 | ER6: =IFERROR($D6*BD6,"") -> 23897.71468 | ES6: =IFERROR($D6*BE6,"") -> 27407.32364 | ET6: =IFERROR($D6*BF6,"") -> 24861.56955 | EU6: =IFERROR($D6*BG6,"") -> 21984.72028 | EV6: =IFERROR($D6*BH6,"") -> 18467.75365 | EW6: =IFERROR($D6*BI6,"") -> 17599.5485 | EX6: =IFERROR($D6*BJ6,"") -> 19152.01703 | EY6: =IFERROR($D6*BK6,"") -> 16797.56238 | EZ6: =IFERROR($D6*BL6,"") -> 19814.2074 | FA6: =IFERROR($D6*BM6,"") -> 11058.57918 | FB6: =IFERROR($D6*BN6,"") -> 12235.8065 | FC6: =IFERROR($D6*BO6,"") -> 12897.99687 | FD6: =IFERROR($D6*BP6,"") -> 12640.47839 | FE6: =IFERROR($D6*BQ6,"") -> 13192.3037 | FF6: =IFERROR($D6*BR6,"") -> 14310.66966 | FG6: =IFERROR($D6*BS6,"") -> 15208.30549 | FH6: =IFERROR($D6*BT6,"") -> 15370.17425 | FI6: =IFERROR($D6*BU6,"") -> 15083.22509 | FJ6: =IFERROR($D6*BV6,"") -> 19365.38948 | FK6: =IFERROR($D6*BW6,"") -> 19416.89318 | FL6: =IFERROR($D6*BX6,"") -> 19284.4551 | FM6: =IFERROR($D6*BY6,"") -> 23927.14536 | FN6: =IFERROR($D6*BZ6,"") -> 66.21903698 | FO6: =IFERROR($D6*CA6,"") -> 0 | FP6: =IFERROR($D6*CB6,"") -> 367.8835388 | FQ6: =IFERROR($D6*CC6,"") -> 0 | FR6: =IFERROR($D6*CD6,"") -> 0 | FS6: =IFERROR($D6*CE6,"") -> 0 | FT6: =IFERROR($D6*CF6,"") -> 0 | FU6: =IFERROR($D6*CG6,"") -> 0 | FV6: =IFERROR($D6*CH6,"") -> 0 | FW6: =IFERROR($D6*CI6,"") -> 0 | FX6: =IFERROR($D6*CJ6,"") -> 0 | FY6: =IFERROR($D6*CK6,"") -> 0 | FZ6: =IFERROR($D6*CL6,"") -> 0 | GA6: =IFERROR($D6*CM6,"") -> 0 | GB6: =IFERROR($D6*CN6,"") -> 0 | GC6: =IFERROR($D6*CO6,"") -> 0 | GD6: =IFERROR($D6*CP6,"") -> 0 | GE6: =IFERROR($D6*CQ6,"") -> 0 | GF6: =IFERROR($D6*CR6,"") -> 0 | GG6: =IFERROR($D6*CS6,"") -> 0 | GH6: =IFERROR($D6*CT6,"") -> 0
A7: 1 | B7: OVERHEAD CONDUCTORS | C7: ˃ 11 kv & < = 22 kv ; multiple-phase | D7: 28.08726931 | E7: 80.68336754 | F7: 8.982392083 | G7: 2 | H7: 13.1 | I7: 44.6 | J7: 59.4 | K7: 71.2 | L7: 143.9 | M7: 129.8 | N7: 116.7 | O7: 200.4 | P7: 139.7 | Q7: 158.9 | R7: 163.2 | S7: 129.6 | T7: 145.9 | U7: 92.1 | V7: 77.8 | W7: 31.7 | X7: 54.8 | Y7: 43.1 | Z7: 74.1 | AA7: 122.3 | AB7: 111.8 | AC7: 68.7 | AD7: 78.6 | AE7: 55.4 | AF7: 150.7 | AG7: 121.8 | AH7: 133 | AI7: 119.1 | AJ7: 230.3 | AK7: 201.8 | AL7: 368 | AM7: 248.9 | AN7: 225.6 | AO7: 313.2 | AP7: 250 | AQ7: 213.1 | AR7: 172.3 | AS7: 290.9 | AT7: 358.9 | AU7: 285.4 | AV7: 173.6 | AW7: 142.4 | AX7: 147.2 | AY7: 155 | AZ7: 177.2 | BA7: 263.6 | BB7: 161.8 | BC7: 224.5 | BD7: 248 | BE7: 253.9 | BF7: 367 | BG7: 330.5 | BH7: 275.5 | BI7: 269.4 | BJ7: 425.8 | BK7: 247 | BL7: 223 | BM7: 96.2 | BN7: 83.9 | BO7: 73.3 | BP7: 89.2 | BQ7: 79.3 | BR7: 78.5 | BS7: 97.2 | BT7: 96.1 | BU7: 115.2 | BV7: 130.4 | BW7: 159.1 | BX7: 163.1 | BY7: 398.1 | BZ7: 0 | CA7: 0 | CB7: 0 | CC7: 0 | CD7: 0 | CE7: 0 | CF7: 0 | CG7: 0 | CH7: 0 | CI7: 0 | CJ7: 0 | CK7: 0 | CL7: 0 | CM7: 0 | CN7: 0 | CO7: 0 | CP7: 0 | CQ7: 0 | CR7: 0 | CS7: 0 | CT7: 0 | CV7: =IFERROR($D7*H7,"") -> 367.943228 | CW7: 1252.692211 | CX7: 1668.383797 | CY7: 1999.813575 | CZ7: 4041.758054 | DA7: 3645.727557 | DB7: 3277.784329 | DC7: 5628.68877 | DD7: 3923.791523 | DE7: 4463.067094 | DF7: 4583.842352 | DG7: 3640.110103 | DH7: 4097.932593 | DI7: 2586.837504 | DJ7: 2185.189553 | DK7: 890.3664372 | DL7: 1539.182358 | DM7: 1210.561307 | DN7: 2081.266656 | DO7: 3435.073037 | DP7: 3140.156709 | DQ7: 1929.595402 | DR7: 2207.659368 | DS7: 1556.03472 | DT7: 4232.751485 | DU7: 3421.029402 | DV7: 3735.606819 | DW7: 3345.193775 | DX7: 6468.498123 | DY7: 5668.010947 | DZ7: 10336.11511 | EA7: 6990.921332 | EB7: 6336.487957 | EC7: 8796.932749 | ED7: 7021.817328 | EE7: 5985.397091 | EF7: 4839.436503 | EG7: 8170.586643 | EH7: 10080.52096 | EI7: 8016.106662 | EJ7: 4875.949953 | EK7: 3999.62715 | EL7: 4134.446043 | EM7: 4353.526743 | EN7: 4977.064122 | EO7: 7403.804191 | EP7: 4544.520175 | EQ7: 6305.591961 | ER7: 6965.64279 | ES7: 7131.357678 | ET7: 10308.02784 | EU7: 9282.842508 | EV7: 7738.042696 | EW7: 7566.710353 | EX7: 11959.55927 | EY7: 6937.55552 | EZ7: 6263.461057 | FA7: 2701.995308 | FB7: 2356.521895 | FC7: 2058.796841 | FD7: 2505.384423 | FE7: 2227.320456 | FF7: 2204.850641 | FG7: 2730.082577 | FH7: 2699.186581 | FI7: 3235.653425 | FJ7: 3662.579918 | FK7: 4468.684548 | FL7: 4581.033625 | FM7: 11181.54191 | FN7: 0 | FO7: 0 | FP7: 0 | FQ7: 0 | FR7: 0 | FS7: 0 | FT7: 0 | FU7: 0 | FV7: 0 | FW7: 0 | FX7: 0 | FY7: 0 | FZ7: 0 | GA7: 0 | GB7: 0 | GC7: 0 | GD7: 0 | GE7: 0 | GF7: 0 | GG7: 0 | GH7: 0
A8: 1 | B8: OVERHEAD CONDUCTORS | C8: ˃ 11 kv & < = 22 kv ; single-phase | D8: 28.08726931 | E8: 80.68336754 | F8: 8.982392083 | G8: 2 | H8: 5.8 | I8: 6.7 | J8: 5.1 | K8: 15.3 | L8: 25.9 | M8: 34.3 | N8: 46.5 | O8: 92.8 | P8: 49.3 | Q8: 41.3 | R8: 31.5 | S8: 50.6 | T8: 64.5 | U8: 58.8 | V8: 26.7 | W8: 17.9 | X8: 10.6 | Y8: 26.2 | Z8: 16.4 | AA8: 25.7 | AB8: 37.6 | AC8: 44.9 | AD8: 23.7 | AE8: 20.2 | AF8: 55.7 | AG8: 51.5 | AH8: 35 | AI8: 38.4 | AJ8: 38.1 | AK8: 47.3 | AL8: 103.2 | AM8: 52.3 | AN8: 41.5 | AO8: 86.1 | AP8: 65 | AQ8: 61.5 | AR8: 58.6 | AS8: 110.6 | AT8: 125.4 | AU8: 82.3 | AV8: 53.3 | AW8: 54.2 | AX8: 43.6 | AY8: 37.6 | AZ8: 51 | BA8: 65.3 | BB8: 90.5 | BC8: 61.5 | BD8: 110.1 | BE8: 101.2 | BF8: 55.5 | BG8: 47 | BH8: 67 | BI8: 60.6 | BJ8: 57 | BK8: 36.9 | BL8: 32.2 | BM8: 18.5 | BN8: 17.6 | BO8: 13.9 | BP8: 8.5 | BQ8: 20.1 | BR8: 17.6 | BS8: 15.2 | BT8: 20.9 | BU8: 14.1 | BV8: 19.8 | BW8: 23.2 | BX8: 34.5 | BY8: 40.7 | BZ8: 0 | CA8: 0 | CB8: 0 | CC8: 0 | CD8: 0 | CE8: 0 | CF8: 0 | CG8: 0 | CH8: 0 | CI8: 0 | CJ8: 0 | CK8: 0 | CL8: 0 | CM8: 0 | CN8: 0 | CO8: 0 | CP8: 0 | CQ8: 0 | CR8: 0 | CS8: 0 | CT8: 0 | CV8: 162.906162 | CW8: 188.1847044 | CX8: 143.2450735 | CY8: 429.7352205 | CZ8: 727.4602752 | DA8: 963.3933374 | DB8: 1306.058023 | DC8: 2606.498592 | DD8: 1384.702377 | DE8: 1160.004223 | DF8: 884.7489833 | DG8: 1421.215827 | DH8: 1811.628871 | DI8: 1651.531436 | DJ8: 749.9300906 | DK8: 502.7621207 | DL8: 297.7250547 | DM8: 735.886456 | DN8: 460.6312167 | DO8: 721.8428213 | DP8: 1056.081326 | DQ8: 1261.118392 | DR8: 665.6682827 | DS8: 567.3628401 | DT8: 1564.460901 | DU8: 1446.49437 | DV8: 983.0544259 | DW8: 1078.551142 | DX8: 1070.124961 | DY8: 1328.527838 | DZ8: 2898.606193 | EA8: 1468.964185 | EB8: 1165.621676 | EC8: 2418.313888 | ED8: 1825.672505 | EE8: 1727.367063 | EF8: 1645.913982 | EG8: 3106.451986 | EH8: 3522.143572 | EI8: 2311.582264 | EJ8: 1497.051454 | EK8: 1522.329997 | EL8: 1224.604942 | EM8: 1056.081326 | EN8: 1432.450735 | EO8: 1834.098686 | EP8: 2541.897873 | EQ8: 1727.367063 | ER8: 3092.408351 | ES8: 2842.431654 | ET8: 1558.843447 | EU8: 1320.101658 | EV8: 1881.847044 | EW8: 1702.08852 | EX8: 1600.974351 | EY8: 1036.420238 | EZ8: 904.4100719 | FA8: 519.6144823 | FB8: 494.3359399 | FC8: 390.4130434 | FD8: 238.7417892 | FE8: 564.5541132 | FF8: 494.3359399 | FG8: 426.9264936 | FH8: 587.0239286 | FI8: 396.0304973 | FJ8: 556.1279324 | FK8: 651.6246481 | FL8: 969.0107913 | FM8: 1143.151861 | FN8: 0 | FO8: 0 | FP8: 0 | FQ8: 0 | FR8: 0 | FS8: 0 | FT8: 0 | FU8: 0 | FV8: 0 | FW8: 0 | FX8: 0 | FY8: 0 | FZ8: 0 | GA8: 0 | GB8: 0 | GC8: 0 | GD8: 0 | GE8: 0 | GF8: 0 | GG8: 0 | GH8: 0
A9: 1 | B9: OVERHEAD CONDUCTORS | C9: ˃ 11 kv & < = 22 kv ; swer | D9: 32.06411027 | E9: 81.388101 | F9: 9.021535402 | G9: 2 | H9: 21.2 | I9: 39.9 | J9: 102.3 | K9: 94.8 | L9: 83.7 | M9: 145.8 | N9: 219.8 | O9: 219.6 | P9: 160.9 | Q9: 142.2 | R9: 179.9 | S9: 178.8 | T9: 248.7 | U9: 239.9 | V9: 203.7 | W9: 57.2 | X9: 141.9 | Y9: 235.8 | Z9: 192.4 | AA9: 1020.3 | AB9: 1764.1 | AC9: 206.3 | AD9: 203.8 | AE9: 205.2 | AF9: 257.8 | AG9: 342.9 | AH9: 362.6 | AI9: 644.3 | AJ9: 572.1 | AK9: 632.5 | AL9: 1336.1 | AM9: 1270.3 | AN9: 1500.8 | AO9: 3080.9 | AP9: 2205.1 | AQ9: 1864.8 | AR9: 2356 | AS9: 3745.8 | AT9: 4838.8 | AU9: 2967.4 | AV9: 972 | AW9: 669.1 | AX9: 873.7 | AY9: 1232.1 | AZ9: 2034.7 | BA9: 2817.1 | BB9: 1155.7 | BC9: 998.3 | BD9: 1579.8 | BE9: 2069.4 | BF9: 1395 | BG9: 1081.2 | BH9: 1309.3 | BI9: 1193.2 | BJ9: 1479.1 | BK9: 1322.5 | BL9: 1481.8 | BM9: 220.5 | BN9: 143.3 | BO9: 146.4 | BP9: 212 | BQ9: 200.4 | BR9: 226.5 | BS9: 291 | BT9: 284 | BU9: 332.6 | BV9: 347.4 | BW9: 438.8 | BX9: 460.8 | BY9: 875.7 | BZ9: 0 | CA9: 0 | CB9: 0 | CC9: 0 | CD9: 0 | CE9: 0 | CF9: 0 | CG9: 0 | CH9: 0 | CI9: 0 | CJ9: 0 | CK9: 0 | CL9: 0 | CM9: 0 | CN9: 0 | CO9: 0 | CP9: 0 | CQ9: 0 | CR9: 0 | CS9: 0 | CT9: 0 | CV9: 679.7591377 | CW9: 1279.358 | CX9: 3280.158481 | CY9: 3039.677654 | CZ9: 2683.76603 | DA9: 4674.947277 | DB9: 7047.691437 | DC9: 7041.278615 | DD9: 5159.115342 | DE9: 4559.51648 | DF9: 5768.333437 | DG9: 5733.062916 | DH9: 7974.344224 | DI9: 7692.180054 | DJ9: 6531.459262 | DK9: 1834.067107 | DL9: 4549.897247 | DM9: 7560.717202 | DN9: 6169.134816 | DO9: 32715.01171 | DP9: 56564.29693 | DQ9: 6614.825949 | DR9: 6534.665673 | DS9: 6579.555427 | DT9: 8266.127627 | DU9: 10994.78341 | DV9: 11626.44638 | DW9: 20658.90625 | DX9: 18343.87749 | DY9: 20280.54975 | DZ9: 42840.85773 | EA9: 40731.03928 | EB9: 48121.81669 | EC9: 98786.31733 | ED9: 70704.56956 | EE9: 59793.15283 | EF9: 75543.04379 | EG9: 120105.7442 | EH9: 155151.8168 | EI9: 95147.04081 | EJ9: 31166.31518 | EK9: 21454.09618 | EL9: 28014.41314 | EM9: 39506.19026 | EN9: 65240.84517 | EO9: 90327.80504 | EP9: 37056.49224 | EQ9: 32009.60128 | ER9: 50654.8814 | ES9: 66353.46979 | ET9: 44729.43383 | EU9: 34667.71602 | EV9: 41981.53958 | EW9: 38258.89637 | EX9: 47426.0255 | EY9: 42404.78583 | EZ9: 47512.5986 | FA9: 7070.136314 | FB9: 4594.787002 | FC9: 4694.185743 | FD9: 6797.591377 | FE9: 6425.647698 | FF9: 7262.520976 | FG9: 9330.656088 | FH9: 9106.207317 | FI9: 10664.52308 | FJ9: 11139.07191 | FK9: 14069.73159 | FL9: 14775.14201 | FM9: 28078.54136 | FN9: 0 | FO9: 0 | FP9: 0 | FQ9: 0 | FR9: 0 | FS9: 0 | FT9: 0 | FU9: 0 | FV9: 0 | FW9: 0 | FX9: 0 | FY9: 0 | FZ9: 0 | GA9: 0 | GB9: 0 | GC9: 0 | GD9: 0 | GE9: 0 | GF9: 0 | GG9: 0 | GH9: 0
A10: 1 | B10: OVERHEAD CONDUCTORS | C10: > 1 kv & < = 11 kv | D10: 33.12799165 | E10: 80.91542549 | F10: 8.995300189 | G10: 2 | H10: 77.6 | I10: 171.2 | J10: 200.2 | K10: 313.3 | L10: 402 | M10: 349.6 | N10: 408.1 | O10: 483 | P10: 423.3 | Q10: 398.1 | R10: 579.7 | S10: 481.6 | T10: 618.3 | U10: 396.9 | V10: 281.9 | W10: 130.5 | X10: 102.2 | Y10: 144.4 | Z10: 191.4 | AA10: 230.8 | AB10: 222.3 | AC10: 280.8 | AD10: 314.5 | AE10: 374.9 | AF10: 592.1 | AG10: 432.1 | AH10: 442.4 | AI10: 541.9 | AJ10: 489.4 | AK10: 488 | AL10: 433.1 | AM10: 244.7 | AN10: 349.9 | AO10: 473.3 | AP10: 592.2 | AQ10: 608.9 | AR10: 534.4 | AS10: 872.7 | AT10: 784.4 | AU10: 852.9 | AV10: 447.2 | AW10: 509.3 | AX10: 573.3 | AY10: 574.6 | AZ10: 467.6 | BA10: 606.7 | BB10: 342.3 | BC10: 482.4 | BD10: 594.5 | BE10: 736.1 | BF10: 648.1 | BG10: 678.8 | BH10: 698.4 | BI10: 635.9 | BJ10: 941.4 | BK10: 1003.7 | BL10: 671.2 | BM10: 305.4 | BN10: 321.3 | BO10: 343.1 | BP10: 418.3 | BQ10: 432.6 | BR10: 426.1 | BS10: 447.1 | BT10: 541 | BU10: 613.5 | BV10: 780.2 | BW10: 784.2 | BX10: 873.7 | BY10: 1617 | BZ10: 0.2 | CA10: 15.7 | CB10: 3.9 | CC10: 0 | CD10: 0 | CE10: 0 | CF10: 0 | CG10: 0 | CH10: 0 | CI10: 0 | CJ10: 0 | CK10: 0 | CL10: 0 | CM10: 0 | CN10: 0 | CO10: 0 | CP10: 0 | CQ10: 0 | CR10: 0 | CS10: 0 | CT10: 0 | CV10: 2570.732152 | CW10: 5671.512171 | CX10: 6632.223929 | CY10: 10378.99978 | CZ10: 13317.45264 | DA10: 11581.54588 | DB10: 13519.53339 | DC10: 16000.81997 | DD10: 14023.07887 | DE10: 13188.25348 | DF10: 19204.29676 | DG10: 15954.44078 | DH10: 20483.03724 | DI10: 13148.49989 | DJ10: 9338.780846 | DK10: 4323.20291 | DL10: 3385.680747 | DM10: 4783.681994 | DN10: 6340.697602 | DO10: 7645.940473 | DP10: 7364.352544 | DQ10: 9302.340056 | DR10: 10418.75337 | DS10: 12419.68407 | DT10: 19615.08386 | DU10: 14314.60519 | DV10: 14655.82351 | DW10: 17952.05868 | DX10: 16212.83911 | DY10: 16166.45993 | DZ10: 14347.73318 | EA10: 8106.419557 | EB10: 11591.48428 | EC10: 15679.47845 | ED10: 19618.39666 | EE10: 20171.63412 | EF10: 17703.59874 | EG10: 28910.79831 | EH10: 25985.59665 | EI10: 28254.86408 | EJ10: 14814.83787 | EK10: 16872.08615 | EL10: 18992.27761 | EM10: 19035.344 | EN10: 15490.6489 | EO10: 20098.75253 | EP10: 11339.71154 | EQ10: 15980.94317 | ER10: 19694.59104 | ES10: 24385.51465 | ET10: 21470.25139 | EU10: 22487.28073 | EV10: 23136.58937 | EW10: 21066.08989 | EX10: 31186.69134 | EY10: 33250.56522 | EZ10: 22235.508 | FA10: 10117.28865 | FB10: 10644.02372 | FC10: 11366.21394 | FD10: 13857.43891 | FE10: 14331.16919 | FF10: 14115.83724 | FG10: 14811.52507 | FH10: 17922.24348 | FI10: 20324.02288 | FJ10: 25846.45909 | FK10: 25978.97105 | FL10: 28943.92631 | FM10: 53567.9625 | FN10: 6.62559833 | FO10: 520.1094689 | FP10: 129.1991674 | FQ10: 0 | FR10: 0 | FS10: 0 | FT10: 0 | FU10: 0 | FV10: 0 | FW10: 0 | FX10: 0 | FY10: 0 | FZ10: 0 | GA10: 0 | GB10: 0 | GC10: 0 | GD10: 0 | GE10: 0 | GF10: 0 | GG10: 0 | GH10: 0
A11: 1 | B11: OVERHEAD CONDUCTORS | C11: > 22 kv & < = 66 kv | D11: 74.30460252 | E11: 95.61143207 | F11: 9.778109842 | G11: 2 | H11: 5.2 | I11: 21.8 | J11: 22.9 | K11: 131.4 | L11: 68.9 | M11: 60.7 | N11: 41.1 | O11: 86.3 | P11: 129.4 | Q11: 142.7 | R11: 102.1 | S11: 62.2 | T11: 154.9 | U11: 88 | V11: 46.5 | W11: 46.1 | X11: 35.7 | Y11: 77.8 | Z11: 113.2 | AA11: 122 | AB11: 367.8 | AC11: 98.1 | AD11: 391.6 | AE11: 49.8 | AF11: 230.4 | AG11: 99.1 | AH11: 79.1 | AI11: 91.8 | AJ11: 44.2 | AK11: 453.7 | AL11: 186.6 | AM11: 41.3 | AN11: 363.2 | AO11: 618.7 | AP11: 318.8 | AQ11: 253.3 | AR11: 119.1 | AS11: 332.6 | AT11: 174.4 | AU11: 96.5 | AV11: 99.9 | AW11: 88.3 | AX11: 159 | AY11: 102.6 | AZ11: 112.6 | BA11: 64 | BB11: 189.5 | BC11: 201.1 | BD11: 89.2 | BE11: 276 | BF11: 240 | BG11: 264.4 | BH11: 377.7 | BI11: 221.4 | BJ11: 479.9 | BK11: 310.5 | BL11: 376.5 | BM11: 50.3 | BN11: 52 | BO11: 71.2 | BP11: 131.8 | BQ11: 366 | BR11: 160.5 | BS11: 71.6 | BT11: 125.3 | BU11: 104.3 | BV11: 190.2 | BW11: 120.1 | BX11: 109.1 | BY11: 724.5 | BZ11: 16.6 | CA11: 24.8 | CB11: 4.7 | CC11: 0 | CD11: 0 | CE11: 0 | CF11: 0 | CG11: 0 | CH11: 0 | CI11: 0 | CJ11: 0 | CK11: 0 | CL11: 0 | CM11: 0 | CN11: 0 | CO11: 0 | CP11: 0 | CQ11: 0 | CR11: 0 | CS11: 0 | CT11: 0 | CV11: 386.3839331 | CW11: 1619.840335 | CX11: 1701.575398 | CY11: 9763.624772 | CZ11: 5119.587114 | DA11: 4510.289373 | DB11: 3053.919164 | DC11: 6412.487198 | DD11: 9615.015567 | DE11: 10603.26678 | DF11: 7586.499918 | DG11: 4621.746277 | DH11: 11509.78293 | DI11: 6538.805022 | DJ11: 3455.164017 | DK11: 3425.442176 | DL11: 2652.67431 | DM11: 5780.898076 | DN11: 8411.281006 | DO11: 9065.161508 | DP11: 27329.23281 | DQ11: 7289.281508 | DR11: 29097.68235 | DS11: 3700.369206 | DT11: 17119.78042 | DU11: 7363.58611 | DV11: 5877.49406 | DW11: 6821.162512 | DX11: 3284.263432 | DY11: 33711.99816 | DZ11: 13865.23883 | EA11: 3068.780084 | EB11: 26987.43164 | EC11: 45972.25758 | ED11: 23688.30728 | EE11: 18821.35582 | EF11: 8849.678161 | EG11: 24713.7108 | EH11: 12958.72268 | EI11: 7170.394144 | EJ11: 7423.029792 | EK11: 6561.096403 | EL11: 11814.4318 | EM11: 7623.652219 | EN11: 8366.698244 | EO11: 4755.494562 | EP11: 14080.72218 | EQ11: 14942.65557 | ER11: 6627.970545 | ES11: 20508.0703 | ET11: 17833.10461 | EU11: 19646.13691 | EV11: 28064.84837 | EW11: 16451.039 | EX11: 35658.77875 | EY11: 23071.57908 | EZ11: 27975.68285 | FA11: 3737.521507 | FB11: 3863.839331 | FC11: 5290.4877 | FD11: 9793.346613 | FE11: 27195.48452 | FF11: 11925.88871 | FG11: 5320.209541 | FH11: 9310.366696 | FI11: 7749.970043 | FJ11: 14132.7354 | FK11: 8923.982763 | FL11: 8106.632135 | FM11: 53833.68453 | FN11: 1233.456402 | FO11: 1842.754143 | FP11: 349.2316319 | FQ11: 0 | FR11: 0 | FS11: 0 | FT11: 0 | FU11: 0 | FV11: 0 | FW11: 0 | FX11: 0 | FY11: 0 | FZ11: 0 | GA11: 0 | GB11: 0 | GC11: 0 | GD11: 0 | GE11: 0 | GF11: 0 | GG11: 0 | GH11: 0
A12: 1 | B12: OVERHEAD CONDUCTORS | C12: > 66 kv & < = 132 kv | D12: 413.2727971 | E12: 87.08456758 | F12: 9.33191125 | G12: 2 | H12: 0 | I12: 0 | J12: 0.2 | K12: 4.8 | L12: 1.9 | M12: 14.8 | N12: 3.7 | O12: 0.2 | P12: 83.2 | Q12: 62.2 | R12: 5.4 | S12: 170.1 | T12: 12.3 | U12: 1.9 | V12: 0.1 | W12: 15.6 | X12: 89.3 | Y12: 166.6 | Z12: 8.3 | AA12: 0 | AB12: 5.3 | AC12: 0 | AD12: 0.1 | AE12: 163 | AF12: 0 | AG12: 27.1 | AH12: 0.4 | AI12: 2.5 | AJ12: 0 | AK12: 104.9 | AL12: 24 | AM12: 2.5 | AN12: 234.4 | AO12: 289.7 | AP12: 236.7 | AQ12: 119.1 | AR12: 10.1 | AS12: 123.2 | AT12: 17 | AU12: 155.5 | AV12: 26.8 | AW12: 4.8 | AX12: 0 | AY12: 58.8 | AZ12: 5.2 | BA12: 19.9 | BB12: 55.2 | BC12: 4.9 | BD12: 5.6 | BE12: 40.1 | BF12: 44.4 | BG12: 46 | BH12: 32.5 | BI12: 85.3 | BJ12: 143.7 | BK12: 0 | BL12: 0 | BM12: 18.3 | BN12: 39.9 | BO12: 0 | BP12: 0 | BQ12: 63.3 | BR12: 20.9 | BS12: 0 | BT12: 0 | BU12: 0 | BV12: 13 | BW12: 0 | BX12: 14.4 | BY12: 19.5 | BZ12: 0 | CA12: 0 | CB12: 0 | CC12: 0 | CD12: 0 | CE12: 0 | CF12: 0 | CG12: 0 | CH12: 0 | CI12: 0 | CJ12: 0 | CK12: 0 | CL12: 0 | CM12: 0 | CN12: 0 | CO12: 0 | CP12: 0 | CQ12: 0 | CR12: 0 | CS12: 0 | CT12: 0 | CV12: 0 | CW12: 0 | CX12: 82.65455942 | CY12: 1983.709426 | CZ12: 785.2183145 | DA12: 6116.437397 | DB12: 1529.109349 | DC12: 82.65455942 | DD12: 34384.29672 | DE12: 25705.56798 | DF12: 2231.673104 | DG12: 70297.70279 | DH12: 5083.255404 | DI12: 785.2183145 | DJ12: 41.32727971 | DK12: 6447.055635 | DL12: 36905.26078 | DM12: 68851.248 | DN12: 3430.164216 | DO12: 0 | DP12: 2190.345825 | DQ12: 0 | DR12: 41.32727971 | DS12: 67363.46593 | DT12: 0 | DU12: 11199.6928 | DV12: 165.3091188 | DW12: 1033.181993 | DX12: 0 | DY12: 43352.31642 | DZ12: 9918.54713 | EA12: 1033.181993 | EB12: 96871.14364 | EC12: 119725.1293 | ED12: 97821.67107 | EE12: 49220.79013 | EF12: 4174.055251 | EG12: 50915.2086 | EH12: 7025.637551 | EI12: 64263.91995 | EJ12: 11075.71096 | EK12: 1983.709426 | EL12: 0 | EM12: 24300.44047 | EN12: 2149.018545 | EO12: 8224.128662 | EP12: 22812.6584 | EQ12: 2025.036706 | ER12: 2314.327664 | ES12: 16572.23916 | ET12: 18349.31219 | EU12: 19010.54867 | EV12: 13431.36591 | EW12: 35252.16959 | EX12: 59387.30094 | EY12: 0 | EZ12: 0 | FA12: 7562.892187 | FB12: 16489.5846 | FC12: 0 | FD12: 0 | FE12: 26160.16806 | FF12: 8637.401459 | FG12: 0 | FH12: 0 | FI12: 0 | FJ12: 5372.546362 | FK12: 0 | FL12: 5951.128278 | FM12: 8058.819543 | FN12: 0 | FO12: 0 | FP12: 0 | FQ12: 0 | FR12: 0 | FS12: 0 | FT12: 0 | FU12: 0 | FV12: 0 | FW12: 0 | FX12: 0 | FY12: 0 | FZ12: 0 | GA12: 0 | GB12: 0 | GC12: 0 | GD12: 0 | GE12: 0 | GF12: 0 | GG12: 0 | GH12: 0
A13: 2 | B13: POLES | C13: ˂ = 1 kv ; concrete | D13: 80.25323493 | E13: 68.13719326 | F13: 8.254525623 | G13: 2 | H13: 0 | I13: 3 | J13: 1 | K13: 2 | L13: 8 | M13: 5 | N13: 49 | O13: 39 | P13: 62 | Q13: 76 | R13: 62 | S13: 84 | T13: 51 | U13: 102 | V13: 64 | W13: 50 | X13: 55 | Y13: 125 | Z13: 84 | AA13: 162 | AB13: 111 | AC13: 89 | AD13: 105 | AE13: 69 | AF13: 170 | AG13: 154 | AH13: 99 | AI13: 186 | AJ13: 60 | AK13: 91 | AL13: 196 | AM13: 216 | AN13: 56 | AO13: 65 | AP13: 38 | AQ13: 32 | AR13: 28 | AS13: 32 | AT13: 33 | AU13: 27 | AV13: 2 | AW13: 5 | AX13: 4 | AY13: 3 | AZ13: 1 | BA13: 4 | BB13: 5 | BC13: 7 | BD13: 15 | BE13: 17 | BF13: 8 | BG13: 5 | BH13: 10 | BI13: 3 | BJ13: 4 | BK13: 1 | BL13: 1 | BM13: 0 | BN13: 0 | BO13: 0 | BP13: 0 | BQ13: 0 | BR13: 0 | BS13: 0 | BT13: 0 | BU13: 0 | BV13: 0 | BW13: 0 | BX13: 0 | BY13: 0 | BZ13: 0 | CA13: 0 | CB13: 0 | CC13: 0 | CD13: 0 | CE13: 0 | CF13: 0 | CG13: 0 | CH13: 0 | CI13: 0 | CJ13: 0 | CK13: 0 | CL13: 0 | CM13: 0 | CN13: 0 | CO13: 0 | CP13: 0 | CQ13: 0 | CR13: 0 | CS13: 0 | CT13: 0 | CV13: 0 | CW13: 240.7597048 | CX13: 80.25323493 | CY13: 160.5064699 | CZ13: 642.0258794 | DA13: 401.2661746 | DB13: 3932.408511 | DC13: 3129.876162 | DD13: 4975.700565 | DE13: 6099.245854 | DF13: 4975.700565 | DG13: 6741.271734 | DH13: 4092.914981 | DI13: 8185.829963 | DJ13: 5136.207035 | DK13: 4012.661746 | DL13: 4413.927921 | DM13: 10031.65437 | DN13: 6741.271734 | DO13: 13001.02406 | DP13: 8908.109077 | DQ13: 7142.537909 | DR13: 8426.589667 | DS13: 5537.47321 | DT13: 13643.04994 | DU13: 12358.99818 | DV13: 7945.070258 | DW13: 14927.1017 | DX13: 4815.194096 | DY13: 7303.044378 | DZ13: 15729.63405 | EA13: 17334.69874 | EB13: 4494.181156 | EC13: 5216.46027 | ED13: 3049.622927 | EE13: 2568.103518 | EF13: 2247.090578 | EG13: 2568.103518 | EH13: 2648.356753 | EI13: 2166.837343 | EJ13: 160.5064699 | EK13: 401.2661746 | EL13: 321.0129397 | EM13: 240.7597048 | EN13: 80.25323493 | EO13: 321.0129397 | EP13: 401.2661746 | EQ13: 561.7726445 | ER13: 1203.798524 | ES13: 1364.304994 | ET13: 642.0258794 | EU13: 401.2661746 | EV13: 802.5323493 | EW13: 240.7597048 | EX13: 321.0129397 | EY13: 80.25323493 | EZ13: 80.25323493 | FA13: 0 | FB13: 0 | FC13: 0 | FD13: 0 | FE13: 0 | FF13: 0 | FG13: 0 | FH13: 0 | FI13: 0 | FJ13: 0 | FK13: 0 | FL13: 0 | FM13: 0 | FN13: 0 | FO13: 0 | FP13: 0 | FQ13: 0 | FR13: 0 | FS13: 0 | FT13: 0 | FU13: 0 | FV13: 0 | FW13: 0 | FX13: 0 | FY13: 0 | FZ13: 0 | GA13: 0 | GB13: 0 | GC13: 0 | GD13: 0 | GE13: 0 | GF13: 0 | GG13: 0 | GH13: 0
A14: 2 | B14: POLES | C14: ˂ = 1 kv ; steel | D14: 5.015102932 | E14: 64.01829691 | F14: 8.001143475 | G14: 2 | H14: 33 | I14: 651 | J14: 900 | K14: 1021 | L14: 1177 | M14: 2079 | N14: 3355 | O14: 3590 | P14: 3392 | Q14: 2816 | R14: 3320 | S14: 5410 | T14: 4751 | U14: 5047 | V14: 3576 | W14: 3425 | X14: 2465 | Y14: 1946 | Z14: 2127 | AA14: 1800 | AB14: 1933 | AC14: 2009 | AD14: 1997 | AE14: 1952 | AF14: 1705 | AG14: 1463 | AH14: 1446 | AI14: 1386 | AJ14: 1337 | AK14: 1324 | AL14: 45 | AM14: 46 | AN14: 25 | AO14: 53 | AP14: 48 | AQ14: 48 | AR14: 35 | AS14: 38 | AT14: 42 | AU14: 46 | AV14: 40 | AW14: 50 | AX14: 43 | AY14: 42 | AZ14: 33 | BA14: 39 | BB14: 31 | BC14: 29 | BD14: 39 | BE14: 51 | BF14: 54 | BG14: 48 | BH14: 22 | BI14: 19 | BJ14: 15 | BK14: 18 | BL14: 13 | BM14: 1 | BN14: 0 | BO14: 1 | BP14: 0 | BQ14: 1 | BR14: 0 | BS14: 0 | BT14: 0 | BU14: 0 | BV14: 0 | BW14: 0 | BX14: 0 | BY14: 0 | BZ14: 0 | CA14: 0 | CB14: 0 | CC14: 0 | CD14: 0 | CE14: 0 | CF14: 0 | CG14: 0 | CH14: 0 | CI14: 0 | CJ14: 0 | CK14: 0 | CL14: 0 | CM14: 0 | CN14: 0 | CO14: 0 | CP14: 0 | CQ14: 0 | CR14: 0 | CS14: 0 | CT14: 0 | CV14: 165.4983968 | CW14: 3264.832009 | CX14: 4513.592639 | CY14: 5120.420093 | CZ14: 5902.776151 | DA14: 10426.399 | DB14: 16825.67034 | DC14: 18004.21953 | DD14: 17011.22914 | DE14: 14122.52986 | DF14: 16650.14173 | DG14: 27131.70686 | DH14: 23826.75403 | DI14: 25311.2245 | DJ14: 17934.00808 | DK14: 17176.72754 | DL14: 12362.22873 | DM14: 9759.390305 | DN14: 10667.12394 | DO14: 9027.185277 | DP14: 9694.193967 | DQ14: 10075.34179 | DR14: 10015.16055 | DS14: 9789.480923 | DT14: 8550.750499 | DU14: 7337.095589 | DV14: 7251.838839 | DW14: 6950.932664 | DX14: 6705.19262 | DY14: 6639.996282 | DZ14: 225.6796319 | EA14: 230.6947349 | EB14: 125.3775733 | EC14: 265.8004554 | ED14: 240.7249407 | EE14: 240.7249407 | EF14: 175.5286026 | EG14: 190.5739114 | EH14: 210.6343231 | EI14: 230.6947349 | EJ14: 200.6041173 | EK14: 250.7551466 | EL14: 215.6494261 | EM14: 210.6343231 | EN14: 165.4983968 | EO14: 195.5890143 | EP14: 155.4681909 | EQ14: 145.437985 | ER14: 195.5890143 | ES14: 255.7702495 | ET14: 270.8155583 | EU14: 240.7249407 | EV14: 110.3322645 | EW14: 95.28695571 | EX14: 75.22654398 | EY14: 90.27185277 | EZ14: 65.19633811 | FA14: 5.015102932 | FB14: 0 | FC14: 5.015102932 | FD14: 0 | FE14: 5.015102932 | FF14: 0 | FG14: 0 | FH14: 0 | FI14: 0 | FJ14: 0 | FK14: 0 | FL14: 0 | FM14: 0 | FN14: 0 | FO14: 0 | FP14: 0 | FQ14: 0 | FR14: 0 | FS14: 0 | FT14: 0 | FU14: 0 | FV14: 0 | FW14: 0 | FX14: 0 | FY14: 0 | FZ14: 0 | GA14: 0 | GB14: 0 | GC14: 0 | GD14: 0 | GE14: 0 | GF14: 0 | GG14: 0 | GH14: 0
A15: 2 | B15: POLES | C15: ˂ = 1 kv ; wood | D15: 5.015102932 | E15: 64.01829691 | F15: 8.001143475 | G15: 2 | H15: 101 | I15: 1411 | J15: 1596 | K15: 1200 | L15: 1808 | M15: 2480 | N15: 2096 | O15: 2537 | P15: 1809 | Q15: 2169 | R15: 2064 | S15: 2250 | T15: 4442 | U15: 4624 | V15: 5409 | W15: 5322 | X15: 4589 | Y15: 4600 | Z15: 4239 | AA15: 4123 | AB15: 3657 | AC15: 4137 | AD15: 4219 | AE15: 4575 | AF15: 5480 | AG15: 5056 | AH15: 4943 | AI15: 5450 | AJ15: 4821 | AK15: 4655 | AL15: 4644 | AM15: 3562 | AN15: 3188 | AO15: 4481 | AP15: 5150 | AQ15: 4880 | AR15: 4307 | AS15: 5727 | AT15: 4789 | AU15: 4347 | AV15: 3269 | AW15: 4053 | AX15: 4055 | AY15: 4092 | AZ15: 3845 | BA15: 3978 | BB15: 3160 | BC15: 3280 | BD15: 3339 | BE15: 3822 | BF15: 3104 | BG15: 2693 | BH15: 2094 | BI15: 2119 | BJ15: 1971 | BK15: 1731 | BL15: 2699 | BM15: 1557 | BN15: 1568 | BO15: 1564 | BP15: 1517 | BQ15: 1513 | BR15: 1536 | BS15: 1544 | BT15: 1505 | BU15: 1478 | BV15: 1471 | BW15: 1458 | BX15: 1466 | BY15: 1506 | BZ15: 1 | CA15: 0 | CB15: 1 | CC15: 0 | CD15: 0 | CE15: 0 | CF15: 0 | CG15: 0 | CH15: 0 | CI15: 0 | CJ15: 0 | CK15: 0 | CL15: 0 | CM15: 0 | CN15: 0 | CO15: 0 | CP15: 0 | CQ15: 0 | CR15: 0 | CS15: 0 | CT15: 0 | CV15: 506.5253961 | CW15: 7076.310237 | CX15: 8004.104279 | CY15: 6018.123518 | CZ15: 9067.306101 | DA15: 12437.45527 | DB15: 10511.65575 | DC15: 12723.31614 | DD15: 9072.321204 | DE15: 10877.75826 | DF15: 10351.17245 | DG15: 11283.9816 | DH15: 22277.08722 | DI15: 23189.83596 | DJ15: 27126.69176 | DK15: 26690.3778 | DL15: 23014.30735 | DM15: 23069.47349 | DN15: 21259.02133 | DO15: 20677.26939 | DP15: 18340.23142 | DQ15: 20747.48083 | DR15: 21158.71927 | DS15: 22944.09591 | DT15: 27482.76407 | DU15: 25356.36042 | DV15: 24789.65379 | DW15: 27332.31098 | DX15: 24177.81123 | DY15: 23345.30415 | DZ15: 23290.13802 | EA15: 17863.79664 | EB15: 15988.14815 | EC15: 22472.67624 | ED15: 25827.7801 | EE15: 24473.70231 | EF15: 21600.04833 | EG15: 28721.49449 | EH15: 24017.32794 | EI15: 21800.65244 | EJ15: 16394.37148 | EK15: 20326.21218 | EL15: 20336.24239 | EM15: 20521.8012 | EN15: 19283.07077 | EO15: 19950.07946 | EP15: 15847.72526 | EQ15: 16449.53762 | ER15: 16745.42869 | ES15: 19167.72341 | ET15: 15566.8795 | EU15: 13505.6722 | EV15: 10501.62554 | EW15: 10627.00311 | EX15: 9884.767879 | EY15: 8681.143175 | EZ15: 13535.76281 | FA15: 7808.515265 | FB15: 7863.681397 | FC15: 7843.620985 | FD15: 7607.911148 | FE15: 7587.850736 | FF15: 7703.198103 | FG15: 7743.318927 | FH15: 7547.729912 | FI15: 7412.322133 | FJ15: 7377.216413 | FK15: 7312.020075 | FL15: 7352.140898 | FM15: 7552.745015 | FN15: 5.015102932 | FO15: 0 | FP15: 5.015102932 | FQ15: 0 | FR15: 0 | FS15: 0 | FT15: 0 | FU15: 0 | FV15: 0 | FW15: 0 | FX15: 0 | FY15: 0 | FZ15: 0 | GA15: 0 | GB15: 0 | GC15: 0 | GD15: 0 | GE15: 0 | GF15: 0 | GG15: 0 | GH15: 0
A16: 2 | B16: POLES | C16: ˃ 11 kv & < = 22 kv ; concrete | D16: 7.259061227 | E16: 40.42718346 | F16: 6.358237449 | G16: 2 | H16: 0 | I16: 0 | J16: 0 | K16: 0 | L16: 0 | M16: 2 | N16: 0 | O16: 1 | P16: 62 | Q16: 2 | R16: 40 | S16: 4 | T16: 0 | U16: 13 | V16: 16 | W16: 6 | X16: 2 | Y16: 13 | Z16: 7 | AA16: 3377 | AB16: 2381 | AC16: 18 | AD16: 11 | AE16: 54 | AF16: 203 | AG16: 156 | AH16: 123 | AI16: 183 | AJ16: 215 | AK16: 277 | AL16: 748 | AM16: 118 | AN16: 28 | AO16: 66 | AP16: 72 | AQ16: 1 | AR16: 0 | AS16: 2 | AT16: 2 | AU16: 2 | AV16: 1 | AW16: 1 | AX16: 1 | AY16: 0 | AZ16: 3 | BA16: 1 | BB16: 0 | BC16: 2 | BD16: 0 | BE16: 0 | BF16: 0 | BG16: 1 | BH16: 0 | BI16: 0 | BJ16: 0 | BK16: 0 | BL16: 0 | BM16: 0 | BN16: 0 | BO16: 0 | BP16: 0 | BQ16: 0 | BR16: 0 | BS16: 0 | BT16: 0 | BU16: 0 | BV16: 0 | BW16: 0 | BX16: 0 | BY16: 0 | BZ16: 0 | CA16: 0 | CB16: 0 | CC16: 0 | CD16: 0 | CE16: 0 | CF16: 0 | CG16: 0 | CH16: 0 | CI16: 0 | CJ16: 0 | CK16: 0 | CL16: 0 | CM16: 0 | CN16: 0 | CO16: 0 | CP16: 0 | CQ16: 0 | CR16: 0 | CS16: 0 | CT16: 0 | CV16: 0 | CW16: 0 | CX16: 0 | CY16: 0 | CZ16: 0 | DA16: 14.51812245 | DB16: 0 | DC16: 7.259061227 | DD16: 450.0617961 | DE16: 14.51812245 | DF16: 290.3624491 | DG16: 29.03624491 | DH16: 0 | DI16: 94.36779595 | DJ16: 116.1449796 | DK16: 43.55436736 | DL16: 14.51812245 | DM16: 94.36779595 | DN16: 50.81342859 | DO16: 24513.84976 | DP16: 17283.82478 | DQ16: 130.6631021 | DR16: 79.8496735 | DS16: 391.9893063 | DT16: 1473.589429 | DU16: 1132.413551 | DV16: 892.8645309 | DW16: 1328.408205 | DX16: 1560.698164 | DY16: 2010.75996 | DZ16: 5429.777798 | EA16: 856.5692248 | EB16: 203.2537144 | EC16: 479.098041 | ED16: 522.6524083 | EE16: 7.259061227 | EF16: 0 | EG16: 14.51812245 | EH16: 14.51812245 | EI16: 14.51812245 | EJ16: 7.259061227 | EK16: 7.259061227 | EL16: 7.259061227 | EM16: 0 | EN16: 21.77718368 | EO16: 7.259061227 | EP16: 0 | EQ16: 14.51812245 | ER16: 0 | ES16: 0 | ET16: 0 | EU16: 7.259061227 | EV16: 0 | EW16: 0 | EX16: 0 | EY16: 0 | EZ16: 0 | FA16: 0 | FB16: 0 | FC16: 0 | FD16: 0 | FE16: 0 | FF16: 0 | FG16: 0 | FH16: 0 | FI16: 0 | FJ16: 0 | FK16: 0 | FL16: 0 | FM16: 0 | FN16: 0 | FO16: 0 | FP16: 0 | FQ16: 0 | FR16: 0 | FS16: 0 | FT16: 0 | FU16: 0 | FV16: 0 | FW16: 0 | FX16: 0 | FY16: 0 | FZ16: 0 | GA16: 0 | GB16: 0 | GC16: 0 | GD16: 0 | GE16: 0 | GF16: 0 | GG16: 0 | GH16: 0
A17: 2 | B17: POLES | C17: ˃ 11 kv & < = 22 kv ; steel | D17: 7.259061227 | E17: 40.42718346 | F17: 6.358237449 | G17: 2 | H17: 0 | I17: 0 | J17: 2 | K17: 1 | L17: 1 | M17: 6 | N17: 0 | O17: 15 | P17: 39 | Q17: 30 | R17: 4 | S17: 144 | T17: 4 | U17: 1 | V17: 2 | W17: 7 | X17: 1 | Y17: 4 | Z17: 4 | AA17: 1 | AB17: 1 | AC17: 0 | AD17: 1 | AE17: 1 | AF17: 3 | AG17: 1 | AH17: 0 | AI17: 0 | AJ17: 0 | AK17: 1 | AL17: 2 | AM17: 5 | AN17: 0 | AO17: 0 | AP17: 0 | AQ17: 1 | AR17: 0 | AS17: 1 | AT17: 0 | AU17: 0 | AV17: 0 | AW17: 0 | AX17: 0 | AY17: 4 | AZ17: 1 | BA17: 0 | BB17: 3 | BC17: 0 | BD17: 0 | BE17: 0 | BF17: 0 | BG17: 0 | BH17: 0 | BI17: 0 | BJ17: 1 | BK17: 0 | BL17: 0 | BM17: 0 | BN17: 0 | BO17: 0 | BP17: 0 | BQ17: 0 | BR17: 0 | BS17: 0 | BT17: 0 | BU17: 0 | BV17: 0 | BW17: 0 | BX17: 0 | BY17: 0 | BZ17: 0 | CA17: 0 | CB17: 0 | CC17: 0 | CD17: 0 | CE17: 0 | CF17: 0 | CG17: 0 | CH17: 0 | CI17: 0 | CJ17: 0 | CK17: 0 | CL17: 0 | CM17: 0 | CN17: 0 | CO17: 0 | CP17: 0 | CQ17: 0 | CR17: 0 | CS17: 0 | CT17: 0 | CV17: 0 | CW17: 0 | CX17: 14.51812245 | CY17: 7.259061227 | CZ17: 7.259061227 | DA17: 43.55436736 | DB17: 0 | DC17: 108.8859184 | DD17: 283.1033879 | DE17: 217.7718368 | DF17: 29.03624491 | DG17: 1045.304817 | DH17: 29.03624491 | DI17: 7.259061227 | DJ17: 14.51812245 | DK17: 50.81342859 | DL17: 7.259061227 | DM17: 29.03624491 | DN17: 29.03624491 | DO17: 7.259061227 | DP17: 7.259061227 | DQ17: 0 | DR17: 7.259061227 | DS17: 7.259061227 | DT17: 21.77718368 | DU17: 7.259061227 | DV17: 0 | DW17: 0 | DX17: 0 | DY17: 7.259061227 | DZ17: 14.51812245 | EA17: 36.29530614 | EB17: 0 | EC17: 0 | ED17: 0 | EE17: 7.259061227 | EF17: 0 | EG17: 7.259061227 | EH17: 0 | EI17: 0 | EJ17: 0 | EK17: 0 | EL17: 0 | EM17: 29.03624491 | EN17: 7.259061227 | EO17: 0 | EP17: 21.77718368 | EQ17: 0 | ER17: 0 | ES17: 0 | ET17: 0 | EU17: 0 | EV17: 0 | EW17: 0 | EX17: 7.259061227 | EY17: 0 | EZ17: 0 | FA17: 0 | FB17: 0 | FC17: 0 | FD17: 0 | FE17: 0 | FF17: 0 | FG17: 0 | FH17: 0 | FI17: 0 | FJ17: 0 | FK17: 0 | FL17: 0 | FM17: 0 | FN17: 0 | FO17: 0 | FP17: 0 | FQ17: 0 | FR17: 0 | FS17: 0 | FT17: 0 | FU17: 0 | FV17: 0 | FW17: 0 | FX17: 0 | FY17: 0 | FZ17: 0 | GA17: 0 | GB17: 0 | GC17: 0 | GD17: 0 | GE17: 0 | GF17: 0 | GG17: 0 | GH17: 0
A18: 2 | B18: POLES | C18: ˃ 11 kv & < = 22 kv ; wood | D18: 7.033083407 | E18: 65.30984839 | F18: 8.081450884 | G18: 2 | H18: 149 | I18: 1586 | J18: 2281 | K18: 1745 | L18: 2538 | M18: 2894 | N18: 3219 | O18: 4308 | P18: 3541 | Q18: 2537 | R18: 3641 | S18: 4030 | T18: 5172 | U18: 5097 | V18: 6027 | W18: 5526 | X18: 5167 | Y18: 6041 | Z18: 5840 | AA18: 5474 | AB18: 5718 | AC18: 3678 | AD18: 3109 | AE18: 3233 | AF18: 3911 | AG18: 3774 | AH18: 3885 | AI18: 4021 | AJ18: 5148 | AK18: 5812 | AL18: 7868 | AM18: 6910 | AN18: 9902 | AO18: 13014 | AP18: 8504 | AQ18: 9146 | AR18: 8604 | AS18: 12801 | AT18: 13759 | AU18: 8383 | AV18: 3852 | AW18: 2601 | AX18: 4618 | AY18: 4967 | AZ18: 9499 | BA18: 8605 | BB18: 3368 | BC18: 3733 | BD18: 5176 | BE18: 6807 | BF18: 4687 | BG18: 4434 | BH18: 3609 | BI18: 3981 | BJ18: 4158 | BK18: 3370 | BL18: 3144 | BM18: 1370 | BN18: 1207 | BO18: 1004 | BP18: 1003 | BQ18: 939 | BR18: 938 | BS18: 903 | BT18: 921 | BU18: 910 | BV18: 915 | BW18: 941 | BX18: 938 | BY18: 934 | BZ18: 0 | CA18: 0 | CB18: 0 | CC18: 0 | CD18: 0 | CE18: 0 | CF18: 0 | CG18: 0 | CH18: 0 | CI18: 0 | CJ18: 0 | CK18: 0 | CL18: 0 | CM18: 0 | CN18: 0 | CO18: 0 | CP18: 0 | CQ18: 0 | CR18: 0 | CS18: 0 | CT18: 0 | CV18: 1047.929428 | CW18: 11154.47028 | CX18: 16042.46325 | CY18: 12272.73055 | CZ18: 17849.96569 | DA18: 20353.74338 | DB18: 22639.49549 | DC18: 30298.52332 | DD18: 24904.14835 | DE18: 17842.9326 | DF18: 25607.45669 | DG18: 28343.32613 | DH18: 36375.10738 | DI18: 35847.62613 | DJ18: 42388.3937 | DK18: 38864.81891 | DL18: 36339.94197 | DM18: 42486.85686 | DN18: 41073.2071 | DO18: 38499.09857 | DP18: 40215.17092 | DQ18: 25867.68077 | DR18: 21865.85631 | DS18: 22737.95866 | DT18: 27506.38921 | DU18: 26542.85678 | DV18: 27323.52904 | DW18: 28280.02838 | DX18: 36206.31338 | DY18: 40876.28076 | DZ18: 55336.30025 | EA18: 48598.60634 | EB18: 69641.5919 | EC18: 91528.54746 | ED18: 59809.3413 | EE18: 64324.58084 | EF18: 60512.64964 | EG18: 90030.5007 | EH18: 96768.1946 | EI18: 58958.3382 | EJ18: 27091.43728 | EK18: 18293.04994 | EL18: 32478.77917 | EM18: 34933.32528 | EN18: 66807.25929 | EO18: 60519.68272 | EP18: 23687.42492 | EQ18: 26254.50036 | ER18: 36403.23972 | ES18: 47874.19875 | ET18: 32964.06193 | EU18: 31184.69183 | EV18: 25382.39802 | EW18: 27998.70504 | EX18: 29243.56081 | EY18: 23701.49108 | EZ18: 22112.01423 | FA18: 9635.324268 | FB18: 8488.931673 | FC18: 7061.215741 | FD18: 7054.182657 | FE18: 6604.065319 | FF18: 6597.032236 | FG18: 6350.874317 | FH18: 6477.469818 | FI18: 6400.105901 | FJ18: 6435.271318 | FK18: 6618.131486 | FL18: 6597.032236 | FM18: 6568.899902 | FN18: 0 | FO18: 0 | FP18: 0 | FQ18: 0 | FR18: 0 | FS18: 0 | FT18: 0 | FU18: 0 | FV18: 0 | FW18: 0 | FX18: 0 | FY18: 0 | FZ18: 0 | GA18: 0 | GB18: 0 | GC18: 0 | GD18: 0 | GE18: 0 | GF18: 0 | GG18: 0 | GH18: 0
A19: 2 | B19: POLES | C19: > 1 kv & < = 11 kv ; concrete | D19: 7.033083407 | E19: 68.90622988 | F19: 8.300977646 | G19: 2 | H19: 0 | I19: 1 | J19: 2 | K19: 1 | L19: 1 | M19: 1 | N19: 4 | O19: 3 | P19: 5 | Q19: 8 | R19: 3 | S19: 8 | T19: 51 | U19: 164 | V19: 3 | W19: 1 | X19: 2 | Y19: 7 | Z19: 2 | AA19: 125 | AB19: 34 | AC19: 244 | AD19: 16 | AE19: 17 | AF19: 15 | AG19: 46 | AH19: 34 | AI19: 80 | AJ19: 37 | AK19: 23 | AL19: 28 | AM19: 45 | AN19: 49 | AO19: 104 | AP19: 134 | AQ19: 19 | AR19: 14 | AS19: 2 | AT19: 0 | AU19: 5 | AV19: 2 | AW19: 2 | AX19: 1 | AY19: 0 | AZ19: 1 | BA19: 2 | BB19: 0 | BC19: 1 | BD19: 2 | BE19: 0 | BF19: 3 | BG19: 1 | BH19: 1 | BI19: 1 | BJ19: 1 | BK19: 1 | BL19: 0 | BM19: 0 | BN19: 0 | BO19: 0 | BP19: 1 | BQ19: 0 | BR19: 0 | BS19: 0 | BT19: 0 | BU19: 0 | BV19: 0 | BW19: 0 | BX19: 0 | BY19: 0 | BZ19: 0 | CA19: 0 | CB19: 0 | CC19: 0 | CD19: 0 | CE19: 0 | CF19: 0 | CG19: 0 | CH19: 0 | CI19: 0 | CJ19: 0 | CK19: 0 | CL19: 0 | CM19: 0 | CN19: 0 | CO19: 0 | CP19: 0 | CQ19: 0 | CR19: 0 | CS19: 0 | CT19: 0 | CV19: 0 | CW19: 7.033083407 | CX19: 14.06616681 | CY19: 7.033083407 | CZ19: 7.033083407 | DA19: 7.033083407 | DB19: 28.13233363 | DC19: 21.09925022 | DD19: 35.16541704 | DE19: 56.26466726 | DF19: 21.09925022 | DG19: 56.26466726 | DH19: 358.6872538 | DI19: 1153.425679 | DJ19: 21.09925022 | DK19: 7.033083407 | DL19: 14.06616681 | DM19: 49.23158385 | DN19: 14.06616681 | DO19: 879.1354259 | DP19: 239.1248358 | DQ19: 1716.072351 | DR19: 112.5293345 | DS19: 119.5624179 | DT19: 105.4962511 | DU19: 323.5218367 | DV19: 239.1248358 | DW19: 562.6466726 | DX19: 260.2240861 | DY19: 161.7609184 | DZ19: 196.9263354 | EA19: 316.4887533 | EB19: 344.621087 | EC19: 731.4406744 | ED19: 942.4331766 | EE19: 133.6285847 | EF19: 98.4631677 | EG19: 14.06616681 | EH19: 0 | EI19: 35.16541704 | EJ19: 14.06616681 | EK19: 14.06616681 | EL19: 7.033083407 | EM19: 0 | EN19: 7.033083407 | EO19: 14.06616681 | EP19: 0 | EQ19: 7.033083407 | ER19: 14.06616681 | ES19: 0 | ET19: 21.09925022 | EU19: 7.033083407 | EV19: 7.033083407 | EW19: 7.033083407 | EX19: 7.033083407 | EY19: 7.033083407 | EZ19: 0 | FA19: 0 | FB19: 0 | FC19: 0 | FD19: 7.033083407 | FE19: 0 | FF19: 0 | FG19: 0 | FH19: 0 | FI19: 0 | FJ19: 0 | FK19: 0 | FL19: 0 | FM19: 0 | FN19: 0 | FO19: 0 | FP19: 0 | FQ19: 0 | FR19: 0 | FS19: 0 | FT19: 0 | FU19: 0 | FV19: 0 | FW19: 0 | FX19: 0 | FY19: 0 | FZ19: 0 | GA19: 0 | GB19: 0 | GC19: 0 | GD19: 0 | GE19: 0 | GF19: 0 | GG19: 0 | GH19: 0
A20: 2 | B20: POLES | C20: > 1 kv & < = 11 kv ; steel | D20: 7.033083407 | E20: 68.90622988 | F20: 8.300977646 | G20: 2 | H20: 0 | I20: 1 | J20: 0 | K20: 3 | L20: 2 | M20: 8 | N20: 30 | O20: 38 | P20: 30 | Q20: 19 | R20: 47 | S20: 48 | T20: 69 | U20: 85 | V20: 29 | W20: 51 | X20: 34 | Y20: 22 | Z20: 44 | AA20: 59 | AB20: 41 | AC20: 56 | AD20: 24 | AE20: 36 | AF20: 40 | AG20: 26 | AH20: 29 | AI20: 39 | AJ20: 31 | AK20: 28 | AL20: 20 | AM20: 15 | AN20: 10 | AO20: 15 | AP20: 15 | AQ20: 6 | AR20: 5 | AS20: 19 | AT20: 15 | AU20: 9 | AV20: 7 | AW20: 5 | AX20: 4 | AY20: 5 | AZ20: 8 | BA20: 12 | BB20: 8 | BC20: 8 | BD20: 19 | BE20: 18 | BF20: 10 | BG20: 12 | BH20: 3 | BI20: 5 | BJ20: 8 | BK20: 4 | BL20: 2 | BM20: 0 | BN20: 0 | BO20: 0 | BP20: 0 | BQ20: 0 | BR20: 0 | BS20: 0 | BT20: 0 | BU20: 0 | BV20: 0 | BW20: 0 | BX20: 0 | BY20: 0 | BZ20: 0 | CA20: 0 | CB20: 0 | CC20: 0 | CD20: 0 | CE20: 0 | CF20: 0 | CG20: 0 | CH20: 0 | CI20: 0 | CJ20: 0 | CK20: 0 | CL20: 0 | CM20: 0 | CN20: 0 | CO20: 0 | CP20: 0 | CQ20: 0 | CR20: 0 | CS20: 0 | CT20: 0 | CV20: 0 | CW20: 7.033083407 | CX20: 0 | CY20: 21.09925022 | CZ20: 14.06616681 | DA20: 56.26466726 | DB20: 210.9925022 | DC20: 267.2571695 | DD20: 210.9925022 | DE20: 133.6285847 | DF20: 330.5549201 | DG20: 337.5880035 | DH20: 485.2827551 | DI20: 597.8120896 | DJ20: 203.9594188 | DK20: 358.6872538 | DL20: 239.1248358 | DM20: 154.727835 | DN20: 309.4556699 | DO20: 414.951921 | DP20: 288.3564197 | DQ20: 393.8526708 | DR20: 168.7940018 | DS20: 253.1910027 | DT20: 281.3233363 | DU20: 182.8601686 | DV20: 203.9594188 | DW20: 274.2902529 | DX20: 218.0255856 | DY20: 196.9263354 | DZ20: 140.6616681 | EA20: 105.4962511 | EB20: 70.33083407 | EC20: 105.4962511 | ED20: 105.4962511 | EE20: 42.19850044 | EF20: 35.16541704 | EG20: 133.6285847 | EH20: 105.4962511 | EI20: 63.29775067 | EJ20: 49.23158385 | EK20: 35.16541704 | EL20: 28.13233363 | EM20: 35.16541704 | EN20: 56.26466726 | EO20: 84.39700089 | EP20: 56.26466726 | EQ20: 56.26466726 | ER20: 133.6285847 | ES20: 126.5955013 | ET20: 70.33083407 | EU20: 84.39700089 | EV20: 21.09925022 | EW20: 35.16541704 | EX20: 56.26466726 | EY20: 28.13233363 | EZ20: 14.06616681 | FA20: 0 | FB20: 0 | FC20: 0 | FD20: 0 | FE20: 0 | FF20: 0 | FG20: 0 | FH20: 0 | FI20: 0 | FJ20: 0 | FK20: 0 | FL20: 0 | FM20: 0 | FN20: 0 | FO20: 0 | FP20: 0 | FQ20: 0 | FR20: 0 | FS20: 0 | FT20: 0 | FU20: 0 | FV20: 0 | FW20: 0 | FX20: 0 | FY20: 0 | FZ20: 0 | GA20: 0 | GB20: 0 | GC20: 0 | GD20: 0 | GE20: 0 | GF20: 0 | GG20: 0 | GH20: 0
A21: 2 | B21: POLES | C21: > 1 kv & < = 11 kv ; wood | D21: 7.033083407 | E21: 68.90622988 | F21: 8.300977646 | G21: 2 | H21: 136 | I21: 2083 | J21: 2223 | K21: 1827 | L21: 3543 | M21: 4658 | N21: 4451 | O21: 4939 | P21: 3962 | Q21: 3417 | R21: 3926 | S21: 5262 | T21: 7484 | U21: 6301 | V21: 5684 | W21: 5283 | X21: 4263 | Y21: 4435 | Z21: 4045 | AA21: 4274 | AB21: 3883 | AC21: 4458 | AD21: 4788 | AE21: 5206 | AF21: 6810 | AG21: 5573 | AH21: 5083 | AI21: 5375 | AJ21: 5015 | AK21: 4777 | AL21: 4173 | AM21: 2968 | AN21: 3861 | AO21: 4842 | AP21: 5841 | AQ21: 5876 | AR21: 4867 | AS21: 7115 | AT21: 5695 | AU21: 5613 | AV21: 3633 | AW21: 4181 | AX21: 4104 | AY21: 3826 | AZ21: 3335 | BA21: 3816 | BB21: 2366 | BC21: 2981 | BD21: 3404 | BE21: 4025 | BF21: 3595 | BG21: 3330 | BH21: 2762 | BI21: 2546 | BJ21: 3081 | BK21: 3543 | BL21: 3758 | BM21: 2040 | BN21: 2013 | BO21: 2099 | BP21: 1984 | BQ21: 1987 | BR21: 1973 | BS21: 1972 | BT21: 1963 | BU21: 2004 | BV21: 2022 | BW21: 2014 | BX21: 2048 | BY21: 2009 | BZ21: 1 | CA21: 0 | CB21: 3 | CC21: 0 | CD21: 0 | CE21: 0 | CF21: 0 | CG21: 0 | CH21: 0 | CI21: 0 | CJ21: 0 | CK21: 0 | CL21: 0 | CM21: 0 | CN21: 0 | CO21: 0 | CP21: 0 | CQ21: 0 | CR21: 0 | CS21: 0 | CT21: 0 | CV21: 956.4993434 | CW21: 14649.91274 | CX21: 15634.54441 | CY21: 12849.44339 | CZ21: 24918.21451 | DA21: 32760.10251 | DB21: 31304.25425 | DC21: 34736.39895 | DD21: 27865.07646 | DE21: 24032.046 | DF21: 27611.88546 | DG21: 37008.08489 | DH21: 52635.59622 | DI21: 44315.45855 | DJ21: 39976.04609 | DK21: 37155.77964 | DL21: 29982.03457 | DM21: 31191.72491 | DN21: 28448.82238 | DO21: 30059.39848 | DP21: 27309.46287 | DQ21: 31353.48583 | DR21: 33674.40335 | DS21: 36614.23222 | DT21: 47895.298 | DU21: 39195.37383 | DV21: 35749.16296 | DW21: 37802.82331 | DX21: 35270.91329 | DY21: 33597.03944 | DZ21: 29349.05706 | EA21: 20874.19155 | EB21: 27154.73504 | EC21: 34054.18986 | ED21: 41080.24018 | EE21: 41326.3981 | EF21: 34230.01694 | EG21: 50040.38844 | EH21: 40053.41 | EI21: 39476.69716 | EJ21: 25551.19202 | EK21: 29405.32173 | EL21: 28863.7743 | EM21: 26908.57712 | EN21: 23455.33316 | EO21: 26838.24628 | EP21: 16640.27534 | EQ21: 20965.62164 | ER21: 23940.61592 | ES21: 28308.16071 | ET21: 25283.93485 | EU21: 23420.16775 | EV21: 19425.37637 | EW21: 17906.23035 | EX21: 21668.92998 | EY21: 24918.21451 | EZ21: 26430.32744 | FA21: 14347.49015 | FB21: 14157.5969 | FC21: 14762.44207 | FD21: 13953.63748 | FE21: 13974.73673 | FF21: 13876.27356 | FG21: 13869.24048 | FH21: 13805.94273 | FI21: 14094.29915 | FJ21: 14220.89465 | FK21: 14164.62998 | FL21: 14403.75482 | FM21: 14129.46457 | FN21: 7.033083407 | FO21: 0 | FP21: 21.09925022 | FQ21: 0 | FR21: 0 | FS21: 0 | FT21: 0 | FU21: 0 | FV21: 0 | FW21: 0 | FX21: 0 | FY21: 0 | FZ21: 0 | GA21: 0 | GB21: 0 | GC21: 0 | GD21: 0 | GE21: 0 | GF21: 0 | GG21: 0 | GH21: 0
A22: 2 | B22: POLES | C22: > 22 kv & < = 66 kv ; concrete | D22: 15.23465524 | E22: 70.55654016 | F22: 8.399794054 | G22: 2 | H22: 1 | I22: 16 | J22: 19 | K22: 39 | L22: 12 | M22: 20 | N22: 56 | O22: 98 | P22: 85 | Q22: 81 | R22: 143 | S22: 185 | T22: 300 | U22: 250 | V22: 243 | W22: 359 | X22: 89 | Y22: 338 | Z22: 207 | AA22: 451 | AB22: 855 | AC22: 339 | AD22: 937 | AE22: 259 | AF22: 443 | AG22: 109 | AH22: 107 | AI22: 54 | AJ22: 148 | AK22: 1360 | AL22: 240 | AM22: 484 | AN22: 1388 | AO22: 2235 | AP22: 661 | AQ22: 736 | AR22: 128 | AS22: 216 | AT22: 3 | AU22: 4 | AV22: 1 | AW22: 3 | AX22: 6 | AY22: 5 | AZ22: 2 | BA22: 4 | BB22: 3 | BC22: 6 | BD22: 3 | BE22: 2 | BF22: 2 | BG22: 2 | BH22: 1 | BI22: 5 | BJ22: 4 | BK22: 2 | BL22: 2 | BM22: 0 | BN22: 0 | BO22: 0 | BP22: 0 | BQ22: 1 | BR22: 0 | BS22: 0 | BT22: 0 | BU22: 0 | BV22: 0 | BW22: 0 | BX22: 0 | BY22: 0 | BZ22: 0 | CA22: 0 | CB22: 0 | CC22: 0 | CD22: 0 | CE22: 0 | CF22: 0 | CG22: 0 | CH22: 0 | CI22: 0 | CJ22: 0 | CK22: 0 | CL22: 0 | CM22: 0 | CN22: 0 | CO22: 0 | CP22: 0 | CQ22: 0 | CR22: 0 | CS22: 0 | CT22: 0 | CV22: 15.23465524 | CW22: 243.7544838 | CX22: 289.4584496 | CY22: 594.1515544 | CZ22: 182.8158629 | DA22: 304.6931048 | DB22: 853.1406935 | DC22: 1492.996214 | DD22: 1294.945695 | DE22: 1234.007074 | DF22: 2178.555699 | DG22: 2818.411219 | DH22: 4570.396572 | DI22: 3808.66381 | DJ22: 3702.021223 | DK22: 5469.241231 | DL22: 1355.884316 | DM22: 5149.313471 | DN22: 3153.573635 | DO22: 6870.829513 | DP22: 13025.63023 | DQ22: 5164.548126 | DR22: 14274.87196 | DS22: 3945.775707 | DT22: 6748.952271 | DU22: 1660.577421 | DV22: 1630.108111 | DW22: 822.671383 | DX22: 2254.728976 | DY22: 20719.13113 | DZ22: 3656.317258 | EA22: 7373.573136 | EB22: 21145.70147 | EC22: 34049.45446 | ED22: 10070.10711 | EE22: 11212.70626 | EF22: 1950.035871 | EG22: 3290.685532 | EH22: 45.70396572 | EI22: 60.93862096 | EJ22: 15.23465524 | EK22: 45.70396572 | EL22: 91.40793144 | EM22: 76.1732762 | EN22: 30.46931048 | EO22: 60.93862096 | EP22: 45.70396572 | EQ22: 91.40793144 | ER22: 45.70396572 | ES22: 30.46931048 | ET22: 30.46931048 | EU22: 30.46931048 | EV22: 15.23465524 | EW22: 76.1732762 | EX22: 60.93862096 | EY22: 30.46931048 | EZ22: 30.46931048 | FA22: 0 | FB22: 0 | FC22: 0 | FD22: 0 | FE22: 15.23465524 | FF22: 0 | FG22: 0 | FH22: 0 | FI22: 0 | FJ22: 0 | FK22: 0 | FL22: 0 | FM22: 0 | FN22: 0 | FO22: 0 | FP22: 0 | FQ22: 0 | FR22: 0 | FS22: 0 | FT22: 0 | FU22: 0 | FV22: 0 | FW22: 0 | FX22: 0 | FY22: 0 | FZ22: 0 | GA22: 0 | GB22: 0 | GC22: 0 | GD22: 0 | GE22: 0 | GF22: 0 | GG22: 0 | GH22: 0
A23: 2 | B23: POLES | C23: > 22 kv & < = 66 kv ; steel | D23: 15.23465524 | E23: 70.55654016 | F23: 8.399794054 | G23: 2 | H23: 0 | I23: 0 | J23: 0 | K23: 1 | L23: 3 | M23: 4 | N23: 32 | O23: 39 | P23: 42 | Q23: 35 | R23: 50 | S23: 37 | T23: 29 | U23: 26 | V23: 26 | W23: 53 | X23: 29 | Y23: 24 | Z23: 29 | AA23: 33 | AB23: 34 | AC23: 33 | AD23: 29 | AE23: 31 | AF23: 27 | AG23: 28 | AH23: 24 | AI23: 31 | AJ23: 26 | AK23: 28 | AL23: 0 | AM23: 0 | AN23: 0 | AO23: 4 | AP23: 5 | AQ23: 3 | AR23: 1 | AS23: 2 | AT23: 2 | AU23: 4 | AV23: 0 | AW23: 2 | AX23: 0 | AY23: 1 | AZ23: 0 | BA23: 0 | BB23: 1 | BC23: 52 | BD23: 0 | BE23: 2 | BF23: 73 | BG23: 4 | BH23: 2 | BI23: 0 | BJ23: 0 | BK23: 1 | BL23: 0 | BM23: 0 | BN23: 0 | BO23: 0 | BP23: 0 | BQ23: 553 | BR23: 453 | BS23: 0 | BT23: 0 | BU23: 0 | BV23: 0 | BW23: 0 | BX23: 0 | BY23: 37 | BZ23: 0 | CA23: 0 | CB23: 0 | CC23: 0 | CD23: 0 | CE23: 0 | CF23: 0 | CG23: 0 | CH23: 0 | CI23: 0 | CJ23: 0 | CK23: 0 | CL23: 0 | CM23: 0 | CN23: 0 | CO23: 0 | CP23: 0 | CQ23: 0 | CR23: 0 | CS23: 0 | CT23: 0 | CV23: 0 | CW23: 0 | CX23: 0 | CY23: 15.23465524 | CZ23: 45.70396572 | DA23: 60.93862096 | DB23: 487.5089677 | DC23: 594.1515544 | DD23: 639.8555201 | DE23: 533.2129334 | DF23: 761.732762 | DG23: 563.6822439 | DH23: 441.805002 | DI23: 396.1010363 | DJ23: 396.1010363 | DK23: 807.4367277 | DL23: 441.805002 | DM23: 365.6317258 | DN23: 441.805002 | DO23: 502.7436229 | DP23: 517.9782782 | DQ23: 502.7436229 | DR23: 441.805002 | DS23: 472.2743125 | DT23: 411.3356915 | DU23: 426.5703467 | DV23: 365.6317258 | DW23: 472.2743125 | DX23: 396.1010363 | DY23: 426.5703467 | DZ23: 0 | EA23: 0 | EB23: 0 | EC23: 60.93862096 | ED23: 76.1732762 | EE23: 45.70396572 | EF23: 15.23465524 | EG23: 30.46931048 | EH23: 30.46931048 | EI23: 60.93862096 | EJ23: 0 | EK23: 30.46931048 | EL23: 0 | EM23: 15.23465524 | EN23: 0 | EO23: 0 | EP23: 15.23465524 | EQ23: 792.2020725 | ER23: 0 | ES23: 30.46931048 | ET23: 1112.129833 | EU23: 60.93862096 | EV23: 30.46931048 | EW23: 0 | EX23: 0 | EY23: 15.23465524 | EZ23: 0 | FA23: 0 | FB23: 0 | FC23: 0 | FD23: 0 | FE23: 8424.764348 | FF23: 6901.298824 | FG23: 0 | FH23: 0 | FI23: 0 | FJ23: 0 | FK23: 0 | FL23: 0 | FM23: 563.6822439 | FN23: 0 | FO23: 0 | FP23: 0 | FQ23: 0 | FR23: 0 | FS23: 0 | FT23: 0 | FU23: 0 | FV23: 0 | FW23: 0 | FX23: 0 | FY23: 0 | FZ23: 0 | GA23: 0 | GB23: 0 | GC23: 0 | GD23: 0 | GE23: 0 | GF23: 0 | GG23: 0 | GH23: 0
A24: 2 | B24: POLES | C24: > 22 kv & < = 66 kv ; wood | D24: 15.23465524 | E24: 70.55654016 | F24: 8.399794054 | G24: 2 | H24: 24 | I24: 243 | J24: 333 | K24: 267 | L24: 515 | M24: 703 | N24: 765 | O24: 601 | P24: 639 | Q24: 413 | R24: 398 | S24: 418 | T24: 850 | U24: 792 | V24: 765 | W24: 755 | X24: 859 | Y24: 953 | Z24: 1112 | AA24: 1330 | AB24: 818 | AC24: 869 | AD24: 676 | AE24: 485 | AF24: 688 | AG24: 872 | AH24: 585 | AI24: 773 | AJ24: 875 | AK24: 890 | AL24: 619 | AM24: 615 | AN24: 882 | AO24: 959 | AP24: 920 | AQ24: 1511 | AR24: 1089 | AS24: 1574 | AT24: 941 | AU24: 828 | AV24: 611 | AW24: 517 | AX24: 696 | AY24: 1039 | AZ24: 904 | BA24: 557 | BB24: 1362 | BC24: 1174 | BD24: 514 | BE24: 1377 | BF24: 1185 | BG24: 1911 | BH24: 2121 | BI24: 575 | BJ24: 1786 | BK24: 983 | BL24: 1613 | BM24: 250 | BN24: 490 | BO24: 260 | BP24: 329 | BQ24: 759 | BR24: 204 | BS24: 250 | BT24: 415 | BU24: 342 | BV24: 613 | BW24: 340 | BX24: 256 | BY24: 451 | BZ24: 45 | CA24: 55 | CB24: 37 | CC24: 0 | CD24: 0 | CE24: 0 | CF24: 0 | CG24: 0 | CH24: 0 | CI24: 0 | CJ24: 0 | CK24: 0 | CL24: 0 | CM24: 0 | CN24: 0 | CO24: 0 | CP24: 0 | CQ24: 0 | CR24: 0 | CS24: 0 | CT24: 0 | CV24: 365.6317258 | CW24: 3702.021223 | CX24: 5073.140195 | CY24: 4067.652949 | CZ24: 7845.847449 | DA24: 10709.96263 | DB24: 11654.51126 | DC24: 9156.027799 | DD24: 9734.944699 | DE24: 6291.912614 | DF24: 6063.392786 | DG24: 6368.08589 | DH24: 12949.45695 | DI24: 12065.84695 | DJ24: 11654.51126 | DK24: 11502.16471 | DL24: 13086.56885 | DM24: 14518.62644 | DN24: 16940.93663 | DO24: 20262.09147 | DP24: 12461.94799 | DQ24: 13238.9154 | DR24: 10298.62694 | DS24: 7388.807792 | DT24: 10481.44281 | DU24: 13284.61937 | DV24: 8912.273316 | DW24: 11776.3885 | DX24: 13330.32334 | DY24: 13558.84316 | DZ24: 9430.251594 | EA24: 9369.312973 | EB24: 13436.96592 | EC24: 14610.03438 | ED24: 14015.88282 | EE24: 23019.56407 | EF24: 16590.53956 | EG24: 23979.34735 | EH24: 14335.81058 | EI24: 12614.29454 | EJ24: 9308.374352 | EK24: 7876.316759 | EL24: 10603.32005 | EM24: 15828.80679 | EN24: 13772.12834 | EO24: 8485.702969 | EP24: 20749.60044 | EQ24: 17885.48525 | ER24: 7830.612794 | ES24: 20978.12027 | ET24: 18053.06646 | EU24: 29113.42616 | EV24: 32312.70376 | EW24: 8759.926763 | EX24: 27209.09426 | EY24: 14975.6661 | EZ24: 24573.4989 | FA24: 3808.66381 | FB24: 7464.981068 | FC24: 3961.010363 | FD24: 5012.201574 | FE24: 11563.10333 | FF24: 3107.869669 | FG24: 3808.66381 | FH24: 6322.381925 | FI24: 5210.252092 | FJ24: 9338.843662 | FK24: 5179.782782 | FL24: 3900.071742 | FM24: 6870.829513 | FN24: 685.5594858 | FO24: 837.9060382 | FP24: 563.6822439 | FQ24: 0 | FR24: 0 | FS24: 0 | FT24: 0 | FU24: 0 | FV24: 0 | FW24: 0 | FX24: 0 | FY24: 0 | FZ24: 0 | GA24: 0 | GB24: 0 | GC24: 0 | GD24: 0 | GE24: 0 | GF24: 0 | GG24: 0 | GH24: 0
A25: 2 | B25: POLES | C25: > 66 kv & < = 132 kv ; concrete | D25: 112.9962355 | E25: 79.63856075 | F25: 8.924043969 | G25: 2 | H25: 0 | I25: 2 | J25: 0 | K25: 0 | L25: 3 | M25: 45 | N25: 10 | O25: 33 | P25: 14 | Q25: 39 | R25: 57 | S25: 266 | T25: 250 | U25: 146 | V25: 259 | W25: 481 | X25: 144 | Y25: 442 | Z25: 14 | AA25: 14 | AB25: 13 | AC25: 10 | AD25: 11 | AE25: 37 | AF25: 81 | AG25: 40 | AH25: 11 | AI25: 20 | AJ25: 10 | AK25: 293 | AL25: 11 | AM25: 25 | AN25: 891 | AO25: 9 | AP25: 759 | AQ25: 640 | AR25: 38 | AS25: 24 | AT25: 12 | AU25: 12 | AV25: 0 | AW25: 0 | AX25: 2 | AY25: 1 | AZ25: 0 | BA25: 1 | BB25: 0 | BC25: 0 | BD25: 0 | BE25: 0 | BF25: 0 | BG25: 0 | BH25: 0 | BI25: 0 | BJ25: 0 | BK25: 0 | BL25: 0 | BM25: 0 | BN25: 0 | BO25: 0 | BP25: 0 | BQ25: 0 | BR25: 0 | BS25: 0 | BT25: 0 | BU25: 0 | BV25: 0 | BW25: 0 | BX25: 0 | BY25: 0 | BZ25: 0 | CA25: 0 | CB25: 0 | CC25: 0 | CD25: 0 | CE25: 0 | CF25: 0 | CG25: 0 | CH25: 0 | CI25: 0 | CJ25: 0 | CK25: 0 | CL25: 0 | CM25: 0 | CN25: 0 | CO25: 0 | CP25: 0 | CQ25: 0 | CR25: 0 | CS25: 0 | CT25: 0 | CV25: 0 | CW25: 225.9924709 | CX25: 0 | CY25: 0 | CZ25: 338.9887064 | DA25: 5084.830596 | DB25: 1129.962355 | DC25: 3728.87577 | DD25: 1581.947296 | DE25: 4406.853183 | DF25: 6440.785421 | DG25: 30056.99863 | DH25: 28249.05887 | DI25: 16497.45038 | DJ25: 29266.02499 | DK25: 54351.18926 | DL25: 16271.45791 | DM25: 49944.33607 | DN25: 1581.947296 | DO25: 1581.947296 | DP25: 1468.951061 | DQ25: 1129.962355 | DR25: 1242.95859 | DS25: 4180.860712 | DT25: 9152.695073 | DU25: 4519.849419 | DV25: 1242.95859 | DW25: 2259.924709 | DX25: 1129.962355 | DY25: 33107.89699 | DZ25: 1242.95859 | EA25: 2824.905887 | EB25: 100679.6458 | EC25: 1016.966119 | ED25: 85764.14272 | EE25: 72317.5907 | EF25: 4293.856948 | EG25: 2711.909651 | EH25: 1355.954826 | EI25: 1355.954826 | EJ25: 0 | EK25: 0 | EL25: 225.9924709 | EM25: 112.9962355 | EN25: 0 | EO25: 112.9962355 | EP25: 0 | EQ25: 0 | ER25: 0 | ES25: 0 | ET25: 0 | EU25: 0 | EV25: 0 | EW25: 0 | EX25: 0 | EY25: 0 | EZ25: 0 | FA25: 0 | FB25: 0 | FC25: 0 | FD25: 0 | FE25: 0 | FF25: 0 | FG25: 0 | FH25: 0 | FI25: 0 | FJ25: 0 | FK25: 0 | FL25: 0 | FM25: 0 | FN25: 0 | FO25: 0 | FP25: 0 | FQ25: 0 | FR25: 0 | FS25: 0 | FT25: 0 | FU25: 0 | FV25: 0 | FW25: 0 | FX25: 0 | FY25: 0 | FZ25: 0 | GA25: 0 | GB25: 0 | GC25: 0 | GD25: 0 | GE25: 0 | GF25: 0 | GG25: 0 | GH25: 0
A26: 2 | B26: POLES | C26: > 66 kv & < = 132 kv ; steel | D26: 112.9962355 | E26: 79.63856075 | F26: 8.924043969 | G26: 2 | H26: 0 | I26: 0 | J26: 0 | K26: 0 | L26: 0 | M26: 0 | N26: 6 | O26: 9 | P26: 7 | Q26: 7 | R26: 5 | S26: 3 | T26: 8 | U26: 3 | V26: 3 | W26: 3 | X26: 6 | Y26: 6 | Z26: 3 | AA26: 3 | AB26: 3 | AC26: 4 | AD26: 6 | AE26: 159 | AF26: 14 | AG26: 2 | AH26: 4 | AI26: 3 | AJ26: 3 | AK26: 3 | AL26: 11 | AM26: 0 | AN26: 0 | AO26: 288 | AP26: 0 | AQ26: 0 | AR26: 24 | AS26: 197 | AT26: 0 | AU26: 2 | AV26: 1 | AW26: 0 | AX26: 0 | AY26: 0 | AZ26: 0 | BA26: 0 | BB26: 0 | BC26: 16 | BD26: 0 | BE26: 0 | BF26: 0 | BG26: 0 | BH26: 0 | BI26: 0 | BJ26: 48 | BK26: 0 | BL26: 0 | BM26: 0 | BN26: 0 | BO26: 0 | BP26: 0 | BQ26: 0 | BR26: 0 | BS26: 0 | BT26: 0 | BU26: 0 | BV26: 0 | BW26: 0 | BX26: 0 | BY26: 0 | BZ26: 0 | CA26: 0 | CB26: 0 | CC26: 0 | CD26: 0 | CE26: 0 | CF26: 0 | CG26: 0 | CH26: 0 | CI26: 0 | CJ26: 0 | CK26: 0 | CL26: 0 | CM26: 0 | CN26: 0 | CO26: 0 | CP26: 0 | CQ26: 0 | CR26: 0 | CS26: 0 | CT26: 0 | CV26: 0 | CW26: 0 | CX26: 0 | CY26: 0 | CZ26: 0 | DA26: 0 | DB26: 677.9774128 | DC26: 1016.966119 | DD26: 790.9736482 | DE26: 790.9736482 | DF26: 564.9811773 | DG26: 338.9887064 | DH26: 903.9698837 | DI26: 338.9887064 | DJ26: 338.9887064 | DK26: 338.9887064 | DL26: 677.9774128 | DM26: 677.9774128 | DN26: 338.9887064 | DO26: 338.9887064 | DP26: 338.9887064 | DQ26: 451.9849419 | DR26: 677.9774128 | DS26: 17966.40144 | DT26: 1581.947296 | DU26: 225.9924709 | DV26: 451.9849419 | DW26: 338.9887064 | DX26: 338.9887064 | DY26: 338.9887064 | DZ26: 1242.95859 | EA26: 0 | EB26: 0 | EC26: 32542.91581 | ED26: 0 | EE26: 0 | EF26: 2711.909651 | EG26: 22260.25839 | EH26: 0 | EI26: 225.9924709 | EJ26: 112.9962355 | EK26: 0 | EL26: 0 | EM26: 0 | EN26: 0 | EO26: 0 | EP26: 0 | EQ26: 1807.939767 | ER26: 0 | ES26: 0 | ET26: 0 | EU26: 0 | EV26: 0 | EW26: 0 | EX26: 5423.819302 | EY26: 0 | EZ26: 0 | FA26: 0 | FB26: 0 | FC26: 0 | FD26: 0 | FE26: 0 | FF26: 0 | FG26: 0 | FH26: 0 | FI26: 0 | FJ26: 0 | FK26: 0 | FL26: 0 | FM26: 0 | FN26: 0 | FO26: 0 | FP26: 0 | FQ26: 0 | FR26: 0 | FS26: 0 | FT26: 0 | FU26: 0 | FV26: 0 | FW26: 0 | FX26: 0 | FY26: 0 | FZ26: 0 | GA26: 0 | GB26: 0 | GC26: 0 | GD26: 0 | GE26: 0 | GF26: 0 | GG26: 0 | GH26: 0
A27: 2 | B27: POLES | C27: > 66 kv & < = 132 kv ; wood | D27: 112.9962355 | E27: 79.63856075 | F27: 8.924043969 | G27: 2 | H27: 2 | I27: 2 | J27: 3 | K27: 2 | L27: 4 | M27: 20 | N27: 2 | O27: 1 | P27: 2 | Q27: 33 | R27: 14 | S27: 15 | T27: 22 | U27: 21 | V27: 7 | W27: 5 | X27: 15 | Y27: 101 | Z27: 36 | AA27: 7 | AB27: 9 | AC27: 3 | AD27: 6 | AE27: 3 | AF27: 5 | AG27: 4 | AH27: 136 | AI27: 9 | AJ27: 8 | AK27: 3 | AL27: 1 | AM27: 3 | AN27: 9 | AO27: 2 | AP27: 15 | AQ27: 8 | AR27: 4 | AS27: 203 | AT27: 17 | AU27: 4 | AV27: 143 | AW27: 39 | AX27: 280 | AY27: 90 | AZ27: 265 | BA27: 78 | BB27: 7 | BC27: 2 | BD27: 250 | BE27: 39 | BF27: 459 | BG27: 632 | BH27: 14 | BI27: 848 | BJ27: 142 | BK27: 0 | BL27: 2 | BM27: 3 | BN27: 2 | BO27: 1 | BP27: 0 | BQ27: 213 | BR27: 3 | BS27: 1 | BT27: 2 | BU27: 3 | BV27: 3 | BW27: 2 | BX27: 2 | BY27: 2 | BZ27: 0 | CA27: 0 | CB27: 0 | CC27: 0 | CD27: 0 | CE27: 0 | CF27: 0 | CG27: 0 | CH27: 0 | CI27: 0 | CJ27: 0 | CK27: 0 | CL27: 0 | CM27: 0 | CN27: 0 | CO27: 0 | CP27: 0 | CQ27: 0 | CR27: 0 | CS27: 0 | CT27: 0 | CV27: 225.9924709 | CW27: 225.9924709 | CX27: 338.9887064 | CY27: 225.9924709 | CZ27: 451.9849419 | DA27: 2259.924709 | DB27: 225.9924709 | DC27: 112.9962355 | DD27: 225.9924709 | DE27: 3728.87577 | DF27: 1581.947296 | DG27: 1694.943532 | DH27: 2485.91718 | DI27: 2372.920945 | DJ27: 790.9736482 | DK27: 564.9811773 | DL27: 1694.943532 | DM27: 11412.61978 | DN27: 4067.864477 | DO27: 790.9736482 | DP27: 1016.966119 | DQ27: 338.9887064 | DR27: 677.9774128 | DS27: 338.9887064 | DT27: 564.9811773 | DU27: 451.9849419 | DV27: 15367.48802 | DW27: 1016.966119 | DX27: 903.9698837 | DY27: 338.9887064 | DZ27: 112.9962355 | EA27: 338.9887064 | EB27: 1016.966119 | EC27: 225.9924709 | ED27: 1694.943532 | EE27: 903.9698837 | EF27: 451.9849419 | EG27: 22938.2358 | EH27: 1920.936003 | EI27: 451.9849419 | EJ27: 16158.46167 | EK27: 4406.853183 | EL27: 31638.94593 | EM27: 10169.66119 | EN27: 29944.0024 | EO27: 8813.706366 | EP27: 790.9736482 | EQ27: 225.9924709 | ER27: 28249.05887 | ES27: 4406.853183 | ET27: 51865.27208 | EU27: 71413.62081 | EV27: 1581.947296 | EW27: 95820.80767 | EX27: 16045.46544 | EY27: 0 | EZ27: 225.9924709 | FA27: 338.9887064 | FB27: 225.9924709 | FC27: 112.9962355 | FD27: 0 | FE27: 24068.19815 | FF27: 338.9887064 | FG27: 112.9962355 | FH27: 225.9924709 | FI27: 338.9887064 | FJ27: 338.9887064 | FK27: 225.9924709 | FL27: 225.9924709 | FM27: 225.9924709 | FN27: 0 | FO27: 0 | FP27: 0 | FQ27: 0 | FR27: 0 | FS27: 0 | FT27: 0 | FU27: 0 | FV27: 0 | FW27: 0 | FX27: 0 | FY27: 0 | FZ27: 0 | GA27: 0 | GB27: 0 | GC27: 0 | GD27: 0 | GE27: 0 | GF27: 0 | GG27: 0 | GH27: 0
A28: 2 | B28: POLES | C28: staking of a wooden pole | D28: 8.215463528 | E28: 27.15026565 | F28: 5.21059168 | G28: 2 | H28: 1011 | I28: 1563 | J28: 1461 | K28: 1873 | L28: 1332 | M28: 2428 | N28: 4000 | O28: 2595 | P28: 2595 | Q28: 2840 | R28: 2768 | S28: 2616 | T28: 2547 | U28: 4195 | V28: 2500 | W28: 2000 | X28: 1700 | Y28: 1500 | Z28: 1500 | AA28: 1500 | AB28: 1500 | AC28: 800 | AD28: 800 | AE28: 800 | AF28: 800 | AG28: 800 | AH28: 800 | AI28: 400 | AJ28: 400 | AK28: 400 | AL28: 0 | AM28: 0 | AN28: 0 | AO28: 0 | AP28: 0 | AQ28: 0 | AR28: 0 | AS28: 0 | AT28: 0 | AU28: 0 | AV28: 0 | AW28: 0 | AX28: 0 | AY28: 0 | AZ28: 0 | BA28: 0 | BB28: 0 | BC28: 0 | BD28: 0 | BE28: 0 | BF28: 0 | BG28: 0 | BH28: 0 | BI28: 0 | BJ28: 0 | BK28: 0 | BL28: 0 | BM28: 0 | BN28: 0 | BO28: 0 | BP28: 0 | BQ28: 0 | BR28: 0 | BS28: 0 | BT28: 0 | BU28: 0 | BV28: 0 | BW28: 0 | BX28: 0 | BY28: 0 | BZ28: 0 | CA28: 0 | CB28: 0 | CC28: 0 | CD28: 0 | CE28: 0 | CF28: 0 | CG28: 0 | CH28: 0 | CI28: 0 | CJ28: 0 | CK28: 0 | CL28: 0 | CM28: 0 | CN28: 0 | CO28: 0 | CP28: 0 | CQ28: 0 | CR28: 0 | CS28: 0 | CT28: 0 | CV28: 8305.833627 | CW28: 12840.7695 | CX28: 12002.79222 | CY28: 15387.56319 | CZ28: 10942.99742 | DA28: 19947.14545 | DB28: 32861.85411 | DC28: 21319.12786 | DD28: 21319.12786 | DE28: 23331.91642 | DF28: 22740.40305 | DG28: 21491.65259 | DH28: 20924.78561 | DI28: 34463.8695 | DJ28: 20538.65882 | DK28: 16430.92706 | DL28: 13966.288 | DM28: 12323.19529 | DN28: 12323.19529 | DO28: 12323.19529 | DP28: 12323.19529 | DQ28: 6572.370823 | DR28: 6572.370823 | DS28: 6572.370823 | DT28: 6572.370823 | DU28: 6572.370823 | DV28: 6572.370823 | DW28: 3286.185411 | DX28: 3286.185411 | DY28: 3286.185411 | DZ28: 0 | EA28: 0 | EB28: 0 | EC28: 0 | ED28: 0 | EE28: 0 | EF28: 0 | EG28: 0 | EH28: 0 | EI28: 0 | EJ28: 0 | EK28: 0 | EL28: 0 | EM28: 0 | EN28: 0 | EO28: 0 | EP28: 0 | EQ28: 0 | ER28: 0 | ES28: 0 | ET28: 0 | EU28: 0 | EV28: 0 | EW28: 0 | EX28: 0 | EY28: 0 | EZ28: 0 | FA28: 0 | FB28: 0 | FC28: 0 | FD28: 0 | FE28: 0 | FF28: 0 | FG28: 0 | FH28: 0 | FI28: 0 | FJ28: 0 | FK28: 0 | FL28: 0 | FM28: 0 | FN28: 0 | FO28: 0 | FP28: 0 | FQ28: 0 | FR28: 0 | FS28: 0 | FT28: 0 | FU28: 0 | FV28: 0 | FW28: 0 | FX28: 0 | FY28: 0 | FZ28: 0 | GA28: 0 | GB28: 0 | GC28: 0 | GD28: 0 | GE28: 0 | GF28: 0 | GG28: 0 | GH28: 0
A29: 3 | B29: SERVICE LINES | C29: ˂ = 11 kv ; commercial and industrial ; simple type | D29: 1.381630098 | E29: 55.11217324 | F29: 7.423757353 | G29: 2 | H29: 20.03737482 | I29: 366.6839593 | J29: 382.7138592 | K29: 301.5624911 | L29: 495.9250269 | M29: 649.2109443 | N29: 623.1623571 | O29: 638.1903882 | P29: 527.9848266 | Q29: 545.0165952 | R29: 637.1885194 | S29: 927.7304544 | T29: 1364.545226 | U29: 1128.104203 | V29: 1172.186427 | W29: 1095.042534 | X29: 947.7678292 | Y29: 1053.965916 | Z29: 1024.911722 | AA29: 1015.894904 | AB29: 944.762223 | AC29: 1023.909854 | AD29: 1014.893035 | AE29: 1214.264914 | AF29: 1426.661088 | AG29: 1040.941622 | AH29: 1020.904247 | AI29: 963.7977291 | AJ29: 1071.999553 | AK29: 1161.165871 | AL29: 1059.977128 | AM29: 734.3697873 | AN29: 879.6407548 | AO29: 981.8313664 | AP29: 1040.941622 | AQ29: 946.7659605 | AR29: 829.5473177 | AS29: 1145.135971 | AT29: 1102.055615 | AU29: 987.8425789 | AV29: 711.3268063 | AW29: 810.5118117 | AX29: 745.3903435 | AY29: 687.2819565 | AZ29: 688.2838252 | BA29: 720.343625 | BB29: 602.1231135 | BC29: 614.1455384 | BD29: 658.227763 | BE29: 727.3567061 | BF29: 656.2240255 | BG29: 592.1044261 | BH29: 459.8577522 | BI29: 439.8203774 | BJ29: 428.7998213 | BK29: 386.7213341 | BL29: 495.9250269 | BM29: 268.5008227 | BN29: 251.4690541 | BO29: 268.5008227 | BP29: 272.5082976 | BQ29: 243.4541041 | BR29: 243.4541041 | BS29: 293.5475412 | BT29: 256.4783978 | BU29: 248.4634478 | BV29: 257.4802665 | BW29: 240.4484979 | BX29: 257.4802665 | BY29: 278.5195101 | BZ29: 2.003737482 | CA29: 0 | CB29: 7.013081189 | CC29: 0 | CD29: 0 | CE29: 0 | CF29: 0 | CG29: 0 | CH29: 0 | CI29: 0 | CJ29: 0 | CK29: 0 | CL29: 0 | CM29: 0 | CN29: 0 | CO29: 0 | CP29: 0 | CQ29: 0 | CR29: 0 | CS29: 0 | CT29: 0 | CV29: 27.68424015 | CW29: 506.6215948 | CX29: 528.768987 | CY29: 416.6478143 | CZ29: 685.1849438 | DA29: 896.9693809 | DB29: 860.9798688 | DC29: 881.7430489 | DD29: 729.479728 | DE29: 753.0113321 | DF29: 880.3588368 | DG29: 1281.780319 | DH29: 1885.296755 | DI29: 1558.622721 | DJ29: 1619.528049 | DK29: 1512.943724 | DL29: 1309.464559 | DM29: 1456.191032 | DN29: 1416.048883 | DO29: 1403.590976 | DP29: 1305.311923 | DQ29: 1414.664672 | DR29: 1402.206764 | DS29: 1677.664953 | DT29: 1971.1179 | DU29: 1438.196276 | DV29: 1410.512035 | DW29: 1331.611951 | DX29: 1481.106848 | DY29: 1604.301717 | DZ29: 1464.496304 | EA29: 1014.627402 | EB29: 1215.338143 | EC29: 1356.527767 | ED29: 1438.196276 | EE29: 1308.080347 | EF29: 1146.127542 | EG29: 1582.154324 | EH29: 1522.633208 | EI29: 1364.83304 | EJ29: 982.7905255 | EK29: 1119.827514 | EL29: 1029.853734 | EM29: 949.5694373 | EN29: 950.9536492 | EO29: 995.2484336 | EP29: 831.9114166 | EQ29: 848.5219607 | ER29: 909.427289 | ES29: 1004.937917 | ET29: 906.658865 | EU29: 818.0692966 | EV29: 635.3533115 | EW29: 607.6690713 | EX29: 592.4427393 | EY29: 534.3058349 | EZ29: 685.1849438 | FA29: 370.9688181 | FB29: 347.437214 | FC29: 370.9688181 | FD29: 376.5056661 | FE29: 336.3635178 | FF29: 336.3635178 | FG29: 405.5741183 | FH29: 354.358274 | FI29: 343.2845779 | FJ29: 355.742486 | FK29: 332.2108818 | FL29: 355.742486 | FM29: 384.8109382 | FN29: 2.768424015 | FO29: 0 | FP29: 9.689484054 | FQ29: 0 | FR29: 0 | FS29: 0 | FT29: 0 | FU29: 0 | FV29: 0 | FW29: 0 | FX29: 0 | FY29: 0 | FZ29: 0 | GA29: 0 | GB29: 0 | GC29: 0 | GD29: 0 | GE29: 0 | GF29: 0 | GG29: 0 | GH29: 0
A30: 3 | B30: SERVICE LINES | C30: ˂ = 11 kv ; residential ; simple type | D30: 1.014812544 | E30: 62.16601266 | F30: 7.884542641 | G30: 2 | H30: 184.1976487 | I30: 1830.964671 | J30: 2161.31915 | K30: 1820.953929 | L30: 2897.108671 | M30: 4100.399832 | N30: 4234.543772 | O30: 4559.89288 | P30: 3783.059318 | Q30: 3871.153845 | R30: 3784.060392 | S30: 4324.640448 | T30: 6642.12717 | U30: 7183.7083 | V30: 7664.223905 | W30: 7747.313062 | X30: 6355.819955 | Y30: 6323.785581 | Z30: 5630.041176 | AA30: 5757.177596 | AB30: 5415.811302 | AC30: 5660.073401 | AD30: 5499.901533 | AE30: 6051.493405 | AF30: 6827.325893 | AG30: 6347.811361 | AH30: 6318.78021 | AI30: 7692.253982 | AJ30: 7054.569731 | AK30: 6807.304409 | AL30: 6127.575042 | AM30: 4976.339738 | AN30: 4356.674822 | AO30: 6714.20451 | AP30: 8965.620336 | AQ30: 8079.669689 | AR30: 6799.295816 | AS30: 10001.73211 | AT30: 8079.669689 | AU30: 6852.352747 | AV30: 5009.375186 | AW30: 6701.190546 | AX30: 7676.236795 | AY30: 7633.190606 | AZ30: 7673.233573 | BA30: 8366.977978 | BB30: 6807.304409 | BC30: 6671.158321 | BD30: 6780.275406 | BE30: 7178.702929 | BF30: 6418.887628 | BG30: 4975.338664 | BH30: 3877.160291 | BI30: 3735.007757 | BJ30: 3307.549083 | BK30: 2444.623142 | BL30: 3841.12162 | BM30: 2289.456645 | BN30: 2199.359969 | BO30: 2292.459867 | BP30: 2221.383601 | BQ30: 2189.349227 | BR30: 2235.398639 | BS30: 2180.339559 | BT30: 2156.313779 | BU30: 2145.301963 | BV30: 2126.281554 | BW30: 2167.325595 | BX30: 2120.275109 | BY30: 2223.385749 | BZ30: 9.0096676 | CA30: 0 | CB30: 69.07411827 | CC30: 0 | CD30: 0 | CE30: 0 | CF30: 0 | CG30: 0 | CH30: 0 | CI30: 0 | CJ30: 0 | CK30: 0 | CL30: 0 | CM30: 0 | CN30: 0 | CO30: 0 | CP30: 0 | CQ30: 0 | CR30: 0 | CS30: 0 | CT30: 0 | CV30: 186.9260845 | CW30: 1858.085916 | CX30: 2193.333786 | CY30: 1847.92689 | CZ30: 2940.022222 | DA30: 4161.137186 | DB30: 4297.268139 | DC30: 4627.436495 | DD30: 3839.096052 | DE30: 3928.495483 | DF30: 3840.111954 | DG30: 4388.699376 | DH30: 6740.513973 | DI30: 7290.117297 | DJ30: 7777.750561 | DK30: 7862.07048 | DL30: 6449.96582 | DM30: 6417.456935 | DN30: 5713.43641 | DO30: 5842.456044 | DP30: 5496.033247 | DQ30: 5743.913489 | DR30: 5581.369068 | DS30: 6141.131419 | DT30: 6928.45596 | DU30: 6441.838598 | DV30: 6412.377422 | DW30: 7806.195835 | DX30: 7159.065858 | DY30: 6908.137907 | DZ30: 6218.340019 | EA30: 5050.051991 | EB30: 4421.208261 | EC30: 6813.658962 | ED30: 9098.423984 | EE30: 8199.350154 | EF30: 6900.010687 | EG30: 10149.88321 | EH30: 8199.350154 | EI30: 6953.853526 | EJ30: 5083.576778 | EK30: 6800.452228 | EL30: 7789.941393 | EM30: 7746.25758 | EN30: 7786.893685 | EO30: 8490.91421 | EP30: 6908.137907 | EQ30: 6769.975149 | ER30: 6880.708536 | ES30: 7285.037784 | ET30: 6513.967685 | EU30: 5049.036088 | EV30: 3934.5909 | EW30: 3790.332725 | EX30: 3356.5423 | EY30: 2480.834231 | EZ30: 3898.018404 | FA30: 2323.369323 | FB30: 2231.938086 | FC30: 2326.41703 | FD30: 2254.287944 | FE30: 2221.779059 | FF30: 2268.51058 | FG30: 2212.635935 | FH30: 2188.254272 | FI30: 2177.079343 | FJ30: 2157.777194 | FK30: 2199.429201 | FL30: 2151.681778 | FM30: 2256.319749 | FN30: 9.143123701 | FO30: 0 | FP30: 70.09728171 | FQ30: 0 | FR30: 0 | FS30: 0 | FT30: 0 | FU30: 0 | FV30: 0 | FW30: 0 | FX30: 0 | FY30: 0 | FZ30: 0 | GA30: 0 | GB30: 0 | GC30: 0 | GD30: 0 | GE30: 0 | GF30: 0 | GG30: 0 | GH30: 0
A31: 4 | B31: SWITCHGEAR | C31: ˂ = 11 kv ; circuit breaker | D31: 267.0553534 | E31: 58.3485665 | F31: 7.638623338 | G31: 2 | H31: 54.2305141 | I31: 74.69485904 | J31: 67.53233831 | K31: 114.6003317 | L31: 411.3333333 | M31: 123.8092869 | N31: 129.9485904 | O31: 108.4610282 | P31: 87.99668325 | Q31: 122.7860697 | R31: 98.22885572 | S31: 142.2271973 | T31: 119.7164179 | U31: 125.8557214 | V31: 65.48590381 | W31: 81.85737977 | X31: 27.62686567 | Y31: 191.3416252 | Z31: 53.20729685 | AA31: 86.973466 | AB31: 21.48756219 | AC31: 33.76616915 | AD31: 13.30182421 | AE31: 30.69651741 | AF31: 36.8358209 | AG31: 5.116086235 | AH31: 8.185737977 | AI31: 23.53399668 | AJ31: 23.53399668 | AK31: 23.53399668 | AL31: 9.208955224 | AM31: 6.139303483 | AN31: 24.55721393 | AO31: 29.67330017 | AP31: 30.69651741 | AQ31: 41.95190713 | AR31: 34.7893864 | AS31: 45.02155887 | AT31: 33.76616915 | AU31: 73.67164179 | AV31: 18.41791045 | AW31: 11.25538972 | AX31: 1.023217247 | AY31: 15.34825871 | AZ31: 15.34825871 | BA31: 13.30182421 | BB31: 1.023217247 | BC31: 0 | BD31: 15.34825871 | BE31: 17.3946932 | BF31: 24.55721393 | BG31: 13.30182421 | BH31: 25.58043118 | BI31: 13.30182421 | BJ31: 21.48756219 | BK31: 19.44112769 | BL31: 1.023217247 | BM31: 4.092868988 | BN31: 1.023217247 | BO31: 5.116086235 | BP31: 3.069651741 | BQ31: 1.023217247 | BR31: 1.023217247 | BS31: 0 | BT31: 0 | BU31: 1.023217247 | BV31: 0 | BW31: 0 | BX31: 3.069651741 | BY31: 1.023217247 | BZ31: 0 | CA31: 0 | CB31: 0 | CC31: 0 | CD31: 0 | CE31: 0 | CF31: 0 | CG31: 0 | CH31: 0 | CI31: 0 | CJ31: 0 | CK31: 0 | CL31: 0 | CM31: 0 | CN31: 0 | CO31: 0 | CP31: 0 | CQ31: 0 | CR31: 0 | CS31: 0 | CT31: 0 | CV31: 14482.54911 | CW31: 19947.66198 | CX31: 18034.87248 | CY31: 30604.63209 | CZ31: 109848.7687 | DA31: 33063.93287 | DB31: 34703.46674 | DC31: 28965.09822 | DD31: 23499.98535 | DE31: 32790.67724 | DF31: 26232.54178 | DG31: 37982.53444 | DH31: 31970.91029 | DI31: 33610.44416 | DJ31: 17488.36119 | DK31: 21860.45149 | DL31: 7377.902376 | DM31: 51098.80534 | DN31: 14209.29347 | DO31: 23226.7297 | DP31: 5738.368515 | DQ31: 9017.436237 | DR31: 3552.323366 | DS31: 8197.669306 | DT31: 9837.20317 | DU31: 1366.278218 | DV31: 2186.045149 | DW31: 6284.879801 | DX31: 6284.879801 | DY31: 6284.879801 | DZ31: 2459.300792 | EA31: 1639.533862 | EB31: 6558.135445 | EC31: 7924.413665 | ED31: 8197.669306 | EE31: 11203.48139 | EF31: 9290.691881 | EG31: 12023.24832 | EH31: 9017.436237 | EI31: 19674.40634 | EJ31: 4918.601585 | EK31: 3005.81208 | EL31: 273.2556435 | EM31: 4098.834654 | EN31: 4098.834654 | EO31: 3552.323366 | EP31: 273.2556435 | EQ31: 0 | ER31: 4098.834654 | ES31: 4645.34594 | ET31: 6558.135445 | EU31: 3552.323366 | EV31: 6831.39109 | EW31: 3552.323366 | EX31: 5738.368515 | EY31: 5191.857226 | EZ31: 273.2556435 | FA31: 1093.022574 | FB31: 273.2556435 | FC31: 1366.278218 | FD31: 819.7669306 | FE31: 273.2556435 | FF31: 273.2556435 | FG31: 0 | FH31: 0 | FI31: 273.2556435 | FJ31: 0 | FK31: 0 | FL31: 819.7669306 | FM31: 273.2556435 | FN31: 0 | FO31: 0 | FP31: 0 | FQ31: 0 | FR31: 0 | FS31: 0 | FT31: 0 | FU31: 0 | FV31: 0 | FW31: 0 | FX31: 0 | FY31: 0 | FZ31: 0 | GA31: 0 | GB31: 0 | GC31: 0 | GD31: 0 | GE31: 0 | GF31: 0 | GG31: 0 | GH31: 0
A32: 4 | B32: SWITCHGEAR | C32: ˂ = 11 kv ; fuse | D32: 7.003140681 | E32: 51.08831851 | F32: 7.147609286 | G32: 2 | H32: 1263.420293 | I32: 2870.375016 | J32: 1844.945441 | K32: 2261.94657 | L32: 2921.077386 | M32: 3144.581713 | N32: 3173.554496 | O32: 3681.612944 | P32: 3652.640161 | Q32: 4708.077261 | R32: 6898.626615 | S32: 6316.066725 | T32: 2863.13182 | U32: 1832.528534 | V32: 1902.891007 | W32: 1695.942556 | X32: 1365.859777 | Y32: 1027.499059 | Z32: 921.9553493 | AA32: 994.3873072 | AB32: 827.7938041 | AC32: 878.4961746 | AD32: 737.7712279 | AE32: 786.4041139 | AF32: 931.2680296 | AG32: 925.0595761 | AH32: 792.6125674 | AI32: 890.9130817 | AJ32: 837.1064844 | AK32: 841.2454534 | AL32: 806.0642167 | AM32: 660.1655588 | AN32: 706.7289602 | AO32: 819.515866 | AP32: 873.3224633 | AQ32: 950.9281324 | AR32: 720.1806096 | AS32: 1103.035244 | AT32: 887.8088549 | AU32: 777.0914336 | AV32: 519.4406121 | AW32: 627.0538066 | AX32: 633.2622601 | AY32: 555.656591 | AZ32: 568.0734981 | BA32: 606.3589615 | BB32: 452.1823655 | BC32: 563.934529 | BD32: 539.1007149 | BE32: 580.4904051 | BF32: 462.529788 | BG32: 441.8349429 | BH32: 399.4105105 | BI32: 321.8048413 | BJ32: 352.847109 | BK32: 409.757933 | BL32: 366.2987583 | BM32: 145.898658 | BN32: 180.0451524 | BO32: 160.3850495 | BP32: 136.5859777 | BQ32: 173.8366989 | BR32: 143.8291735 | BS32: 138.6554622 | BT32: 132.4470087 | BU32: 168.6629876 | BV32: 189.3578327 | BW32: 140.7249467 | BX32: 162.4545341 | BY32: 130.3775241 | BZ32: 0 | CA32: 0 | CB32: 0 | CC32: 0 | CD32: 0 | CE32: 0 | CF32: 0 | CG32: 0 | CH32: 0 | CI32: 0 | CJ32: 0 | CK32: 0 | CL32: 0 | CM32: 1.034742255 | CN32: 0 | CO32: 0 | CP32: 0 | CQ32: 0 | CR32: 0 | CS32: 0 | CT32: 0 | CV32: 8847.910051 | CW32: 20101.64004 | CX32: 12920.41247 | CY32: 15840.73004 | CZ32: 20456.71587 | DA32: 22021.94812 | DB32: 22224.84859 | DC32: 25782.85338 | DD32: 25579.9529 | DE32: 32971.3274 | DF32: 48312.05269 | DG32: 44232.30383 | DH32: 20050.91492 | DI32: 12833.45513 | DJ32: 13326.21342 | DK32: 11876.92431 | DL32: 9565.308169 | DM32: 7195.72046 | DN32: 6456.583013 | DO32: 6963.834204 | DP32: 5797.156465 | DQ32: 6152.232298 | DR32: 5166.715699 | DS32: 5507.298642 | DT32: 6521.801023 | DU32: 6478.32235 | DV32: 5550.777315 | DW32: 6239.189646 | DX32: 5862.374475 | DY32: 5891.360257 | DZ32: 5644.981108 | EA32: 4623.232281 | EB32: 4949.322332 | EC32: 5739.1849 | ED32: 6116.00007 | EE32: 6659.483489 | EF32: 5043.526125 | EG32: 7724.71099 | EH32: 6217.450309 | EI32: 5442.080632 | EJ32: 3637.715682 | EK32: 4391.346022 | EL32: 4434.824695 | EM32: 3891.341277 | EN32: 3978.298624 | EO32: 4246.417111 | EP32: 3166.696719 | EQ32: 3949.312841 | ER32: 3775.398148 | ES32: 4065.255971 | ET32: 3239.161175 | EU32: 3094.232263 | EV32: 2797.127995 | EW32: 2253.644575 | EX32: 2471.037943 | EY32: 2869.59245 | EZ32: 2565.241736 | FA32: 1021.748827 | FB32: 1260.881531 | FC32: 1123.199065 | FD32: 956.5308169 | FE32: 1217.402858 | FF32: 1007.255936 | FG32: 971.023708 | FH32: 927.5450347 | FI32: 1181.17063 | FJ32: 1326.099541 | FK32: 985.5165991 | FL32: 1137.691957 | FM32: 913.0521429 | FN32: 0 | FO32: 0 | FP32: 0 | FQ32: 0 | FR32: 0 | FS32: 0 | FT32: 0 | FU32: 0 | FV32: 0 | FW32: 0 | FX32: 0 | FY32: 0 | FZ32: 0 | GA32: 7.24644558 | GB32: 0 | GC32: 0 | GD32: 0 | GE32: 0 | GF32: 0 | GG32: 0 | GH32: 0
A33: 4 | B33: SWITCHGEAR | C33: ˂ = 11 kv ; switch | D33: 24.68938985 | E33: 60.56240617 | F33: 7.78218518 | G33: 2 | H33: 457.6256314 | I33: 1182.721951 | J33: 1044.807378 | K33: 1712.439292 | L33: 2906.654124 | M33: 3177.259235 | N33: 3909.669207 | O33: 4563.718625 | P33: 4177.139895 | Q33: 4910.594675 | R33: 5939.729941 | S33: 4461.327502 | T33: 2485.596751 | U33: 1942.296915 | V33: 1542.135689 | W33: 1567.211066 | X33: 967.4916316 | Y33: 624.7948118 | Z33: 342.6968198 | AA33: 486.8802379 | AB33: 422.1021805 | AC33: 464.939283 | AD33: 447.1775576 | AE33: 383.4443076 | AF33: 404.3404551 | AG33: 447.1775576 | AH33: 321.8006723 | AI33: 415.8333363 | AJ33: 317.6214428 | AK33: 221.499164 | AL33: 253.8881927 | AM33: 234.0368526 | AN33: 202.6926312 | AO33: 305.0837542 | AP33: 378.2202707 | AQ33: 304.0389469 | AR33: 222.5439714 | AS33: 337.4727829 | AT33: 252.8433854 | AU33: 255.9778075 | AV33: 145.2282255 | AW33: 203.7374386 | AX33: 237.1712747 | AY33: 213.140705 | AZ33: 215.2303198 | BA33: 222.5439714 | BB33: 205.8270534 | BC33: 175.5276394 | BD33: 281.0531846 | BE33: 247.6193485 | BF33: 241.3505042 | BG33: 173.4380247 | BH33: 142.0938033 | BI33: 120.1528484 | BJ33: 152.5418771 | BK33: 140.0041886 | BL33: 150.4522624 | BM33: 86.71901234 | BN33: 80.45016807 | BO33: 86.71901234 | BP33: 100.3015082 | BQ33: 71.04690167 | BR33: 95.07747136 | BS33: 82.53978283 | BT33: 75.22613118 | BU33: 79.40536069 | BV33: 92.9878566 | BW33: 76.27093856 | BX33: 77.31574594 | BY33: 84.62939758 | BZ33: 0 | CA33: 1.044807378 | CB33: 8.35845902 | CC33: 1.044807378 | CD33: 1.044807378 | CE33: 0 | CF33: 0 | CG33: 0 | CH33: 0 | CI33: 0 | CJ33: 0 | CK33: 0 | CL33: 0 | CM33: 0 | CN33: 0 | CO33: 0 | CP33: 0 | CQ33: 0 | CR33: 0 | CS33: 0 | CT33: 0 | CV33: 11298.49762 | CW33: 29200.68333 | CX33: 25795.65668 | CY33: 42279.08128 | CZ33: 71763.51683 | DA33: 78444.59191 | DB33: 96527.34724 | DC33: 112675.4283 | DD33: 103131.0353 | DE33: 121239.5863 | DF33: 146648.3081 | DG33: 110147.454 | DH33: 61367.8672 | DI33: 47954.12574 | DJ33: 38074.38923 | DK33: 38693.48499 | DL33: 23886.77807 | DM33: 15425.80269 | DN33: 8460.975385 | DO33: 12020.776 | DP33: 10421.44529 | DQ33: 11479.06722 | DR33: 11040.54105 | DS33: 9467.005997 | DT33: 9982.919129 | DU33: 11040.54105 | DV33: 7945.062253 | DW33: 10266.67135 | DX33: 7841.879627 | DY33: 5468.679212 | DZ33: 6268.344568 | EA33: 5778.227094 | EB33: 5004.357392 | EC33: 7532.331745 | ED33: 9338.027713 | EE33: 7506.53609 | EF33: 5494.474869 | EG33: 8331.997101 | EH33: 6242.548914 | EI33: 6319.935883 | EJ33: 3585.596277 | EK33: 5030.153049 | EL33: 5855.614063 | EM33: 5262.313959 | EN33: 5313.905273 | EO33: 5494.474869 | EP33: 5081.744363 | EQ33: 4333.670319 | ER33: 6939.031644 | ES33: 6113.57063 | ET33: 5958.796689 | EU33: 4282.079007 | EV33: 3508.209305 | EW33: 2966.500516 | EX33: 3766.165872 | EY33: 3456.617993 | EZ33: 3714.57456 | FA33: 2141.039503 | FB33: 1986.265563 | FC33: 2141.039503 | FD33: 2476.383039 | FE33: 1754.104653 | FF33: 2347.404757 | FG33: 2037.856877 | FH33: 1857.28728 | FI33: 1960.469906 | FJ33: 2295.813443 | FK33: 1883.082936 | FL33: 1908.878593 | FM33: 2089.44819 | FN33: 0 | FO33: 25.79565668 | FP33: 206.3652533 | FQ33: 25.79565668 | FR33: 25.79565668 | FS33: 0 | FT33: 0 | FU33: 0 | FV33: 0 | FW33: 0 | FX33: 0 | FY33: 0 | FZ33: 0 | GA33: 0 | GB33: 0 | GC33: 0 | GD33: 0 | GE33: 0 | GF33: 0 | GG33: 0 | GH33: 0
A34: 4 | B34: SWITCHGEAR | C34: > 11 kv & < = 22 kv ; circuit breaker | D34: 22.17325027 | E34: 41.93982295 | F34: 6.476096274 | G34: 2 | H34: 28.41042345 | I34: 56.82084691 | J34: 85.23127036 | K34: 59.86482085 | L34: 144.0814332 | M34: 91.31921824 | N34: 56.82084691 | O34: 85.23127036 | P34: 71.02605863 | Q34: 33.48371336 | R34: 95.37785016 | S34: 52.76221498 | T34: 77.11400651 | U34: 84.21661238 | V34: 61.89413681 | W34: 26.38110749 | X34: 27.39576547 | Y34: 97.40716612 | Z34: 67.98208469 | AA34: 43.63029316 | AB34: 30.43973941 | AC34: 32.46905537 | AD34: 20.29315961 | AE34: 53.77687296 | AF34: 18.26384365 | AG34: 7.102605863 | AH34: 5.073289902 | AI34: 15.21986971 | AJ34: 27.39576547 | AK34: 39.57166124 | AL34: 5.073289902 | AM34: 6.087947883 | AN34: 17.24918567 | AO34: 34.49837134 | AP34: 36.5276873 | AQ34: 26.38110749 | AR34: 28.41042345 | AS34: 13.19055375 | AT34: 13.19055375 | AU34: 2.029315961 | AV34: 10.1465798 | AW34: 3.043973941 | AX34: 0 | AY34: 3.043973941 | AZ34: 15.21986971 | BA34: 6.087947883 | BB34: 2.029315961 | BC34: 4.058631922 | BD34: 2.029315961 | BE34: 5.073289902 | BF34: 8.117263844 | BG34: 4.058631922 | BH34: 14.20521173 | BI34: 2.029315961 | BJ34: 0 | BK34: 3.043973941 | BL34: 2.029315961 | BM34: 0 | BN34: 0 | BO34: 2.029315961 | BP34: 0 | BQ34: 1.01465798 | BR34: 0 | BS34: 1.01465798 | BT34: 0 | BU34: 1.01465798 | BV34: 1.01465798 | BW34: 0 | BX34: 0 | BY34: 0 | BZ34: 0 | CA34: 0 | CB34: 0 | CC34: 0 | CD34: 0 | CE34: 0 | CF34: 0 | CG34: 0 | CH34: 0 | CI34: 0 | CJ34: 0 | CK34: 0 | CL34: 0 | CM34: 0 | CN34: 0 | CO34: 0 | CP34: 0 | CQ34: 0 | CR34: 0 | CS34: 0 | CT34: 0 | CV34: 629.9514295 | CW34: 1259.902859 | CX34: 1889.854289 | CY34: 1327.397655 | CZ34: 3194.753678 | DA34: 2024.843881 | DB34: 1259.902859 | DC34: 1889.854289 | DD34: 1574.878574 | DE34: 742.4427563 | DF34: 2114.836942 | DG34: 1169.909798 | DH34: 1709.868166 | DI34: 1867.356023 | DJ34: 1372.394186 | DK34: 584.9548988 | DL34: 607.4531641 | DM34: 2159.833473 | DN34: 1507.383778 | DO34: 967.4254096 | DP34: 674.9479601 | DQ34: 719.9444908 | DR34: 449.9653068 | DS34: 1192.408063 | DT34: 404.9687762 | DU34: 157.4878574 | DV34: 112.4913267 | DW34: 337.4739802 | DX34: 607.4531641 | DY34: 877.4323483 | DZ34: 112.4913267 | EA34: 134.989592 | EB34: 382.4705108 | EC34: 764.9410217 | ED34: 809.9375523 | EE34: 584.9548988 | EF34: 629.9514295 | EG34: 292.4774495 | EH34: 292.4774495 | EI34: 44.99653068 | EJ34: 224.9826533 | EK34: 67.49479601 | EL34: 0 | EM34: 67.49479601 | EN34: 337.4739802 | EO34: 134.989592 | EP34: 44.99653068 | EQ34: 89.99306137 | ER34: 44.99653068 | ES34: 112.4913267 | ET34: 179.9861227 | EU34: 89.99306137 | EV34: 314.9757148 | EW34: 44.99653068 | EX34: 0 | EY34: 67.49479601 | EZ34: 44.99653068 | FA34: 0 | FB34: 0 | FC34: 44.99653068 | FD34: 0 | FE34: 22.49826533 | FF34: 0 | FG34: 22.49826533 | FH34: 0 | FI34: 22.49826533 | FJ34: 22.49826533 | FK34: 0 | FL34: 0 | FM34: 0 | FN34: 0 | FO34: 0 | FP34: 0 | FQ34: 0 | FR34: 0 | FS34: 0 | FT34: 0 | FU34: 0 | FV34: 0 | FW34: 0 | FX34: 0 | FY34: 0 | FZ34: 0 | GA34: 0 | GB34: 0 | GC34: 0 | GD34: 0 | GE34: 0 | GF34: 0 | GG34: 0 | GH34: 0
A35: 4 | B35: SWITCHGEAR | C35: > 11 kv & < = 22 kv ; switch | D35: 6.036098455 | E35: 48.92145582 | F35: 6.994387452 | G35: 2 | H35: 337.9143377 | I35: 778.4468331 | J35: 997.1582603 | K35: 1032.40086 | L35: 1638.780883 | M35: 1442.873491 | N35: 1703.0468 | O35: 2049.253514 | P35: 1905.173474 | Q35: 2388.204399 | R35: 2941.720523 | S35: 1805.664958 | T35: 752.5331569 | U35: 725.5829337 | V35: 596.0145527 | W35: 620.8916818 | X35: 313.0372085 | Y35: 400.1071606 | Z35: 342.0605259 | AA35: 673.7555813 | AB35: 408.399537 | AC35: 221.8210683 | AD35: 220.7845213 | AE35: 147.1896808 | AF35: 278.8311559 | AG35: 229.0768976 | AH35: 188.6515628 | AI35: 177.2495452 | AJ35: 236.332727 | AK35: 228.0403506 | AL35: 258.100215 | AM35: 179.3226393 | AN35: 301.635191 | AO35: 322.366132 | AP35: 217.6748801 | AQ35: 253.9540268 | AR35: 237.369274 | AS35: 333.7681495 | AT35: 344.13362 | AU35: 211.4555978 | AV35: 129.568381 | AW35: 98.47196957 | AX35: 136.8242104 | AY35: 99.50851662 | AZ35: 194.870845 | BA35: 199.0170332 | BB35: 116.0932694 | BC35: 134.7511163 | BD35: 180.3591864 | BE35: 209.3825037 | BF35: 173.103357 | BG35: 102.6181578 | BH35: 132.6780222 | BI35: 116.0932694 | BJ35: 155.4820572 | BK35: 127.4952869 | BL35: 92.25268728 | BM35: 44.57152307 | BN35: 37.31569373 | BO35: 46.64461717 | BP35: 47.68116421 | BQ35: 26.95022325 | BR35: 35.24259964 | BS35: 30.0598644 | BT35: 38.35224078 | BU35: 43.53497602 | BV35: 31.09641144 | BW35: 25.9136762 | BX35: 44.57152307 | BY35: 44.57152307 | BZ35: 0 | CA35: 0 | CB35: 0 | CC35: 0 | CD35: 0 | CE35: 0 | CF35: 0 | CG35: 0 | CH35: 0 | CI35: 0 | CJ35: 0 | CK35: 0 | CL35: 0 | CM35: 0 | CN35: 0 | CO35: 0 | CP35: 0 | CQ35: 0 | CR35: 0 | CS35: 0 | CT35: 0 | CV35: 2039.684212 | CW35: 4698.781726 | CX35: 6018.945434 | CY35: 6231.673236 | CZ35: 9891.842755 | DA35: 8709.326449 | DB35: 10279.75816 | DC35: 12369.49597 | DD35: 11499.81466 | DE35: 14415.43688 | DF35: 17756.5147 | DG35: 10899.17146 | DH35: 4542.364225 | DI35: 4379.690025 | DJ35: 3597.60252 | DK35: 3747.763321 | DL35: 1889.52341 | DM35: 2415.086214 | DN35: 2064.711012 | DO35: 4066.855023 | DP35: 2465.139814 | DQ35: 1338.933808 | DR35: 1332.677108 | DS35: 888.4514048 | DT35: 1683.052309 | DU35: 1382.730708 | DV35: 1138.719407 | DW35: 1069.895706 | DX35: 1426.527608 | DY35: 1376.474008 | DZ35: 1557.918309 | EA35: 1082.409106 | EB35: 1820.69971 | EC35: 1945.833711 | ED35: 1313.907007 | EE35: 1532.891509 | EF35: 1432.784308 | EG35: 2014.657411 | EH35: 2077.224412 | EI35: 1276.366807 | EJ35: 782.0875043 | EK35: 594.3865033 | EL35: 825.8844049 | EM35: 600.6432034 | EN35: 1176.259606 | EO35: 1201.286407 | EP35: 700.750404 | EQ35: 813.3710049 | ER35: 1088.665806 | ES35: 1263.853407 | ET35: 1044.868906 | EU35: 619.4133037 | EV35: 800.8576048 | EW35: 700.750404 | EX35: 938.5050052 | EY35: 769.5741042 | EZ35: 556.8463031 | FA35: 269.0381015 | FB35: 225.2412013 | FC35: 281.5515016 | FD35: 287.8082016 | FE35: 162.6742009 | FF35: 212.7278012 | FG35: 181.444301 | FH35: 231.4979013 | FI35: 262.7814015 | FJ35: 187.701001 | FK35: 156.4175009 | FL35: 269.0381015 | FM35: 269.0381015 | FN35: 0 | FO35: 0 | FP35: 0 | FQ35: 0 | FR35: 0 | FS35: 0 | FT35: 0 | FU35: 0 | FV35: 0 | FW35: 0 | FX35: 0 | FY35: 0 | FZ35: 0 | GA35: 0 | GB35: 0 | GC35: 0 | GD35: 0 | GE35: 0 | GF35: 0 | GG35: 0 | GH35: 0
A36: 4 | B36: SWITCHGEAR | C36: > 132 kv ; circuit breaker | D36: 183.7814795 | E36: 59.86367944 | F36: 7.737162234 | G36: 2 | H36: 0 | I36: 0 | J36: 6.285714286 | K36: 0 | L36: 0 | M36: 0 | N36: 0 | O36: 0 | P36: 0 | Q36: 0 | R36: 0 | S36: 0 | T36: 0 | U36: 0 | V36: 0 | W36: 0 | X36: 0 | Y36: 0 | Z36: 0 | AA36: 0 | AB36: 0 | AC36: 3.142857143 | AD36: 0 | AE36: 12.57142857 | AF36: 0 | AG36: 0 | AH36: 0 | AI36: 0 | AJ36: 0 | AK36: 0 | AL36: 0 | AM36: 0 | AN36: 0 | AO36: 0 | AP36: 0 | AQ36: 0 | AR36: 0 | AS36: 0 | AT36: 0 | AU36: 0 | AV36: 0 | AW36: 0 | AX36: 0 | AY36: 0 | AZ36: 0 | BA36: 0 | BB36: 0 | BC36: 0 | BD36: 0 | BE36: 0 | BF36: 0 | BG36: 0 | BH36: 0 | BI36: 0 | BJ36: 0 | BK36: 0 | BL36: 0 | BM36: 0 | BN36: 0 | BO36: 0 | BP36: 0 | BQ36: 0 | BR36: 0 | BS36: 0 | BT36: 0 | BU36: 0 | BV36: 0 | BW36: 0 | BX36: 0 | BY36: 0 | BZ36: 0 | CA36: 0 | CB36: 0 | CC36: 0 | CD36: 0 | CE36: 0 | CF36: 0 | CG36: 0 | CH36: 0 | CI36: 0 | CJ36: 0 | CK36: 0 | CL36: 0 | CM36: 0 | CN36: 0 | CO36: 0 | CP36: 0 | CQ36: 0 | CR36: 0 | CS36: 0 | CT36: 0 | CV36: 0 | CW36: 0 | CX36: 1155.197871 | CY36: 0 | CZ36: 0 | DA36: 0 | DB36: 0 | DC36: 0 | DD36: 0 | DE36: 0 | DF36: 0 | DG36: 0 | DH36: 0 | DI36: 0 | DJ36: 0 | DK36: 0 | DL36: 0 | DM36: 0 | DN36: 0 | DO36: 0 | DP36: 0 | DQ36: 577.5989355 | DR36: 0 | DS36: 2310.395742 | DT36: 0 | DU36: 0 | DV36: 0 | DW36: 0 | DX36: 0 | DY36: 0 | DZ36: 0 | EA36: 0 | EB36: 0 | EC36: 0 | ED36: 0 | EE36: 0 | EF36: 0 | EG36: 0 | EH36: 0 | EI36: 0 | EJ36: 0 | EK36: 0 | EL36: 0 | EM36: 0 | EN36: 0 | EO36: 0 | EP36: 0 | EQ36: 0 | ER36: 0 | ES36: 0 | ET36: 0 | EU36: 0 | EV36: 0 | EW36: 0 | EX36: 0 | EY36: 0 | EZ36: 0 | FA36: 0 | FB36: 0 | FC36: 0 | FD36: 0 | FE36: 0 | FF36: 0 | FG36: 0 | FH36: 0 | FI36: 0 | FJ36: 0 | FK36: 0 | FL36: 0 | FM36: 0 | FN36: 0 | FO36: 0 | FP36: 0 | FQ36: 0 | FR36: 0 | FS36: 0 | FT36: 0 | FU36: 0 | FV36: 0 | FW36: 0 | FX36: 0 | FY36: 0 | FZ36: 0 | GA36: 0 | GB36: 0 | GC36: 0 | GD36: 0 | GE36: 0 | GF36: 0 | GG36: 0 | GH36: 0
A37: 4 | B37: SWITCHGEAR | C37: > 132 kv ; switch | D37: 96.40269189 | E37: 52.82454775 | F37: 7.26804979 | G37: 2 | H37: 0 | I37: 1.477272727 | J37: 8.863636364 | K37: 1.477272727 | L37: 0 | M37: 0 | N37: 0 | O37: 0 | P37: 0 | Q37: 7.386363636 | R37: 0 | S37: 0 | T37: 0 | U37: 0 | V37: 0 | W37: 0 | X37: 0 | Y37: 0 | Z37: 0 | AA37: 0 | AB37: 0 | AC37: 2.954545455 | AD37: 19.20454545 | AE37: 1.477272727 | AF37: 0 | AG37: 1.477272727 | AH37: 0 | AI37: 10.34090909 | AJ37: 5.909090909 | AK37: 0 | AL37: 1.477272727 | AM37: 1.477272727 | AN37: 0 | AO37: 0 | AP37: 0 | AQ37: 0 | AR37: 0 | AS37: 0 | AT37: 0 | AU37: 0 | AV37: 0 | AW37: 0 | AX37: 0 | AY37: 0 | AZ37: 0 | BA37: 0 | BB37: 0 | BC37: 0 | BD37: 0 | BE37: 0 | BF37: 0 | BG37: 0 | BH37: 0 | BI37: 0 | BJ37: 0 | BK37: 0 | BL37: 0 | BM37: 1.477272727 | BN37: 0 | BO37: 0 | BP37: 0 | BQ37: 0 | BR37: 0 | BS37: 0 | BT37: 0 | BU37: 0 | BV37: 0 | BW37: 0 | BX37: 0 | BY37: 0 | BZ37: 0 | CA37: 0 | CB37: 0 | CC37: 0 | CD37: 0 | CE37: 0 | CF37: 0 | CG37: 0 | CH37: 0 | CI37: 0 | CJ37: 0 | CK37: 0 | CL37: 0 | CM37: 0 | CN37: 0 | CO37: 0 | CP37: 0 | CQ37: 0 | CR37: 0 | CS37: 0 | CT37: 0 | CV37: 0 | CW37: 142.4130675 | CX37: 854.4784054 | CY37: 142.4130675 | CZ37: 0 | DA37: 0 | DB37: 0 | DC37: 0 | DD37: 0 | DE37: 712.0653378 | DF37: 0 | DG37: 0 | DH37: 0 | DI37: 0 | DJ37: 0 | DK37: 0 | DL37: 0 | DM37: 0 | DN37: 0 | DO37: 0 | DP37: 0 | DQ37: 284.8261352 | DR37: 1851.369878 | DS37: 142.4130675 | DT37: 0 | DU37: 142.4130675 | DV37: 0 | DW37: 996.8914729 | DX37: 569.6522702 | DY37: 0 | DZ37: 142.4130675 | EA37: 142.4130675 | EB37: 0 | EC37: 0 | ED37: 0 | EE37: 0 | EF37: 0 | EG37: 0 | EH37: 0 | EI37: 0 | EJ37: 0 | EK37: 0 | EL37: 0 | EM37: 0 | EN37: 0 | EO37: 0 | EP37: 0 | EQ37: 0 | ER37: 0 | ES37: 0 | ET37: 0 | EU37: 0 | EV37: 0 | EW37: 0 | EX37: 0 | EY37: 0 | EZ37: 0 | FA37: 142.4130675 | FB37: 0 | FC37: 0 | FD37: 0 | FE37: 0 | FF37: 0 | FG37: 0 | FH37: 0 | FI37: 0 | FJ37: 0 | FK37: 0 | FL37: 0 | FM37: 0 | FN37: 0 | FO37: 0 | FP37: 0 | FQ37: 0 | FR37: 0 | FS37: 0 | FT37: 0 | FU37: 0 | FV37: 0 | FW37: 0 | FX37: 0 | FY37: 0 | FZ37: 0 | GA37: 0 | GB37: 0 | GC37: 0 | GD37: 0 | GE37: 0 | GF37: 0 | GG37: 0 | GH37: 0
A38: 4 | B38: SWITCHGEAR | C38: > 22 kv & < = 33 kv ; circuit breaker | D38: 115.9323523 | E38: 60.5936381 | F38: 7.784191551 | G38: 2 | H38: 3.022900763 | I38: 14.10687023 | J38: 19.14503817 | K38: 12.09160305 | L38: 11.08396947 | M38: 34.25954198 | N38: 22.16793893 | O38: 13.09923664 | P38: 8.061068702 | Q38: 3.022900763 | R38: 33.2519084 | S38: 10.07633588 | T38: 24.18320611 | U38: 6.045801527 | V38: 7.053435115 | W38: 18.13740458 | X38: 6.045801527 | Y38: 21.16030534 | Z38: 18.13740458 | AA38: 7.053435115 | AB38: 4.030534351 | AC38: 5.038167939 | AD38: 0 | AE38: 4.030534351 | AF38: 15.11450382 | AG38: 2.015267176 | AH38: 0 | AI38: 1.007633588 | AJ38: 0 | AK38: 0 | AL38: 1.007633588 | AM38: 0 | AN38: 0 | AO38: 6.045801527 | AP38: 0 | AQ38: 3.022900763 | AR38: 0 | AS38: 2.015267176 | AT38: 1.007633588 | AU38: 0 | AV38: 0 | AW38: 3.022900763 | AX38: 1.007633588 | AY38: 0 | AZ38: 0 | BA38: 0 | BB38: 0 | BC38: 0 | BD38: 0 | BE38: 5.038167939 | BF38: 0 | BG38: 12.09160305 | BH38: 5.038167939 | BI38: 0 | BJ38: 13.09923664 | BK38: 1.007633588 | BL38: 0 | BM38: 0 | BN38: 0 | BO38: 0 | BP38: 2.015267176 | BQ38: 0 | BR38: 0 | BS38: 0 | BT38: 1.007633588 | BU38: 0 | BV38: 0 | BW38: 13.09923664 | BX38: 4.030534351 | BY38: 0 | BZ38: 0 | CA38: 0 | CB38: 0 | CC38: 0 | CD38: 0 | CE38: 0 | CF38: 0 | CG38: 0 | CH38: 0 | CI38: 0 | CJ38: 0 | CK38: 0 | CL38: 0 | CM38: 0 | CN38: 0 | CO38: 0 | CP38: 0 | CQ38: 0 | CR38: 0 | CS38: 0 | CT38: 0 | CV38: 350.4519963 | CW38: 1635.44265 | CX38: 2219.529311 | CY38: 1401.807985 | CZ38: 1284.990654 | DA38: 3971.789292 | DB38: 2569.981307 | DC38: 1518.625317 | DD38: 934.538657 | DE38: 350.4519963 | DF38: 3854.97196 | DG38: 1168.173321 | DH38: 2803.615971 | DI38: 700.9039928 | DJ38: 817.7213249 | DK38: 2102.711978 | DL38: 700.9039928 | DM38: 2453.163974 | DN38: 2102.711978 | DO38: 817.7213249 | DP38: 467.2693285 | DQ38: 584.0866606 | DR38: 0 | DS38: 467.2693285 | DT38: 1752.259982 | DU38: 233.6346643 | DV38: 0 | DW38: 116.8173321 | DX38: 0 | DY38: 0 | DZ38: 116.8173321 | EA38: 0 | EB38: 0 | EC38: 700.9039928 | ED38: 0 | EE38: 350.4519963 | EF38: 0 | EG38: 233.6346643 | EH38: 116.8173321 | EI38: 0 | EJ38: 0 | EK38: 350.4519963 | EL38: 116.8173321 | EM38: 0 | EN38: 0 | EO38: 0 | EP38: 0 | EQ38: 0 | ER38: 0 | ES38: 584.0866606 | ET38: 0 | EU38: 1401.807985 | EV38: 584.0866606 | EW38: 0 | EX38: 1518.625317 | EY38: 116.8173321 | EZ38: 0 | FA38: 0 | FB38: 0 | FC38: 0 | FD38: 233.6346643 | FE38: 0 | FF38: 0 | FG38: 0 | FH38: 116.8173321 | FI38: 0 | FJ38: 0 | FK38: 1518.625317 | FL38: 467.2693285 | FM38: 0 | FN38: 0 | FO38: 0 | FP38: 0 | FQ38: 0 | FR38: 0 | FS38: 0 | FT38: 0 | FU38: 0 | FV38: 0 | FW38: 0 | FX38: 0 | FY38: 0 | FZ38: 0 | GA38: 0 | GB38: 0 | GC38: 0 | GD38: 0 | GE38: 0 | GF38: 0 | GG38: 0 | GH38: 0
A39: 4 | B39: SWITCHGEAR | C39: > 22 kv & < = 33 kv ; switch | D39: 9.899117039 | E39: 54.05591557 | F39: 7.352272817 | G39: 2 | H39: 30.80536913 | I39: 144.7852349 | J39: 110.8993289 | K39: 102.6845638 | L39: 262.8724832 | M39: 196.1275168 | N39: 231.0402685 | O39: 231.0402685 | P39: 201.261745 | Q39: 100.6308725 | R39: 166.3489933 | S39: 90.36241611 | T39: 75.98657718 | U39: 33.88590604 | V39: 44.15436242 | W39: 39.02013423 | X39: 18.48322148 | Y39: 32.8590604 | Z39: 31.83221477 | AA39: 22.59060403 | AB39: 14.37583893 | AC39: 26.69798658 | AD39: 18.48322148 | AE39: 18.48322148 | AF39: 17.45637584 | AG39: 7.187919463 | AH39: 9.241610738 | AI39: 17.45637584 | AJ39: 11.29530201 | AK39: 23.61744966 | AL39: 24.6442953 | AM39: 12.32214765 | AN39: 20.53691275 | AO39: 6.161073826 | AP39: 14.37583893 | AQ39: 73.93288591 | AR39: 23.61744966 | AS39: 32.8590604 | AT39: 32.8590604 | AU39: 26.69798658 | AV39: 6.161073826 | AW39: 2.053691275 | AX39: 4.10738255 | AY39: 17.45637584 | AZ39: 7.187919463 | BA39: 6.161073826 | BB39: 2.053691275 | BC39: 6.161073826 | BD39: 31.83221477 | BE39: 21.56375839 | BF39: 30.80536913 | BG39: 30.80536913 | BH39: 25.67114094 | BI39: 7.187919463 | BJ39: 39.02013423 | BK39: 16.4295302 | BL39: 9.241610738 | BM39: 6.161073826 | BN39: 8.214765101 | BO39: 4.10738255 | BP39: 1.026845638 | BQ39: 4.10738255 | BR39: 3.080536913 | BS39: 2.053691275 | BT39: 1.026845638 | BU39: 3.080536913 | BV39: 3.080536913 | BW39: 1.026845638 | BX39: 2.053691275 | BY39: 2.053691275 | BZ39: 0 | CA39: 0 | CB39: 0 | CC39: 0 | CD39: 0 | CE39: 0 | CF39: 0 | CG39: 0 | CH39: 2.053691275 | CI39: 0 | CJ39: 0 | CK39: 0 | CL39: 0 | CM39: 0 | CN39: 0 | CO39: 0 | CP39: 0 | CQ39: 0 | CR39: 0 | CS39: 0 | CT39: 0 | CV39: 304.9459544 | CW39: 1433.245986 | CX39: 1097.805436 | CY39: 1016.486515 | CZ39: 2602.205477 | DA39: 1941.489243 | DB39: 2287.094659 | DC39: 2287.094659 | DD39: 1992.313569 | DE39: 996.1567846 | DF39: 1646.708154 | DG39: 894.508133 | DH39: 752.2000209 | DI39: 335.4405499 | DJ39: 437.0892014 | DK39: 386.2648756 | DL39: 182.9675727 | DM39: 325.2756847 | DN39: 315.1108196 | DO39: 223.6270333 | DP39: 142.3081121 | DQ39: 264.2864939 | DR39: 182.9675727 | DS39: 182.9675727 | DT39: 172.8027075 | DU39: 71.15405603 | DV39: 91.48378632 | DW39: 172.8027075 | DX39: 111.8135166 | DY39: 233.7918983 | DZ39: 243.9567635 | EA39: 121.9783818 | EB39: 203.2973029 | EC39: 60.98919089 | ED39: 142.3081121 | EE39: 731.8702906 | EF39: 233.7918983 | EG39: 325.2756847 | EH39: 325.2756847 | EI39: 264.2864939 | EJ39: 60.98919089 | EK39: 20.32973029 | EL39: 40.65946059 | EM39: 172.8027075 | EN39: 71.15405603 | EO39: 60.98919089 | EP39: 20.32973029 | EQ39: 60.98919089 | ER39: 315.1108196 | ES39: 213.4621681 | ET39: 304.9459544 | EU39: 304.9459544 | EV39: 254.1216287 | EW39: 71.15405603 | EX39: 386.2648756 | EY39: 162.6378423 | EZ39: 91.48378632 | FA39: 60.98919089 | FB39: 81.31892118 | FC39: 40.65946059 | FD39: 10.16486515 | FE39: 40.65946059 | FF39: 30.49459544 | FG39: 20.32973029 | FH39: 10.16486515 | FI39: 30.49459544 | FJ39: 30.49459544 | FK39: 10.16486515 | FL39: 20.32973029 | FM39: 20.32973029 | FN39: 0 | FO39: 0 | FP39: 0 | FQ39: 0 | FR39: 0 | FS39: 0 | FT39: 0 | FU39: 0 | FV39: 20.32973029 | FW39: 0 | FX39: 0 | FY39: 0 | FZ39: 0 | GA39: 0 | GB39: 0 | GC39: 0 | GD39: 0 | GE39: 0 | GF39: 0 | GG39: 0 | GH39: 0
A40: 4 | B40: SWITCHGEAR | C40: > 33 kv & < = 66 kv ; circuit breaker | D40: 183.7814795 | E40: 43.10601858 | F40: 6.565517389 | G40: 2 | H40: 18.29315961 | I40: 54.87947883 | J40: 41.66775244 | K40: 4.06514658 | L40: 9.146579805 | M40: 14.22801303 | N40: 19.30944625 | O40: 19.30944625 | P40: 7.114006515 | Q40: 19.30944625 | R40: 25.40716612 | S40: 24.39087948 | T40: 24.39087948 | U40: 18.29315961 | V40: 39.63517915 | W40: 16.26058632 | X40: 20.3257329 | Y40: 19.30944625 | Z40: 6.09771987 | AA40: 18.29315961 | AB40: 4.06514658 | AC40: 11.17915309 | AD40: 11.17915309 | AE40: 3.048859935 | AF40: 6.09771987 | AG40: 5.081433225 | AH40: 9.146579805 | AI40: 3.048859935 | AJ40: 25.40716612 | AK40: 1.016286645 | AL40: 0 | AM40: 2.03257329 | AN40: 5.081433225 | AO40: 7.114006515 | AP40: 14.22801303 | AQ40: 14.22801303 | AR40: 3.048859935 | AS40: 6.09771987 | AT40: 2.03257329 | AU40: 12.19543974 | AV40: 4.06514658 | AW40: 12.19543974 | AX40: 1.016286645 | AY40: 0 | AZ40: 1.016286645 | BA40: 7.114006515 | BB40: 2.03257329 | BC40: 3.048859935 | BD40: 4.06514658 | BE40: 7.114006515 | BF40: 1.016286645 | BG40: 2.03257329 | BH40: 4.06514658 | BI40: 0 | BJ40: 2.03257329 | BK40: 0 | BL40: 4.06514658 | BM40: 0 | BN40: 0 | BO40: 0 | BP40: 1.016286645 | BQ40: 0 | BR40: 0 | BS40: 1.016286645 | BT40: 0 | BU40: 2.03257329 | BV40: 0 | BW40: 0 | BX40: 0 | BY40: 0 | BZ40: 0 | CA40: 0 | CB40: 0 | CC40: 0 | CD40: 0 | CE40: 0 | CF40: 0 | CG40: 0 | CH40: 0 | CI40: 0 | CJ40: 0 | CK40: 0 | CL40: 0 | CM40: 0 | CN40: 0 | CO40: 0 | CP40: 0 | CQ40: 0 | CR40: 0 | CS40: 0 | CT40: 0 | CV40: 3361.943938 | CW40: 10085.83181 | CX40: 7657.76119 | CY40: 747.0986528 | CZ40: 1680.971969 | DA40: 2614.845285 | DB40: 3548.7186 | DC40: 3548.7186 | DD40: 1307.422642 | DE40: 3548.7186 | DF40: 4669.366579 | DG40: 4482.591917 | DH40: 4482.591917 | DI40: 3361.943938 | DJ40: 7284.211864 | DK40: 2988.394611 | DL40: 3735.493264 | DM40: 3548.7186 | DN40: 1120.647979 | DO40: 3361.943938 | DP40: 747.0986528 | DQ40: 2054.521294 | DR40: 2054.521294 | DS40: 560.3239896 | DT40: 1120.647979 | DU40: 933.873316 | DV40: 1680.971969 | DW40: 560.3239896 | DX40: 4669.366579 | DY40: 186.7746632 | DZ40: 0 | EA40: 373.5493264 | EB40: 933.873316 | EC40: 1307.422642 | ED40: 2614.845285 | EE40: 2614.845285 | EF40: 560.3239896 | EG40: 1120.647979 | EH40: 373.5493264 | EI40: 2241.295958 | EJ40: 747.0986528 | EK40: 2241.295958 | EL40: 186.7746632 | EM40: 0 | EN40: 186.7746632 | EO40: 1307.422642 | EP40: 373.5493264 | EQ40: 560.3239896 | ER40: 747.0986528 | ES40: 1307.422642 | ET40: 186.7746632 | EU40: 373.5493264 | EV40: 747.0986528 | EW40: 0 | EX40: 373.5493264 | EY40: 0 | EZ40: 747.0986528 | FA40: 0 | FB40: 0 | FC40: 0 | FD40: 186.7746632 | FE40: 0 | FF40: 0 | FG40: 186.7746632 | FH40: 0 | FI40: 373.5493264 | FJ40: 0 | FK40: 0 | FL40: 0 | FM40: 0 | FN40: 0 | FO40: 0 | FP40: 0 | FQ40: 0 | FR40: 0 | FS40: 0 | FT40: 0 | FU40: 0 | FV40: 0 | FW40: 0 | FX40: 0 | FY40: 0 | FZ40: 0 | GA40: 0 | GB40: 0 | GC40: 0 | GD40: 0 | GE40: 0 | GF40: 0 | GG40: 0 | GH40: 0
A41: 4 | B41: SWITCHGEAR | C41: > 33 kv & < = 66 kv ; switch | D41: 96.40269189 | E41: 60.96811708 | F41: 7.808208314 | G41: 2 | H41: 7.204615385 | I41: 34.99384615 | J41: 5.146153846 | K41: 6.175384615 | L41: 12.35076923 | M41: 24.70153846 | N41: 51.46153846 | O41: 59.69538462 | P41: 46.31538462 | Q41: 55.57846154 | R41: 82.33846154 | S41: 77.19230769 | T41: 32.93538462 | U41: 56.60769231 | V41: 48.37384615 | W41: 42.19846154 | X41: 38.08153846 | Y41: 20.58461538 | Z41: 48.37384615 | AA41: 42.19846154 | AB41: 30.87692308 | AC41: 43.22769231 | AD41: 24.70153846 | AE41: 18.52615385 | AF41: 37.05230769 | AG41: 10.29230769 | AH41: 14.40923077 | AI41: 29.84769231 | AJ41: 61.75384615 | AK41: 7.204615385 | AL41: 27.78923077 | AM41: 32.93538462 | AN41: 40.14 | AO41: 53.52 | AP41: 46.31538462 | AQ41: 103.9523077 | AR41: 31.90615385 | AS41: 62.78307692 | AT41: 42.19846154 | AU41: 34.99384615 | AV41: 69.98769231 | AW41: 63.81230769 | AX41: 18.52615385 | AY41: 8.233846154 | AZ41: 40.14 | BA41: 5.146153846 | BB41: 16.46769231 | BC41: 9.263076923 | BD41: 52.49076923 | BE41: 8.233846154 | BF41: 13.38 | BG41: 13.38 | BH41: 11.32153846 | BI41: 4.116923077 | BJ41: 56.60769231 | BK41: 23.67230769 | BL41: 8.233846154 | BM41: 10.29230769 | BN41: 9.263076923 | BO41: 7.204615385 | BP41: 1.029230769 | BQ41: 0 | BR41: 0 | BS41: 7.204615385 | BT41: 0 | BU41: 0 | BV41: 0 | BW41: 0 | BX41: 0 | BY41: 0 | BZ41: 0 | CA41: 0 | CB41: 0 | CC41: 2.058461538 | CD41: 0 | CE41: 0 | CF41: 0 | CG41: 0 | CH41: 0 | CI41: 0 | CJ41: 0 | CK41: 0 | CL41: 0 | CM41: 0 | CN41: 0 | CO41: 0 | CP41: 0 | CQ41: 0 | CR41: 0 | CS41: 0 | CT41: 0 | CV41: 694.5443171 | CW41: 3373.500968 | CX41: 496.1030836 | CY41: 595.3237003 | CZ41: 1190.647401 | DA41: 2381.294801 | DB41: 4961.030836 | DC41: 5754.795771 | DD41: 4464.927753 | DE41: 5357.913304 | DF41: 7937.649339 | DG41: 7441.546255 | DH41: 3175.059736 | DI41: 5457.13392 | DJ41: 4663.368986 | DK41: 4068.045286 | DL41: 3671.162819 | DM41: 1984.412334 | DN41: 4663.368986 | DO41: 4068.045286 | DP41: 2976.618502 | DQ41: 4167.265903 | DR41: 2381.294801 | DS41: 1785.971102 | DT41: 3571.942202 | DU41: 992.2061671 | DV41: 1389.088634 | DW41: 2877.397885 | DX41: 5953.237003 | DY41: 694.5443171 | DZ41: 2678.956652 | EA41: 3175.059736 | EB41: 3869.604052 | EC41: 5159.47207 | ED41: 4464.927753 | EE41: 10021.28229 | EF41: 3075.839119 | EG41: 6052.45762 | EH41: 4068.045286 | EI41: 3373.500968 | EJ41: 6747.001938 | EK41: 6151.678237 | EL41: 1785.971102 | EM41: 793.7649339 | EN41: 3869.604052 | EO41: 496.1030836 | EP41: 1587.529868 | EQ41: 892.9855506 | ER41: 5060.251453 | ES41: 793.7649339 | ET41: 1289.868017 | EU41: 1289.868017 | EV41: 1091.426784 | EW41: 396.8824669 | EX41: 5457.13392 | EY41: 2282.074185 | EZ41: 793.7649339 | FA41: 992.2061671 | FB41: 892.9855506 | FC41: 694.5443171 | FD41: 99.22061671 | FE41: 0 | FF41: 0 | FG41: 694.5443171 | FH41: 0 | FI41: 0 | FJ41: 0 | FK41: 0 | FL41: 0 | FM41: 0 | FN41: 0 | FO41: 0 | FP41: 0 | FQ41: 198.4412334 | FR41: 0 | FS41: 0 | FT41: 0 | FU41: 0 | FV41: 0 | FW41: 0 | FX41: 0 | FY41: 0 | FZ41: 0 | GA41: 0 | GB41: 0 | GC41: 0 | GD41: 0 | GE41: 0 | GF41: 0 | GG41: 0 | GH41: 0
A42: 4 | B42: SWITCHGEAR | C42: > 66 kv & < = 132 kv ; circuit breaker | D42: 183.7814795 | E42: 59.86367944 | F42: 7.737162234 | G42: 2 | H42: 0 | I42: 0 | J42: 2.079365079 | K42: 0 | L42: 14.55555556 | M42: 8.317460317 | N42: 0 | O42: 10.3968254 | P42: 0 | Q42: 3.119047619 | R42: 7.277777778 | S42: 4.158730159 | T42: 5.198412698 | U42: 10.3968254 | V42: 12.47619048 | W42: 6.238095238 | X42: 3.119047619 | Y42: 3.119047619 | Z42: 0 | AA42: 0 | AB42: 0 | AC42: 0 | AD42: 0 | AE42: 2.079365079 | AF42: 2.079365079 | AG42: 0 | AH42: 0 | AI42: 2.079365079 | AJ42: 3.119047619 | AK42: 0 | AL42: 10.3968254 | AM42: 4.158730159 | AN42: 0 | AO42: 0 | AP42: 0 | AQ42: 4.158730159 | AR42: 0 | AS42: 5.198412698 | AT42: 0 | AU42: 0 | AV42: 0 | AW42: 1.03968254 | AX42: 0 | AY42: 0 | AZ42: 0 | BA42: 0 | BB42: 0 | BC42: 0 | BD42: 0 | BE42: 0 | BF42: 0 | BG42: 2.079365079 | BH42: 1.03968254 | BI42: 0 | BJ42: 2.079365079 | BK42: 0 | BL42: 0 | BM42: 1.03968254 | BN42: 0 | BO42: 0 | BP42: 0 | BQ42: 0 | BR42: 0 | BS42: 0 | BT42: 0 | BU42: 0 | BV42: 0 | BW42: 0 | BX42: 0 | BY42: 0 | BZ42: 0 | CA42: 0 | CB42: 0 | CC42: 0 | CD42: 0 | CE42: 0 | CF42: 0 | CG42: 0 | CH42: 0 | CI42: 0 | CJ42: 0 | CK42: 0 | CL42: 0 | CM42: 0 | CN42: 0 | CO42: 0 | CP42: 0 | CQ42: 0 | CR42: 0 | CS42: 0 | CT42: 0 | CV42: 0 | CW42: 0 | CX42: 382.1487906 | CY42: 0 | CZ42: 2675.041536 | DA42: 1528.595163 | DB42: 0 | DC42: 1910.743954 | DD42: 0 | DE42: 573.223186 | DF42: 1337.520767 | DG42: 764.2975814 | DH42: 955.3719766 | DI42: 1910.743954 | DJ42: 2292.892745 | DK42: 1146.446372 | DL42: 573.223186 | DM42: 573.223186 | DN42: 0 | DO42: 0 | DP42: 0 | DQ42: 0 | DR42: 0 | DS42: 382.1487906 | DT42: 382.1487906 | DU42: 0 | DV42: 0 | DW42: 382.1487906 | DX42: 573.223186 | DY42: 0 | DZ42: 1910.743954 | EA42: 764.2975814 | EB42: 0 | EC42: 0 | ED42: 0 | EE42: 764.2975814 | EF42: 0 | EG42: 955.3719766 | EH42: 0 | EI42: 0 | EJ42: 0 | EK42: 191.0743954 | EL42: 0 | EM42: 0 | EN42: 0 | EO42: 0 | EP42: 0 | EQ42: 0 | ER42: 0 | ES42: 0 | ET42: 0 | EU42: 382.1487906 | EV42: 191.0743954 | EW42: 0 | EX42: 382.1487906 | EY42: 0 | EZ42: 0 | FA42: 191.0743954 | FB42: 0 | FC42: 0 | FD42: 0 | FE42: 0 | FF42: 0 | FG42: 0 | FH42: 0 | FI42: 0 | FJ42: 0 | FK42: 0 | FL42: 0 | FM42: 0 | FN42: 0 | FO42: 0 | FP42: 0 | FQ42: 0 | FR42: 0 | FS42: 0 | FT42: 0 | FU42: 0 | FV42: 0 | FW42: 0 | FX42: 0 | FY42: 0 | FZ42: 0 | GA42: 0 | GB42: 0 | GC42: 0 | GD42: 0 | GE42: 0 | GF42: 0 | GG42: 0 | GH42: 0
A43: 4 | B43: SWITCHGEAR | C43: > 66 kv & < = 132 kv ; switch | D43: 96.40269189 | E43: 52.82454775 | F43: 7.26804979 | G43: 2 | H43: 0 | I43: 1.07079646 | J43: 6.424778761 | K43: 0 | L43: 20.34513274 | M43: 18.20353982 | N43: 2.14159292 | O43: 64.24778761 | P43: 6.424778761 | Q43: 4.283185841 | R43: 17.13274336 | S43: 17.13274336 | T43: 13.92035398 | U43: 32.12389381 | V43: 12.84955752 | W43: 0 | X43: 4.283185841 | Y43: 8.566371681 | Z43: 1.07079646 | AA43: 0 | AB43: 1.07079646 | AC43: 8.566371681 | AD43: 1.07079646 | AE43: 2.14159292 | AF43: 4.283185841 | AG43: 13.92035398 | AH43: 0 | AI43: 7.495575221 | AJ43: 8.566371681 | AK43: 3.212389381 | AL43: 3.212389381 | AM43: 0 | AN43: 4.283185841 | AO43: 3.212389381 | AP43: 1.07079646 | AQ43: 26.7699115 | AR43: 0 | AS43: 10.7079646 | AT43: 1.07079646 | AU43: 5.353982301 | AV43: 0 | AW43: 0 | AX43: 2.14159292 | AY43: 0 | AZ43: 0 | BA43: 0 | BB43: 0 | BC43: 0 | BD43: 0 | BE43: 0 | BF43: 22.48672566 | BG43: 0 | BH43: 0 | BI43: 0 | BJ43: 0 | BK43: 0 | BL43: 0 | BM43: 2.14159292 | BN43: 0 | BO43: 0 | BP43: 0 | BQ43: 0 | BR43: 0 | BS43: 0 | BT43: 0 | BU43: 0 | BV43: 0 | BW43: 0 | BX43: 0 | BY43: 0 | BZ43: 0 | CA43: 0 | CB43: 0 | CC43: 0 | CD43: 0 | CE43: 0 | CF43: 0 | CG43: 0 | CH43: 0 | CI43: 0 | CJ43: 0 | CK43: 0 | CL43: 0 | CM43: 0 | CN43: 0 | CO43: 0 | CP43: 0 | CQ43: 0 | CR43: 0 | CS43: 0 | CT43: 0 | CV43: 0 | CW43: 103.2276612 | CX43: 619.3659674 | CY43: 0 | CZ43: 1961.325563 | DA43: 1754.870241 | DB43: 206.4553224 | DC43: 6193.659674 | DD43: 619.3659674 | DE43: 412.9106449 | DF43: 1651.642579 | DG43: 1651.642579 | DH43: 1341.959596 | DI43: 3096.829837 | DJ43: 1238.731935 | DK43: 0 | DL43: 412.9106449 | DM43: 825.8212898 | DN43: 103.2276612 | DO43: 0 | DP43: 103.2276612 | DQ43: 825.8212898 | DR43: 103.2276612 | DS43: 206.4553224 | DT43: 412.9106449 | DU43: 1341.959596 | DV43: 0 | DW43: 722.5936286 | DX43: 825.8212898 | DY43: 309.6829837 | DZ43: 309.6829837 | EA43: 0 | EB43: 412.9106449 | EC43: 309.6829837 | ED43: 103.2276612 | EE43: 2580.69153 | EF43: 0 | EG43: 1032.276612 | EH43: 103.2276612 | EI43: 516.1383061 | EJ43: 0 | EK43: 0 | EL43: 206.4553224 | EM43: 0 | EN43: 0 | EO43: 0 | EP43: 0 | EQ43: 0 | ER43: 0 | ES43: 0 | ET43: 2167.780885 | EU43: 0 | EV43: 0 | EW43: 0 | EX43: 0 | EY43: 0 | EZ43: 0 | FA43: 206.4553224 | FB43: 0 | FC43: 0 | FD43: 0 | FE43: 0 | FF43: 0 | FG43: 0 | FH43: 0 | FI43: 0 | FJ43: 0 | FK43: 0 | FL43: 0 | FM43: 0 | FN43: 0 | FO43: 0 | FP43: 0 | FQ43: 0 | FR43: 0 | FS43: 0 | FT43: 0 | FU43: 0 | FV43: 0 | FW43: 0 | FX43: 0 | FY43: 0 | FZ43: 0 | GA43: 0 | GB43: 0 | GC43: 0 | GD43: 0 | GE43: 0 | GF43: 0 | GG43: 0 | GH43: 0
A44: 5 | B44: TRANSFORMERS | C44: ground outdoor / indoor chamber mounted ; ˂ 22 kv ; < = 60 kva ; single phase | D44: 88.88236986 | E44: 59.03387119 | F44: 7.683350258 | G44: 2 | H44: 0 | I44: 0 | J44: 0 | K44: 0 | L44: 0 | M44: 0 | N44: 0 | O44: 0 | P44: 0 | Q44: 0 | R44: 0 | S44: 0 | T44: 0 | U44: 0 | V44: 0 | W44: 0 | X44: 0 | Y44: 0 | Z44: 0 | AA44: 0 | AB44: 0 | AC44: 0 | AD44: 0 | AE44: 0 | AF44: 0 | AG44: 0 | AH44: 0 | AI44: 0 | AJ44: 0 | AK44: 0 | AL44: 0 | AM44: 2 | AN44: 0 | AO44: 0 | AP44: 0 | AQ44: 0 | AR44: 0 | AS44: 0 | AT44: 0 | AU44: 0 | AV44: 0 | AW44: 0 | AX44: 0 | AY44: 0 | AZ44: 0 | BA44: 0 | BB44: 0 | BC44: 0 | BD44: 0 | BE44: 0 | BF44: 0 | BG44: 0 | BH44: 0 | BI44: 0 | BJ44: 0 | BK44: 0 | BL44: 0 | BM44: 0 | BN44: 0 | BO44: 0 | BP44: 0 | BQ44: 0 | BR44: 0 | BS44: 0 | BT44: 0 | BU44: 0 | BV44: 0 | BW44: 0 | BX44: 0 | BY44: 0 | BZ44: 0 | CA44: 0 | CB44: 0 | CC44: 0 | CD44: 0 | CE44: 0 | CF44: 0 | CG44: 0 | CH44: 0 | CI44: 0 | CJ44: 0 | CK44: 0 | CL44: 0 | CM44: 0 | CN44: 0 | CO44: 0 | CP44: 0 | CQ44: 0 | CR44: 0 | CS44: 0 | CT44: 0 | CV44: 0 | CW44: 0 | CX44: 0 | CY44: 0 | CZ44: 0 | DA44: 0 | DB44: 0 | DC44: 0 | DD44: 0 | DE44: 0 | DF44: 0 | DG44: 0 | DH44: 0 | DI44: 0 | DJ44: 0 | DK44: 0 | DL44: 0 | DM44: 0 | DN44: 0 | DO44: 0 | DP44: 0 | DQ44: 0 | DR44: 0 | DS44: 0 | DT44: 0 | DU44: 0 | DV44: 0 | DW44: 0 | DX44: 0 | DY44: 0 | DZ44: 0 | EA44: 177.7647397 | EB44: 0 | EC44: 0 | ED44: 0 | EE44: 0 | EF44: 0 | EG44: 0 | EH44: 0 | EI44: 0 | EJ44: 0 | EK44: 0 | EL44: 0 | EM44: 0 | EN44: 0 | EO44: 0 | EP44: 0 | EQ44: 0 | ER44: 0 | ES44: 0 | ET44: 0 | EU44: 0 | EV44: 0 | EW44: 0 | EX44: 0 | EY44: 0 | EZ44: 0 | FA44: 0 | FB44: 0 | FC44: 0 | FD44: 0 | FE44: 0 | FF44: 0 | FG44: 0 | FH44: 0 | FI44: 0 | FJ44: 0 | FK44: 0 | FL44: 0 | FM44: 0 | FN44: 0 | FO44: 0 | FP44: 0 | FQ44: 0 | FR44: 0 | FS44: 0 | FT44: 0 | FU44: 0 | FV44: 0 | FW44: 0 | FX44: 0 | FY44: 0 | FZ44: 0 | GA44: 0 | GB44: 0 | GC44: 0 | GD44: 0 | GE44: 0 | GF44: 0 | GG44: 0 | GH44: 0
A45: 5 | B45: TRANSFORMERS | C45: ground outdoor / indoor chamber mounted ; ˂ 22 kv ; > 60 kva and < = 600 kva ; multiple phase | D45: 88.88236986 | E45: 59.03387119 | F45: 7.683350258 | G45: 2 | H45: 0 | I45: 0 | J45: 0 | K45: 0 | L45: 0 | M45: 0 | N45: 0 | O45: 0 | P45: 0 | Q45: 0 | R45: 0 | S45: 0 | T45: 0 | U45: 1 | V45: 0 | W45: 1 | X45: 1 | Y45: 0 | Z45: 0 | AA45: 0 | AB45: 0 | AC45: 0 | AD45: 0 | AE45: 0 | AF45: 0 | AG45: 0 | AH45: 0 | AI45: 0 | AJ45: 0 | AK45: 0 | AL45: 1 | AM45: 0 | AN45: 0 | AO45: 0 | AP45: 0 | AQ45: 0 | AR45: 0 | AS45: 1 | AT45: 0 | AU45: 0 | AV45: 0 | AW45: 0 | AX45: 0 | AY45: 0 | AZ45: 0 | BA45: 0 | BB45: 0 | BC45: 0 | BD45: 0 | BE45: 0 | BF45: 0 | BG45: 0 | BH45: 0 | BI45: 0 | BJ45: 0 | BK45: 0 | BL45: 0 | BM45: 0 | BN45: 0 | BO45: 0 | BP45: 0 | BQ45: 0 | BR45: 0 | BS45: 0 | BT45: 0 | BU45: 0 | BV45: 0 | BW45: 0 | BX45: 0 | BY45: 0 | BZ45: 0 | CA45: 0 | CB45: 0 | CC45: 0 | CD45: 0 | CE45: 0 | CF45: 0 | CG45: 0 | CH45: 0 | CI45: 0 | CJ45: 0 | CK45: 0 | CL45: 0 | CM45: 0 | CN45: 0 | CO45: 0 | CP45: 0 | CQ45: 0 | CR45: 0 | CS45: 0 | CT45: 0 | CV45: 0 | CW45: 0 | CX45: 0 | CY45: 0 | CZ45: 0 | DA45: 0 | DB45: 0 | DC45: 0 | DD45: 0 | DE45: 0 | DF45: 0 | DG45: 0 | DH45: 0 | DI45: 88.88236986 | DJ45: 0 | DK45: 88.88236986 | DL45: 88.88236986 | DM45: 0 | DN45: 0 | DO45: 0 | DP45: 0 | DQ45: 0 | DR45: 0 | DS45: 0 | DT45: 0 | DU45: 0 | DV45: 0 | DW45: 0 | DX45: 0 | DY45: 0 | DZ45: 88.88236986 | EA45: 0 | EB45: 0 | EC45: 0 | ED45: 0 | EE45: 0 | EF45: 0 | EG45: 88.88236986 | EH45: 0 | EI45: 0 | EJ45: 0 | EK45: 0 | EL45: 0 | EM45: 0 | EN45: 0 | EO45: 0 | EP45: 0 | EQ45: 0 | ER45: 0 | ES45: 0 | ET45: 0 | EU45: 0 | EV45: 0 | EW45: 0 | EX45: 0 | EY45: 0 | EZ45: 0 | FA45: 0 | FB45: 0 | FC45: 0 | FD45: 0 | FE45: 0 | FF45: 0 | FG45: 0 | FH45: 0 | FI45: 0 | FJ45: 0 | FK45: 0 | FL45: 0 | FM45: 0 | FN45: 0 | FO45: 0 | FP45: 0 | FQ45: 0 | FR45: 0 | FS45: 0 | FT45: 0 | FU45: 0 | FV45: 0 | FW45: 0 | FX45: 0 | FY45: 0 | FZ45: 0 | GA45: 0 | GB45: 0 | GC45: 0 | GD45: 0 | GE45: 0 | GF45: 0 | GG45: 0 | GH45: 0
A46: 5 | B46: TRANSFORMERS | C46: ground outdoor / indoor chamber mounted ; ˂ 22 kv ; > 600 kva ; multiple phase | D46: 257.6487996 | E46: 59.03387119 | F46: 7.683350258 | G46: 2 | H46: 0 | I46: 0 | J46: 0 | K46: 0 | L46: 0 | M46: 0 | N46: 0 | O46: 5 | P46: 2 | Q46: 0 | R46: 0 | S46: 1 | T46: 1 | U46: 1 | V46: 0 | W46: 0 | X46: 0 | Y46: 0 | Z46: 1 | AA46: 1 | AB46: 0 | AC46: 2 | AD46: 2 | AE46: 0 | AF46: 3 | AG46: 0 | AH46: 0 | AI46: 0 | AJ46: 0 | AK46: 0 | AL46: 0 | AM46: 0 | AN46: 1 | AO46: 0 | AP46: 3 | AQ46: 2 | AR46: 0 | AS46: 2 | AT46: 0 | AU46: 0 | AV46: 2 | AW46: 3 | AX46: 0 | AY46: 2 | AZ46: 0 | BA46: 0 | BB46: 2 | BC46: 0 | BD46: 0 | BE46: 0 | BF46: 0 | BG46: 0 | BH46: 2 | BI46: 0 | BJ46: 0 | BK46: 2 | BL46: 0 | BM46: 1 | BN46: 0 | BO46: 0 | BP46: 0 | BQ46: 0 | BR46: 0 | BS46: 0 | BT46: 0 | BU46: 0 | BV46: 0 | BW46: 0 | BX46: 0 | BY46: 0 | BZ46: 0 | CA46: 0 | CB46: 0 | CC46: 2 | CD46: 0 | CE46: 0 | CF46: 0 | CG46: 0 | CH46: 0 | CI46: 0 | CJ46: 0 | CK46: 0 | CL46: 0 | CM46: 0 | CN46: 0 | CO46: 0 | CP46: 0 | CQ46: 0 | CR46: 0 | CS46: 0 | CT46: 0 | CV46: 0 | CW46: 0 | CX46: 0 | CY46: 0 | CZ46: 0 | DA46: 0 | DB46: 0 | DC46: 1288.243998 | DD46: 515.2975993 | DE46: 0 | DF46: 0 | DG46: 257.6487996 | DH46: 257.6487996 | DI46: 257.6487996 | DJ46: 0 | DK46: 0 | DL46: 0 | DM46: 0 | DN46: 257.6487996 | DO46: 257.6487996 | DP46: 0 | DQ46: 515.2975993 | DR46: 515.2975993 | DS46: 0 | DT46: 772.9463989 | DU46: 0 | DV46: 0 | DW46: 0 | DX46: 0 | DY46: 0 | DZ46: 0 | EA46: 0 | EB46: 257.6487996 | EC46: 0 | ED46: 772.9463989 | EE46: 515.2975993 | EF46: 0 | EG46: 515.2975993 | EH46: 0 | EI46: 0 | EJ46: 515.2975993 | EK46: 772.9463989 | EL46: 0 | EM46: 515.2975993 | EN46: 0 | EO46: 0 | EP46: 515.2975993 | EQ46: 0 | ER46: 0 | ES46: 0 | ET46: 0 | EU46: 0 | EV46: 515.2975993 | EW46: 0 | EX46: 0 | EY46: 515.2975993 | EZ46: 0 | FA46: 257.6487996 | FB46: 0 | FC46: 0 | FD46: 0 | FE46: 0 | FF46: 0 | FG46: 0 | FH46: 0 | FI46: 0 | FJ46: 0 | FK46: 0 | FL46: 0 | FM46: 0 | FN46: 0 | FO46: 0 | FP46: 0 | FQ46: 515.2975993 | FR46: 0 | FS46: 0 | FT46: 0 | FU46: 0 | FV46: 0 | FW46: 0 | FX46: 0 | FY46: 0 | FZ46: 0 | GA46: 0 | GB46: 0 | GC46: 0 | GD46: 0 | GE46: 0 | GF46: 0 | GG46: 0 | GH46: 0
A47: 5 | B47: TRANSFORMERS | C47: ground outdoor / indoor chamber mounted ; > = 22 kv & < = 33 kv ; < = 15 mva | D47: 326.9481498 | E47: 76.27191837 | F47: 8.73337955 | G47: 2 | H47: 0 | I47: 0 | J47: 1 | K47: 0 | L47: 0 | M47: 1 | N47: 5 | O47: 1 | P47: 2 | Q47: 0 | R47: 1 | S47: 2 | T47: 1 | U47: 3 | V47: 1 | W47: 3 | X47: 0 | Y47: 1 | Z47: 0 | AA47: 3 | AB47: 4 | AC47: 4 | AD47: 1 | AE47: 0 | AF47: 4 | AG47: 2 | AH47: 2 | AI47: 2 | AJ47: 0 | AK47: 0 | AL47: 0 | AM47: 4 | AN47: 3 | AO47: 1 | AP47: 4 | AQ47: 3 | AR47: 0 | AS47: 2 | AT47: 2 | AU47: 0 | AV47: 4 | AW47: 0 | AX47: 1 | AY47: 1 | AZ47: 8 | BA47: 0 | BB47: 2 | BC47: 1 | BD47: 6 | BE47: 1 | BF47: 2 | BG47: 2 | BH47: 9 | BI47: 3 | BJ47: 3 | BK47: 2 | BL47: 2 | BM47: 1 | BN47: 0 | BO47: 0 | BP47: 2 | BQ47: 0 | BR47: 0 | BS47: 0 | BT47: 0 | BU47: 0 | BV47: 1 | BW47: 1 | BX47: 0 | BY47: 0 | BZ47: 2 | CA47: 0 | CB47: 0 | CC47: 0 | CD47: 0 | CE47: 5 | CF47: 1 | CG47: 0 | CH47: 0 | CI47: 0 | CJ47: 0 | CK47: 0 | CL47: 0 | CM47: 0 | CN47: 0 | CO47: 0 | CP47: 0 | CQ47: 0 | CR47: 2 | CS47: 0 | CT47: 0 | CV47: 0 | CW47: 0 | CX47: 326.9481498 | CY47: 0 | CZ47: 0 | DA47: 326.9481498 | DB47: 1634.740749 | DC47: 326.9481498 | DD47: 653.8962997 | DE47: 0 | DF47: 326.9481498 | DG47: 653.8962997 | DH47: 326.9481498 | DI47: 980.8444495 | DJ47: 326.9481498 | DK47: 980.8444495 | DL47: 0 | DM47: 326.9481498 | DN47: 0 | DO47: 980.8444495 | DP47: 1307.792599 | DQ47: 1307.792599 | DR47: 326.9481498 | DS47: 0 | DT47: 1307.792599 | DU47: 653.8962997 | DV47: 653.8962997 | DW47: 653.8962997 | DX47: 0 | DY47: 0 | DZ47: 0 | EA47: 1307.792599 | EB47: 980.8444495 | EC47: 326.9481498 | ED47: 1307.792599 | EE47: 980.8444495 | EF47: 0 | EG47: 653.8962997 | EH47: 653.8962997 | EI47: 0 | EJ47: 1307.792599 | EK47: 0 | EL47: 326.9481498 | EM47: 326.9481498 | EN47: 2615.585199 | EO47: 0 | EP47: 653.8962997 | EQ47: 326.9481498 | ER47: 1961.688899 | ES47: 326.9481498 | ET47: 653.8962997 | EU47: 653.8962997 | EV47: 2942.533349 | EW47: 980.8444495 | EX47: 980.8444495 | EY47: 653.8962997 | EZ47: 653.8962997 | FA47: 326.9481498 | FB47: 0 | FC47: 0 | FD47: 653.8962997 | FE47: 0 | FF47: 0 | FG47: 0 | FH47: 0 | FI47: 0 | FJ47: 326.9481498 | FK47: 326.9481498 | FL47: 0 | FM47: 0 | FN47: 653.8962997 | FO47: 0 | FP47: 0 | FQ47: 0 | FR47: 0 | FS47: 1634.740749 | FT47: 326.9481498 | FU47: 0 | FV47: 0 | FW47: 0 | FX47: 0 | FY47: 0 | FZ47: 0 | GA47: 0 | GB47: 0 | GC47: 0 | GD47: 0 | GE47: 0 | GF47: 653.8962997 | GG47: 0 | GH47: 0
A48: 5 | B48: TRANSFORMERS | C48: ground outdoor / indoor chamber mounted ; > = 22 kv & < = 33 kv ; > 15 mva and < = 40 mva | D48: 1559.883174 | E48: 59.49123922 | F48: 7.713056412 | G48: 2 | H48: 0 | I48: 0 | J48: 0 | K48: 0 | L48: 0 | M48: 0 | N48: 2 | O48: 2 | P48: 0 | Q48: 0 | R48: 0 | S48: 0 | T48: 2 | U48: 0 | V48: 0 | W48: 5 | X48: 0 | Y48: 0 | Z48: 0 | AA48: 0 | AB48: 1 | AC48: 2 | AD48: 0 | AE48: 0 | AF48: 0 | AG48: 0 | AH48: 0 | AI48: 0 | AJ48: 0 | AK48: 0 | AL48: 0 | AM48: 0 | AN48: 0 | AO48: 0 | AP48: 0 | AQ48: 2 | AR48: 0 | AS48: 0 | AT48: 0 | AU48: 0 | AV48: 0 | AW48: 0 | AX48: 2 | AY48: 0 | AZ48: 0 | BA48: 0 | BB48: 0 | BC48: 0 | BD48: 0 | BE48: 0 | BF48: 0 | BG48: 0 | BH48: 0 | BI48: 0 | BJ48: 0 | BK48: 0 | BL48: 0 | BM48: 2 | BN48: 0 | BO48: 0 | BP48: 0 | BQ48: 0 | BR48: 0 | BS48: 0 | BT48: 0 | BU48: 0 | BV48: 2 | BW48: 0 | BX48: 0 | BY48: 0 | BZ48: 0 | CA48: 0 | CB48: 0 | CC48: 0 | CD48: 0 | CE48: 0 | CF48: 0 | CG48: 0 | CH48: 0 | CI48: 0 | CJ48: 0 | CK48: 0 | CL48: 0 | CM48: 0 | CN48: 0 | CO48: 0 | CP48: 0 | CQ48: 0 | CR48: 0 | CS48: 0 | CT48: 0 | CV48: 0 | CW48: 0 | CX48: 0 | CY48: 0 | CZ48: 0 | DA48: 0 | DB48: 3119.766348 | DC48: 3119.766348 | DD48: 0 | DE48: 0 | DF48: 0 | DG48: 0 | DH48: 3119.766348 | DI48: 0 | DJ48: 0 | DK48: 7799.415869 | DL48: 0 | DM48: 0 | DN48: 0 | DO48: 0 | DP48: 1559.883174 | DQ48: 3119.766348 | DR48: 0 | DS48: 0 | DT48: 0 | DU48: 0 | DV48: 0 | DW48: 0 | DX48: 0 | DY48: 0 | DZ48: 0 | EA48: 0 | EB48: 0 | EC48: 0 | ED48: 0 | EE48: 3119.766348 | EF48: 0 | EG48: 0 | EH48: 0 | EI48: 0 | EJ48: 0 | EK48: 0 | EL48: 3119.766348 | EM48: 0 | EN48: 0 | EO48: 0 | EP48: 0 | EQ48: 0 | ER48: 0 | ES48: 0 | ET48: 0 | EU48: 0 | EV48: 0 | EW48: 0 | EX48: 0 | EY48: 0 | EZ48: 0 | FA48: 3119.766348 | FB48: 0 | FC48: 0 | FD48: 0 | FE48: 0 | FF48: 0 | FG48: 0 | FH48: 0 | FI48: 0 | FJ48: 3119.766348 | FK48: 0 | FL48: 0 | FM48: 0 | FN48: 0 | FO48: 0 | FP48: 0 | FQ48: 0 | FR48: 0 | FS48: 0 | FT48: 0 | FU48: 0 | FV48: 0 | FW48: 0 | FX48: 0 | FY48: 0 | FZ48: 0 | GA48: 0 | GB48: 0 | GC48: 0 | GD48: 0 | GE48: 0 | GF48: 0 | GG48: 0 | GH48: 0
A49: 5 | B49: TRANSFORMERS | C49: ground outdoor / indoor chamber mounted ; > = 22 kv & < = 33 kv ; > 40 mva | D49: 1559.883174 | E49: 59.49123922 | F49: 7.713056412 | G49: 2 | H49: 0 | I49: 0 | J49: 0 | K49: 0 | L49: 0 | M49: 0 | N49: 0 | O49: 0 | P49: 0 | Q49: 0 | R49: 0 | S49: 0 | T49: 0 | U49: 0 | V49: 0 | W49: 0 | X49: 0 | Y49: 0 | Z49: 0 | AA49: 0 | AB49: 0 | AC49: 0 | AD49: 0 | AE49: 0 | AF49: 0 | AG49: 0 | AH49: 0 | AI49: 0 | AJ49: 0 | AK49: 0 | AL49: 0 | AM49: 0 | AN49: 0 | AO49: 0 | AP49: 0 | AQ49: 0 | AR49: 0 | AS49: 0 | AT49: 0 | AU49: 0 | AV49: 0 | AW49: 2 | AX49: 0 | AY49: 0 | AZ49: 0 | BA49: 0 | BB49: 0 | BC49: 0 | BD49: 0 | BE49: 0 | BF49: 0 | BG49: 0 | BH49: 0 | BI49: 0 | BJ49: 0 | BK49: 0 | BL49: 0 | BM49: 0 | BN49: 0 | BO49: 0 | BP49: 0 | BQ49: 0 | BR49: 0 | BS49: 0 | BT49: 0 | BU49: 0 | BV49: 0 | BW49: 0 | BX49: 0 | BY49: 0 | BZ49: 0 | CA49: 0 | CB49: 0 | CC49: 0 | CD49: 0 | CE49: 0 | CF49: 0 | CG49: 0 | CH49: 0 | CI49: 0 | CJ49: 0 | CK49: 0 | CL49: 0 | CM49: 0 | CN49: 0 | CO49: 0 | CP49: 0 | CQ49: 0 | CR49: 0 | CS49: 0 | CT49: 0 | CV49: 0 | CW49: 0 | CX49: 0 | CY49: 0 | CZ49: 0 | DA49: 0 | DB49: 0 | DC49: 0 | DD49: 0 | DE49: 0 | DF49: 0 | DG49: 0 | DH49: 0 | DI49: 0 | DJ49: 0 | DK49: 0 | DL49: 0 | DM49: 0 | DN49: 0 | DO49: 0 | DP49: 0 | DQ49: 0 | DR49: 0 | DS49: 0 | DT49: 0 | DU49: 0 | DV49: 0 | DW49: 0 | DX49: 0 | DY49: 0 | DZ49: 0 | EA49: 0 | EB49: 0 | EC49: 0 | ED49: 0 | EE49: 0 | EF49: 0 | EG49: 0 | EH49: 0 | EI49: 0 | EJ49: 0 | EK49: 3119.766348 | EL49: 0 | EM49: 0 | EN49: 0 | EO49: 0 | EP49: 0 | EQ49: 0 | ER49: 0 | ES49: 0 | ET49: 0 | EU49: 0 | EV49: 0 | EW49: 0 | EX49: 0 | EY49: 0 | EZ49: 0 | FA49: 0 | FB49: 0 | FC49: 0 | FD49: 0 | FE49: 0 | FF49: 0 | FG49: 0 | FH49: 0 | FI49: 0 | FJ49: 0 | FK49: 0 | FL49: 0 | FM49: 0 | FN49: 0 | FO49: 0 | FP49: 0 | FQ49: 0 | FR49: 0 | FS49: 0 | FT49: 0 | FU49: 0 | FV49: 0 | FW49: 0 | FX49: 0 | FY49: 0 | FZ49: 0 | GA49: 0 | GB49: 0 | GC49: 0 | GD49: 0 | GE49: 0 | GF49: 0 | GG49: 0 | GH49: 0
A50: 5 | B50: TRANSFORMERS | C50: ground outdoor / indoor chamber mounted ; > 132 kv ; < = 100 mva | D50: 5908.175119 | E50: 84.28546106 | F50: 9.180711359 | G50: 2 | H50: 0 | I50: 0 | J50: 0 | K50: 0 | L50: 0 | M50: 0 | N50: 0 | O50: 0 | P50: 0 | Q50: 0 | R50: 0 | S50: 0 | T50: 0 | U50: 0 | V50: 0 | W50: 0 | X50: 0 | Y50: 0 | Z50: 0 | AA50: 0 | AB50: 4 | AC50: 1 | AD50: 2 | AE50: 0 | AF50: 0 | AG50: 0 | AH50: 0 | AI50: 0 | AJ50: 0 | AK50: 0 | AL50: 0 | AM50: 0 | AN50: 0 | AO50: 0 | AP50: 0 | AQ50: 0 | AR50: 0 | AS50: 0 | AT50: 0 | AU50: 0 | AV50: 0 | AW50: 0 | AX50: 0 | AY50: 0 | AZ50: 0 | BA50: 0 | BB50: 0 | BC50: 0 | BD50: 0 | BE50: 0 | BF50: 0 | BG50: 0 | BH50: 0 | BI50: 0 | BJ50: 0 | BK50: 0 | BL50: 0 | BM50: 0 | BN50: 0 | BO50: 0 | BP50: 0 | BQ50: 0 | BR50: 0 | BS50: 0 | BT50: 0 | BU50: 0 | BV50: 0 | BW50: 0 | BX50: 0 | BY50: 0 | BZ50: 0 | CA50: 0 | CB50: 0 | CC50: 0 | CD50: 0 | CE50: 0 | CF50: 0 | CG50: 0 | CH50: 0 | CI50: 0 | CJ50: 0 | CK50: 0 | CL50: 0 | CM50: 0 | CN50: 0 | CO50: 0 | CP50: 0 | CQ50: 0 | CR50: 0 | CS50: 0 | CT50: 0 | CV50: 0 | CW50: 0 | CX50: 0 | CY50: 0 | CZ50: 0 | DA50: 0 | DB50: 0 | DC50: 0 | DD50: 0 | DE50: 0 | DF50: 0 | DG50: 0 | DH50: 0 | DI50: 0 | DJ50: 0 | DK50: 0 | DL50: 0 | DM50: 0 | DN50: 0 | DO50: 0 | DP50: 23632.70047 | DQ50: 5908.175119 | DR50: 11816.35024 | DS50: 0 | DT50: 0 | DU50: 0 | DV50: 0 | DW50: 0 | DX50: 0 | DY50: 0 | DZ50: 0 | EA50: 0 | EB50: 0 | EC50: 0 | ED50: 0 | EE50: 0 | EF50: 0 | EG50: 0 | EH50: 0 | EI50: 0 | EJ50: 0 | EK50: 0 | EL50: 0 | EM50: 0 | EN50: 0 | EO50: 0 | EP50: 0 | EQ50: 0 | ER50: 0 | ES50: 0 | ET50: 0 | EU50: 0 | EV50: 0 | EW50: 0 | EX50: 0 | EY50: 0 | EZ50: 0 | FA50: 0 | FB50: 0 | FC50: 0 | FD50: 0 | FE50: 0 | FF50: 0 | FG50: 0 | FH50: 0 | FI50: 0 | FJ50: 0 | FK50: 0 | FL50: 0 | FM50: 0 | FN50: 0 | FO50: 0 | FP50: 0 | FQ50: 0 | FR50: 0 | FS50: 0 | FT50: 0 | FU50: 0 | FV50: 0 | FW50: 0 | FX50: 0 | FY50: 0 | FZ50: 0 | GA50: 0 | GB50: 0 | GC50: 0 | GD50: 0 | GE50: 0 | GF50: 0 | GG50: 0 | GH50: 0
A51: 5 | B51: TRANSFORMERS | C51: ground outdoor / indoor chamber mounted ; > 33 kv & < = 66 kv ; < = 15 mva | D51: 5908.175119 | E51: 84.28546106 | F51: 9.180711359 | G51: 2 | H51: 0 | I51: 0 | J51: 1 | K51: 1 | L51: 1 | M51: 1 | N51: 4 | O51: 2 | P51: 2 | Q51: 1 | R51: 5 | S51: 2 | T51: 6 | U51: 2 | V51: 1 | W51: 3 | X51: 3 | Y51: 2 | Z51: 3 | AA51: 9 | AB51: 4 | AC51: 5 | AD51: 6 | AE51: 4 | AF51: 3 | AG51: 0 | AH51: 0 | AI51: 5 | AJ51: 10 | AK51: 5 | AL51: 2 | AM51: 1 | AN51: 6 | AO51: 12 | AP51: 8 | AQ51: 5 | AR51: 8 | AS51: 6 | AT51: 5 | AU51: 12 | AV51: 3 | AW51: 0 | AX51: 5 | AY51: 6 | AZ51: 4 | BA51: 1 | BB51: 1 | BC51: 5 | BD51: 3 | BE51: 2 | BF51: 3 | BG51: 2 | BH51: 4 | BI51: 2 | BJ51: 3 | BK51: 5 | BL51: 1 | BM51: 1 | BN51: 0 | BO51: 0 | BP51: 0 | BQ51: 2 | BR51: 3 | BS51: 1 | BT51: 0 | BU51: 1 | BV51: 0 | BW51: 4 | BX51: 0 | BY51: 1 | BZ51: 0 | CA51: 0 | CB51: 0 | CC51: 3 | CD51: 0 | CE51: 0 | CF51: 0 | CG51: 0 | CH51: 0 | CI51: 0 | CJ51: 0 | CK51: 0 | CL51: 0 | CM51: 0 | CN51: 0 | CO51: 0 | CP51: 0 | CQ51: 0 | CR51: 0 | CS51: 0 | CT51: 1 | CV51: 0 | CW51: 0 | CX51: 5908.175119 | CY51: 5908.175119 | CZ51: 5908.175119 | DA51: 5908.175119 | DB51: 23632.70047 | DC51: 11816.35024 | DD51: 11816.35024 | DE51: 5908.175119 | DF51: 29540.87559 | DG51: 11816.35024 | DH51: 35449.05071 | DI51: 11816.35024 | DJ51: 5908.175119 | DK51: 17724.52536 | DL51: 17724.52536 | DM51: 11816.35024 | DN51: 17724.52536 | DO51: 53173.57607 | DP51: 23632.70047 | DQ51: 29540.87559 | DR51: 35449.05071 | DS51: 23632.70047 | DT51: 17724.52536 | DU51: 0 | DV51: 0 | DW51: 29540.87559 | DX51: 59081.75119 | DY51: 29540.87559 | DZ51: 11816.35024 | EA51: 5908.175119 | EB51: 35449.05071 | EC51: 70898.10142 | ED51: 47265.40095 | EE51: 29540.87559 | EF51: 47265.40095 | EG51: 35449.05071 | EH51: 29540.87559 | EI51: 70898.10142 | EJ51: 17724.52536 | EK51: 0 | EL51: 29540.87559 | EM51: 35449.05071 | EN51: 23632.70047 | EO51: 5908.175119 | EP51: 5908.175119 | EQ51: 29540.87559 | ER51: 17724.52536 | ES51: 11816.35024 | ET51: 17724.52536 | EU51: 11816.35024 | EV51: 23632.70047 | EW51: 11816.35024 | EX51: 17724.52536 | EY51: 29540.87559 | EZ51: 5908.175119 | FA51: 5908.175119 | FB51: 0 | FC51: 0 | FD51: 0 | FE51: 11816.35024 | FF51: 17724.52536 | FG51: 5908.175119 | FH51: 0 | FI51: 5908.175119 | FJ51: 0 | FK51: 23632.70047 | FL51: 0 | FM51: 5908.175119 | FN51: 0 | FO51: 0 | FP51: 0 | FQ51: 17724.52536 | FR51: 0 | FS51: 0 | FT51: 0 | FU51: 0 | FV51: 0 | FW51: 0 | FX51: 0 | FY51: 0 | FZ51: 0 | GA51: 0 | GB51: 0 | GC51: 0 | GD51: 0 | GE51: 0 | GF51: 0 | GG51: 0 | GH51: 5908.175119
A52: 5 | B52: TRANSFORMERS | C52: ground outdoor / indoor chamber mounted ; > 33 kv & < = 66 kv ; > 15 mva and < = 40 mva | D52: 319.9732218 | E52: 53.79980848 | F52: 7.334835273 | G52: 2 | H52: 0 | I52: 0 | J52: 0 | K52: 0 | L52: 0 | M52: 1 | N52: 1 | O52: 0 | P52: 3 | Q52: 4 | R52: 2 | S52: 11 | T52: 6 | U52: 3 | V52: 8 | W52: 2 | X52: 0 | Y52: 4 | Z52: 2 | AA52: 3 | AB52: 0 | AC52: 1 | AD52: 1 | AE52: 6 | AF52: 0 | AG52: 1 | AH52: 1 | AI52: 2 | AJ52: 1 | AK52: 1 | AL52: 0 | AM52: 0 | AN52: 2 | AO52: 8 | AP52: 0 | AQ52: 2 | AR52: 4 | AS52: 2 | AT52: 5 | AU52: 1 | AV52: 6 | AW52: 2 | AX52: 1 | AY52: 0 | AZ52: 2 | BA52: 0 | BB52: 0 | BC52: 2 | BD52: 0 | BE52: 1 | BF52: 0 | BG52: 1 | BH52: 0 | BI52: 0 | BJ52: 0 | BK52: 0 | BL52: 0 | BM52: 1 | BN52: 0 | BO52: 0 | BP52: 0 | BQ52: 0 | BR52: 0 | BS52: 0 | BT52: 0 | BU52: 0 | BV52: 0 | BW52: 0 | BX52: 0 | BY52: 0 | BZ52: 0 | CA52: 0 | CB52: 0 | CC52: 0 | CD52: 0 | CE52: 0 | CF52: 0 | CG52: 0 | CH52: 0 | CI52: 0 | CJ52: 0 | CK52: 0 | CL52: 0 | CM52: 0 | CN52: 0 | CO52: 0 | CP52: 0 | CQ52: 0 | CR52: 0 | CS52: 0 | CT52: 0 | CV52: 0 | CW52: 0 | CX52: 0 | CY52: 0 | CZ52: 0 | DA52: 319.9732218 | DB52: 319.9732218 | DC52: 0 | DD52: 959.9196654 | DE52: 1279.892887 | DF52: 639.9464436 | DG52: 3519.70544 | DH52: 1919.839331 | DI52: 959.9196654 | DJ52: 2559.785774 | DK52: 639.9464436 | DL52: 0 | DM52: 1279.892887 | DN52: 639.9464436 | DO52: 959.9196654 | DP52: 0 | DQ52: 319.9732218 | DR52: 319.9732218 | DS52: 1919.839331 | DT52: 0 | DU52: 319.9732218 | DV52: 319.9732218 | DW52: 639.9464436 | DX52: 319.9732218 | DY52: 319.9732218 | DZ52: 0 | EA52: 0 | EB52: 639.9464436 | EC52: 2559.785774 | ED52: 0 | EE52: 639.9464436 | EF52: 1279.892887 | EG52: 639.9464436 | EH52: 1599.866109 | EI52: 319.9732218 | EJ52: 1919.839331 | EK52: 639.9464436 | EL52: 319.9732218 | EM52: 0 | EN52: 639.9464436 | EO52: 0 | EP52: 0 | EQ52: 639.9464436 | ER52: 0 | ES52: 319.9732218 | ET52: 0 | EU52: 319.9732218 | EV52: 0 | EW52: 0 | EX52: 0 | EY52: 0 | EZ52: 0 | FA52: 319.9732218 | FB52: 0 | FC52: 0 | FD52: 0 | FE52: 0 | FF52: 0 | FG52: 0 | FH52: 0 | FI52: 0 | FJ52: 0 | FK52: 0 | FL52: 0 | FM52: 0 | FN52: 0 | FO52: 0 | FP52: 0 | FQ52: 0 | FR52: 0 | FS52: 0 | FT52: 0 | FU52: 0 | FV52: 0 | FW52: 0 | FX52: 0 | FY52: 0 | FZ52: 0 | GA52: 0 | GB52: 0 | GC52: 0 | GD52: 0 | GE52: 0 | GF52: 0 | GG52: 0 | GH52: 0
A53: 5 | B53: TRANSFORMERS | C53: ground outdoor / indoor chamber mounted ; > 33 kv & < = 66 kv ; > 40 mva | D53: 319.9732218 | E53: 53.79980848 | F53: 7.334835273 | G53: 2 | H53: 0 | I53: 0 | J53: 0 | K53: 0 | L53: 0 | M53: 1 | N53: 0 | O53: 1 | P53: 0 | Q53: 0 | R53: 0 | S53: 0 | T53: 2 | U53: 0 | V53: 0 | W53: 0 | X53: 0 | Y53: 0 | Z53: 0 | AA53: 0 | AB53: 0 | AC53: 0 | AD53: 0 | AE53: 0 | AF53: 0 | AG53: 0 | AH53: 0 | AI53: 0 | AJ53: 0 | AK53: 0 | AL53: 0 | AM53: 0 | AN53: 0 | AO53: 0 | AP53: 0 | AQ53: 0 | AR53: 0 | AS53: 0 | AT53: 0 | AU53: 0 | AV53: 0 | AW53: 0 | AX53: 0 | AY53: 0 | AZ53: 0 | BA53: 0 | BB53: 0 | BC53: 0 | BD53: 0 | BE53: 0 | BF53: 0 | BG53: 0 | BH53: 0 | BI53: 0 | BJ53: 0 | BK53: 0 | BL53: 0 | BM53: 0 | BN53: 0 | BO53: 0 | BP53: 0 | BQ53: 0 | BR53: 0 | BS53: 0 | BT53: 0 | BU53: 0 | BV53: 0 | BW53: 0 | BX53: 0 | BY53: 0 | BZ53: 0 | CA53: 0 | CB53: 0 | CC53: 0 | CD53: 0 | CE53: 0 | CF53: 0 | CG53: 0 | CH53: 0 | CI53: 0 | CJ53: 0 | CK53: 0 | CL53: 0 | CM53: 0 | CN53: 0 | CO53: 0 | CP53: 0 | CQ53: 0 | CR53: 0 | CS53: 0 | CT53: 0 | CV53: 0 | CW53: 0 | CX53: 0 | CY53: 0 | CZ53: 0 | DA53: 319.9732218 | DB53: 0 | DC53: 319.9732218 | DD53: 0 | DE53: 0 | DF53: 0 | DG53: 0 | DH53: 639.9464436 | DI53: 0 | DJ53: 0 | DK53: 0 | DL53: 0 | DM53: 0 | DN53: 0 | DO53: 0 | DP53: 0 | DQ53: 0 | DR53: 0 | DS53: 0 | DT53: 0 | DU53: 0 | DV53: 0 | DW53: 0 | DX53: 0 | DY53: 0 | DZ53: 0 | EA53: 0 | EB53: 0 | EC53: 0 | ED53: 0 | EE53: 0 | EF53: 0 | EG53: 0 | EH53: 0 | EI53: 0 | EJ53: 0 | EK53: 0 | EL53: 0 | EM53: 0 | EN53: 0 | EO53: 0 | EP53: 0 | EQ53: 0 | ER53: 0 | ES53: 0 | ET53: 0 | EU53: 0 | EV53: 0 | EW53: 0 | EX53: 0 | EY53: 0 | EZ53: 0 | FA53: 0 | FB53: 0 | FC53: 0 | FD53: 0 | FE53: 0 | FF53: 0 | FG53: 0 | FH53: 0 | FI53: 0 | FJ53: 0 | FK53: 0 | FL53: 0 | FM53: 0 | FN53: 0 | FO53: 0 | FP53: 0 | FQ53: 0 | FR53: 0 | FS53: 0 | FT53: 0 | FU53: 0 | FV53: 0 | FW53: 0 | FX53: 0 | FY53: 0 | FZ53: 0 | GA53: 0 | GB53: 0 | GC53: 0 | GD53: 0 | GE53: 0 | GF53: 0 | GG53: 0 | GH53: 0
A54: 5 | B54: TRANSFORMERS | C54: ground outdoor / indoor chamber mounted ; > 66 kv & < = 132 kv ; < = 100 mva | D54: 5908.175119 | E54: 84.28546106 | F54: 9.180711359 | G54: 2 | H54: 0 | I54: 0 | J54: 0 | K54: 0 | L54: 1 | M54: 1 | N54: 1 | O54: 6 | P54: 0 | Q54: 2 | R54: 4 | S54: 5 | T54: 6 | U54: 3 | V54: 4 | W54: 3 | X54: 3 | Y54: 0 | Z54: 0 | AA54: 2 | AB54: 1 | AC54: 2 | AD54: 3 | AE54: 0 | AF54: 0 | AG54: 0 | AH54: 1 | AI54: 1 | AJ54: 3 | AK54: 0 | AL54: 2 | AM54: 0 | AN54: 0 | AO54: 0 | AP54: 1 | AQ54: 3 | AR54: 1 | AS54: 0 | AT54: 1 | AU54: 0 | AV54: 0 | AW54: 0 | AX54: 0 | AY54: 0 | AZ54: 0 | BA54: 0 | BB54: 0 | BC54: 1 | BD54: 2 | BE54: 0 | BF54: 1 | BG54: 0 | BH54: 3 | BI54: 0 | BJ54: 3 | BK54: 0 | BL54: 1 | BM54: 0 | BN54: 0 | BO54: 0 | BP54: 0 | BQ54: 0 | BR54: 2 | BS54: 0 | BT54: 0 | BU54: 0 | BV54: 3 | BW54: 0 | BX54: 0 | BY54: 0 | BZ54: 0 | CA54: 0 | CB54: 0 | CC54: 0 | CD54: 0 | CE54: 0 | CF54: 0 | CG54: 0 | CH54: 0 | CI54: 0 | CJ54: 0 | CK54: 0 | CL54: 0 | CM54: 0 | CN54: 0 | CO54: 0 | CP54: 0 | CQ54: 0 | CR54: 0 | CS54: 0 | CT54: 0 | CV54: 0 | CW54: 0 | CX54: 0 | CY54: 0 | CZ54: 5908.175119 | DA54: 5908.175119 | DB54: 5908.175119 | DC54: 35449.05071 | DD54: 0 | DE54: 11816.35024 | DF54: 23632.70047 | DG54: 29540.87559 | DH54: 35449.05071 | DI54: 17724.52536 | DJ54: 23632.70047 | DK54: 17724.52536 | DL54: 17724.52536 | DM54: 0 | DN54: 0 | DO54: 11816.35024 | DP54: 5908.175119 | DQ54: 11816.35024 | DR54: 17724.52536 | DS54: 0 | DT54: 0 | DU54: 0 | DV54: 5908.175119 | DW54: 5908.175119 | DX54: 17724.52536 | DY54: 0 | DZ54: 11816.35024 | EA54: 0 | EB54: 0 | EC54: 0 | ED54: 5908.175119 | EE54: 17724.52536 | EF54: 5908.175119 | EG54: 0 | EH54: 5908.175119 | EI54: 0 | EJ54: 0 | EK54: 0 | EL54: 0 | EM54: 0 | EN54: 0 | EO54: 0 | EP54: 0 | EQ54: 5908.175119 | ER54: 11816.35024 | ES54: 0 | ET54: 5908.175119 | EU54: 0 | EV54: 17724.52536 | EW54: 0 | EX54: 17724.52536 | EY54: 0 | EZ54: 5908.175119 | FA54: 0 | FB54: 0 | FC54: 0 | FD54: 0 | FE54: 0 | FF54: 11816.35024 | FG54: 0 | FH54: 0 | FI54: 0 | FJ54: 17724.52536 | FK54: 0 | FL54: 0 | FM54: 0 | FN54: 0 | FO54: 0 | FP54: 0 | FQ54: 0 | FR54: 0 | FS54: 0 | FT54: 0 | FU54: 0 | FV54: 0 | FW54: 0 | FX54: 0 | FY54: 0 | FZ54: 0 | GA54: 0 | GB54: 0 | GC54: 0 | GD54: 0 | GE54: 0 | GF54: 0 | GG54: 0 | GH54: 0
A55: 5 | B55: TRANSFORMERS | C55: ground outdoor / indoor chamber mounted ; > 66 kv & < = 132 kv ; > 100 mva | D55: 5908.175119 | E55: 84.28546106 | F55: 9.180711359 | G55: 2 | H55: 0 | I55: 0 | J55: 0 | K55: 0 | L55: 0 | M55: 0 | N55: 0 | O55: 0 | P55: 0 | Q55: 0 | R55: 0 | S55: 0 | T55: 0 | U55: 0 | V55: 0 | W55: 1 | X55: 0 | Y55: 0 | Z55: 0 | AA55: 0 | AB55: 0 | AC55: 0 | AD55: 0 | AE55: 0 | AF55: 1 | AG55: 0 | AH55: 0 | AI55: 0 | AJ55: 0 | AK55: 0 | AL55: 0 | AM55: 0 | AN55: 0 | AO55: 0 | AP55: 0 | AQ55: 0 | AR55: 0 | AS55: 0 | AT55: 0 | AU55: 0 | AV55: 0 | AW55: 0 | AX55: 0 | AY55: 0 | AZ55: 0 | BA55: 0 | BB55: 0 | BC55: 0 | BD55: 0 | BE55: 0 | BF55: 0 | BG55: 0 | BH55: 0 | BI55: 0 | BJ55: 0 | BK55: 0 | BL55: 0 | BM55: 0 | BN55: 0 | BO55: 0 | BP55: 0 | BQ55: 0 | BR55: 0 | BS55: 0 | BT55: 0 | BU55: 0 | BV55: 0 | BW55: 0 | BX55: 0 | BY55: 0 | BZ55: 0 | CA55: 0 | CB55: 0 | CC55: 0 | CD55: 0 | CE55: 0 | CF55: 0 | CG55: 0 | CH55: 0 | CI55: 0 | CJ55: 0 | CK55: 0 | CL55: 0 | CM55: 0 | CN55: 0 | CO55: 0 | CP55: 0 | CQ55: 0 | CR55: 0 | CS55: 0 | CT55: 0 | CV55: 0 | CW55: 0 | CX55: 0 | CY55: 0 | CZ55: 0 | DA55: 0 | DB55: 0 | DC55: 0 | DD55: 0 | DE55: 0 | DF55: 0 | DG55: 0 | DH55: 0 | DI55: 0 | DJ55: 0 | DK55: 5908.175119 | DL55: 0 | DM55: 0 | DN55: 0 | DO55: 0 | DP55: 0 | DQ55: 0 | DR55: 0 | DS55: 0 | DT55: 5908.175119 | DU55: 0 | DV55: 0 | DW55: 0 | DX55: 0 | DY55: 0 | DZ55: 0 | EA55: 0 | EB55: 0 | EC55: 0 | ED55: 0 | EE55: 0 | EF55: 0 | EG55: 0 | EH55: 0 | EI55: 0 | EJ55: 0 | EK55: 0 | EL55: 0 | EM55: 0 | EN55: 0 | EO55: 0 | EP55: 0 | EQ55: 0 | ER55: 0 | ES55: 0 | ET55: 0 | EU55: 0 | EV55: 0 | EW55: 0 | EX55: 0 | EY55: 0 | EZ55: 0 | FA55: 0 | FB55: 0 | FC55: 0 | FD55: 0 | FE55: 0 | FF55: 0 | FG55: 0 | FH55: 0 | FI55: 0 | FJ55: 0 | FK55: 0 | FL55: 0 | FM55: 0 | FN55: 0 | FO55: 0 | FP55: 0 | FQ55: 0 | FR55: 0 | FS55: 0 | FT55: 0 | FU55: 0 | FV55: 0 | FW55: 0 | FX55: 0 | FY55: 0 | FZ55: 0 | GA55: 0 | GB55: 0 | GC55: 0 | GD55: 0 | GE55: 0 | GF55: 0 | GG55: 0 | GH55: 0
A56: 5 | B56: TRANSFORMERS | C56: kiosk mounted ; < = 22 kv ; < = 60 kva ; multiple phase | D56: 243.7545956 | E56: 55.893875 | F56: 7.476220636 | G56: 2 | H56: 1.008571429 | I56: 3.025714286 | J56: 1.008571429 | K56: 10.08571429 | L56: 6.051428571 | M56: 5.042857143 | N56: 11.09428571 | O56: 9.077142857 | P56: 10.08571429 | Q56: 10.08571429 | R56: 10.08571429 | S56: 22.18857143 | T56: 15.12857143 | U56: 22.18857143 | V56: 7.06 | W56: 10.08571429 | X56: 10.08571429 | Y56: 9.077142857 | Z56: 6.051428571 | AA56: 7.06 | AB56: 3.025714286 | AC56: 3.025714286 | AD56: 0 | AE56: 6.051428571 | AF56: 3.025714286 | AG56: 2.017142857 | AH56: 2.017142857 | AI56: 7.06 | AJ56: 7.06 | AK56: 7.06 | AL56: 3.025714286 | AM56: 7.06 | AN56: 7.06 | AO56: 8.068571429 | AP56: 18.15428571 | AQ56: 1.008571429 | AR56: 3.025714286 | AS56: 6.051428571 | AT56: 7.06 | AU56: 0 | AV56: 2.017142857 | AW56: 2.017142857 | AX56: 1.008571429 | AY56: 4.034285714 | AZ56: 2.017142857 | BA56: 2.017142857 | BB56: 4.034285714 | BC56: 4.034285714 | BD56: 3.025714286 | BE56: 1.008571429 | BF56: 3.025714286 | BG56: 2.017142857 | BH56: 4.034285714 | BI56: 2.017142857 | BJ56: 4.034285714 | BK56: 3.025714286 | BL56: 2.017142857 | BM56: 3.025714286 | BN56: 2.017142857 | BO56: 4.034285714 | BP56: 3.025714286 | BQ56: 0 | BR56: 2.017142857 | BS56: 1.008571429 | BT56: 0 | BU56: 1.008571429 | BV56: 0 | BW56: 1.008571429 | BX56: 0 | BY56: 3.025714286 | BZ56: 0 | CA56: 1.008571429 | CB56: 0 | CC56: 0 | CD56: 0 | CE56: 0 | CF56: 0 | CG56: 0 | CH56: 0 | CI56: 0 | CJ56: 0 | CK56: 0 | CL56: 0 | CM56: 0 | CN56: 0 | CO56: 0 | CP56: 0 | CQ56: 0 | CR56: 0 | CS56: 0 | CT56: 0 | CV56: 245.8439208 | CW56: 737.5317622 | CX56: 245.8439208 | CY56: 2458.439208 | CZ56: 1475.063524 | DA56: 1229.219604 | DB56: 2704.283127 | DC56: 2212.595286 | DD56: 2458.439208 | DE56: 2458.439208 | DF56: 2458.439208 | DG56: 5408.566256 | DH56: 3687.658811 | DI56: 5408.566256 | DJ56: 1720.907445 | DK56: 2458.439208 | DL56: 2458.439208 | DM56: 2212.595286 | DN56: 1475.063524 | DO56: 1720.907445 | DP56: 737.5317622 | DQ56: 737.5317622 | DR56: 0 | DS56: 1475.063524 | DT56: 737.5317622 | DU56: 491.6878414 | DV56: 491.6878414 | DW56: 1720.907445 | DX56: 1720.907445 | DY56: 1720.907445 | DZ56: 737.5317622 | EA56: 1720.907445 | EB56: 1720.907445 | EC56: 1966.751366 | ED56: 4425.190572 | EE56: 245.8439208 | EF56: 737.5317622 | EG56: 1475.063524 | EH56: 1720.907445 | EI56: 0 | EJ56: 491.6878414 | EK56: 491.6878414 | EL56: 245.8439208 | EM56: 983.3756828 | EN56: 491.6878414 | EO56: 491.6878414 | EP56: 983.3756828 | EQ56: 983.3756828 | ER56: 737.5317622 | ES56: 245.8439208 | ET56: 737.5317622 | EU56: 491.6878414 | EV56: 983.3756828 | EW56: 491.6878414 | EX56: 983.3756828 | EY56: 737.5317622 | EZ56: 491.6878414 | FA56: 737.5317622 | FB56: 491.6878414 | FC56: 983.3756828 | FD56: 737.5317622 | FE56: 0 | FF56: 491.6878414 | FG56: 245.8439208 | FH56: 0 | FI56: 245.8439208 | FJ56: 0 | FK56: 245.8439208 | FL56: 0 | FM56: 737.5317622 | FN56: 0 | FO56: 245.8439208 | FP56: 0 | FQ56: 0 | FR56: 0 | FS56: 0 | FT56: 0 | FU56: 0 | FV56: 0 | FW56: 0 | FX56: 0 | FY56: 0 | FZ56: 0 | GA56: 0 | GB56: 0 | GC56: 0 | GD56: 0 | GE56: 0 | GF56: 0 | GG56: 0 | GH56: 0
A57: 5 | B57: TRANSFORMERS | C57: kiosk mounted ; < = 22 kv ; < = 60 kva ; single phase | D57: 243.7545956 | E57: 55.893875 | F57: 7.476220636 | G57: 2 | H57: 0 | I57: 0 | J57: 1.010989011 | K57: 1.010989011 | L57: 1.010989011 | M57: 0 | N57: 1.010989011 | O57: 0 | P57: 1.010989011 | Q57: 15.16483516 | R57: 3.032967033 | S57: 2.021978022 | T57: 5.054945055 | U57: 3.032967033 | V57: 2.021978022 | W57: 0 | X57: 3.032967033 | Y57: 1.010989011 | Z57: 2.021978022 | AA57: 2.021978022 | AB57: 1.010989011 | AC57: 5.054945055 | AD57: 3.032967033 | AE57: 5.054945055 | AF57: 1.010989011 | AG57: 1.010989011 | AH57: 1.010989011 | AI57: 2.021978022 | AJ57: 0 | AK57: 6.065934066 | AL57: 3.032967033 | AM57: 3.032967033 | AN57: 1.010989011 | AO57: 0 | AP57: 0 | AQ57: 3.032967033 | AR57: 1.010989011 | AS57: 2.021978022 | AT57: 0 | AU57: 1.010989011 | AV57: 0 | AW57: 2.021978022 | AX57: 1.010989011 | AY57: 1.010989011 | AZ57: 1.010989011 | BA57: 0 | BB57: 0 | BC57: 1.010989011 | BD57: 1.010989011 | BE57: 0 | BF57: 0 | BG57: 0 | BH57: 1.010989011 | BI57: 0 | BJ57: 0 | BK57: 1.010989011 | BL57: 0 | BM57: 0 | BN57: 0 | BO57: 0 | BP57: 0 | BQ57: 0 | BR57: 0 | BS57: 0 | BT57: 0 | BU57: 0 | BV57: 0 | BW57: 0 | BX57: 0 | BY57: 0 | BZ57: 0 | CA57: 0 | CB57: 0 | CC57: 0 | CD57: 0 | CE57: 0 | CF57: 0 | CG57: 0 | CH57: 0 | CI57: 0 | CJ57: 0 | CK57: 0 | CL57: 0 | CM57: 0 | CN57: 0 | CO57: 0 | CP57: 0 | CQ57: 0 | CR57: 0 | CS57: 0 | CT57: 0 | CV57: 0 | CW57: 0 | CX57: 246.4332175 | CY57: 246.4332175 | CZ57: 246.4332175 | DA57: 0 | DB57: 246.4332175 | DC57: 0 | DD57: 246.4332175 | DE57: 3696.498262 | DF57: 739.2996526 | DG57: 492.8664351 | DH57: 1232.166088 | DI57: 739.2996526 | DJ57: 492.8664351 | DK57: 0 | DL57: 739.2996526 | DM57: 246.4332175 | DN57: 492.8664351 | DO57: 492.8664351 | DP57: 246.4332175 | DQ57: 1232.166088 | DR57: 739.2996526 | DS57: 1232.166088 | DT57: 246.4332175 | DU57: 246.4332175 | DV57: 246.4332175 | DW57: 492.8664351 | DX57: 0 | DY57: 1478.599305 | DZ57: 739.2996526 | EA57: 739.2996526 | EB57: 246.4332175 | EC57: 0 | ED57: 0 | EE57: 739.2996526 | EF57: 246.4332175 | EG57: 492.8664351 | EH57: 0 | EI57: 246.4332175 | EJ57: 0 | EK57: 492.8664351 | EL57: 246.4332175 | EM57: 246.4332175 | EN57: 246.4332175 | EO57: 0 | EP57: 0 | EQ57: 246.4332175 | ER57: 246.4332175 | ES57: 0 | ET57: 0 | EU57: 0 | EV57: 246.4332175 | EW57: 0 | EX57: 0 | EY57: 246.4332175 | EZ57: 0 | FA57: 0 | FB57: 0 | FC57: 0 | FD57: 0 | FE57: 0 | FF57: 0 | FG57: 0 | FH57: 0 | FI57: 0 | FJ57: 0 | FK57: 0 | FL57: 0 | FM57: 0 | FN57: 0 | FO57: 0 | FP57: 0 | FQ57: 0 | FR57: 0 | FS57: 0 | FT57: 0 | FU57: 0 | FV57: 0 | FW57: 0 | FX57: 0 | FY57: 0 | FZ57: 0 | GA57: 0 | GB57: 0 | GC57: 0 | GD57: 0 | GE57: 0 | GF57: 0 | GG57: 0 | GH57: 0
A58: 5 | B58: TRANSFORMERS | C58: kiosk mounted ; < = 22 kv ; > 60 kva and < = 600 kva ; multiple phase | D58: 243.7545956 | E58: 55.893875 | F58: 7.476220636 | G58: 2 | H58: 6.007017544 | I58: 52.06081871 | J58: 87.10175439 | K58: 93.10877193 | L58: 132.154386 | M58: 192.2245614 | N58: 254.297076 | O58: 192.2245614 | P58: 220.2573099 | Q58: 216.2526316 | R58: 266.3111111 | S58: 399.4666667 | T58: 331.3871345 | U58: 371.4339181 | V58: 343.4011696 | W58: 300.3508772 | X58: 192.2245614 | Y58: 109.1274854 | Z58: 90.10526316 | AA58: 99.11578947 | AB58: 76.08888889 | AC58: 64.0748538 | AD58: 58.06783626 | AE58: 61.07134503 | AF58: 100.1169591 | AG58: 102.1192982 | AH58: 89.10409357 | AI58: 70.08187135 | AJ58: 62.07251462 | AK58: 54.06315789 | AL58: 49.05730994 | AM58: 27.03157895 | AN58: 23.02690058 | AO58: 27.03157895 | AP58: 17.01988304 | AQ58: 30.03508772 | AR58: 31.03625731 | AS58: 38.04444444 | AT58: 40.04678363 | AU58: 18.02105263 | AV58: 10.01169591 | AW58: 14.01637427 | AX58: 3.003508772 | AY58: 13.01520468 | AZ58: 8.009356725 | BA58: 9.010526316 | BB58: 13.01520468 | BC58: 2.002339181 | BD58: 10.01169591 | BE58: 12.01403509 | BF58: 6.007017544 | BG58: 2.002339181 | BH58: 11.0128655 | BI58: 2.002339181 | BJ58: 6.007017544 | BK58: 1.001169591 | BL58: 11.0128655 | BM58: 0 | BN58: 2.002339181 | BO58: 1.001169591 | BP58: 1.001169591 | BQ58: 0 | BR58: 0 | BS58: 0 | BT58: 0 | BU58: 0 | BV58: 0 | BW58: 0 | BX58: 0 | BY58: 0 | BZ58: 0 | CA58: 0 | CB58: 0 | CC58: 4.004678363 | CD58: 0 | CE58: 0 | CF58: 0 | CG58: 0 | CH58: 0 | CI58: 1.001169591 | CJ58: 0 | CK58: 0 | CL58: 0 | CM58: 8.009356725 | CN58: 0 | CO58: 0 | CP58: 0 | CQ58: 0 | CR58: 0 | CS58: 0 | CT58: 0 | CV58: 1464.238132 | CW58: 12690.06381 | CX58: 21231.45292 | CY58: 22695.69105 | CZ58: 32213.23892 | DA58: 46855.62023 | DB58: 61986.08093 | DC58: 46855.62023 | DD58: 53688.7315 | DE58: 52712.57277 | DF58: 64914.55719 | DG58: 97371.8358 | DH58: 80777.13696 | DI58: 90538.7245 | DJ58: 83705.61323 | DK58: 73211.90661 | DL58: 46855.62023 | DM58: 26600.32607 | DN58: 21963.57198 | DO58: 24159.92918 | DP58: 18547.01634 | DQ58: 15618.54008 | DR58: 14154.30195 | DS58: 14886.42101 | DT58: 24403.96888 | DU58: 24892.04824 | DV58: 21719.5323 | DW58: 17082.77821 | DX58: 15130.4607 | DY58: 13178.14319 | DZ58: 11957.94475 | EA58: 6589.071596 | EB58: 5612.912839 | EC58: 6589.071596 | ED58: 4148.674708 | EE58: 7321.190661 | EF58: 7565.23035 | EG58: 9273.50817 | EH58: 9761.587549 | EI58: 4392.714396 | EJ58: 2440.396888 | EK58: 3416.555642 | EL58: 732.1190661 | EM58: 3172.515954 | EN58: 1952.31751 | EO58: 2196.357198 | EP58: 3172.515954 | EQ58: 488.0793773 | ER58: 2440.396888 | ES58: 2928.476265 | ET58: 1464.238132 | EU58: 488.0793773 | EV58: 2684.436576 | EW58: 488.0793773 | EX58: 1464.238132 | EY58: 244.0396888 | EZ58: 2684.436576 | FA58: 0 | FB58: 488.0793773 | FC58: 244.0396888 | FD58: 244.0396888 | FE58: 0 | FF58: 0 | FG58: 0 | FH58: 0 | FI58: 0 | FJ58: 0 | FK58: 0 | FL58: 0 | FM58: 0 | FN58: 0 | FO58: 0 | FP58: 0 | FQ58: 976.1587549 | FR58: 0 | FS58: 0 | FT58: 0 | FU58: 0 | FV58: 0 | FW58: 244.0396888 | FX58: 0 | FY58: 0 | FZ58: 0 | GA58: 1952.31751 | GB58: 0 | GC58: 0 | GD58: 0 | GE58: 0 | GF58: 0 | GG58: 0 | GH58: 0
A59: 5 | B59: TRANSFORMERS | C59: kiosk mounted ; < = 22 kv ; > 600 kva ; multiple phase | D59: 189.0045555 | E59: 55.56932615 | F59: 7.454483627 | G59: 2 | H59: 39.30207394 | I59: 50.67899008 | J59: 55.8503156 | K59: 67.22723174 | L59: 73.43282236 | M59: 68.26149684 | N59: 85.84400361 | O59: 77.56988278 | P59: 94.11812444 | Q59: 138.5915239 | R59: 139.625789 | S59: 187.2019838 | T59: 163.4138864 | U59: 88.94679892 | V59: 137.5572588 | W59: 98.25518485 | X59: 78.60414788 | Y59: 51.71325518 | Z59: 43.43913436 | AA59: 43.43913436 | AB59: 32.06221821 | AC59: 41.37060415 | AD59: 46.54192967 | AE59: 57.91884581 | AF59: 22.75383228 | AG59: 32.06221821 | AH59: 5.171325518 | AI59: 9.308385933 | AJ59: 14.47971145 | AK59: 14.47971145 | AL59: 29.99368801 | AM59: 4.137060415 | AN59: 17.58250676 | AO59: 17.58250676 | AP59: 21.71956718 | AQ59: 13.44544635 | AR59: 12.41118124 | AS59: 8.27412083 | AT59: 10.34265104 | AU59: 3.102795311 | AV59: 5.171325518 | AW59: 20.68530207 | AX59: 9.308385933 | AY59: 4.137060415 | AZ59: 7.239855726 | BA59: 0 | BB59: 7.239855726 | BC59: 2.068530207 | BD59: 3.102795311 | BE59: 1.034265104 | BF59: 1.034265104 | BG59: 4.137060415 | BH59: 9.308385933 | BI59: 3.102795311 | BJ59: 4.137060415 | BK59: 1.034265104 | BL59: 3.102795311 | BM59: 0 | BN59: 0 | BO59: 2.068530207 | BP59: 0 | BQ59: 0 | BR59: 3.102795311 | BS59: 0 | BT59: 0 | BU59: 0 | BV59: 0 | BW59: 0 | BX59: 0 | BY59: 3.102795311 | BZ59: 0 | CA59: 0 | CB59: 0 | CC59: 1.034265104 | CD59: 0 | CE59: 0 | CF59: 0 | CG59: 0 | CH59: 1.034265104 | CI59: 0 | CJ59: 0 | CK59: 0 | CL59: 0 | CM59: 0 | CN59: 0 | CO59: 0 | CP59: 0 | CQ59: 0 | CR59: 0 | CS59: 0 | CT59: 0 | CV59: 7428.271014 | CW59: 9578.559992 | CX59: 10555.96407 | CY59: 12706.25305 | CZ59: 13879.13795 | DA59: 12901.73387 | DB59: 16224.90774 | DC59: 14661.06121 | DD59: 17788.75427 | DE59: 26194.42937 | DF59: 26389.91018 | DG59: 35382.02773 | DH59: 30885.96896 | DI59: 16811.35019 | DJ59: 25998.94855 | DK59: 18570.67754 | DL59: 14856.54203 | DM59: 9774.040807 | DN59: 8210.19428 | DO59: 8210.19428 | DP59: 6059.9053 | DQ59: 7819.232647 | DR59: 8796.636728 | DS59: 10946.92571 | DT59: 4300.577955 | DU59: 6059.9053 | DV59: 977.4040807 | DW59: 1759.327345 | DX59: 2736.731426 | DY59: 2736.731426 | DZ59: 5668.943669 | EA59: 781.9232647 | EB59: 3323.173874 | EC59: 3323.173874 | ED59: 4105.09714 | EE59: 2541.250611 | EF59: 2345.769793 | EG59: 1563.846529 | EH59: 1954.808162 | EI59: 586.4424485 | EJ59: 977.4040807 | EK59: 3909.616323 | EL59: 1759.327345 | EM59: 781.9232647 | EN59: 1368.365713 | EO59: 0 | EP59: 1368.365713 | EQ59: 390.9616323 | ER59: 586.4424485 | ES59: 195.4808162 | ET59: 195.4808162 | EU59: 781.9232647 | EV59: 1759.327345 | EW59: 586.4424485 | EX59: 781.9232647 | EY59: 195.4808162 | EZ59: 586.4424485 | FA59: 0 | FB59: 0 | FC59: 390.9616323 | FD59: 0 | FE59: 0 | FF59: 586.4424485 | FG59: 0 | FH59: 0 | FI59: 0 | FJ59: 0 | FK59: 0 | FL59: 0 | FM59: 586.4424485 | FN59: 0 | FO59: 0 | FP59: 0 | FQ59: 195.4808162 | FR59: 0 | FS59: 0 | FT59: 0 | FU59: 0 | FV59: 195.4808162 | FW59: 0 | FX59: 0 | FY59: 0 | FZ59: 0 | GA59: 0 | GB59: 0 | GC59: 0 | GD59: 0 | GE59: 0 | GF59: 0 | GG59: 0 | GH59: 0
A60: 5 | B60: TRANSFORMERS | C60: kiosk mounted ; < = 22 kv ; > 600 kva ; single phase | D60: 189.0045555 | E60: 55.56932615 | F60: 7.454483627 | G60: 2 | H60: 2 | I60: 0 | J60: 0 | K60: 0 | L60: 1 | M60: 0 | N60: 0 | O60: 0 | P60: 0 | Q60: 0 | R60: 0 | S60: 0 | T60: 1 | U60: 0 | V60: 0 | W60: 0 | X60: 0 | Y60: 0 | Z60: 0 | AA60: 0 | AB60: 0 | AC60: 0 | AD60: 0 | AE60: 0 | AF60: 0 | AG60: 0 | AH60: 0 | AI60: 0 | AJ60: 0 | AK60: 0 | AL60: 0 | AM60: 0 | AN60: 0 | AO60: 0 | AP60: 0 | AQ60: 0 | AR60: 0 | AS60: 0 | AT60: 0 | AU60: 0 | AV60: 0 | AW60: 0 | AX60: 1 | AY60: 0 | AZ60: 0 | BA60: 0 | BB60: 0 | BC60: 0 | BD60: 0 | BE60: 0 | BF60: 0 | BG60: 0 | BH60: 0 | BI60: 0 | BJ60: 0 | BK60: 0 | BL60: 0 | BM60: 0 | BN60: 0 | BO60: 0 | BP60: 0 | BQ60: 0 | BR60: 0 | BS60: 0 | BT60: 0 | BU60: 0 | BV60: 0 | BW60: 0 | BX60: 0 | BY60: 0 | BZ60: 0 | CA60: 0 | CB60: 0 | CC60: 0 | CD60: 0 | CE60: 0 | CF60: 0 | CG60: 0 | CH60: 0 | CI60: 0 | CJ60: 0 | CK60: 0 | CL60: 0 | CM60: 0 | CN60: 0 | CO60: 0 | CP60: 0 | CQ60: 0 | CR60: 0 | CS60: 0 | CT60: 0 | CV60: 378.0091109 | CW60: 0 | CX60: 0 | CY60: 0 | CZ60: 189.0045555 | DA60: 0 | DB60: 0 | DC60: 0 | DD60: 0 | DE60: 0 | DF60: 0 | DG60: 0 | DH60: 189.0045555 | DI60: 0 | DJ60: 0 | DK60: 0 | DL60: 0 | DM60: 0 | DN60: 0 | DO60: 0 | DP60: 0 | DQ60: 0 | DR60: 0 | DS60: 0 | DT60: 0 | DU60: 0 | DV60: 0 | DW60: 0 | DX60: 0 | DY60: 0 | DZ60: 0 | EA60: 0 | EB60: 0 | EC60: 0 | ED60: 0 | EE60: 0 | EF60: 0 | EG60: 0 | EH60: 0 | EI60: 0 | EJ60: 0 | EK60: 0 | EL60: 189.0045555 | EM60: 0 | EN60: 0 | EO60: 0 | EP60: 0 | EQ60: 0 | ER60: 0 | ES60: 0 | ET60: 0 | EU60: 0 | EV60: 0 | EW60: 0 | EX60: 0 | EY60: 0 | EZ60: 0 | FA60: 0 | FB60: 0 | FC60: 0 | FD60: 0 | FE60: 0 | FF60: 0 | FG60: 0 | FH60: 0 | FI60: 0 | FJ60: 0 | FK60: 0 | FL60: 0 | FM60: 0 | FN60: 0 | FO60: 0 | FP60: 0 | FQ60: 0 | FR60: 0 | FS60: 0 | FT60: 0 | FU60: 0 | FV60: 0 | FW60: 0 | FX60: 0 | FY60: 0 | FZ60: 0 | GA60: 0 | GB60: 0 | GC60: 0 | GD60: 0 | GE60: 0 | GF60: 0 | GG60: 0 | GH60: 0
A61: 5 | B61: TRANSFORMERS | C61: pole mounted ; < = 22 kv ; < = 60 kva ; multiple phase | D61: 19.7262694 | E61: 56.4386011 | F61: 7.512562885 | G61: 2 | H61: 117.0267469 | I61: 261.0596662 | J61: 270.0617237 | K61: 374.0854987 | L61: 499.1140745 | M61: 412.0941858 | N61: 333.0761259 | O61: 359.0820696 | P61: 437.0999009 | Q61: 1188.271584 | R61: 545.1245904 | S61: 523.1195611 | T61: 329.0752115 | U61: 302.0690391 | V61: 328.0749829 | W61: 316.0722396 | X61: 365.0834413 | Y61: 481.1099596 | Z61: 496.1133887 | AA61: 514.1175036 | AB61: 463.1058447 | AC61: 609.1392212 | AD61: 574.13122 | AE61: 755.1725977 | AF61: 797.1821992 | AG61: 847.1936295 | AH61: 736.1682542 | AI61: 705.1611674 | AJ61: 719.1643679 | AK61: 761.1739694 | AL61: 596.1362493 | AM61: 444.1015012 | AN61: 497.1136173 | AO61: 597.1364779 | AP61: 587.1341919 | AQ61: 627.1433361 | AR61: 579.132363 | AS61: 698.1595672 | AT61: 613.1401356 | AU61: 584.1335061 | AV61: 382.0873276 | AW61: 416.0951002 | AX61: 364.0832127 | AY61: 313.0715538 | AZ61: 265.0605807 | BA61: 292.066753 | BB61: 235.0537225 | BC61: 317.0724682 | BD61: 238.0544083 | BE61: 317.0724682 | BF61: 274.0626381 | BG61: 263.0601234 | BH61: 263.0601234 | BI61: 257.0587518 | BJ61: 346.0790978 | BK61: 224.0512078 | BL61: 103.0235464 | BM61: 21.00480073 | BN61: 22.00502934 | BO61: 15.00342909 | BP61: 17.00388631 | BQ61: 13.00297188 | BR61: 5.001143031 | BS61: 3.000685819 | BT61: 32.0073154 | BU61: 1.000228606 | BV61: 0 | BW61: 2.000457213 | BX61: 1.000228606 | BY61: 3.000685819 | BZ61: 0 | CA61: 1.000228606 | CB61: 0 | CC61: 2.000457213 | CD61: 0 | CE61: 0 | CF61: 0 | CG61: 1.000228606 | CH61: 0 | CI61: 0 | CJ61: 0 | CK61: 0 | CL61: 0 | CM61: 1.000228606 | CN61: 0 | CO61: 0 | CP61: 0 | CQ61: 0 | CR61: 0 | CS61: 0 | CT61: 0 | CV61: 2308.501136 | CW61: 5149.733305 | CX61: 5327.310316 | CY61: 7379.311326 | CZ61: 9845.658695 | DA61: 8129.080927 | DB61: 6570.34939 | DC61: 7083.349641 | DD61: 8622.3504 | DE61: 23440.16539 | DF61: 10753.27453 | DG61: 10319.19739 | DH61: 6491.426275 | DI61: 5958.695242 | DJ61: 6471.695496 | DK61: 6234.926148 | DL61: 7201.734316 | DM61: 9490.504674 | DN61: 9786.466358 | DO61: 10141.62038 | DP61: 9135.350653 | DQ61: 12016.04438 | DR61: 11325.46712 | DS61: 14896.73811 | DT61: 15725.43082 | DU61: 16711.96977 | DV61: 14521.85331 | DW61: 13910.19916 | DX61: 14186.43006 | DY61: 15015.12278 | DZ61: 11759.54425 | EA61: 8760.465853 | EB61: 9806.197137 | EC61: 11779.27503 | ED61: 11581.96724 | EE61: 12371.1984 | EF61: 11424.12101 | EG61: 13772.08371 | EH61: 12094.96749 | EI61: 11522.77491 | EJ61: 7537.157558 | EK61: 8208.004042 | EL61: 7182.003537 | EM61: 6175.733811 | EN61: 5228.656422 | EO61: 5761.387452 | EP61: 4636.733053 | EQ61: 6254.656927 | ER61: 4695.92539 | ES61: 6254.656927 | ET61: 5406.233431 | EU61: 5189.194862 | EV61: 5189.194862 | EW61: 5070.810189 | EX61: 6826.849517 | EY61: 4419.694484 | EZ61: 2032.270231 | FA61: 414.3463579 | FB61: 434.0771369 | FC61: 295.9616841 | FD61: 335.4232422 | FE61: 256.5001263 | FF61: 98.65389473 | FG61: 59.19233685 | FH61: 631.3849263 | FI61: 19.73077894 | FJ61: 0 | FK61: 39.46155791 | FL61: 19.73077894 | FM61: 59.19233685 | FN61: 0 | FO61: 19.73077894 | FP61: 0 | FQ61: 39.46155791 | FR61: 0 | FS61: 0 | FT61: 0 | FU61: 19.73077894 | FV61: 0 | FW61: 0 | FX61: 0 | FY61: 0 | FZ61: 0 | GA61: 19.73077894 | GB61: 0 | GC61: 0 | GD61: 0 | GE61: 0 | GF61: 0 | GG61: 0 | GH61: 0
A62: 5 | B62: TRANSFORMERS | C62: pole mounted ; < = 22 kv ; < = 60 kva ; single phase | D62: 13.36072343 | E62: 49.62846175 | F62: 7.044747103 | G62: 2 | H62: 386.2619943 | I62: 1499.7829 | J62: 769.5063167 | K62: 814.7713942 | L62: 1137.66228 | M62: 1060.208703 | N62: 848.9716749 | O62: 889.2072993 | P62: 997.8434852 | Q62: 1405.229182 | R62: 1833.738582 | S62: 1525.936056 | T62: 1075.297062 | U62: 1066.244047 | V62: 1001.867048 | W62: 921.3957989 | X62: 667.9113651 | Y62: 677.9702712 | Z62: 670.9290369 | AA62: 600.5166942 | AB62: 641.7582093 | AC62: 546.1986013 | AD62: 577.3812102 | AE62: 688.0291773 | AF62: 820.8067379 | AG62: 708.1469895 | AH62: 644.7758811 | AI62: 684.0056149 | AJ62: 699.093974 | AK62: 771.518098 | AL62: 804.7124881 | AM62: 679.9820524 | AN62: 810.7478318 | AO62: 727.2589111 | AP62: 808.7360505 | AQ62: 814.7713942 | AR62: 671.9349276 | AS62: 928.4370331 | AT62: 879.1483932 | AU62: 668.9172557 | AV62: 439.5741966 | AW62: 357.0911666 | AX62: 399.3385722 | AY62: 301.767183 | AZ62: 397.326791 | BA62: 487.8569459 | BB62: 287.6847145 | BC62: 323.8967765 | BD62: 313.8378704 | BE62: 371.1736351 | BF62: 284.6670427 | BG62: 246.4431995 | BH62: 207.2134657 | BI62: 182.0662004 | BJ62: 648.7994435 | BK62: 242.419637 | BL62: 116.6833108 | BM62: 27.15904647 | BN62: 11.06479671 | BO62: 12.07068732 | BP62: 13.07657793 | BQ62: 4.02356244 | BR62: 1.00589061 | BS62: 1.00589061 | BT62: 20.1178122 | BU62: 1.00589061 | BV62: 0 | BW62: 1.00589061 | BX62: 1.00589061 | BY62: 0 | BZ62: 0 | CA62: 0 | CB62: 0 | CC62: 1.00589061 | CD62: 0 | CE62: 0 | CF62: 0 | CG62: 0 | CH62: 0 | CI62: 0 | CJ62: 0 | CK62: 0 | CL62: 0 | CM62: 0 | CN62: 0 | CO62: 0 | CP62: 0 | CQ62: 0 | CR62: 0 | CS62: 0 | CT62: 0 | CV62: 5160.739678 | CW62: 20038.18454 | CX62: 10281.16108 | CY62: 10885.93526 | CZ62: 15199.99108 | DA62: 14165.15526 | DB62: 11342.87575 | DC62: 11880.4528 | DD62: 13331.91083 | DE62: 18774.87846 | DF62: 24500.07404 | DG62: 20387.60962 | DH62: 14366.74665 | DI62: 14245.79182 | DJ62: 13385.66854 | DK62: 12310.51444 | DL62: 8923.779026 | DM62: 9058.173289 | DN62: 8964.097305 | DO62: 8023.337468 | DP62: 8574.353945 | DQ62: 7297.608451 | DR62: 7714.230664 | DS62: 9192.567551 | DT62: 10966.57182 | DU62: 9461.356076 | DV62: 8614.672223 | DW62: 9138.809847 | DX62: 9340.40124 | DY62: 10308.03993 | DZ62: 10751.541 | EA62: 9085.052141 | EB62: 10832.17755 | EC62: 9716.705175 | ED62: 10805.2987 | EE62: 10885.93526 | EF62: 8977.536732 | EG62: 12404.59042 | EH62: 11746.05854 | EI62: 8937.218453 | EJ62: 5873.029269 | EK62: 4770.996317 | EL62: 5335.452219 | EM62: 4031.827873 | EN62: 5308.573367 | EO62: 6518.121729 | EP62: 3843.675906 | EQ62: 4327.495251 | ER62: 4193.100989 | ES62: 4959.148284 | ET62: 3803.357628 | EU62: 3292.65943 | EV62: 2768.521807 | EW62: 2432.53615 | EX62: 8668.429928 | EY62: 3238.901725 | EZ62: 1558.973445 | FA62: 362.8645086 | FB62: 147.8336887 | FC62: 161.2731149 | FD62: 174.7125412 | FE62: 53.75770497 | FF62: 13.43942624 | FG62: 13.43942624 | FH62: 268.7885249 | FI62: 13.43942624 | FJ62: 0 | FK62: 13.43942624 | FL62: 13.43942624 | FM62: 0 | FN62: 0 | FO62: 0 | FP62: 0 | FQ62: 13.43942624 | FR62: 0 | FS62: 0 | FT62: 0 | FU62: 0 | FV62: 0 | FW62: 0 | FX62: 0 | FY62: 0 | FZ62: 0 | GA62: 0 | GB62: 0 | GC62: 0 | GD62: 0 | GE62: 0 | GF62: 0 | GG62: 0 | GH62: 0
A63: 5 | B63: TRANSFORMERS | C63: pole mounted ; < = 22 kv ; > 60 kva and < = 600 kva ; multiple phase | D63: 38.13142141 | E63: 48.84029438 | F63: 6.988583146 | G63: 2 | H63: 123.0145138 | I63: 347.0409456 | J63: 701.0827171 | K63: 775.091449 | L63: 1043.123073 | M63: 922.1087948 | N63: 900.1061989 | O63: 773.091213 | P63: 799.094281 | Q63: 1434.16921 | R63: 1674.19753 | S63: 1467.173104 | T63: 831.098057 | U63: 726.0856671 | V63: 660.0778792 | W63: 531.0626573 | X63: 455.0536894 | Y63: 472.0556954 | Z63: 394.0464915 | AA63: 445.0525094 | AB63: 406.0479075 | AC63: 484.0571114 | AD63: 497.0586454 | AE63: 467.0551054 | AF63: 528.0623033 | AG63: 458.0540434 | AH63: 303.0357536 | AI63: 324.0382316 | AJ63: 331.0390576 | AK63: 370.0436595 | AL63: 280.0330396 | AM63: 247.0291457 | AN63: 214.0252517 | AO63: 281.0331576 | AP63: 327.0385856 | AQ63: 278.0328037 | AR63: 265.0312697 | AS63: 372.0438955 | AT63: 371.0437775 | AU63: 333.0392936 | AV63: 186.0219478 | AW63: 196.0231278 | AX63: 234.0276117 | AY63: 206.0243077 | AZ63: 195.0230098 | BA63: 177.0208858 | BB63: 143.0168738 | BC63: 153.0180538 | BD63: 137.0161658 | BE63: 162.0191158 | BF63: 132.0155758 | BG63: 108.0127439 | BH63: 92.01085588 | BI63: 112.0132159 | BJ63: 258.0304437 | BK63: 76.0089679 | BL63: 43.00507395 | BM63: 9.001061989 | BN63: 11.00129799 | BO63: 20.00235997 | BP63: 11.00129799 | BQ63: 16.00188798 | BR63: 7.000825991 | BS63: 2.000235997 | BT63: 103.0121539 | BU63: 2.000235997 | BV63: 4.000471995 | BW63: 2.000235997 | BX63: 3.000353996 | BY63: 1.000117999 | BZ63: 3.000353996 | CA63: 1.000117999 | CB63: 2.000235997 | CC63: 5.000589994 | CD63: 0 | CE63: 0 | CF63: 1.000117999 | CG63: 0 | CH63: 0 | CI63: 2.000235997 | CJ63: 0 | CK63: 0 | CL63: 0 | CM63: 0 | CN63: 1.000117999 | CO63: 0 | CP63: 0 | CQ63: 0 | CR63: 0 | CS63: 0 | CT63: 0 | CV63: 4690.718266 | CW63: 13233.16454 | CX63: 26733.28053 | CY63: 29555.33868 | CZ63: 39775.76548 | DA63: 35161.31904 | DB63: 34322.32879 | DC63: 29479.06683 | DD63: 30470.60078 | DE63: 54686.91052 | DF63: 63839.53155 | DG63: 55945.39592 | DH63: 31690.95025 | DI63: 27686.67855 | DJ63: 25169.70778 | DK63: 20250.17398 | DL63: 17351.844 | DM63: 18000.15465 | DN63: 15025.55282 | DO63: 16970.48479 | DP63: 15483.18387 | DQ63: 18457.7857 | DR63: 18953.55267 | DS63: 17809.47505 | DT63: 20135.76622 | DU63: 17466.25176 | DV63: 11555.18402 | DW63: 12356.03836 | DX63: 12622.98981 | DY63: 14110.29072 | DZ63: 10678.05784 | EA63: 9419.572456 | EB63: 8161.087066 | EC63: 10716.19376 | ED63: 12470.44613 | EE63: 10601.786 | EF63: 10106.01903 | EG63: 14186.56256 | EH63: 14148.42664 | EI63: 12699.26165 | EJ63: 7093.281284 | EK63: 7474.640493 | EL63: 8923.805484 | EM63: 7855.999698 | EN63: 7436.504572 | EO63: 6750.057995 | EP63: 5453.436684 | EQ63: 5834.795893 | ER63: 5224.621159 | ES63: 6178.019182 | ET63: 5033.941554 | EU63: 4118.679456 | EV63: 3508.50472 | EW63: 4271.223139 | EX63: 9839.067586 | EY63: 2898.329986 | EZ63: 1639.844598 | FA63: 343.2232879 | FB63: 419.4951298 | FC63: 762.7184173 | FD63: 419.4951298 | FE63: 610.174734 | FF63: 266.9514461 | FG63: 76.27184173 | FH63: 3927.999851 | FI63: 76.27184173 | FJ63: 152.5436835 | FK63: 76.27184173 | FL63: 114.4077626 | FM63: 38.13592088 | FN63: 114.4077626 | FO63: 38.13592088 | FP63: 76.27184173 | FQ63: 190.6796044 | FR63: 0 | FS63: 0 | FT63: 38.13592088 | FU63: 0 | FV63: 0 | FW63: 76.27184173 | FX63: 0 | FY63: 0 | FZ63: 0 | GA63: 0 | GB63: 38.13592088 | GC63: 0 | GD63: 0 | GE63: 0 | GF63: 0 | GG63: 0 | GH63: 0
A64: 5 | B64: TRANSFORMERS | C64: pole mounted ; < = 22 kv ; > 60 kva and < = 600 kva ; single phase | D64: 74.20155986 | E64: 43.08286471 | F64: 6.563753858 | G64: 2 | H64: 4 | I64: 25 | J64: 25 | K64: 26 | L64: 30 | M64: 29 | N64: 25 | O64: 17 | P64: 17 | Q64: 19 | R64: 78 | S64: 55 | T64: 46 | U64: 26 | V64: 16 | W64: 15 | X64: 10 | Y64: 10 | Z64: 8 | AA64: 15 | AB64: 9 | AC64: 8 | AD64: 6 | AE64: 3 | AF64: 12 | AG64: 6 | AH64: 4 | AI64: 13 | AJ64: 12 | AK64: 10 | AL64: 8 | AM64: 11 | AN64: 19 | AO64: 20 | AP64: 11 | AQ64: 8 | AR64: 16 | AS64: 14 | AT64: 9 | AU64: 3 | AV64: 2 | AW64: 8 | AX64: 1 | AY64: 0 | AZ64: 4 | BA64: 7 | BB64: 2 | BC64: 7 | BD64: 2 | BE64: 4 | BF64: 3 | BG64: 0 | BH64: 1 | BI64: 0 | BJ64: 2 | BK64: 4 | BL64: 2 | BM64: 1 | BN64: 0 | BO64: 0 | BP64: 0 | BQ64: 0 | BR64: 0 | BS64: 0 | BT64: 1 | BU64: 0 | BV64: 0 | BW64: 0 | BX64: 0 | BY64: 0 | BZ64: 0 | CA64: 0 | CB64: 0 | CC64: 0 | CD64: 0 | CE64: 0 | CF64: 0 | CG64: 0 | CH64: 0 | CI64: 0 | CJ64: 0 | CK64: 0 | CL64: 0 | CM64: 0 | CN64: 0 | CO64: 0 | CP64: 0 | CQ64: 0 | CR64: 0 | CS64: 0 | CT64: 0 | CV64: 296.8062395 | CW64: 1855.038997 | CX64: 1855.038997 | CY64: 1929.240556 | CZ64: 2226.046796 | DA64: 2151.845236 | DB64: 1855.038997 | DC64: 1261.426518 | DD64: 1261.426518 | DE64: 1409.829637 | DF64: 5787.721669 | DG64: 4081.085792 | DH64: 3413.271754 | DI64: 1929.240556 | DJ64: 1187.224958 | DK64: 1113.023398 | DL64: 742.0155986 | DM64: 742.0155986 | DN64: 593.6124789 | DO64: 1113.023398 | DP64: 667.8140388 | DQ64: 593.6124789 | DR64: 445.2093592 | DS64: 222.6046796 | DT64: 890.4187184 | DU64: 445.2093592 | DV64: 296.8062395 | DW64: 964.6202782 | DX64: 890.4187184 | DY64: 742.0155986 | DZ64: 593.6124789 | EA64: 816.2171585 | EB64: 1409.829637 | EC64: 1484.031197 | ED64: 816.2171585 | EE64: 593.6124789 | EF64: 1187.224958 | EG64: 1038.821838 | EH64: 667.8140388 | EI64: 222.6046796 | EJ64: 148.4031197 | EK64: 593.6124789 | EL64: 74.20155986 | EM64: 0 | EN64: 296.8062395 | EO64: 519.410919 | EP64: 148.4031197 | EQ64: 519.410919 | ER64: 148.4031197 | ES64: 296.8062395 | ET64: 222.6046796 | EU64: 0 | EV64: 74.20155986 | EW64: 0 | EX64: 148.4031197 | EY64: 296.8062395 | EZ64: 148.4031197 | FA64: 74.20155986 | FB64: 0 | FC64: 0 | FD64: 0 | FE64: 0 | FF64: 0 | FG64: 0 | FH64: 74.20155986 | FI64: 0 | FJ64: 0 | FK64: 0 | FL64: 0 | FM64: 0 | FN64: 0 | FO64: 0 | FP64: 0 | FQ64: 0 | FR64: 0 | FS64: 0 | FT64: 0 | FU64: 0 | FV64: 0 | FW64: 0 | FX64: 0 | FY64: 0 | FZ64: 0 | GA64: 0 | GB64: 0 | GC64: 0 | GD64: 0 | GE64: 0 | GF64: 0 | GG64: 0 | GH64: 0
A65: 5 | B65: TRANSFORMERS | C65: pole mounted ; < = 22 kv ; > 600 kva ; multiple phase | D65: 61.17529752 | E65: 23.84422472 | F65: 4.883054855 | G65: 2 | H65: 102.7901408 | I65: 100.7746479 | J65: 102.7901408 | K65: 72.55774648 | L65: 76.58873239 | M65: 75.58098592 | N65: 86.66619718 | O65: 62.48028169 | P65: 82.63521127 | Q65: 74.57323944 | R65: 62.48028169 | S65: 67.51901408 | T65: 76.58873239 | U65: 97.75140845 | V65: 47.36408451 | W65: 51.39507042 | X65: 23.17816901 | Y65: 39.30211268 | Z65: 18.13943662 | AA65: 6.046478873 | AB65: 12.09295775 | AC65: 26.20140845 | AD65: 13.10070423 | AE65: 7.054225352 | AF65: 9.06971831 | AG65: 4.030985915 | AH65: 1.007746479 | AI65: 1.007746479 | AJ65: 1.007746479 | AK65: 2.015492958 | AL65: 0 | AM65: 0 | AN65: 3.023239437 | AO65: 0 | AP65: 4.030985915 | AQ65: 3.023239437 | AR65: 4.030985915 | AS65: 4.030985915 | AT65: 3.023239437 | AU65: 1.007746479 | AV65: 0 | AW65: 0 | AX65: 0 | AY65: 0 | AZ65: 1.007746479 | BA65: 0 | BB65: 0 | BC65: 1.007746479 | BD65: 2.015492958 | BE65: 0 | BF65: 0 | BG65: 1.007746479 | BH65: 0 | BI65: 0 | BJ65: 0 | BK65: 0 | BL65: 0 | BM65: 0 | BN65: 0 | BO65: 0 | BP65: 0 | BQ65: 0 | BR65: 0 | BS65: 0 | BT65: 0 | BU65: 0 | BV65: 0 | BW65: 0 | BX65: 0 | BY65: 0 | BZ65: 0 | CA65: 0 | CB65: 0 | CC65: 0 | CD65: 0 | CE65: 0 | CF65: 0 | CG65: 0 | CH65: 0 | CI65: 0 | CJ65: 0 | CK65: 0 | CL65: 0 | CM65: 0 | CN65: 0 | CO65: 0 | CP65: 0 | CQ65: 0 | CR65: 0 | CS65: 0 | CT65: 0 | CV65: 6288.217445 | CW65: 6164.919068 | CX65: 6288.217445 | CY65: 4438.741728 | CZ65: 4685.33849 | DA65: 4623.6893 | DB65: 5301.830397 | DC65: 3822.249821 | DD65: 5055.233635 | DE65: 4562.04011 | DF65: 3822.249821 | DG65: 4130.495774 | DH65: 4685.33849 | DI65: 5979.971495 | DJ65: 2897.511962 | DK65: 3144.108724 | DL65: 1417.931385 | DM65: 2404.318436 | DN65: 1109.685432 | DO65: 369.895144 | DP65: 739.7902882 | DQ65: 1602.878957 | DR65: 801.439479 | DS65: 431.5443347 | DT65: 554.842716 | DU65: 246.5967626 | DV65: 61.64919068 | DW65: 61.64919068 | DX65: 61.64919068 | DY65: 123.2983814 | DZ65: 0 | EA65: 0 | EB65: 184.947572 | EC65: 0 | ED65: 246.5967626 | EE65: 184.947572 | EF65: 246.5967626 | EG65: 246.5967626 | EH65: 184.947572 | EI65: 61.64919068 | EJ65: 0 | EK65: 0 | EL65: 0 | EM65: 0 | EN65: 61.64919068 | EO65: 0 | EP65: 0 | EQ65: 61.64919068 | ER65: 123.2983814 | ES65: 0 | ET65: 0 | EU65: 61.64919068 | EV65: 0 | EW65: 0 | EX65: 0 | EY65: 0 | EZ65: 0 | FA65: 0 | FB65: 0 | FC65: 0 | FD65: 0 | FE65: 0 | FF65: 0 | FG65: 0 | FH65: 0 | FI65: 0 | FJ65: 0 | FK65: 0 | FL65: 0 | FM65: 0 | FN65: 0 | FO65: 0 | FP65: 0 | FQ65: 0 | FR65: 0 | FS65: 0 | FT65: 0 | FU65: 0 | FV65: 0 | FW65: 0 | FX65: 0 | FY65: 0 | FZ65: 0 | GA65: 0 | GB65: 0 | GC65: 0 | GD65: 0 | GE65: 0 | GF65: 0 | GG65: 0 | GH65: 0
A66: 5 | B66: TRANSFORMERS | C66: pole mounted ; < = 22 kv ; > 600 kva ; single phase | D66: 61.17529752 | E66: 23.84422472 | F66: 4.883054855 | G66: 2 | H66: 71.29789864 | I66: 74.35352287 | J66: 38.70457355 | K66: 57.03831891 | L66: 66.20519159 | M66: 60.09394314 | N66: 57.03831891 | O66: 42.77873918 | P66: 47.87144623 | Q66: 29.53770087 | R66: 28.51915946 | S66: 21.38936959 | T66: 35.64894932 | U66: 28.51915946 | V66: 18.33374536 | W66: 25.46353523 | X66: 12.22249691 | Y66: 20.37082818 | Z66: 11.2039555 | AA66: 12.22249691 | AB66: 1.018541409 | AC66: 7.129789864 | AD66: 3.055624227 | AE66: 3.055624227 | AF66: 4.074165637 | AG66: 0 | AH66: 3.055624227 | AI66: 2.037082818 | AJ66: 2.037082818 | AK66: 4.074165637 | AL66: 3.055624227 | AM66: 2.037082818 | AN66: 9.166872682 | AO66: 3.055624227 | AP66: 4.074165637 | AQ66: 4.074165637 | AR66: 3.055624227 | AS66: 0 | AT66: 0 | AU66: 1.018541409 | AV66: 0 | AW66: 0 | AX66: 2.037082818 | AY66: 0 | AZ66: 0 | BA66: 1.018541409 | BB66: 0 | BC66: 0 | BD66: 2.037082818 | BE66: 0 | BF66: 0 | BG66: 0 | BH66: 1.018541409 | BI66: 0 | BJ66: 0 | BK66: 0 | BL66: 0 | BM66: 0 | BN66: 0 | BO66: 0 | BP66: 0 | BQ66: 0 | BR66: 0 | BS66: 0 | BT66: 0 | BU66: 0 | BV66: 0 | BW66: 0 | BX66: 0 | BY66: 0 | BZ66: 0 | CA66: 0 | CB66: 0 | CC66: 0 | CD66: 0 | CE66: 0 | CF66: 0 | CG66: 0 | CH66: 0 | CI66: 0 | CJ66: 0 | CK66: 0 | CL66: 0 | CM66: 0 | CN66: 0 | CO66: 0 | CP66: 0 | CQ66: 0 | CR66: 0 | CS66: 0 | CT66: 0 | CV66: =IFERROR($D66*H66,"") -> 4361.670162 | CW66: =IFERROR($D66*I66,"") -> 4548.598883 | CX66: =IFERROR($D66*J66,"") -> 2367.763802 | CY66: =IFERROR($D66*K66,"") -> 3489.336129 | CZ66: =IFERROR($D66*L66,"") -> 4050.122293 | DA66: =IFERROR($D66*M66,"") -> 3676.264851 | DB66: =IFERROR($D66*N66,"") -> 3489.336129 | DC66: =IFERROR($D66*O66,"") -> 2617.002097 | DD66: =IFERROR($D66*P66,"") -> 2928.549966 | DE66: =IFERROR($D66*Q66,"") -> 1806.977639 | DF66: =IFERROR($D66*R66,"") -> 1744.668065 | DG66: =IFERROR($D66*S66,"") -> 1308.501048 | DH66: =IFERROR($D66*T66,"") -> 2180.835081 | DI66: =IFERROR($D66*U66,"") -> 1744.668065 | DJ66: =IFERROR($D66*V66,"") -> 1121.572327 | DK66: =IFERROR($D66*W66,"") -> 1557.739344 | DL66: =IFERROR($D66*X66,"") -> 747.7148849 | DM66: =IFERROR($D66*Y66,"") -> 1246.191475 | DN66: =IFERROR($D66*Z66,"") -> 685.4053111 | DO66: =IFERROR($D66*AA66,"") -> 747.7148849 | DP66: =IFERROR($D66*AB66,"") -> 62.30957373 | DQ66: =IFERROR($D66*AC66,"") -> 436.1670162 | DR66: =IFERROR($D66*AD66,"") -> 186.9287212 | DS66: =IFERROR($D66*AE66,"") -> 186.9287212 | DT66: =IFERROR($D66*AF66,"") -> 249.238295 | DU66: =IFERROR($D66*AG66,"") -> 0 | DV66: =IFERROR($D66*AH66,"") -> 186.9287212 | DW66: =IFERROR($D66*AI66,"") -> 124.6191475 | DX66: =IFERROR($D66*AJ66,"") -> 124.6191475 | DY66: =IFERROR($D66*AK66,"") -> 249.238295 | DZ66: =IFERROR($D66*AL66,"") -> 186.9287212 | EA66: =IFERROR($D66*AM66,"") -> 124.6191475 | EB66: =IFERROR($D66*AN66,"") -> 560.7861636 | EC66: =IFERROR($D66*AO66,"") -> 186.9287212 | ED66: =IFERROR($D66*AP66,"") -> 249.238295 | EE66: =IFERROR($D66*AQ66,"") -> 249.238295 | EF66: =IFERROR($D66*AR66,"") -> 186.9287212 | EG66: =IFERROR($D66*AS66,"") -> 0 | EH66: =IFERROR($D66*AT66,"") -> 0 | EI66: =IFERROR($D66*AU66,"") -> 62.30957373 | EJ66: =IFERROR($D66*AV66,"") -> 0 | EK66: =IFERROR($D66*AW66,"") -> 0 | EL66: =IFERROR($D66*AX66,"") -> 124.6191475 | EM66: =IFERROR($D66*AY66,"") -> 0 | EN66: =IFERROR($D66*AZ66,"") -> 0 | EO66: =IFERROR($D66*BA66,"") -> 62.30957373 | EP66: =IFERROR($D66*BB66,"") -> 0 | EQ66: =IFERROR($D66*BC66,"") -> 0 | ER66: =IFERROR($D66*BD66,"") -> 124.6191475 | ES66: =IFERROR($D66*BE66,"") -> 0 | ET66: =IFERROR($D66*BF66,"") -> 0 | EU66: =IFERROR($D66*BG66,"") -> 0 | EV66: =IFERROR($D66*BH66,"") -> 62.30957373 | EW66: =IFERROR($D66*BI66,"") -> 0 | EX66: =IFERROR($D66*BJ66,"") -> 0 | EY66: =IFERROR($D66*BK66,"") -> 0 | EZ66: =IFERROR($D66*BL66,"") -> 0 | FA66: =IFERROR($D66*BM66,"") -> 0 | FB66: =IFERROR($D66*BN66,"") -> 0 | FC66: =IFERROR($D66*BO66,"") -> 0 | FD66: =IFERROR($D66*BP66,"") -> 0 | FE66: =IFERROR($D66*BQ66,"") -> 0 | FF66: =IFERROR($D66*BR66,"") -> 0 | FG66: =IFERROR($D66*BS66,"") -> 0 | FH66: =IFERROR($D66*BT66,"") -> 0 | FI66: =IFERROR($D66*BU66,"") -> 0 | FJ66: =IFERROR($D66*BV66,"") -> 0 | FK66: =IFERROR($D66*BW66,"") -> 0 | FL66: =IFERROR($D66*BX66,"") -> 0 | FM66: =IFERROR($D66*BY66,"") -> 0 | FN66: =IFERROR($D66*BZ66,"") -> 0 | FO66: =IFERROR($D66*CA66,"") -> 0 | FP66: =IFERROR($D66*CB66,"") -> 0 | FQ66: =IFERROR($D66*CC66,"") -> 0 | FR66: =IFERROR($D66*CD66,"") -> 0 | FS66: =IFERROR($D66*CE66,"") -> 0 | FT66: =IFERROR($D66*CF66,"") -> 0 | FU66: =IFERROR($D66*CG66,"") -> 0 | FV66: =IFERROR($D66*CH66,"") -> 0 | FW66: =IFERROR($D66*CI66,"") -> 0 | FX66: =IFERROR($D66*CJ66,"") -> 0 | FY66: =IFERROR($D66*CK66,"") -> 0 | FZ66: =IFERROR($D66*CL66,"") -> 0 | GA66: =IFERROR($D66*CM66,"") -> 0 | GB66: =IFERROR($D66*CN66,"") -> 0 | GC66: =IFERROR($D66*CO66,"") -> 0 | GD66: =IFERROR($D66*CP66,"") -> 0 | GE66: =IFERROR($D66*CQ66,"") -> 0 | GF66: =IFERROR($D66*CR66,"") -> 0 | GG66: =IFERROR($D66*CS66,"") -> 0 | GH66: =IFERROR($D66*CT66,"") -> 0
A67: 6 | B67: UNDERGROUND CABLES | C67: ˂ = 1 kv | D67: 207.1524345 | E67: 26.78993272 | F67: 5.175899219 | G67: 2 | H67: 70.1 | I67: 209.77 | J67: 83.09 | K67: 163.26 | L67: 247.07 | M67: 278.6 | N67: 376.04 | O67: 395.43 | P67: 352.36 | Q67: 512.78 | R67: 1132.72 | S67: 1237.58 | T67: 634.32 | U67: 221.26 | V67: 307.32 | W67: 83.28 | X67: 17.12 | Y67: 13.12 | Z67: 4.43 | AA67: 6.12 | AB67: 3.79 | AC67: 2.12 | AD67: 3.54 | AE67: 0.06 | AF67: 3.17 | AG67: 10.7 | AH67: 8.07 | AI67: 1.63 | AJ67: 5.3 | AK67: 0 | AL67: 1.22 | AM67: 0.55 | AN67: 0 | AO67: 0.72 | AP67: 0 | AQ67: 0.51 | AR67: 0 | AS67: 0 | AT67: 0.26 | AU67: 0 | AV67: 0 | AW67: 0 | AX67: 0.04 | AY67: 0 | AZ67: 0 | BA67: 0.19 | BB67: 0 | BC67: 0 | BD67: 0.08 | BE67: 0.45 | BF67: 0 | BG67: 0 | BH67: 0 | BI67: 0 | BJ67: 0 | BK67: 0 | BL67: 0 | BM67: 0 | BN67: 0 | BO67: 0 | BP67: 0 | BQ67: 0 | BR67: 0 | BS67: 0 | BT67: 0 | BU67: 0 | BV67: 0 | BW67: 0 | BX67: 0 | BY67: 0 | BZ67: 0 | CA67: 0 | CB67: 0 | CC67: 0 | CD67: 0 | CE67: 0 | CF67: 0 | CG67: 0 | CH67: 0 | CI67: 0 | CJ67: 0 | CK67: 0 | CL67: 0 | CM67: 0 | CN67: 0 | CO67: 0 | CP67: 0 | CQ67: 0 | CR67: 0 | CS67: 0 | CT67: 0 | CV67: 14521.38566 | CW67: 43454.36618 | CX67: 17212.29578 | CY67: 33819.70645 | CZ67: 51181.15199 | DA67: 57712.66824 | DB67: 77897.60146 | DC67: 81914.28716 | DD67: 72992.23181 | DE67: 106223.6254 | DF67: 234645.7056 | DG67: 256367.7099 | DH67: 131400.9322 | DI67: 45834.54765 | DJ67: 63662.08616 | DK67: 17251.65474 | DL67: 3546.449678 | DM67: 2717.83994 | DN67: 917.6852847 | DO67: 1267.772899 | DP67: 785.1077267 | DQ67: 439.1631611 | DR67: 733.319618 | DS67: 12.42914607 | DT67: 656.6732173 | DU67: 2216.531049 | DV67: 1671.720146 | DW67: 337.6584682 | DX67: 1097.907903 | DY67: 0 | DZ67: 252.7259701 | EA67: 113.933839 | EB67: 0 | EC67: 149.1497528 | ED67: 0 | EE67: 105.6477416 | EF67: 0 | EG67: 0 | EH67: 53.85963296 | EI67: 0 | EJ67: 0 | EK67: 0 | EL67: 8.286097379 | EM67: 0 | EN67: 0 | EO67: 39.35896255 | EP67: 0 | EQ67: 0 | ER67: 16.57219476 | ES67: 93.21859551 | ET67: 0 | EU67: 0 | EV67: 0 | EW67: 0 | EX67: 0 | EY67: 0 | EZ67: 0 | FA67: 0 | FB67: 0 | FC67: 0 | FD67: 0 | FE67: 0 | FF67: 0 | FG67: 0 | FH67: 0 | FI67: 0 | FJ67: 0 | FK67: 0 | FL67: 0 | FM67: 0 | FN67: 0 | FO67: 0 | FP67: 0 | FQ67: 0 | FR67: 0 | FS67: 0 | FT67: 0 | FU67: 0 | FV67: 0 | FW67: 0 | FX67: 0 | FY67: 0 | FZ67: 0 | GA67: 0 | GB67: 0 | GC67: 0 | GD67: 0 | GE67: 0 | GF67: 0 | GG67: 0 | GH67: 0
A68: 6 | B68: UNDERGROUND CABLES | C68: > 1 kv & < = 11 kv | D68: 410.6810625 | E68: 56.26732349 | F68: 7.50115481 | G68: 2 | H68: 10.63 | I68: 37.69 | J68: 16.45 | K68: 24.19 | L68: 33.76 | M68: 72.39 | N68: 104.89 | O68: 91.95 | P68: 109.2 | Q68: 143.91 | R68: 175.7 | S68: 165 | T68: 87.24 | U68: 46.24 | V68: 58.21 | W68: 45.71 | X68: 64.28 | Y68: 40.91 | Z68: 12.56 | AA68: 32.56 | AB68: 107.41 | AC68: 17.58 | AD68: 15.26 | AE68: 12.27 | AF68: 11.02 | AG68: 23.26 | AH68: 18.07 | AI68: 27.91 | AJ68: 15.75 | AK68: 11.55 | AL68: 8.34 | AM68: 3.76 | AN68: 4.42 | AO68: 20.12 | AP68: 20.42 | AQ68: 10.85 | AR68: 6.06 | AS68: 17 | AT68: 9.98 | AU68: 7.81 | AV68: 2.91 | AW68: 4.56 | AX68: 2.37 | AY68: 2.63 | AZ68: 25.76 | BA68: 1.52 | BB68: 0.63 | BC68: 3.91 | BD68: 2.29 | BE68: 1.9 | BF68: 1.47 | BG68: 0.43 | BH68: 0.55 | BI68: 0.49 | BJ68: 3.54 | BK68: 0.12 | BL68: 0.46 | BM68: 0 | BN68: 0 | BO68: 0.01 | BP68: 0.24 | BQ68: 0 | BR68: 0.34 | BS68: 0 | BT68: 0.81 | BU68: 0 | BV68: 0 | BW68: 0 | BX68: 0 | BY68: 0.03 | BZ68: 0 | CA68: 0 | CB68: 0 | CC68: 0 | CD68: 0 | CE68: 0 | CF68: 0 | CG68: 0 | CH68: 0 | CI68: 0 | CJ68: 0 | CK68: 0 | CL68: 0 | CM68: 0.41 | CN68: 0 | CO68: 0 | CP68: 0 | CQ68: 0 | CR68: 0 | CS68: 0 | CT68: 0 | CV68: 4365.539695 | CW68: 15478.56925 | CX68: 6755.703479 | CY68: 9934.374903 | CZ68: 13864.59267 | DA68: 29729.20212 | DB68: 43076.33665 | DC68: 37762.1237 | DD68: 44846.37203 | DE68: 59101.11171 | DF68: 72156.66269 | DG68: 67762.37532 | DH68: 35827.8159 | DI68: 18989.89233 | DJ68: 23905.74465 | DK68: 18772.23137 | DL68: 26398.5787 | DM68: 16800.96227 | DN68: 5158.154146 | DO68: 13371.7754 | DP68: 44111.25293 | DQ68: 7219.77308 | DR68: 6266.993014 | DS68: 5039.056637 | DT68: 4525.705309 | DU68: 9552.441515 | DV68: 7421.0068 | DW68: 11462.10846 | DX68: 6468.226735 | DY68: 4743.366272 | DZ68: 3425.080062 | EA68: 1544.160795 | EB68: 1815.210296 | EC68: 8262.902978 | ED68: 8386.107297 | EE68: 4455.889529 | EF68: 2488.727239 | EG68: 6981.578063 | EH68: 4098.597004 | EI68: 3207.419098 | EJ68: 1195.081892 | EK68: 1872.705645 | EL68: 973.3141182 | EM68: 1080.091194 | EN68: 10579.14417 | EO68: 624.2352151 | EP68: 258.7290694 | EQ68: 1605.762955 | ER68: 940.4596332 | ES68: 780.2940188 | ET68: 603.7011619 | EU68: 176.5928569 | EV68: 225.8745844 | EW68: 201.2337206 | EX68: 1453.810961 | EY68: 49.28172751 | EZ68: 188.9132888 | FA68: 0 | FB68: 0 | FC68: 4.106810625 | FD68: 98.56345501 | FE68: 0 | FF68: 139.6315613 | FG68: 0 | FH68: 332.6516607 | FI68: 0 | FJ68: 0 | FK68: 0 | FL68: 0 | FM68: 12.32043188 | FN68: 0 | FO68: 0 | FP68: 0 | FQ68: 0 | FR68: 0 | FS68: 0 | FT68: 0 | FU68: 0 | FV68: 0 | FW68: 0 | FX68: 0 | FY68: 0 | FZ68: 0 | GA68: 168.3792356 | GB68: 0 | GC68: 0 | GD68: 0 | GE68: 0 | GF68: 0 | GG68: 0 | GH68: 0
A69: 6 | B69: UNDERGROUND CABLES | C69: > 11 kv & < = 22 kv | D69: 3280.356524 | E69: 64.37308925 | F69: 8.023284193 | G69: 2 | H69: 2.97 | I69: 7.85 | J69: 5.44 | K69: 12.95 | L69: 12.04 | M69: 22.09 | N69: 17.26 | O69: 23.77 | P69: 21.16 | Q69: 35.1 | R69: 74.79 | S69: 97.83 | T69: 32.29 | U69: 16.33 | V69: 23.26 | W69: 15.34 | X69: 3.83 | Y69: 4.13 | Z69: 5.76 | AA69: 16.96 | AB69: 12.07 | AC69: 13.72 | AD69: 11.46 | AE69: 7.2 | AF69: 22.19 | AG69: 20.67 | AH69: 10.02 | AI69: 14.73 | AJ69: 6.94 | AK69: 7.59 | AL69: 11.05 | AM69: 1.72 | AN69: 13.74 | AO69: 4.36 | AP69: 51.9 | AQ69: 3.94 | AR69: 3.03 | AS69: 5.19 | AT69: 2.14 | AU69: 6.87 | AV69: 1.16 | AW69: 0.05 | AX69: 1.9 | AY69: 0.13 | AZ69: 4.37 | BA69: 0 | BB69: 0.06 | BC69: 0.08 | BD69: 0.65 | BE69: 1.86 | BF69: 0.74 | BG69: 0.34 | BH69: 0.13 | BI69: 0 | BJ69: 3.07 | BK69: 0 | BL69: 0.96 | BM69: 0.07 | BN69: 0 | BO69: 0.23 | BP69: 0.13 | BQ69: 0.04 | BR69: 0.34 | BS69: 0.67 | BT69: 0 | BU69: 0 | BV69: 0.19 | BW69: 0 | BX69: 0 | BY69: 0 | BZ69: 0 | CA69: 0 | CB69: 0 | CC69: 0 | CD69: 0 | CE69: 0 | CF69: 0 | CG69: 0 | CH69: 0 | CI69: 0 | CJ69: 0 | CK69: 0 | CL69: 0 | CM69: 0 | CN69: 0 | CO69: 0 | CP69: 0 | CQ69: 0 | CR69: 0 | CS69: 0 | CT69: 0 | CV69: 9742.658875 | CW69: 25750.79871 | CX69: 17845.13949 | CY69: 42480.61698 | CZ69: 39495.49254 | DA69: 72463.07561 | DB69: 56618.9536 | DC69: 77974.07456 | DD69: 69412.34404 | DE69: 115140.514 | DF69: 245337.8644 | DG69: 320917.2787 | DH69: 105922.7121 | DI69: 53568.22203 | DJ69: 76301.09274 | DK69: 50320.66907 | DL69: 12563.76549 | DM69: 13547.87244 | DN69: 18894.85358 | DO69: 55634.84664 | DP69: 39593.90324 | DQ69: 45006.4915 | DR69: 37592.88576 | DS69: 23618.56697 | DT69: 72791.11126 | DU69: 67804.96934 | DV69: 32869.17237 | DW69: 48319.65159 | DX69: 22765.67427 | DY69: 24897.90601 | DZ69: 36247.93959 | EA69: 5642.213221 | EB69: 45072.09863 | EC69: 14302.35444 | ED69: 170250.5036 | EE69: 12924.6047 | EF69: 9939.480266 | EG69: 17025.05036 | EH69: 7019.96296 | EI69: 22536.04932 | EJ69: 3805.213567 | EK69: 164.0178262 | EL69: 6232.677395 | EM69: 426.4463481 | EN69: 14335.15801 | EO69: 0 | EP69: 196.8213914 | EQ69: 262.4285219 | ER69: 2132.23174 | ES69: 6101.463134 | ET69: 2427.463827 | EU69: 1115.321218 | EV69: 426.4463481 | EW69: 0 | EX69: 10070.69453 | EY69: 0 | EZ69: 3149.142263 | FA69: 229.6249566 | FB69: 0 | FC69: 754.4820004 | FD69: 426.4463481 | FE69: 131.2142609 | FF69: 1115.321218 | FG69: 2197.838871 | FH69: 0 | FI69: 0 | FJ69: 623.2677395 | FK69: 0 | FL69: 0 | FM69: 0 | FN69: 0 | FO69: 0 | FP69: 0 | FQ69: 0 | FR69: 0 | FS69: 0 | FT69: 0 | FU69: 0 | FV69: 0 | FW69: 0 | FX69: 0 | FY69: 0 | FZ69: 0 | GA69: 0 | GB69: 0 | GC69: 0 | GD69: 0 | GE69: 0 | GF69: 0 | GG69: 0 | GH69: 0
A70: 6 | B70: UNDERGROUND CABLES | C70: > 22 kv & < = 33 kv | D70: 410.6810625 | E70: 56.26732349 | F70: 7.50115481 | G70: 2 | H70: 0 | I70: 2.53 | J70: 0.01 | K70: 0.78 | L70: 0.01 | M70: 0.6 | N70: 3.66 | O70: 2.34 | P70: 10.46 | Q70: 5.89 | R70: 5.18 | S70: 0.51 | T70: 0.96 | U70: 0.75 | V70: 5.99 | W70: 1.48 | X70: 0.26 | Y70: 2.42 | Z70: 0 | AA70: 0.12 | AB70: 0.42 | AC70: 0.28 | AD70: 0.02 | AE70: 0.01 | AF70: 0.03 | AG70: 0 | AH70: 0.63 | AI70: 0.06 | AJ70: 0.44 | AK70: 0.55 | AL70: 0.16 | AM70: 0 | AN70: 0.13 | AO70: 0.62 | AP70: 0.41 | AQ70: 0 | AR70: 0.29 | AS70: 1.38 | AT70: 0.25 | AU70: 0.13 | AV70: 0 | AW70: 0 | AX70: 0.83 | AY70: 0 | AZ70: 4.27 | BA70: 1.26 | BB70: 0.83 | BC70: 0 | BD70: 0 | BE70: 0 | BF70: 0 | BG70: 0 | BH70: 0.53 | BI70: 0 | BJ70: 0.75 | BK70: 0 | BL70: 0 | BM70: 0 | BN70: 0 | BO70: 0 | BP70: 0 | BQ70: 0 | BR70: 0 | BS70: 0 | BT70: 0 | BU70: 0 | BV70: 0 | BW70: 0 | BX70: 0 | BY70: 0.05 | BZ70: 0 | CA70: 0 | CB70: 0 | CC70: 0 | CD70: 0 | CE70: 0 | CF70: 0 | CG70: 0 | CH70: 0 | CI70: 0 | CJ70: 0 | CK70: 0 | CL70: 0 | CM70: 0 | CN70: 0 | CO70: 0 | CP70: 0 | CQ70: 0 | CR70: 0 | CS70: 0 | CT70: 0 | CV70: 0 | CW70: 1039.023088 | CX70: 4.106810625 | CY70: 320.3312288 | CZ70: 4.106810625 | DA70: 246.4086375 | DB70: 1503.092689 | DC70: 960.9936864 | DD70: 4295.723914 | DE70: 2418.911458 | DF70: 2127.327904 | DG70: 209.4473419 | DH70: 394.25382 | DI70: 308.0107969 | DJ70: 2459.979565 | DK70: 607.8079726 | DL70: 106.7770763 | DM70: 993.8481714 | DN70: 0 | DO70: 49.28172751 | DP70: 172.4860463 | DQ70: 114.9906975 | DR70: 8.213621251 | DS70: 4.106810625 | DT70: 12.32043188 | DU70: 0 | DV70: 258.7290694 | DW70: 24.64086375 | DX70: 180.6996675 | DY70: 225.8745844 | DZ70: 65.70897001 | EA70: 0 | EB70: 53.38853813 | EC70: 254.6222588 | ED70: 168.3792356 | EE70: 0 | EF70: 119.0975081 | EG70: 566.7398663 | EH70: 102.6702656 | EI70: 53.38853813 | EJ70: 0 | EK70: 0 | EL70: 340.8652819 | EM70: 0 | EN70: 1753.608137 | EO70: 517.4581388 | EP70: 340.8652819 | EQ70: 0 | ER70: 0 | ES70: 0 | ET70: 0 | EU70: 0 | EV70: 217.6609631 | EW70: 0 | EX70: 308.0107969 | EY70: 0 | EZ70: 0 | FA70: 0 | FB70: 0 | FC70: 0 | FD70: 0 | FE70: 0 | FF70: 0 | FG70: 0 | FH70: 0 | FI70: 0 | FJ70: 0 | FK70: 0 | FL70: 0 | FM70: 20.53405313 | FN70: 0 | FO70: 0 | FP70: 0 | FQ70: 0 | FR70: 0 | FS70: 0 | FT70: 0 | FU70: 0 | FV70: 0 | FW70: 0 | FX70: 0 | FY70: 0 | FZ70: 0 | GA70: 0 | GB70: 0 | GC70: 0 | GD70: 0 | GE70: 0 | GF70: 0 | GG70: 0 | GH70: 0
A71: 6 | B71: UNDERGROUND CABLES | C71: > 33 kv & < = 66 kv | D71: 410.6810625 | E71: 56.26732349 | F71: 7.50115481 | G71: 2 | H71: 0 | I71: 0.2 | J71: 0 | K71: 0 | L71: 0 | M71: 0 | N71: 0 | O71: 0 | P71: 0.15 | Q71: 1.17 | R71: 8.84 | S71: 3.5 | T71: 0.8 | U71: 0 | V71: 0 | W71: 0 | X71: 0 | Y71: 0 | Z71: 0 | AA71: 0 | AB71: 2.58 | AC71: 0 | AD71: 0 | AE71: 0 | AF71: 0.16 | AG71: 0 | AH71: 0 | AI71: 0 | AJ71: 0 | AK71: 0.35 | AL71: 0 | AM71: 0 | AN71: 0.64 | AO71: 0 | AP71: 0 | AQ71: 0 | AR71: 0 | AS71: 0 | AT71: 0 | AU71: 0 | AV71: 0 | AW71: 0 | AX71: 0 | AY71: 0 | AZ71: 0 | BA71: 0 | BB71: 0 | BC71: 0.71 | BD71: 0 | BE71: 0 | BF71: 0 | BG71: 0 | BH71: 0 | BI71: 0 | BJ71: 0 | BK71: 0 | BL71: 0 | BM71: 0 | BN71: 0 | BO71: 0 | BP71: 0 | BQ71: 0 | BR71: 0 | BS71: 0 | BT71: 0 | BU71: 0 | BV71: 0 | BW71: 0 | BX71: 0 | BY71: 0 | BZ71: 0 | CA71: 0 | CB71: 0 | CC71: 0 | CD71: 0 | CE71: 0 | CF71: 0 | CG71: 0 | CH71: 0 | CI71: 0 | CJ71: 0 | CK71: 0 | CL71: 0 | CM71: 0 | CN71: 0 | CO71: 0 | CP71: 0 | CQ71: 0 | CR71: 0 | CS71: 0 | CT71: 0 | CV71: 0 | CW71: 82.13621251 | CX71: 0 | CY71: 0 | CZ71: 0 | DA71: 0 | DB71: 0 | DC71: 0 | DD71: 61.60215938 | DE71: 480.4968432 | DF71: 3630.420593 | DG71: 1437.383719 | DH71: 328.54485 | DI71: 0 | DJ71: 0 | DK71: 0 | DL71: 0 | DM71: 0 | DN71: 0 | DO71: 0 | DP71: 1059.557141 | DQ71: 0 | DR71: 0 | DS71: 0 | DT71: 65.70897001 | DU71: 0 | DV71: 0 | DW71: 0 | DX71: 0 | DY71: 143.7383719 | DZ71: 0 | EA71: 0 | EB71: 262.83588 | EC71: 0 | ED71: 0 | EE71: 0 | EF71: 0 | EG71: 0 | EH71: 0 | EI71: 0 | EJ71: 0 | EK71: 0 | EL71: 0 | EM71: 0 | EN71: 0 | EO71: 0 | EP71: 0 | EQ71: 291.5835544 | ER71: 0 | ES71: 0 | ET71: 0 | EU71: 0 | EV71: 0 | EW71: 0 | EX71: 0 | EY71: 0 | EZ71: 0 | FA71: 0 | FB71: 0 | FC71: 0 | FD71: 0 | FE71: 0 | FF71: 0 | FG71: 0 | FH71: 0 | FI71: 0 | FJ71: 0 | FK71: 0 | FL71: 0 | FM71: 0 | FN71: 0 | FO71: 0 | FP71: 0 | FQ71: 0 | FR71: 0 | FS71: 0 | FT71: 0 | FU71: 0 | FV71: 0 | FW71: 0 | FX71: 0 | FY71: 0 | FZ71: 0 | GA71: 0 | GB71: 0 | GC71: 0 | GD71: 0 | GE71: 0 | GF71: 0 | GG71: 0 | GH71: 0
A72: 6 | B72: UNDERGROUND CABLES | C72: > 66 kv & < = 132 kv | D72: 3280.356524 | E72: 64.37308925 | F72: 8.023284193 | G72: 2 | H72: 0 | I72: 0 | J72: 0 | K72: 0 | L72: 6.14 | M72: 0 | N72: 0 | O72: 0 | P72: 0 | Q72: 0 | R72: 8.88 | S72: 0.04 | T72: 0 | U72: 0 | V72: 0 | W72: 0 | X72: 0 | Y72: 0 | Z72: 0 | AA72: 0 | AB72: 0 | AC72: 0 | AD72: 0 | AE72: 0 | AF72: 0 | AG72: 0 | AH72: 0 | AI72: 0 | AJ72: 0 | AK72: 0 | AL72: 0 | AM72: 0 | AN72: 0 | AO72: 0 | AP72: 0 | AQ72: 0 | AR72: 0 | AS72: 0 | AT72: 0 | AU72: 0 | AV72: 0 | AW72: 0 | AX72: 0 | AY72: 0 | AZ72: 0 | BA72: 0 | BB72: 0 | BC72: 0 | BD72: 0 | BE72: 0 | BF72: 0 | BG72: 0 | BH72: 0 | BI72: 0 | BJ72: 0 | BK72: 0 | BL72: 0 | BM72: 0 | BN72: 0 | BO72: 0 | BP72: 0 | BQ72: 0 | BR72: 0 | BS72: 0 | BT72: 0 | BU72: 0 | BV72: 0 | BW72: 0 | BX72: 0 | BY72: 0 | BZ72: 0 | CA72: 0 | CB72: 0 | CC72: 0 | CD72: 0 | CE72: 0 | CF72: 0 | CG72: 0 | CH72: 0 | CI72: 0 | CJ72: 0 | CK72: 0 | CL72: 0 | CM72: 0 | CN72: 0 | CO72: 0 | CP72: 0 | CQ72: 0 | CR72: 0 | CS72: 0 | CT72: 0 | CV72: 0 | CW72: 0 | CX72: 0 | CY72: 0 | CZ72: 20141.38905 | DA72: 0 | DB72: 0 | DC72: 0 | DD72: 0 | DE72: 0 | DF72: 29129.56593 | DG72: 131.2142609 | DH72: 0 | DI72: 0 | DJ72: 0 | DK72: 0 | DL72: 0 | DM72: 0 | DN72: 0 | DO72: 0 | DP72: 0 | DQ72: 0 | DR72: 0 | DS72: 0 | DT72: 0 | DU72: 0 | DV72: 0 | DW72: 0 | DX72: 0 | DY72: 0 | DZ72: 0 | EA72: 0 | EB72: 0 | EC72: 0 | ED72: 0 | EE72: 0 | EF72: 0 | EG72: 0 | EH72: 0 | EI72: 0 | EJ72: 0 | EK72: 0 | EL72: 0 | EM72: 0 | EN72: 0 | EO72: 0 | EP72: 0 | EQ72: 0 | ER72: 0 | ES72: 0 | ET72: 0 | EU72: 0 | EV72: 0 | EW72: 0 | EX72: 0 | EY72: 0 | EZ72: 0 | FA72: 0 | FB72: 0 | FC72: 0 | FD72: 0 | FE72: 0 | FF72: 0 | FG72: 0 | FH72: 0 | FI72: 0 | FJ72: 0 | FK72: 0 | FL72: 0 | FM72: 0 | FN72: 0 | FO72: 0 | FP72: 0 | FQ72: 0 | FR72: 0 | FS72: 0 | FT72: 0 | FU72: 0 | FV72: 0 | FW72: 0 | FX72: 0 | FY72: 0 | FZ72: 0 | GA72: 0 | GB72: 0 | GC72: 0 | GD72: 0 | GE72: 0 | GF72: 0 | GG72: 0 | GH72: 0
CV73: 0 | CW73: 0 | CX73: 0 | CY73: 0 | CZ73: 0 | DA73: 0 | DB73: 0 | DC73: 0 | DD73: 0 | DE73: 0 | DF73: 0 | DG73: 0 | DH73: 0 | DI73: 0 | DJ73: 0 | DK73: 0 | DL73: 0 | DM73: 0 | DN73: 0 | DO73: 0 | DP73: 0 | DQ73: 0 | DR73: 0 | DS73: 0 | DT73: 0 | DU73: 0 | DV73: 0 | DW73: 0 | DX73: 0 | DY73: 0 | DZ73: 0 | EA73: 0 | EB73: 0 | EC73: 0 | ED73: 0 | EE73: 0 | EF73: 0 | EG73: 0 | EH73: 0 | EI73: 0 | EJ73: 0 | EK73: 0 | EL73: 0 | EM73: 0 | EN73: 0 | EO73: 0 | EP73: 0 | EQ73: 0 | ER73: 0 | ES73: 0 | ET73: 0 | EU73: 0 | EV73: 0 | EW73: 0 | EX73: 0 | EY73: 0 | EZ73: 0 | FA73: 0 | FB73: 0 | FC73: 0 | FD73: 0 | FE73: 0 | FF73: 0 | FG73: 0 | FH73: 0 | FI73: 0 | FJ73: 0 | FK73: 0 | FL73: 0 | FM73: 0 | FN73: 0 | FO73: 0 | FP73: 0 | FQ73: 0 | FR73: 0 | FS73: 0 | FT73: 0 | FU73: 0 | FV73: 0 | FW73: 0 | FX73: 0 | FY73: 0 | FZ73: 0 | GA73: 0 | GB73: 0 | GC73: 0 | GD73: 0 | GE73: 0 | GF73: 0 | GG73: 0 | GH73: 0
CV74: 0 | CW74: 0 | CX74: 0 | CY74: 0 | CZ74: 0 | DA74: 0 | DB74: 0 | DC74: 0 | DD74: 0 | DE74: 0 | DF74: 0 | DG74: 0 | DH74: 0 | DI74: 0 | DJ74: 0 | DK74: 0 | DL74: 0 | DM74: 0 | DN74: 0 | DO74: 0 | DP74: 0 | DQ74: 0 | DR74: 0 | DS74: 0 | DT74: 0 | DU74: 0 | DV74: 0 | DW74: 0 | DX74: 0 | DY74: 0 | DZ74: 0 | EA74: 0 | EB74: 0 | EC74: 0 | ED74: 0 | EE74: 0 | EF74: 0 | EG74: 0 | EH74: 0 | EI74: 0 | EJ74: 0 | EK74: 0 | EL74: 0 | EM74: 0 | EN74: 0 | EO74: 0 | EP74: 0 | EQ74: 0 | ER74: 0 | ES74: 0 | ET74: 0 | EU74: 0 | EV74: 0 | EW74: 0 | EX74: 0 | EY74: 0 | EZ74: 0 | FA74: 0 | FB74: 0 | FC74: 0 | FD74: 0 | FE74: 0 | FF74: 0 | FG74: 0 | FH74: 0 | FI74: 0 | FJ74: 0 | FK74: 0 | FL74: 0 | FM74: 0 | FN74: 0 | FO74: 0 | FP74: 0 | FQ74: 0 | FR74: 0 | FS74: 0 | FT74: 0 | FU74: 0 | FV74: 0 | FW74: 0 | FX74: 0 | FY74: 0 | FZ74: 0 | GA74: 0 | GB74: 0 | GC74: 0 | GD74: 0 | GE74: 0 | GF74: 0 | GG74: 0 | GH74: 0
CV75: 0 | CW75: 0 | CX75: 0 | CY75: 0 | CZ75: 0 | DA75: 0 | DB75: 0 | DC75: 0 | DD75: 0 | DE75: 0 | DF75: 0 | DG75: 0 | DH75: 0 | DI75: 0 | DJ75: 0 | DK75: 0 | DL75: 0 | DM75: 0 | DN75: 0 | DO75: 0 | DP75: 0 | DQ75: 0 | DR75: 0 | DS75: 0 | DT75: 0 | DU75: 0 | DV75: 0 | DW75: 0 | DX75: 0 | DY75: 0 | DZ75: 0 | EA75: 0 | EB75: 0 | EC75: 0 | ED75: 0 | EE75: 0 | EF75: 0 | EG75: 0 | EH75: 0 | EI75: 0 | EJ75: 0 | EK75: 0 | EL75: 0 | EM75: 0 | EN75: 0 | EO75: 0 | EP75: 0 | EQ75: 0 | ER75: 0 | ES75: 0 | ET75: 0 | EU75: 0 | EV75: 0 | EW75: 0 | EX75: 0 | EY75: 0 | EZ75: 0 | FA75: 0 | FB75: 0 | FC75: 0 | FD75: 0 | FE75: 0 | FF75: 0 | FG75: 0 | FH75: 0 | FI75: 0 | FJ75: 0 | FK75: 0 | FL75: 0 | FM75: 0 | FN75: 0 | FO75: 0 | FP75: 0 | FQ75: 0 | FR75: 0 | FS75: 0 | FT75: 0 | FU75: 0 | FV75: 0 | FW75: 0 | FX75: 0 | FY75: 0 | FZ75: 0 | GA75: 0 | GB75: 0 | GC75: 0 | GD75: 0 | GE75: 0 | GF75: 0 | GG75: 0 | GH75: 0
CV76: 0 | CW76: 0 | CX76: 0 | CY76: 0 | CZ76: 0 | DA76: 0 | DB76: 0 | DC76: 0 | DD76: 0 | DE76: 0 | DF76: 0 | DG76: 0 | DH76: 0 | DI76: 0 | DJ76: 0 | DK76: 0 | DL76: 0 | DM76: 0 | DN76: 0 | DO76: 0 | DP76: 0 | DQ76: 0 | DR76: 0 | DS76: 0 | DT76: 0 | DU76: 0 | DV76: 0 | DW76: 0 | DX76: 0 | DY76: 0 | DZ76: 0 | EA76: 0 | EB76: 0 | EC76: 0 | ED76: 0 | EE76: 0 | EF76: 0 | EG76: 0 | EH76: 0 | EI76: 0 | EJ76: 0 | EK76: 0 | EL76: 0 | EM76: 0 | EN76: 0 | EO76: 0 | EP76: 0 | EQ76: 0 | ER76: 0 | ES76: 0 | ET76: 0 | EU76: 0 | EV76: 0 | EW76: 0 | EX76: 0 | EY76: 0 | EZ76: 0 | FA76: 0 | FB76: 0 | FC76: 0 | FD76: 0 | FE76: 0 | FF76: 0 | FG76: 0 | FH76: 0 | FI76: 0 | FJ76: 0 | FK76: 0 | FL76: 0 | FM76: 0 | FN76: 0 | FO76: 0 | FP76: 0 | FQ76: 0 | FR76: 0 | FS76: 0 | FT76: 0 | FU76: 0 | FV76: 0 | FW76: 0 | FX76: 0 | FY76: 0 | FZ76: 0 | GA76: 0 | GB76: 0 | GC76: 0 | GD76: 0 | GE76: 0 | GF76: 0 | GG76: 0 | GH76: 0
CV77: 0 | CW77: 0 | CX77: 0 | CY77: 0 | CZ77: 0 | DA77: 0 | DB77: 0 | DC77: 0 | DD77: 0 | DE77: 0 | DF77: 0 | DG77: 0 | DH77: 0 | DI77: 0 | DJ77: 0 | DK77: 0 | DL77: 0 | DM77: 0 | DN77: 0 | DO77: 0 | DP77: 0 | DQ77: 0 | DR77: 0 | DS77: 0 | DT77: 0 | DU77: 0 | DV77: 0 | DW77: 0 | DX77: 0 | DY77: 0 | DZ77: 0 | EA77: 0 | EB77: 0 | EC77: 0 | ED77: 0 | EE77: 0 | EF77: 0 | EG77: 0 | EH77: 0 | EI77: 0 | EJ77: 0 | EK77: 0 | EL77: 0 | EM77: 0 | EN77: 0 | EO77: 0 | EP77: 0 | EQ77: 0 | ER77: 0 | ES77: 0 | ET77: 0 | EU77: 0 | EV77: 0 | EW77: 0 | EX77: 0 | EY77: 0 | EZ77: 0 | FA77: 0 | FB77: 0 | FC77: 0 | FD77: 0 | FE77: 0 | FF77: 0 | FG77: 0 | FH77: 0 | FI77: 0 | FJ77: 0 | FK77: 0 | FL77: 0 | FM77: 0 | FN77: 0 | FO77: 0 | FP77: 0 | FQ77: 0 | FR77: 0 | FS77: 0 | FT77: 0 | FU77: 0 | FV77: 0 | FW77: 0 | FX77: 0 | FY77: 0 | FZ77: 0 | GA77: 0 | GB77: 0 | GC77: 0 | GD77: 0 | GE77: 0 | GF77: 0 | GG77: 0 | GH77: 0
CV78: 0 | CW78: 0 | CX78: 0 | CY78: 0 | CZ78: 0 | DA78: 0 | DB78: 0 | DC78: 0 | DD78: 0 | DE78: 0 | DF78: 0 | DG78: 0 | DH78: 0 | DI78: 0 | DJ78: 0 | DK78: 0 | DL78: 0 | DM78: 0 | DN78: 0 | DO78: 0 | DP78: 0 | DQ78: 0 | DR78: 0 | DS78: 0 | DT78: 0 | DU78: 0 | DV78: 0 | DW78: 0 | DX78: 0 | DY78: 0 | DZ78: 0 | EA78: 0 | EB78: 0 | EC78: 0 | ED78: 0 | EE78: 0 | EF78: 0 | EG78: 0 | EH78: 0 | EI78: 0 | EJ78: 0 | EK78: 0 | EL78: 0 | EM78: 0 | EN78: 0 | EO78: 0 | EP78: 0 | EQ78: 0 | ER78: 0 | ES78: 0 | ET78: 0 | EU78: 0 | EV78: 0 | EW78: 0 | EX78: 0 | EY78: 0 | EZ78: 0 | FA78: 0 | FB78: 0 | FC78: 0 | FD78: 0 | FE78: 0 | FF78: 0 | FG78: 0 | FH78: 0 | FI78: 0 | FJ78: 0 | FK78: 0 | FL78: 0 | FM78: 0 | FN78: 0 | FO78: 0 | FP78: 0 | FQ78: 0 | FR78: 0 | FS78: 0 | FT78: 0 | FU78: 0 | FV78: 0 | FW78: 0 | FX78: 0 | FY78: 0 | FZ78: 0 | GA78: 0 | GB78: 0 | GC78: 0 | GD78: 0 | GE78: 0 | GF78: 0 | GG78: 0 | GH78: 0
CV79: 0 | CW79: 0 | CX79: 0 | CY79: 0 | CZ79: 0 | DA79: 0 | DB79: 0 | DC79: 0 | DD79: 0 | DE79: 0 | DF79: 0 | DG79: 0 | DH79: 0 | DI79: 0 | DJ79: 0 | DK79: 0 | DL79: 0 | DM79: 0 | DN79: 0 | DO79: 0 | DP79: 0 | DQ79: 0 | DR79: 0 | DS79: 0 | DT79: 0 | DU79: 0 | DV79: 0 | DW79: 0 | DX79: 0 | DY79: 0 | DZ79: 0 | EA79: 0 | EB79: 0 | EC79: 0 | ED79: 0 | EE79: 0 | EF79: 0 | EG79: 0 | EH79: 0 | EI79: 0 | EJ79: 0 | EK79: 0 | EL79: 0 | EM79: 0 | EN79: 0 | EO79: 0 | EP79: 0 | EQ79: 0 | ER79: 0 | ES79: 0 | ET79: 0 | EU79: 0 | EV79: 0 | EW79: 0 | EX79: 0 | EY79: 0 | EZ79: 0 | FA79: 0 | FB79: 0 | FC79: 0 | FD79: 0 | FE79: 0 | FF79: 0 | FG79: 0 | FH79: 0 | FI79: 0 | FJ79: 0 | FK79: 0 | FL79: 0 | FM79: 0 | FN79: 0 | FO79: 0 | FP79: 0 | FQ79: 0 | FR79: 0 | FS79: 0 | FT79: 0 | FU79: 0 | FV79: 0 | FW79: 0 | FX79: 0 | FY79: 0 | FZ79: 0 | GA79: 0 | GB79: 0 | GC79: 0 | GD79: 0 | GE79: 0 | GF79: 0 | GG79: 0 | GH79: 0
CV80: 0 | CW80: 0 | CX80: 0 | CY80: 0 | CZ80: 0 | DA80: 0 | DB80: 0 | DC80: 0 | DD80: 0 | DE80: 0 | DF80: 0 | DG80: 0 | DH80: 0 | DI80: 0 | DJ80: 0 | DK80: 0 | DL80: 0 | DM80: 0 | DN80: 0 | DO80: 0 | DP80: 0 | DQ80: 0 | DR80: 0 | DS80: 0 | DT80: 0 | DU80: 0 | DV80: 0 | DW80: 0 | DX80: 0 | DY80: 0 | DZ80: 0 | EA80: 0 | EB80: 0 | EC80: 0 | ED80: 0 | EE80: 0 | EF80: 0 | EG80: 0 | EH80: 0 | EI80: 0 | EJ80: 0 | EK80: 0 | EL80: 0 | EM80: 0 | EN80: 0 | EO80: 0 | EP80: 0 | EQ80: 0 | ER80: 0 | ES80: 0 | ET80: 0 | EU80: 0 | EV80: 0 | EW80: 0 | EX80: 0 | EY80: 0 | EZ80: 0 | FA80: 0 | FB80: 0 | FC80: 0 | FD80: 0 | FE80: 0 | FF80: 0 | FG80: 0 | FH80: 0 | FI80: 0 | FJ80: 0 | FK80: 0 | FL80: 0 | FM80: 0 | FN80: 0 | FO80: 0 | FP80: 0 | FQ80: 0 | FR80: 0 | FS80: 0 | FT80: 0 | FU80: 0 | FV80: 0 | FW80: 0 | FX80: 0 | FY80: 0 | FZ80: 0 | GA80: 0 | GB80: 0 | GC80: 0 | GD80: 0 | GE80: 0 | GF80: 0 | GG80: 0 | GH80: 0
CV81: 0 | CW81: 0 | CX81: 0 | CY81: 0 | CZ81: 0 | DA81: 0 | DB81: 0 | DC81: 0 | DD81: 0 | DE81: 0 | DF81: 0 | DG81: 0 | DH81: 0 | DI81: 0 | DJ81: 0 | DK81: 0 | DL81: 0 | DM81: 0 | DN81: 0 | DO81: 0 | DP81: 0 | DQ81: 0 | DR81: 0 | DS81: 0 | DT81: 0 | DU81: 0 | DV81: 0 | DW81: 0 | DX81: 0 | DY81: 0 | DZ81: 0 | EA81: 0 | EB81: 0 | EC81: 0 | ED81: 0 | EE81: 0 | EF81: 0 | EG81: 0 | EH81: 0 | EI81: 0 | EJ81: 0 | EK81: 0 | EL81: 0 | EM81: 0 | EN81: 0 | EO81: 0 | EP81: 0 | EQ81: 0 | ER81: 0 | ES81: 0 | ET81: 0 | EU81: 0 | EV81: 0 | EW81: 0 | EX81: 0 | EY81: 0 | EZ81: 0 | FA81: 0 | FB81: 0 | FC81: 0 | FD81: 0 | FE81: 0 | FF81: 0 | FG81: 0 | FH81: 0 | FI81: 0 | FJ81: 0 | FK81: 0 | FL81: 0 | FM81: 0 | FN81: 0 | FO81: 0 | FP81: 0 | FQ81: 0 | FR81: 0 | FS81: 0 | FT81: 0 | FU81: 0 | FV81: 0 | FW81: 0 | FX81: 0 | FY81: 0 | FZ81: 0 | GA81: 0 | GB81: 0 | GC81: 0 | GD81: 0 | GE81: 0 | GF81: 0 | GG81: 0 | GH81: 0
CV82: 0 | CW82: 0 | CX82: 0 | CY82: 0 | CZ82: 0 | DA82: 0 | DB82: 0 | DC82: 0 | DD82: 0 | DE82: 0 | DF82: 0 | DG82: 0 | DH82: 0 | DI82: 0 | DJ82: 0 | DK82: 0 | DL82: 0 | DM82: 0 | DN82: 0 | DO82: 0 | DP82: 0 | DQ82: 0 | DR82: 0 | DS82: 0 | DT82: 0 | DU82: 0 | DV82: 0 | DW82: 0 | DX82: 0 | DY82: 0 | DZ82: 0 | EA82: 0 | EB82: 0 | EC82: 0 | ED82: 0 | EE82: 0 | EF82: 0 | EG82: 0 | EH82: 0 | EI82: 0 | EJ82: 0 | EK82: 0 | EL82: 0 | EM82: 0 | EN82: 0 | EO82: 0 | EP82: 0 | EQ82: 0 | ER82: 0 | ES82: 0 | ET82: 0 | EU82: 0 | EV82: 0 | EW82: 0 | EX82: 0 | EY82: 0 | EZ82: 0 | FA82: 0 | FB82: 0 | FC82: 0 | FD82: 0 | FE82: 0 | FF82: 0 | FG82: 0 | FH82: 0 | FI82: 0 | FJ82: 0 | FK82: 0 | FL82: 0 | FM82: 0 | FN82: 0 | FO82: 0 | FP82: 0 | FQ82: 0 | FR82: 0 | FS82: 0 | FT82: 0 | FU82: 0 | FV82: 0 | FW82: 0 | FX82: 0 | FY82: 0 | FZ82: 0 | GA82: 0 | GB82: 0 | GC82: 0 | GD82: 0 | GE82: 0 | GF82: 0 | GG82: 0 | GH82: 0
CV83: 0 | CW83: 0 | CX83: 0 | CY83: 0 | CZ83: 0 | DA83: 0 | DB83: 0 | DC83: 0 | DD83: 0 | DE83: 0 | DF83: 0 | DG83: 0 | DH83: 0 | DI83: 0 | DJ83: 0 | DK83: 0 | DL83: 0 | DM83: 0 | DN83: 0 | DO83: 0 | DP83: 0 | DQ83: 0 | DR83: 0 | DS83: 0 | DT83: 0 | DU83: 0 | DV83: 0 | DW83: 0 | DX83: 0 | DY83: 0 | DZ83: 0 | EA83: 0 | EB83: 0 | EC83: 0 | ED83: 0 | EE83: 0 | EF83: 0 | EG83: 0 | EH83: 0 | EI83: 0 | EJ83: 0 | EK83: 0 | EL83: 0 | EM83: 0 | EN83: 0 | EO83: 0 | EP83: 0 | EQ83: 0 | ER83: 0 | ES83: 0 | ET83: 0 | EU83: 0 | EV83: 0 | EW83: 0 | EX83: 0 | EY83: 0 | EZ83: 0 | FA83: 0 | FB83: 0 | FC83: 0 | FD83: 0 | FE83: 0 | FF83: 0 | FG83: 0 | FH83: 0 | FI83: 0 | FJ83: 0 | FK83: 0 | FL83: 0 | FM83: 0 | FN83: 0 | FO83: 0 | FP83: 0 | FQ83: 0 | FR83: 0 | FS83: 0 | FT83: 0 | FU83: 0 | FV83: 0 | FW83: 0 | FX83: 0 | FY83: 0 | FZ83: 0 | GA83: 0 | GB83: 0 | GC83: 0 | GD83: 0 | GE83: 0 | GF83: 0 | GG83: 0 | GH83: 0
CV84: 0 | CW84: 0 | CX84: 0 | CY84: 0 | CZ84: 0 | DA84: 0 | DB84: 0 | DC84: 0 | DD84: 0 | DE84: 0 | DF84: 0 | DG84: 0 | DH84: 0 | DI84: 0 | DJ84: 0 | DK84: 0 | DL84: 0 | DM84: 0 | DN84: 0 | DO84: 0 | DP84: 0 | DQ84: 0 | DR84: 0 | DS84: 0 | DT84: 0 | DU84: 0 | DV84: 0 | DW84: 0 | DX84: 0 | DY84: 0 | DZ84: 0 | EA84: 0 | EB84: 0 | EC84: 0 | ED84: 0 | EE84: 0 | EF84: 0 | EG84: 0 | EH84: 0 | EI84: 0 | EJ84: 0 | EK84: 0 | EL84: 0 | EM84: 0 | EN84: 0 | EO84: 0 | EP84: 0 | EQ84: 0 | ER84: 0 | ES84: 0 | ET84: 0 | EU84: 0 | EV84: 0 | EW84: 0 | EX84: 0 | EY84: 0 | EZ84: 0 | FA84: 0 | FB84: 0 | FC84: 0 | FD84: 0 | FE84: 0 | FF84: 0 | FG84: 0 | FH84: 0 | FI84: 0 | FJ84: 0 | FK84: 0 | FL84: 0 | FM84: 0 | FN84: 0 | FO84: 0 | FP84: 0 | FQ84: 0 | FR84: 0 | FS84: 0 | FT84: 0 | FU84: 0 | FV84: 0 | FW84: 0 | FX84: 0 | FY84: 0 | FZ84: 0 | GA84: 0 | GB84: 0 | GC84: 0 | GD84: 0 | GE84: 0 | GF84: 0 | GG84: 0 | GH84: 0
CV85: 0 | CW85: 0 | CX85: 0 | CY85: 0 | CZ85: 0 | DA85: 0 | DB85: 0 | DC85: 0 | DD85: 0 | DE85: 0 | DF85: 0 | DG85: 0 | DH85: 0 | DI85: 0 | DJ85: 0 | DK85: 0 | DL85: 0 | DM85: 0 | DN85: 0 | DO85: 0 | DP85: 0 | DQ85: 0 | DR85: 0 | DS85: 0 | DT85: 0 | DU85: 0 | DV85: 0 | DW85: 0 | DX85: 0 | DY85: 0 | DZ85: 0 | EA85: 0 | EB85: 0 | EC85: 0 | ED85: 0 | EE85: 0 | EF85: 0 | EG85: 0 | EH85: 0 | EI85: 0 | EJ85: 0 | EK85: 0 | EL85: 0 | EM85: 0 | EN85: 0 | EO85: 0 | EP85: 0 | EQ85: 0 | ER85: 0 | ES85: 0 | ET85: 0 | EU85: 0 | EV85: 0 | EW85: 0 | EX85: 0 | EY85: 0 | EZ85: 0 | FA85: 0 | FB85: 0 | FC85: 0 | FD85: 0 | FE85: 0 | FF85: 0 | FG85: 0 | FH85: 0 | FI85: 0 | FJ85: 0 | FK85: 0 | FL85: 0 | FM85: 0 | FN85: 0 | FO85: 0 | FP85: 0 | FQ85: 0 | FR85: 0 | FS85: 0 | FT85: 0 | FU85: 0 | FV85: 0 | FW85: 0 | FX85: 0 | FY85: 0 | FZ85: 0 | GA85: 0 | GB85: 0 | GC85: 0 | GD85: 0 | GE85: 0 | GF85: 0 | GG85: 0 | GH85: 0
CV86: =IFERROR($D86*H86,"") -> 0 | CW86: =IFERROR($D86*I86,"") -> 0 | CX86: =IFERROR($D86*J86,"") -> 0 | CY86: =IFERROR($D86*K86,"") -> 0 | CZ86: =IFERROR($D86*L86,"") -> 0 | DA86: =IFERROR($D86*M86,"") -> 0 | DB86: =IFERROR($D86*N86,"") -> 0 | DC86: =IFERROR($D86*O86,"") -> 0 | DD86: =IFERROR($D86*P86,"") -> 0 | DE86: =IFERROR($D86*Q86,"") -> 0 | DF86: =IFERROR($D86*R86,"") -> 0 | DG86: =IFERROR($D86*S86,"") -> 0 | DH86: =IFERROR($D86*T86,"") -> 0 | DI86: =IFERROR($D86*U86,"") -> 0 | DJ86: =IFERROR($D86*V86,"") -> 0 | DK86: =IFERROR($D86*W86,"") -> 0 | DL86: =IFERROR($D86*X86,"") -> 0 | DM86: =IFERROR($D86*Y86,"") -> 0 | DN86: =IFERROR($D86*Z86,"") -> 0 | DO86: =IFERROR($D86*AA86,"") -> 0 | DP86: =IFERROR($D86*AB86,"") -> 0 | DQ86: =IFERROR($D86*AC86,"") -> 0 | DR86: =IFERROR($D86*AD86,"") -> 0 | DS86: =IFERROR($D86*AE86,"") -> 0 | DT86: =IFERROR($D86*AF86,"") -> 0 | DU86: =IFERROR($D86*AG86,"") -> 0 | DV86: =IFERROR($D86*AH86,"") -> 0 | DW86: =IFERROR($D86*AI86,"") -> 0 | DX86: =IFERROR($D86*AJ86,"") -> 0 | DY86: =IFERROR($D86*AK86,"") -> 0 | DZ86: =IFERROR($D86*AL86,"") -> 0 | EA86: =IFERROR($D86*AM86,"") -> 0 | EB86: =IFERROR($D86*AN86,"") -> 0 | EC86: =IFERROR($D86*AO86,"") -> 0 | ED86: =IFERROR($D86*AP86,"") -> 0 | EE86: =IFERROR($D86*AQ86,"") -> 0 | EF86: =IFERROR($D86*AR86,"") -> 0 | EG86: =IFERROR($D86*AS86,"") -> 0 | EH86: =IFERROR($D86*AT86,"") -> 0 | EI86: =IFERROR($D86*AU86,"") -> 0 | EJ86: =IFERROR($D86*AV86,"") -> 0 | EK86: =IFERROR($D86*AW86,"") -> 0 | EL86: =IFERROR($D86*AX86,"") -> 0 | EM86: =IFERROR($D86*AY86,"") -> 0 | EN86: =IFERROR($D86*AZ86,"") -> 0 | EO86: =IFERROR($D86*BA86,"") -> 0 | EP86: =IFERROR($D86*BB86,"") -> 0 | EQ86: =IFERROR($D86*BC86,"") -> 0 | ER86: =IFERROR($D86*BD86,"") -> 0 | ES86: =IFERROR($D86*BE86,"") -> 0 | ET86: =IFERROR($D86*BF86,"") -> 0 | EU86: =IFERROR($D86*BG86,"") -> 0 | EV86: =IFERROR($D86*BH86,"") -> 0 | EW86: =IFERROR($D86*BI86,"") -> 0 | EX86: =IFERROR($D86*BJ86,"") -> 0 | EY86: =IFERROR($D86*BK86,"") -> 0 | EZ86: =IFERROR($D86*BL86,"") -> 0 | FA86: =IFERROR($D86*BM86,"") -> 0 | FB86: =IFERROR($D86*BN86,"") -> 0 | FC86: =IFERROR($D86*BO86,"") -> 0 | FD86: =IFERROR($D86*BP86,"") -> 0 | FE86: =IFERROR($D86*BQ86,"") -> 0 | FF86: =IFERROR($D86*BR86,"") -> 0 | FG86: =IFERROR($D86*BS86,"") -> 0 | FH86: =IFERROR($D86*BT86,"") -> 0 | FI86: =IFERROR($D86*BU86,"") -> 0 | FJ86: =IFERROR($D86*BV86,"") -> 0 | FK86: =IFERROR($D86*BW86,"") -> 0 | FL86: =IFERROR($D86*BX86,"") -> 0 | FM86: =IFERROR($D86*BY86,"") -> 0 | FN86: =IFERROR($D86*BZ86,"") -> 0 | FO86: =IFERROR($D86*CA86,"") -> 0 | FP86: =IFERROR($D86*CB86,"") -> 0 | FQ86: =IFERROR($D86*CC86,"") -> 0 | FR86: =IFERROR($D86*CD86,"") -> 0 | FS86: =IFERROR($D86*CE86,"") -> 0 | FT86: =IFERROR($D86*CF86,"") -> 0 | FU86: =IFERROR($D86*CG86,"") -> 0 | FV86: =IFERROR($D86*CH86,"") -> 0 | FW86: =IFERROR($D86*CI86,"") -> 0 | FX86: =IFERROR($D86*CJ86,"") -> 0 | FY86: =IFERROR($D86*CK86,"") -> 0 | FZ86: =IFERROR($D86*CL86,"") -> 0 | GA86: =IFERROR($D86*CM86,"") -> 0 | GB86: =IFERROR($D86*CN86,"") -> 0 | GC86: =IFERROR($D86*CO86,"") -> 0 | GD86: =IFERROR($D86*CP86,"") -> 0 | GE86: =IFERROR($D86*CQ86,"") -> 0 | GF86: =IFERROR($D86*CR86,"") -> 0 | GG86: =IFERROR($D86*CS86,"") -> 0 | GH86: =IFERROR($D86*CT86,"") -> 0
CV87: 0 | CW87: 0 | CX87: 0 | CY87: 0 | CZ87: 0 | DA87: 0 | DB87: 0 | DC87: 0 | DD87: 0 | DE87: 0 | DF87: 0 | DG87: 0 | DH87: 0 | DI87: 0 | DJ87: 0 | DK87: 0 | DL87: 0 | DM87: 0 | DN87: 0 | DO87: 0 | DP87: 0 | DQ87: 0 | DR87: 0 | DS87: 0 | DT87: 0 | DU87: 0 | DV87: 0 | DW87: 0 | DX87: 0 | DY87: 0 | DZ87: 0 | EA87: 0 | EB87: 0 | EC87: 0 | ED87: 0 | EE87: 0 | EF87: 0 | EG87: 0 | EH87: 0 | EI87: 0 | EJ87: 0 | EK87: 0 | EL87: 0 | EM87: 0 | EN87: 0 | EO87: 0 | EP87: 0 | EQ87: 0 | ER87: 0 | ES87: 0 | ET87: 0 | EU87: 0 | EV87: 0 | EW87: 0 | EX87: 0 | EY87: 0 | EZ87: 0 | FA87: 0 | FB87: 0 | FC87: 0 | FD87: 0 | FE87: 0 | FF87: 0 | FG87: 0 | FH87: 0 | FI87: 0 | FJ87: 0 | FK87: 0 | FL87: 0 | FM87: 0 | FN87: 0 | FO87: 0 | FP87: 0 | FQ87: 0 | FR87: 0 | FS87: 0 | FT87: 0 | FU87: 0 | FV87: 0 | FW87: 0 | FX87: 0 | FY87: 0 | FZ87: 0 | GA87: 0 | GB87: 0 | GC87: 0 | GD87: 0 | GE87: 0 | GF87: 0 | GG87: 0 | GH87: 0
CV88: 0 | CW88: 0 | CX88: 0 | CY88: 0 | CZ88: 0 | DA88: 0 | DB88: 0 | DC88: 0 | DD88: 0 | DE88: 0 | DF88: 0 | DG88: 0 | DH88: 0 | DI88: 0 | DJ88: 0 | DK88: 0 | DL88: 0 | DM88: 0 | DN88: 0 | DO88: 0 | DP88: 0 | DQ88: 0 | DR88: 0 | DS88: 0 | DT88: 0 | DU88: 0 | DV88: 0 | DW88: 0 | DX88: 0 | DY88: 0 | DZ88: 0 | EA88: 0 | EB88: 0 | EC88: 0 | ED88: 0 | EE88: 0 | EF88: 0 | EG88: 0 | EH88: 0 | EI88: 0 | EJ88: 0 | EK88: 0 | EL88: 0 | EM88: 0 | EN88: 0 | EO88: 0 | EP88: 0 | EQ88: 0 | ER88: 0 | ES88: 0 | ET88: 0 | EU88: 0 | EV88: 0 | EW88: 0 | EX88: 0 | EY88: 0 | EZ88: 0 | FA88: 0 | FB88: 0 | FC88: 0 | FD88: 0 | FE88: 0 | FF88: 0 | FG88: 0 | FH88: 0 | FI88: 0 | FJ88: 0 | FK88: 0 | FL88: 0 | FM88: 0 | FN88: 0 | FO88: 0 | FP88: 0 | FQ88: 0 | FR88: 0 | FS88: 0 | FT88: 0 | FU88: 0 | FV88: 0 | FW88: 0 | FX88: 0 | FY88: 0 | FZ88: 0 | GA88: 0 | GB88: 0 | GC88: 0 | GD88: 0 | GE88: 0 | GF88: 0 | GG88: 0 | GH88: 0
CV89: 0 | CW89: 0 | CX89: 0 | CY89: 0 | CZ89: 0 | DA89: 0 | DB89: 0 | DC89: 0 | DD89: 0 | DE89: 0 | DF89: 0 | DG89: 0 | DH89: 0 | DI89: 0 | DJ89: 0 | DK89: 0 | DL89: 0 | DM89: 0 | DN89: 0 | DO89: 0 | DP89: 0 | DQ89: 0 | DR89: 0 | DS89: 0 | DT89: 0 | DU89: 0 | DV89: 0 | DW89: 0 | DX89: 0 | DY89: 0 | DZ89: 0 | EA89: 0 | EB89: 0 | EC89: 0 | ED89: 0 | EE89: 0 | EF89: 0 | EG89: 0 | EH89: 0 | EI89: 0 | EJ89: 0 | EK89: 0 | EL89: 0 | EM89: 0 | EN89: 0 | EO89: 0 | EP89: 0 | EQ89: 0 | ER89: 0 | ES89: 0 | ET89: 0 | EU89: 0 | EV89: 0 | EW89: 0 | EX89: 0 | EY89: 0 | EZ89: 0 | FA89: 0 | FB89: 0 | FC89: 0 | FD89: 0 | FE89: 0 | FF89: 0 | FG89: 0 | FH89: 0 | FI89: 0 | FJ89: 0 | FK89: 0 | FL89: 0 | FM89: 0 | FN89: 0 | FO89: 0 | FP89: 0 | FQ89: 0 | FR89: 0 | FS89: 0 | FT89: 0 | FU89: 0 | FV89: 0 | FW89: 0 | FX89: 0 | FY89: 0 | FZ89: 0 | GA89: 0 | GB89: 0 | GC89: 0 | GD89: 0 | GE89: 0 | GF89: 0 | GG89: 0 | GH89: 0
CV90: 0 | CW90: 0 | CX90: 0 | CY90: 0 | CZ90: 0 | DA90: 0 | DB90: 0 | DC90: 0 | DD90: 0 | DE90: 0 | DF90: 0 | DG90: 0 | DH90: 0 | DI90: 0 | DJ90: 0 | DK90: 0 | DL90: 0 | DM90: 0 | DN90: 0 | DO90: 0 | DP90: 0 | DQ90: 0 | DR90: 0 | DS90: 0 | DT90: 0 | DU90: 0 | DV90: 0 | DW90: 0 | DX90: 0 | DY90: 0 | DZ90: 0 | EA90: 0 | EB90: 0 | EC90: 0 | ED90: 0 | EE90: 0 | EF90: 0 | EG90: 0 | EH90: 0 | EI90: 0 | EJ90: 0 | EK90: 0 | EL90: 0 | EM90: 0 | EN90: 0 | EO90: 0 | EP90: 0 | EQ90: 0 | ER90: 0 | ES90: 0 | ET90: 0 | EU90: 0 | EV90: 0 | EW90: 0 | EX90: 0 | EY90: 0 | EZ90: 0 | FA90: 0 | FB90: 0 | FC90: 0 | FD90: 0 | FE90: 0 | FF90: 0 | FG90: 0 | FH90: 0 | FI90: 0 | FJ90: 0 | FK90: 0 | FL90: 0 | FM90: 0 | FN90: 0 | FO90: 0 | FP90: 0 | FQ90: 0 | FR90: 0 | FS90: 0 | FT90: 0 | FU90: 0 | FV90: 0 | FW90: 0 | FX90: 0 | FY90: 0 | FZ90: 0 | GA90: 0 | GB90: 0 | GC90: 0 | GD90: 0 | GE90: 0 | GF90: 0 | GG90: 0 | GH90: 0
CV91: 0 | CW91: 0 | CX91: 0 | CY91: 0 | CZ91: 0 | DA91: 0 | DB91: 0 | DC91: 0 | DD91: 0 | DE91: 0 | DF91: 0 | DG91: 0 | DH91: 0 | DI91: 0 | DJ91: 0 | DK91: 0 | DL91: 0 | DM91: 0 | DN91: 0 | DO91: 0 | DP91: 0 | DQ91: 0 | DR91: 0 | DS91: 0 | DT91: 0 | DU91: 0 | DV91: 0 | DW91: 0 | DX91: 0 | DY91: 0 | DZ91: 0 | EA91: 0 | EB91: 0 | EC91: 0 | ED91: 0 | EE91: 0 | EF91: 0 | EG91: 0 | EH91: 0 | EI91: 0 | EJ91: 0 | EK91: 0 | EL91: 0 | EM91: 0 | EN91: 0 | EO91: 0 | EP91: 0 | EQ91: 0 | ER91: 0 | ES91: 0 | ET91: 0 | EU91: 0 | EV91: 0 | EW91: 0 | EX91: 0 | EY91: 0 | EZ91: 0 | FA91: 0 | FB91: 0 | FC91: 0 | FD91: 0 | FE91: 0 | FF91: 0 | FG91: 0 | FH91: 0 | FI91: 0 | FJ91: 0 | FK91: 0 | FL91: 0 | FM91: 0 | FN91: 0 | FO91: 0 | FP91: 0 | FQ91: 0 | FR91: 0 | FS91: 0 | FT91: 0 | FU91: 0 | FV91: 0 | FW91: 0 | FX91: 0 | FY91: 0 | FZ91: 0 | GA91: 0 | GB91: 0 | GC91: 0 | GD91: 0 | GE91: 0 | GF91: 0 | GG91: 0 | GH91: 0
CV92: 0 | CW92: 0 | CX92: 0 | CY92: 0 | CZ92: 0 | DA92: 0 | DB92: 0 | DC92: 0 | DD92: 0 | DE92: 0 | DF92: 0 | DG92: 0 | DH92: 0 | DI92: 0 | DJ92: 0 | DK92: 0 | DL92: 0 | DM92: 0 | DN92: 0 | DO92: 0 | DP92: 0 | DQ92: 0 | DR92: 0 | DS92: 0 | DT92: 0 | DU92: 0 | DV92: 0 | DW92: 0 | DX92: 0 | DY92: 0 | DZ92: 0 | EA92: 0 | EB92: 0 | EC92: 0 | ED92: 0 | EE92: 0 | EF92: 0 | EG92: 0 | EH92: 0 | EI92: 0 | EJ92: 0 | EK92: 0 | EL92: 0 | EM92: 0 | EN92: 0 | EO92: 0 | EP92: 0 | EQ92: 0 | ER92: 0 | ES92: 0 | ET92: 0 | EU92: 0 | EV92: 0 | EW92: 0 | EX92: 0 | EY92: 0 | EZ92: 0 | FA92: 0 | FB92: 0 | FC92: 0 | FD92: 0 | FE92: 0 | FF92: 0 | FG92: 0 | FH92: 0 | FI92: 0 | FJ92: 0 | FK92: 0 | FL92: 0 | FM92: 0 | FN92: 0 | FO92: 0 | FP92: 0 | FQ92: 0 | FR92: 0 | FS92: 0 | FT92: 0 | FU92: 0 | FV92: 0 | FW92: 0 | FX92: 0 | FY92: 0 | FZ92: 0 | GA92: 0 | GB92: 0 | GC92: 0 | GD92: 0 | GE92: 0 | GF92: 0 | GG92: 0 | GH92: 0
CV93: 0 | CW93: 0 | CX93: 0 | CY93: 0 | CZ93: 0 | DA93: 0 | DB93: 0 | DC93: 0 | DD93: 0 | DE93: 0 | DF93: 0 | DG93: 0 | DH93: 0 | DI93: 0 | DJ93: 0 | DK93: 0 | DL93: 0 | DM93: 0 | DN93: 0 | DO93: 0 | DP93: 0 | DQ93: 0 | DR93: 0 | DS93: 0 | DT93: 0 | DU93: 0 | DV93: 0 | DW93: 0 | DX93: 0 | DY93: 0 | DZ93: 0 | EA93: 0 | EB93: 0 | EC93: 0 | ED93: 0 | EE93: 0 | EF93: 0 | EG93: 0 | EH93: 0 | EI93: 0 | EJ93: 0 | EK93: 0 | EL93: 0 | EM93: 0 | EN93: 0 | EO93: 0 | EP93: 0 | EQ93: 0 | ER93: 0 | ES93: 0 | ET93: 0 | EU93: 0 | EV93: 0 | EW93: 0 | EX93: 0 | EY93: 0 | EZ93: 0 | FA93: 0 | FB93: 0 | FC93: 0 | FD93: 0 | FE93: 0 | FF93: 0 | FG93: 0 | FH93: 0 | FI93: 0 | FJ93: 0 | FK93: 0 | FL93: 0 | FM93: 0 | FN93: 0 | FO93: 0 | FP93: 0 | FQ93: 0 | FR93: 0 | FS93: 0 | FT93: 0 | FU93: 0 | FV93: 0 | FW93: 0 | FX93: 0 | FY93: 0 | FZ93: 0 | GA93: 0 | GB93: 0 | GC93: 0 | GD93: 0 | GE93: 0 | GF93: 0 | GG93: 0 | GH93: 0
CV94: 0 | CW94: 0 | CX94: 0 | CY94: 0 | CZ94: 0 | DA94: 0 | DB94: 0 | DC94: 0 | DD94: 0 | DE94: 0 | DF94: 0 | DG94: 0 | DH94: 0 | DI94: 0 | DJ94: 0 | DK94: 0 | DL94: 0 | DM94: 0 | DN94: 0 | DO94: 0 | DP94: 0 | DQ94: 0 | DR94: 0 | DS94: 0 | DT94: 0 | DU94: 0 | DV94: 0 | DW94: 0 | DX94: 0 | DY94: 0 | DZ94: 0 | EA94: 0 | EB94: 0 | EC94: 0 | ED94: 0 | EE94: 0 | EF94: 0 | EG94: 0 | EH94: 0 | EI94: 0 | EJ94: 0 | EK94: 0 | EL94: 0 | EM94: 0 | EN94: 0 | EO94: 0 | EP94: 0 | EQ94: 0 | ER94: 0 | ES94: 0 | ET94: 0 | EU94: 0 | EV94: 0 | EW94: 0 | EX94: 0 | EY94: 0 | EZ94: 0 | FA94: 0 | FB94: 0 | FC94: 0 | FD94: 0 | FE94: 0 | FF94: 0 | FG94: 0 | FH94: 0 | FI94: 0 | FJ94: 0 | FK94: 0 | FL94: 0 | FM94: 0 | FN94: 0 | FO94: 0 | FP94: 0 | FQ94: 0 | FR94: 0 | FS94: 0 | FT94: 0 | FU94: 0 | FV94: 0 | FW94: 0 | FX94: 0 | FY94: 0 | FZ94: 0 | GA94: 0 | GB94: 0 | GC94: 0 | GD94: 0 | GE94: 0 | GF94: 0 | GG94: 0 | GH94: 0
CV95: 0 | CW95: 0 | CX95: 0 | CY95: 0 | CZ95: 0 | DA95: 0 | DB95: 0 | DC95: 0 | DD95: 0 | DE95: 0 | DF95: 0 | DG95: 0 | DH95: 0 | DI95: 0 | DJ95: 0 | DK95: 0 | DL95: 0 | DM95: 0 | DN95: 0 | DO95: 0 | DP95: 0 | DQ95: 0 | DR95: 0 | DS95: 0 | DT95: 0 | DU95: 0 | DV95: 0 | DW95: 0 | DX95: 0 | DY95: 0 | DZ95: 0 | EA95: 0 | EB95: 0 | EC95: 0 | ED95: 0 | EE95: 0 | EF95: 0 | EG95: 0 | EH95: 0 | EI95: 0 | EJ95: 0 | EK95: 0 | EL95: 0 | EM95: 0 | EN95: 0 | EO95: 0 | EP95: 0 | EQ95: 0 | ER95: 0 | ES95: 0 | ET95: 0 | EU95: 0 | EV95: 0 | EW95: 0 | EX95: 0 | EY95: 0 | EZ95: 0 | FA95: 0 | FB95: 0 | FC95: 0 | FD95: 0 | FE95: 0 | FF95: 0 | FG95: 0 | FH95: 0 | FI95: 0 | FJ95: 0 | FK95: 0 | FL95: 0 | FM95: 0 | FN95: 0 | FO95: 0 | FP95: 0 | FQ95: 0 | FR95: 0 | FS95: 0 | FT95: 0 | FU95: 0 | FV95: 0 | FW95: 0 | FX95: 0 | FY95: 0 | FZ95: 0 | GA95: 0 | GB95: 0 | GC95: 0 | GD95: 0 | GE95: 0 | GF95: 0 | GG95: 0 | GH95: 0
CV96: 0 | CW96: 0 | CX96: 0 | CY96: 0 | CZ96: 0 | DA96: 0 | DB96: 0 | DC96: 0 | DD96: 0 | DE96: 0 | DF96: 0 | DG96: 0 | DH96: 0 | DI96: 0 | DJ96: 0 | DK96: 0 | DL96: 0 | DM96: 0 | DN96: 0 | DO96: 0 | DP96: 0 | DQ96: 0 | DR96: 0 | DS96: 0 | DT96: 0 | DU96: 0 | DV96: 0 | DW96: 0 | DX96: 0 | DY96: 0 | DZ96: 0 | EA96: 0 | EB96: 0 | EC96: 0 | ED96: 0 | EE96: 0 | EF96: 0 | EG96: 0 | EH96: 0 | EI96: 0 | EJ96: 0 | EK96: 0 | EL96: 0 | EM96: 0 | EN96: 0 | EO96: 0 | EP96: 0 | EQ96: 0 | ER96: 0 | ES96: 0 | ET96: 0 | EU96: 0 | EV96: 0 | EW96: 0 | EX96: 0 | EY96: 0 | EZ96: 0 | FA96: 0 | FB96: 0 | FC96: 0 | FD96: 0 | FE96: 0 | FF96: 0 | FG96: 0 | FH96: 0 | FI96: 0 | FJ96: 0 | FK96: 0 | FL96: 0 | FM96: 0 | FN96: 0 | FO96: 0 | FP96: 0 | FQ96: 0 | FR96: 0 | FS96: 0 | FT96: 0 | FU96: 0 | FV96: 0 | FW96: 0 | FX96: 0 | FY96: 0 | FZ96: 0 | GA96: 0 | GB96: 0 | GC96: 0 | GD96: 0 | GE96: 0 | GF96: 0 | GG96: 0 | GH96: 0
CV97: 0 | CW97: 0 | CX97: 0 | CY97: 0 | CZ97: 0 | DA97: 0 | DB97: 0 | DC97: 0 | DD97: 0 | DE97: 0 | DF97: 0 | DG97: 0 | DH97: 0 | DI97: 0 | DJ97: 0 | DK97: 0 | DL97: 0 | DM97: 0 | DN97: 0 | DO97: 0 | DP97: 0 | DQ97: 0 | DR97: 0 | DS97: 0 | DT97: 0 | DU97: 0 | DV97: 0 | DW97: 0 | DX97: 0 | DY97: 0 | DZ97: 0 | EA97: 0 | EB97: 0 | EC97: 0 | ED97: 0 | EE97: 0 | EF97: 0 | EG97: 0 | EH97: 0 | EI97: 0 | EJ97: 0 | EK97: 0 | EL97: 0 | EM97: 0 | EN97: 0 | EO97: 0 | EP97: 0 | EQ97: 0 | ER97: 0 | ES97: 0 | ET97: 0 | EU97: 0 | EV97: 0 | EW97: 0 | EX97: 0 | EY97: 0 | EZ97: 0 | FA97: 0 | FB97: 0 | FC97: 0 | FD97: 0 | FE97: 0 | FF97: 0 | FG97: 0 | FH97: 0 | FI97: 0 | FJ97: 0 | FK97: 0 | FL97: 0 | FM97: 0 | FN97: 0 | FO97: 0 | FP97: 0 | FQ97: 0 | FR97: 0 | FS97: 0 | FT97: 0 | FU97: 0 | FV97: 0 | FW97: 0 | FX97: 0 | FY97: 0 | FZ97: 0 | GA97: 0 | GB97: 0 | GC97: 0 | GD97: 0 | GE97: 0 | GF97: 0 | GG97: 0 | GH97: 0
CV98: 0 | CW98: 0 | CX98: 0 | CY98: 0 | CZ98: 0 | DA98: 0 | DB98: 0 | DC98: 0 | DD98: 0 | DE98: 0 | DF98: 0 | DG98: 0 | DH98: 0 | DI98: 0 | DJ98: 0 | DK98: 0 | DL98: 0 | DM98: 0 | DN98: 0 | DO98: 0 | DP98: 0 | DQ98: 0 | DR98: 0 | DS98: 0 | DT98: 0 | DU98: 0 | DV98: 0 | DW98: 0 | DX98: 0 | DY98: 0 | DZ98: 0 | EA98: 0 | EB98: 0 | EC98: 0 | ED98: 0 | EE98: 0 | EF98: 0 | EG98: 0 | EH98: 0 | EI98: 0 | EJ98: 0 | EK98: 0 | EL98: 0 | EM98: 0 | EN98: 0 | EO98: 0 | EP98: 0 | EQ98: 0 | ER98: 0 | ES98: 0 | ET98: 0 | EU98: 0 | EV98: 0 | EW98: 0 | EX98: 0 | EY98: 0 | EZ98: 0 | FA98: 0 | FB98: 0 | FC98: 0 | FD98: 0 | FE98: 0 | FF98: 0 | FG98: 0 | FH98: 0 | FI98: 0 | FJ98: 0 | FK98: 0 | FL98: 0 | FM98: 0 | FN98: 0 | FO98: 0 | FP98: 0 | FQ98: 0 | FR98: 0 | FS98: 0 | FT98: 0 | FU98: 0 | FV98: 0 | FW98: 0 | FX98: 0 | FY98: 0 | FZ98: 0 | GA98: 0 | GB98: 0 | GC98: 0 | GD98: 0 | GE98: 0 | GF98: 0 | GG98: 0 | GH98: 0
CV99: 0 | CW99: 0 | CX99: 0 | CY99: 0 | CZ99: 0 | DA99: 0 | DB99: 0 | DC99: 0 | DD99: 0 | DE99: 0 | DF99: 0 | DG99: 0 | DH99: 0 | DI99: 0 | DJ99: 0 | DK99: 0 | DL99: 0 | DM99: 0 | DN99: 0 | DO99: 0 | DP99: 0 | DQ99: 0 | DR99: 0 | DS99: 0 | DT99: 0 | DU99: 0 | DV99: 0 | DW99: 0 | DX99: 0 | DY99: 0 | DZ99: 0 | EA99: 0 | EB99: 0 | EC99: 0 | ED99: 0 | EE99: 0 | EF99: 0 | EG99: 0 | EH99: 0 | EI99: 0 | EJ99: 0 | EK99: 0 | EL99: 0 | EM99: 0 | EN99: 0 | EO99: 0 | EP99: 0 | EQ99: 0 | ER99: 0 | ES99: 0 | ET99: 0 | EU99: 0 | EV99: 0 | EW99: 0 | EX99: 0 | EY99: 0 | EZ99: 0 | FA99: 0 | FB99: 0 | FC99: 0 | FD99: 0 | FE99: 0 | FF99: 0 | FG99: 0 | FH99: 0 | FI99: 0 | FJ99: 0 | FK99: 0 | FL99: 0 | FM99: 0 | FN99: 0 | FO99: 0 | FP99: 0 | FQ99: 0 | FR99: 0 | FS99: 0 | FT99: 0 | FU99: 0 | FV99: 0 | FW99: 0 | FX99: 0 | FY99: 0 | FZ99: 0 | GA99: 0 | GB99: 0 | GC99: 0 | GD99: 0 | GE99: 0 | GF99: 0 | GG99: 0 | GH99: 0
CV100: 0 | CW100: 0 | CX100: 0 | CY100: 0 | CZ100: 0 | DA100: 0 | DB100: 0 | DC100: 0 | DD100: 0 | DE100: 0 | DF100: 0 | DG100: 0 | DH100: 0 | DI100: 0 | DJ100: 0 | DK100: 0 | DL100: 0 | DM100: 0 | DN100: 0 | DO100: 0 | DP100: 0 | DQ100: 0 | DR100: 0 | DS100: 0 | DT100: 0 | DU100: 0 | DV100: 0 | DW100: 0 | DX100: 0 | DY100: 0 | DZ100: 0 | EA100: 0 | EB100: 0 | EC100: 0 | ED100: 0 | EE100: 0 | EF100: 0 | EG100: 0 | EH100: 0 | EI100: 0 | EJ100: 0 | EK100: 0 | EL100: 0 | EM100: 0 | EN100: 0 | EO100: 0 | EP100: 0 | EQ100: 0 | ER100: 0 | ES100: 0 | ET100: 0 | EU100: 0 | EV100: 0 | EW100: 0 | EX100: 0 | EY100: 0 | EZ100: 0 | FA100: 0 | FB100: 0 | FC100: 0 | FD100: 0 | FE100: 0 | FF100: 0 | FG100: 0 | FH100: 0 | FI100: 0 | FJ100: 0 | FK100: 0 | FL100: 0 | FM100: 0 | FN100: 0 | FO100: 0 | FP100: 0 | FQ100: 0 | FR100: 0 | FS100: 0 | FT100: 0 | FU100: 0 | FV100: 0 | FW100: 0 | FX100: 0 | FY100: 0 | FZ100: 0 | GA100: 0 | GB100: 0 | GC100: 0 | GD100: 0 | GE100: 0 | GF100: 0 | GG100: 0 | GH100: 0
CV101: 0 | CW101: 0 | CX101: 0 | CY101: 0 | CZ101: 0 | DA101: 0 | DB101: 0 | DC101: 0 | DD101: 0 | DE101: 0 | DF101: 0 | DG101: 0 | DH101: 0 | DI101: 0 | DJ101: 0 | DK101: 0 | DL101: 0 | DM101: 0 | DN101: 0 | DO101: 0 | DP101: 0 | DQ101: 0 | DR101: 0 | DS101: 0 | DT101: 0 | DU101: 0 | DV101: 0 | DW101: 0 | DX101: 0 | DY101: 0 | DZ101: 0 | EA101: 0 | EB101: 0 | EC101: 0 | ED101: 0 | EE101: 0 | EF101: 0 | EG101: 0 | EH101: 0 | EI101: 0 | EJ101: 0 | EK101: 0 | EL101: 0 | EM101: 0 | EN101: 0 | EO101: 0 | EP101: 0 | EQ101: 0 | ER101: 0 | ES101: 0 | ET101: 0 | EU101: 0 | EV101: 0 | EW101: 0 | EX101: 0 | EY101: 0 | EZ101: 0 | FA101: 0 | FB101: 0 | FC101: 0 | FD101: 0 | FE101: 0 | FF101: 0 | FG101: 0 | FH101: 0 | FI101: 0 | FJ101: 0 | FK101: 0 | FL101: 0 | FM101: 0 | FN101: 0 | FO101: 0 | FP101: 0 | FQ101: 0 | FR101: 0 | FS101: 0 | FT101: 0 | FU101: 0 | FV101: 0 | FW101: 0 | FX101: 0 | FY101: 0 | FZ101: 0 | GA101: 0 | GB101: 0 | GC101: 0 | GD101: 0 | GE101: 0 | GF101: 0 | GG101: 0 | GH101: 0
CV102: 0 | CW102: 0 | CX102: 0 | CY102: 0 | CZ102: 0 | DA102: 0 | DB102: 0 | DC102: 0 | DD102: 0 | DE102: 0 | DF102: 0 | DG102: 0 | DH102: 0 | DI102: 0 | DJ102: 0 | DK102: 0 | DL102: 0 | DM102: 0 | DN102: 0 | DO102: 0 | DP102: 0 | DQ102: 0 | DR102: 0 | DS102: 0 | DT102: 0 | DU102: 0 | DV102: 0 | DW102: 0 | DX102: 0 | DY102: 0 | DZ102: 0 | EA102: 0 | EB102: 0 | EC102: 0 | ED102: 0 | EE102: 0 | EF102: 0 | EG102: 0 | EH102: 0 | EI102: 0 | EJ102: 0 | EK102: 0 | EL102: 0 | EM102: 0 | EN102: 0 | EO102: 0 | EP102: 0 | EQ102: 0 | ER102: 0 | ES102: 0 | ET102: 0 | EU102: 0 | EV102: 0 | EW102: 0 | EX102: 0 | EY102: 0 | EZ102: 0 | FA102: 0 | FB102: 0 | FC102: 0 | FD102: 0 | FE102: 0 | FF102: 0 | FG102: 0 | FH102: 0 | FI102: 0 | FJ102: 0 | FK102: 0 | FL102: 0 | FM102: 0 | FN102: 0 | FO102: 0 | FP102: 0 | FQ102: 0 | FR102: 0 | FS102: 0 | FT102: 0 | FU102: 0 | FV102: 0 | FW102: 0 | FX102: 0 | FY102: 0 | FZ102: 0 | GA102: 0 | GB102: 0 | GC102: 0 | GD102: 0 | GE102: 0 | GF102: 0 | GG102: 0 | GH102: 0
CV103: 0 | CW103: 0 | CX103: 0 | CY103: 0 | CZ103: 0 | DA103: 0 | DB103: 0 | DC103: 0 | DD103: 0 | DE103: 0 | DF103: 0 | DG103: 0 | DH103: 0 | DI103: 0 | DJ103: 0 | DK103: 0 | DL103: 0 | DM103: 0 | DN103: 0 | DO103: 0 | DP103: 0 | DQ103: 0 | DR103: 0 | DS103: 0 | DT103: 0 | DU103: 0 | DV103: 0 | DW103: 0 | DX103: 0 | DY103: 0 | DZ103: 0 | EA103: 0 | EB103: 0 | EC103: 0 | ED103: 0 | EE103: 0 | EF103: 0 | EG103: 0 | EH103: 0 | EI103: 0 | EJ103: 0 | EK103: 0 | EL103: 0 | EM103: 0 | EN103: 0 | EO103: 0 | EP103: 0 | EQ103: 0 | ER103: 0 | ES103: 0 | ET103: 0 | EU103: 0 | EV103: 0 | EW103: 0 | EX103: 0 | EY103: 0 | EZ103: 0 | FA103: 0 | FB103: 0 | FC103: 0 | FD103: 0 | FE103: 0 | FF103: 0 | FG103: 0 | FH103: 0 | FI103: 0 | FJ103: 0 | FK103: 0 | FL103: 0 | FM103: 0 | FN103: 0 | FO103: 0 | FP103: 0 | FQ103: 0 | FR103: 0 | FS103: 0 | FT103: 0 | FU103: 0 | FV103: 0 | FW103: 0 | FX103: 0 | FY103: 0 | FZ103: 0 | GA103: 0 | GB103: 0 | GC103: 0 | GD103: 0 | GE103: 0 | GF103: 0 | GG103: 0 | GH103: 0
CV104: 0 | CW104: 0 | CX104: 0 | CY104: 0 | CZ104: 0 | DA104: 0 | DB104: 0 | DC104: 0 | DD104: 0 | DE104: 0 | DF104: 0 | DG104: 0 | DH104: 0 | DI104: 0 | DJ104: 0 | DK104: 0 | DL104: 0 | DM104: 0 | DN104: 0 | DO104: 0 | DP104: 0 | DQ104: 0 | DR104: 0 | DS104: 0 | DT104: 0 | DU104: 0 | DV104: 0 | DW104: 0 | DX104: 0 | DY104: 0 | DZ104: 0 | EA104: 0 | EB104: 0 | EC104: 0 | ED104: 0 | EE104: 0 | EF104: 0 | EG104: 0 | EH104: 0 | EI104: 0 | EJ104: 0 | EK104: 0 | EL104: 0 | EM104: 0 | EN104: 0 | EO104: 0 | EP104: 0 | EQ104: 0 | ER104: 0 | ES104: 0 | ET104: 0 | EU104: 0 | EV104: 0 | EW104: 0 | EX104: 0 | EY104: 0 | EZ104: 0 | FA104: 0 | FB104: 0 | FC104: 0 | FD104: 0 | FE104: 0 | FF104: 0 | FG104: 0 | FH104: 0 | FI104: 0 | FJ104: 0 | FK104: 0 | FL104: 0 | FM104: 0 | FN104: 0 | FO104: 0 | FP104: 0 | FQ104: 0 | FR104: 0 | FS104: 0 | FT104: 0 | FU104: 0 | FV104: 0 | FW104: 0 | FX104: 0 | FY104: 0 | FZ104: 0 | GA104: 0 | GB104: 0 | GC104: 0 | GD104: 0 | GE104: 0 | GF104: 0 | GG104: 0 | GH104: 0
CV105: 0 | CW105: 0 | CX105: 0 | CY105: 0 | CZ105: 0 | DA105: 0 | DB105: 0 | DC105: 0 | DD105: 0 | DE105: 0 | DF105: 0 | DG105: 0 | DH105: 0 | DI105: 0 | DJ105: 0 | DK105: 0 | DL105: 0 | DM105: 0 | DN105: 0 | DO105: 0 | DP105: 0 | DQ105: 0 | DR105: 0 | DS105: 0 | DT105: 0 | DU105: 0 | DV105: 0 | DW105: 0 | DX105: 0 | DY105: 0 | DZ105: 0 | EA105: 0 | EB105: 0 | EC105: 0 | ED105: 0 | EE105: 0 | EF105: 0 | EG105: 0 | EH105: 0 | EI105: 0 | EJ105: 0 | EK105: 0 | EL105: 0 | EM105: 0 | EN105: 0 | EO105: 0 | EP105: 0 | EQ105: 0 | ER105: 0 | ES105: 0 | ET105: 0 | EU105: 0 | EV105: 0 | EW105: 0 | EX105: 0 | EY105: 0 | EZ105: 0 | FA105: 0 | FB105: 0 | FC105: 0 | FD105: 0 | FE105: 0 | FF105: 0 | FG105: 0 | FH105: 0 | FI105: 0 | FJ105: 0 | FK105: 0 | FL105: 0 | FM105: 0 | FN105: 0 | FO105: 0 | FP105: 0 | FQ105: 0 | FR105: 0 | FS105: 0 | FT105: 0 | FU105: 0 | FV105: 0 | FW105: 0 | FX105: 0 | FY105: 0 | FZ105: 0 | GA105: 0 | GB105: 0 | GC105: 0 | GD105: 0 | GE105: 0 | GF105: 0 | GG105: 0 | GH105: 0
CV106: 0 | CW106: 0 | CX106: 0 | CY106: 0 | CZ106: 0 | DA106: 0 | DB106: 0 | DC106: 0 | DD106: 0 | DE106: 0 | DF106: 0 | DG106: 0 | DH106: 0 | DI106: 0 | DJ106: 0 | DK106: 0 | DL106: 0 | DM106: 0 | DN106: 0 | DO106: 0 | DP106: 0 | DQ106: 0 | DR106: 0 | DS106: 0 | DT106: 0 | DU106: 0 | DV106: 0 | DW106: 0 | DX106: 0 | DY106: 0 | DZ106: 0 | EA106: 0 | EB106: 0 | EC106: 0 | ED106: 0 | EE106: 0 | EF106: 0 | EG106: 0 | EH106: 0 | EI106: 0 | EJ106: 0 | EK106: 0 | EL106: 0 | EM106: 0 | EN106: 0 | EO106: 0 | EP106: 0 | EQ106: 0 | ER106: 0 | ES106: 0 | ET106: 0 | EU106: 0 | EV106: 0 | EW106: 0 | EX106: 0 | EY106: 0 | EZ106: 0 | FA106: 0 | FB106: 0 | FC106: 0 | FD106: 0 | FE106: 0 | FF106: 0 | FG106: 0 | FH106: 0 | FI106: 0 | FJ106: 0 | FK106: 0 | FL106: 0 | FM106: 0 | FN106: 0 | FO106: 0 | FP106: 0 | FQ106: 0 | FR106: 0 | FS106: 0 | FT106: 0 | FU106: 0 | FV106: 0 | FW106: 0 | FX106: 0 | FY106: 0 | FZ106: 0 | GA106: 0 | GB106: 0 | GC106: 0 | GD106: 0 | GE106: 0 | GF106: 0 | GG106: 0 | GH106: 0
CV107: 0 | CW107: 0 | CX107: 0 | CY107: 0 | CZ107: 0 | DA107: 0 | DB107: 0 | DC107: 0 | DD107: 0 | DE107: 0 | DF107: 0 | DG107: 0 | DH107: 0 | DI107: 0 | DJ107: 0 | DK107: 0 | DL107: 0 | DM107: 0 | DN107: 0 | DO107: 0 | DP107: 0 | DQ107: 0 | DR107: 0 | DS107: 0 | DT107: 0 | DU107: 0 | DV107: 0 | DW107: 0 | DX107: 0 | DY107: 0 | DZ107: 0 | EA107: 0 | EB107: 0 | EC107: 0 | ED107: 0 | EE107: 0 | EF107: 0 | EG107: 0 | EH107: 0 | EI107: 0 | EJ107: 0 | EK107: 0 | EL107: 0 | EM107: 0 | EN107: 0 | EO107: 0 | EP107: 0 | EQ107: 0 | ER107: 0 | ES107: 0 | ET107: 0 | EU107: 0 | EV107: 0 | EW107: 0 | EX107: 0 | EY107: 0 | EZ107: 0 | FA107: 0 | FB107: 0 | FC107: 0 | FD107: 0 | FE107: 0 | FF107: 0 | FG107: 0 | FH107: 0 | FI107: 0 | FJ107: 0 | FK107: 0 | FL107: 0 | FM107: 0 | FN107: 0 | FO107: 0 | FP107: 0 | FQ107: 0 | FR107: 0 | FS107: 0 | FT107: 0 | FU107: 0 | FV107: 0 | FW107: 0 | FX107: 0 | FY107: 0 | FZ107: 0 | GA107: 0 | GB107: 0 | GC107: 0 | GD107: 0 | GE107: 0 | GF107: 0 | GG107: 0 | GH107: 0
CV108: 0 | CW108: 0 | CX108: 0 | CY108: 0 | CZ108: 0 | DA108: 0 | DB108: 0 | DC108: 0 | DD108: 0 | DE108: 0 | DF108: 0 | DG108: 0 | DH108: 0 | DI108: 0 | DJ108: 0 | DK108: 0 | DL108: 0 | DM108: 0 | DN108: 0 | DO108: 0 | DP108: 0 | DQ108: 0 | DR108: 0 | DS108: 0 | DT108: 0 | DU108: 0 | DV108: 0 | DW108: 0 | DX108: 0 | DY108: 0 | DZ108: 0 | EA108: 0 | EB108: 0 | EC108: 0 | ED108: 0 | EE108: 0 | EF108: 0 | EG108: 0 | EH108: 0 | EI108: 0 | EJ108: 0 | EK108: 0 | EL108: 0 | EM108: 0 | EN108: 0 | EO108: 0 | EP108: 0 | EQ108: 0 | ER108: 0 | ES108: 0 | ET108: 0 | EU108: 0 | EV108: 0 | EW108: 0 | EX108: 0 | EY108: 0 | EZ108: 0 | FA108: 0 | FB108: 0 | FC108: 0 | FD108: 0 | FE108: 0 | FF108: 0 | FG108: 0 | FH108: 0 | FI108: 0 | FJ108: 0 | FK108: 0 | FL108: 0 | FM108: 0 | FN108: 0 | FO108: 0 | FP108: 0 | FQ108: 0 | FR108: 0 | FS108: 0 | FT108: 0 | FU108: 0 | FV108: 0 | FW108: 0 | FX108: 0 | FY108: 0 | FZ108: 0 | GA108: 0 | GB108: 0 | GC108: 0 | GD108: 0 | GE108: 0 | GF108: 0 | GG108: 0 | GH108: 0
CV109: 0 | CW109: 0 | CX109: 0 | CY109: 0 | CZ109: 0 | DA109: 0 | DB109: 0 | DC109: 0 | DD109: 0 | DE109: 0 | DF109: 0 | DG109: 0 | DH109: 0 | DI109: 0 | DJ109: 0 | DK109: 0 | DL109: 0 | DM109: 0 | DN109: 0 | DO109: 0 | DP109: 0 | DQ109: 0 | DR109: 0 | DS109: 0 | DT109: 0 | DU109: 0 | DV109: 0 | DW109: 0 | DX109: 0 | DY109: 0 | DZ109: 0 | EA109: 0 | EB109: 0 | EC109: 0 | ED109: 0 | EE109: 0 | EF109: 0 | EG109: 0 | EH109: 0 | EI109: 0 | EJ109: 0 | EK109: 0 | EL109: 0 | EM109: 0 | EN109: 0 | EO109: 0 | EP109: 0 | EQ109: 0 | ER109: 0 | ES109: 0 | ET109: 0 | EU109: 0 | EV109: 0 | EW109: 0 | EX109: 0 | EY109: 0 | EZ109: 0 | FA109: 0 | FB109: 0 | FC109: 0 | FD109: 0 | FE109: 0 | FF109: 0 | FG109: 0 | FH109: 0 | FI109: 0 | FJ109: 0 | FK109: 0 | FL109: 0 | FM109: 0 | FN109: 0 | FO109: 0 | FP109: 0 | FQ109: 0 | FR109: 0 | FS109: 0 | FT109: 0 | FU109: 0 | FV109: 0 | FW109: 0 | FX109: 0 | FY109: 0 | FZ109: 0 | GA109: 0 | GB109: 0 | GC109: 0 | GD109: 0 | GE109: 0 | GF109: 0 | GG109: 0 | GH109: 0
CV110: 0 | CW110: 0 | CX110: 0 | CY110: 0 | CZ110: 0 | DA110: 0 | DB110: 0 | DC110: 0 | DD110: 0 | DE110: 0 | DF110: 0 | DG110: 0 | DH110: 0 | DI110: 0 | DJ110: 0 | DK110: 0 | DL110: 0 | DM110: 0 | DN110: 0 | DO110: 0 | DP110: 0 | DQ110: 0 | DR110: 0 | DS110: 0 | DT110: 0 | DU110: 0 | DV110: 0 | DW110: 0 | DX110: 0 | DY110: 0 | DZ110: 0 | EA110: 0 | EB110: 0 | EC110: 0 | ED110: 0 | EE110: 0 | EF110: 0 | EG110: 0 | EH110: 0 | EI110: 0 | EJ110: 0 | EK110: 0 | EL110: 0 | EM110: 0 | EN110: 0 | EO110: 0 | EP110: 0 | EQ110: 0 | ER110: 0 | ES110: 0 | ET110: 0 | EU110: 0 | EV110: 0 | EW110: 0 | EX110: 0 | EY110: 0 | EZ110: 0 | FA110: 0 | FB110: 0 | FC110: 0 | FD110: 0 | FE110: 0 | FF110: 0 | FG110: 0 | FH110: 0 | FI110: 0 | FJ110: 0 | FK110: 0 | FL110: 0 | FM110: 0 | FN110: 0 | FO110: 0 | FP110: 0 | FQ110: 0 | FR110: 0 | FS110: 0 | FT110: 0 | FU110: 0 | FV110: 0 | FW110: 0 | FX110: 0 | FY110: 0 | FZ110: 0 | GA110: 0 | GB110: 0 | GC110: 0 | GD110: 0 | GE110: 0 | GF110: 0 | GG110: 0 | GH110: 0
CV111: 0 | CW111: 0 | CX111: 0 | CY111: 0 | CZ111: 0 | DA111: 0 | DB111: 0 | DC111: 0 | DD111: 0 | DE111: 0 | DF111: 0 | DG111: 0 | DH111: 0 | DI111: 0 | DJ111: 0 | DK111: 0 | DL111: 0 | DM111: 0 | DN111: 0 | DO111: 0 | DP111: 0 | DQ111: 0 | DR111: 0 | DS111: 0 | DT111: 0 | DU111: 0 | DV111: 0 | DW111: 0 | DX111: 0 | DY111: 0 | DZ111: 0 | EA111: 0 | EB111: 0 | EC111: 0 | ED111: 0 | EE111: 0 | EF111: 0 | EG111: 0 | EH111: 0 | EI111: 0 | EJ111: 0 | EK111: 0 | EL111: 0 | EM111: 0 | EN111: 0 | EO111: 0 | EP111: 0 | EQ111: 0 | ER111: 0 | ES111: 0 | ET111: 0 | EU111: 0 | EV111: 0 | EW111: 0 | EX111: 0 | EY111: 0 | EZ111: 0 | FA111: 0 | FB111: 0 | FC111: 0 | FD111: 0 | FE111: 0 | FF111: 0 | FG111: 0 | FH111: 0 | FI111: 0 | FJ111: 0 | FK111: 0 | FL111: 0 | FM111: 0 | FN111: 0 | FO111: 0 | FP111: 0 | FQ111: 0 | FR111: 0 | FS111: 0 | FT111: 0 | FU111: 0 | FV111: 0 | FW111: 0 | FX111: 0 | FY111: 0 | FZ111: 0 | GA111: 0 | GB111: 0 | GC111: 0 | GD111: 0 | GE111: 0 | GF111: 0 | GG111: 0 | GH111: 0
CV112: 0 | CW112: 0 | CX112: 0 | CY112: 0 | CZ112: 0 | DA112: 0 | DB112: 0 | DC112: 0 | DD112: 0 | DE112: 0 | DF112: 0 | DG112: 0 | DH112: 0 | DI112: 0 | DJ112: 0 | DK112: 0 | DL112: 0 | DM112: 0 | DN112: 0 | DO112: 0 | DP112: 0 | DQ112: 0 | DR112: 0 | DS112: 0 | DT112: 0 | DU112: 0 | DV112: 0 | DW112: 0 | DX112: 0 | DY112: 0 | DZ112: 0 | EA112: 0 | EB112: 0 | EC112: 0 | ED112: 0 | EE112: 0 | EF112: 0 | EG112: 0 | EH112: 0 | EI112: 0 | EJ112: 0 | EK112: 0 | EL112: 0 | EM112: 0 | EN112: 0 | EO112: 0 | EP112: 0 | EQ112: 0 | ER112: 0 | ES112: 0 | ET112: 0 | EU112: 0 | EV112: 0 | EW112: 0 | EX112: 0 | EY112: 0 | EZ112: 0 | FA112: 0 | FB112: 0 | FC112: 0 | FD112: 0 | FE112: 0 | FF112: 0 | FG112: 0 | FH112: 0 | FI112: 0 | FJ112: 0 | FK112: 0 | FL112: 0 | FM112: 0 | FN112: 0 | FO112: 0 | FP112: 0 | FQ112: 0 | FR112: 0 | FS112: 0 | FT112: 0 | FU112: 0 | FV112: 0 | FW112: 0 | FX112: 0 | FY112: 0 | FZ112: 0 | GA112: 0 | GB112: 0 | GC112: 0 | GD112: 0 | GE112: 0 | GF112: 0 | GG112: 0 | GH112: 0
CV113: 0 | CW113: 0 | CX113: 0 | CY113: 0 | CZ113: 0 | DA113: 0 | DB113: 0 | DC113: 0 | DD113: 0 | DE113: 0 | DF113: 0 | DG113: 0 | DH113: 0 | DI113: 0 | DJ113: 0 | DK113: 0 | DL113: 0 | DM113: 0 | DN113: 0 | DO113: 0 | DP113: 0 | DQ113: 0 | DR113: 0 | DS113: 0 | DT113: 0 | DU113: 0 | DV113: 0 | DW113: 0 | DX113: 0 | DY113: 0 | DZ113: 0 | EA113: 0 | EB113: 0 | EC113: 0 | ED113: 0 | EE113: 0 | EF113: 0 | EG113: 0 | EH113: 0 | EI113: 0 | EJ113: 0 | EK113: 0 | EL113: 0 | EM113: 0 | EN113: 0 | EO113: 0 | EP113: 0 | EQ113: 0 | ER113: 0 | ES113: 0 | ET113: 0 | EU113: 0 | EV113: 0 | EW113: 0 | EX113: 0 | EY113: 0 | EZ113: 0 | FA113: 0 | FB113: 0 | FC113: 0 | FD113: 0 | FE113: 0 | FF113: 0 | FG113: 0 | FH113: 0 | FI113: 0 | FJ113: 0 | FK113: 0 | FL113: 0 | FM113: 0 | FN113: 0 | FO113: 0 | FP113: 0 | FQ113: 0 | FR113: 0 | FS113: 0 | FT113: 0 | FU113: 0 | FV113: 0 | FW113: 0 | FX113: 0 | FY113: 0 | FZ113: 0 | GA113: 0 | GB113: 0 | GC113: 0 | GD113: 0 | GE113: 0 | GF113: 0 | GG113: 0 | GH113: 0
CV114: 0 | CW114: 0 | CX114: 0 | CY114: 0 | CZ114: 0 | DA114: 0 | DB114: 0 | DC114: 0 | DD114: 0 | DE114: 0 | DF114: 0 | DG114: 0 | DH114: 0 | DI114: 0 | DJ114: 0 | DK114: 0 | DL114: 0 | DM114: 0 | DN114: 0 | DO114: 0 | DP114: 0 | DQ114: 0 | DR114: 0 | DS114: 0 | DT114: 0 | DU114: 0 | DV114: 0 | DW114: 0 | DX114: 0 | DY114: 0 | DZ114: 0 | EA114: 0 | EB114: 0 | EC114: 0 | ED114: 0 | EE114: 0 | EF114: 0 | EG114: 0 | EH114: 0 | EI114: 0 | EJ114: 0 | EK114: 0 | EL114: 0 | EM114: 0 | EN114: 0 | EO114: 0 | EP114: 0 | EQ114: 0 | ER114: 0 | ES114: 0 | ET114: 0 | EU114: 0 | EV114: 0 | EW114: 0 | EX114: 0 | EY114: 0 | EZ114: 0 | FA114: 0 | FB114: 0 | FC114: 0 | FD114: 0 | FE114: 0 | FF114: 0 | FG114: 0 | FH114: 0 | FI114: 0 | FJ114: 0 | FK114: 0 | FL114: 0 | FM114: 0 | FN114: 0 | FO114: 0 | FP114: 0 | FQ114: 0 | FR114: 0 | FS114: 0 | FT114: 0 | FU114: 0 | FV114: 0 | FW114: 0 | FX114: 0 | FY114: 0 | FZ114: 0 | GA114: 0 | GB114: 0 | GC114: 0 | GD114: 0 | GE114: 0 | GF114: 0 | GG114: 0 | GH114: 0
CV115: 0 | CW115: 0 | CX115: 0 | CY115: 0 | CZ115: 0 | DA115: 0 | DB115: 0 | DC115: 0 | DD115: 0 | DE115: 0 | DF115: 0 | DG115: 0 | DH115: 0 | DI115: 0 | DJ115: 0 | DK115: 0 | DL115: 0 | DM115: 0 | DN115: 0 | DO115: 0 | DP115: 0 | DQ115: 0 | DR115: 0 | DS115: 0 | DT115: 0 | DU115: 0 | DV115: 0 | DW115: 0 | DX115: 0 | DY115: 0 | DZ115: 0 | EA115: 0 | EB115: 0 | EC115: 0 | ED115: 0 | EE115: 0 | EF115: 0 | EG115: 0 | EH115: 0 | EI115: 0 | EJ115: 0 | EK115: 0 | EL115: 0 | EM115: 0 | EN115: 0 | EO115: 0 | EP115: 0 | EQ115: 0 | ER115: 0 | ES115: 0 | ET115: 0 | EU115: 0 | EV115: 0 | EW115: 0 | EX115: 0 | EY115: 0 | EZ115: 0 | FA115: 0 | FB115: 0 | FC115: 0 | FD115: 0 | FE115: 0 | FF115: 0 | FG115: 0 | FH115: 0 | FI115: 0 | FJ115: 0 | FK115: 0 | FL115: 0 | FM115: 0 | FN115: 0 | FO115: 0 | FP115: 0 | FQ115: 0 | FR115: 0 | FS115: 0 | FT115: 0 | FU115: 0 | FV115: 0 | FW115: 0 | FX115: 0 | FY115: 0 | FZ115: 0 | GA115: 0 | GB115: 0 | GC115: 0 | GD115: 0 | GE115: 0 | GF115: 0 | GG115: 0 | GH115: 0
CV116: 0 | CW116: 0 | CX116: 0 | CY116: 0 | CZ116: 0 | DA116: 0 | DB116: 0 | DC116: 0 | DD116: 0 | DE116: 0 | DF116: 0 | DG116: 0 | DH116: 0 | DI116: 0 | DJ116: 0 | DK116: 0 | DL116: 0 | DM116: 0 | DN116: 0 | DO116: 0 | DP116: 0 | DQ116: 0 | DR116: 0 | DS116: 0 | DT116: 0 | DU116: 0 | DV116: 0 | DW116: 0 | DX116: 0 | DY116: 0 | DZ116: 0 | EA116: 0 | EB116: 0 | EC116: 0 | ED116: 0 | EE116: 0 | EF116: 0 | EG116: 0 | EH116: 0 | EI116: 0 | EJ116: 0 | EK116: 0 | EL116: 0 | EM116: 0 | EN116: 0 | EO116: 0 | EP116: 0 | EQ116: 0 | ER116: 0 | ES116: 0 | ET116: 0 | EU116: 0 | EV116: 0 | EW116: 0 | EX116: 0 | EY116: 0 | EZ116: 0 | FA116: 0 | FB116: 0 | FC116: 0 | FD116: 0 | FE116: 0 | FF116: 0 | FG116: 0 | FH116: 0 | FI116: 0 | FJ116: 0 | FK116: 0 | FL116: 0 | FM116: 0 | FN116: 0 | FO116: 0 | FP116: 0 | FQ116: 0 | FR116: 0 | FS116: 0 | FT116: 0 | FU116: 0 | FV116: 0 | FW116: 0 | FX116: 0 | FY116: 0 | FZ116: 0 | GA116: 0 | GB116: 0 | GC116: 0 | GD116: 0 | GE116: 0 | GF116: 0 | GG116: 0 | GH116: 0
CV117: 0 | CW117: 0 | CX117: 0 | CY117: 0 | CZ117: 0 | DA117: 0 | DB117: 0 | DC117: 0 | DD117: 0 | DE117: 0 | DF117: 0 | DG117: 0 | DH117: 0 | DI117: 0 | DJ117: 0 | DK117: 0 | DL117: 0 | DM117: 0 | DN117: 0 | DO117: 0 | DP117: 0 | DQ117: 0 | DR117: 0 | DS117: 0 | DT117: 0 | DU117: 0 | DV117: 0 | DW117: 0 | DX117: 0 | DY117: 0 | DZ117: 0 | EA117: 0 | EB117: 0 | EC117: 0 | ED117: 0 | EE117: 0 | EF117: 0 | EG117: 0 | EH117: 0 | EI117: 0 | EJ117: 0 | EK117: 0 | EL117: 0 | EM117: 0 | EN117: 0 | EO117: 0 | EP117: 0 | EQ117: 0 | ER117: 0 | ES117: 0 | ET117: 0 | EU117: 0 | EV117: 0 | EW117: 0 | EX117: 0 | EY117: 0 | EZ117: 0 | FA117: 0 | FB117: 0 | FC117: 0 | FD117: 0 | FE117: 0 | FF117: 0 | FG117: 0 | FH117: 0 | FI117: 0 | FJ117: 0 | FK117: 0 | FL117: 0 | FM117: 0 | FN117: 0 | FO117: 0 | FP117: 0 | FQ117: 0 | FR117: 0 | FS117: 0 | FT117: 0 | FU117: 0 | FV117: 0 | FW117: 0 | FX117: 0 | FY117: 0 | FZ117: 0 | GA117: 0 | GB117: 0 | GC117: 0 | GD117: 0 | GE117: 0 | GF117: 0 | GG117: 0 | GH117: 0
CV118: 0 | CW118: 0 | CX118: 0 | CY118: 0 | CZ118: 0 | DA118: 0 | DB118: 0 | DC118: 0 | DD118: 0 | DE118: 0 | DF118: 0 | DG118: 0 | DH118: 0 | DI118: 0 | DJ118: 0 | DK118: 0 | DL118: 0 | DM118: 0 | DN118: 0 | DO118: 0 | DP118: 0 | DQ118: 0 | DR118: 0 | DS118: 0 | DT118: 0 | DU118: 0 | DV118: 0 | DW118: 0 | DX118: 0 | DY118: 0 | DZ118: 0 | EA118: 0 | EB118: 0 | EC118: 0 | ED118: 0 | EE118: 0 | EF118: 0 | EG118: 0 | EH118: 0 | EI118: 0 | EJ118: 0 | EK118: 0 | EL118: 0 | EM118: 0 | EN118: 0 | EO118: 0 | EP118: 0 | EQ118: 0 | ER118: 0 | ES118: 0 | ET118: 0 | EU118: 0 | EV118: 0 | EW118: 0 | EX118: 0 | EY118: 0 | EZ118: 0 | FA118: 0 | FB118: 0 | FC118: 0 | FD118: 0 | FE118: 0 | FF118: 0 | FG118: 0 | FH118: 0 | FI118: 0 | FJ118: 0 | FK118: 0 | FL118: 0 | FM118: 0 | FN118: 0 | FO118: 0 | FP118: 0 | FQ118: 0 | FR118: 0 | FS118: 0 | FT118: 0 | FU118: 0 | FV118: 0 | FW118: 0 | FX118: 0 | FY118: 0 | FZ118: 0 | GA118: 0 | GB118: 0 | GC118: 0 | GD118: 0 | GE118: 0 | GF118: 0 | GG118: 0 | GH118: 0
CV119: 0 | CW119: 0 | CX119: 0 | CY119: 0 | CZ119: 0 | DA119: 0 | DB119: 0 | DC119: 0 | DD119: 0 | DE119: 0 | DF119: 0 | DG119: 0 | DH119: 0 | DI119: 0 | DJ119: 0 | DK119: 0 | DL119: 0 | DM119: 0 | DN119: 0 | DO119: 0 | DP119: 0 | DQ119: 0 | DR119: 0 | DS119: 0 | DT119: 0 | DU119: 0 | DV119: 0 | DW119: 0 | DX119: 0 | DY119: 0 | DZ119: 0 | EA119: 0 | EB119: 0 | EC119: 0 | ED119: 0 | EE119: 0 | EF119: 0 | EG119: 0 | EH119: 0 | EI119: 0 | EJ119: 0 | EK119: 0 | EL119: 0 | EM119: 0 | EN119: 0 | EO119: 0 | EP119: 0 | EQ119: 0 | ER119: 0 | ES119: 0 | ET119: 0 | EU119: 0 | EV119: 0 | EW119: 0 | EX119: 0 | EY119: 0 | EZ119: 0 | FA119: 0 | FB119: 0 | FC119: 0 | FD119: 0 | FE119: 0 | FF119: 0 | FG119: 0 | FH119: 0 | FI119: 0 | FJ119: 0 | FK119: 0 | FL119: 0 | FM119: 0 | FN119: 0 | FO119: 0 | FP119: 0 | FQ119: 0 | FR119: 0 | FS119: 0 | FT119: 0 | FU119: 0 | FV119: 0 | FW119: 0 | FX119: 0 | FY119: 0 | FZ119: 0 | GA119: 0 | GB119: 0 | GC119: 0 | GD119: 0 | GE119: 0 | GF119: 0 | GG119: 0 | GH119: 0
CV120: 0 | CW120: 0 | CX120: 0 | CY120: 0 | CZ120: 0 | DA120: 0 | DB120: 0 | DC120: 0 | DD120: 0 | DE120: 0 | DF120: 0 | DG120: 0 | DH120: 0 | DI120: 0 | DJ120: 0 | DK120: 0 | DL120: 0 | DM120: 0 | DN120: 0 | DO120: 0 | DP120: 0 | DQ120: 0 | DR120: 0 | DS120: 0 | DT120: 0 | DU120: 0 | DV120: 0 | DW120: 0 | DX120: 0 | DY120: 0 | DZ120: 0 | EA120: 0 | EB120: 0 | EC120: 0 | ED120: 0 | EE120: 0 | EF120: 0 | EG120: 0 | EH120: 0 | EI120: 0 | EJ120: 0 | EK120: 0 | EL120: 0 | EM120: 0 | EN120: 0 | EO120: 0 | EP120: 0 | EQ120: 0 | ER120: 0 | ES120: 0 | ET120: 0 | EU120: 0 | EV120: 0 | EW120: 0 | EX120: 0 | EY120: 0 | EZ120: 0 | FA120: 0 | FB120: 0 | FC120: 0 | FD120: 0 | FE120: 0 | FF120: 0 | FG120: 0 | FH120: 0 | FI120: 0 | FJ120: 0 | FK120: 0 | FL120: 0 | FM120: 0 | FN120: 0 | FO120: 0 | FP120: 0 | FQ120: 0 | FR120: 0 | FS120: 0 | FT120: 0 | FU120: 0 | FV120: 0 | FW120: 0 | FX120: 0 | FY120: 0 | FZ120: 0 | GA120: 0 | GB120: 0 | GC120: 0 | GD120: 0 | GE120: 0 | GF120: 0 | GG120: 0 | GH120: 0
CV121: 0 | CW121: 0 | CX121: 0 | CY121: 0 | CZ121: 0 | DA121: 0 | DB121: 0 | DC121: 0 | DD121: 0 | DE121: 0 | DF121: 0 | DG121: 0 | DH121: 0 | DI121: 0 | DJ121: 0 | DK121: 0 | DL121: 0 | DM121: 0 | DN121: 0 | DO121: 0 | DP121: 0 | DQ121: 0 | DR121: 0 | DS121: 0 | DT121: 0 | DU121: 0 | DV121: 0 | DW121: 0 | DX121: 0 | DY121: 0 | DZ121: 0 | EA121: 0 | EB121: 0 | EC121: 0 | ED121: 0 | EE121: 0 | EF121: 0 | EG121: 0 | EH121: 0 | EI121: 0 | EJ121: 0 | EK121: 0 | EL121: 0 | EM121: 0 | EN121: 0 | EO121: 0 | EP121: 0 | EQ121: 0 | ER121: 0 | ES121: 0 | ET121: 0 | EU121: 0 | EV121: 0 | EW121: 0 | EX121: 0 | EY121: 0 | EZ121: 0 | FA121: 0 | FB121: 0 | FC121: 0 | FD121: 0 | FE121: 0 | FF121: 0 | FG121: 0 | FH121: 0 | FI121: 0 | FJ121: 0 | FK121: 0 | FL121: 0 | FM121: 0 | FN121: 0 | FO121: 0 | FP121: 0 | FQ121: 0 | FR121: 0 | FS121: 0 | FT121: 0 | FU121: 0 | FV121: 0 | FW121: 0 | FX121: 0 | FY121: 0 | FZ121: 0 | GA121: 0 | GB121: 0 | GC121: 0 | GD121: 0 | GE121: 0 | GF121: 0 | GG121: 0 | GH121: 0
CV122: 0 | CW122: 0 | CX122: 0 | CY122: 0 | CZ122: 0 | DA122: 0 | DB122: 0 | DC122: 0 | DD122: 0 | DE122: 0 | DF122: 0 | DG122: 0 | DH122: 0 | DI122: 0 | DJ122: 0 | DK122: 0 | DL122: 0 | DM122: 0 | DN122: 0 | DO122: 0 | DP122: 0 | DQ122: 0 | DR122: 0 | DS122: 0 | DT122: 0 | DU122: 0 | DV122: 0 | DW122: 0 | DX122: 0 | DY122: 0 | DZ122: 0 | EA122: 0 | EB122: 0 | EC122: 0 | ED122: 0 | EE122: 0 | EF122: 0 | EG122: 0 | EH122: 0 | EI122: 0 | EJ122: 0 | EK122: 0 | EL122: 0 | EM122: 0 | EN122: 0 | EO122: 0 | EP122: 0 | EQ122: 0 | ER122: 0 | ES122: 0 | ET122: 0 | EU122: 0 | EV122: 0 | EW122: 0 | EX122: 0 | EY122: 0 | EZ122: 0 | FA122: 0 | FB122: 0 | FC122: 0 | FD122: 0 | FE122: 0 | FF122: 0 | FG122: 0 | FH122: 0 | FI122: 0 | FJ122: 0 | FK122: 0 | FL122: 0 | FM122: 0 | FN122: 0 | FO122: 0 | FP122: 0 | FQ122: 0 | FR122: 0 | FS122: 0 | FT122: 0 | FU122: 0 | FV122: 0 | FW122: 0 | FX122: 0 | FY122: 0 | FZ122: 0 | GA122: 0 | GB122: 0 | GC122: 0 | GD122: 0 | GE122: 0 | GF122: 0 | GG122: 0 | GH122: 0
CV123: 0 | CW123: 0 | CX123: 0 | CY123: 0 | CZ123: 0 | DA123: 0 | DB123: 0 | DC123: 0 | DD123: 0 | DE123: 0 | DF123: 0 | DG123: 0 | DH123: 0 | DI123: 0 | DJ123: 0 | DK123: 0 | DL123: 0 | DM123: 0 | DN123: 0 | DO123: 0 | DP123: 0 | DQ123: 0 | DR123: 0 | DS123: 0 | DT123: 0 | DU123: 0 | DV123: 0 | DW123: 0 | DX123: 0 | DY123: 0 | DZ123: 0 | EA123: 0 | EB123: 0 | EC123: 0 | ED123: 0 | EE123: 0 | EF123: 0 | EG123: 0 | EH123: 0 | EI123: 0 | EJ123: 0 | EK123: 0 | EL123: 0 | EM123: 0 | EN123: 0 | EO123: 0 | EP123: 0 | EQ123: 0 | ER123: 0 | ES123: 0 | ET123: 0 | EU123: 0 | EV123: 0 | EW123: 0 | EX123: 0 | EY123: 0 | EZ123: 0 | FA123: 0 | FB123: 0 | FC123: 0 | FD123: 0 | FE123: 0 | FF123: 0 | FG123: 0 | FH123: 0 | FI123: 0 | FJ123: 0 | FK123: 0 | FL123: 0 | FM123: 0 | FN123: 0 | FO123: 0 | FP123: 0 | FQ123: 0 | FR123: 0 | FS123: 0 | FT123: 0 | FU123: 0 | FV123: 0 | FW123: 0 | FX123: 0 | FY123: 0 | FZ123: 0 | GA123: 0 | GB123: 0 | GC123: 0 | GD123: 0 | GE123: 0 | GF123: 0 | GG123: 0 | GH123: 0
CV124: 0 | CW124: 0 | CX124: 0 | CY124: 0 | CZ124: 0 | DA124: 0 | DB124: 0 | DC124: 0 | DD124: 0 | DE124: 0 | DF124: 0 | DG124: 0 | DH124: 0 | DI124: 0 | DJ124: 0 | DK124: 0 | DL124: 0 | DM124: 0 | DN124: 0 | DO124: 0 | DP124: 0 | DQ124: 0 | DR124: 0 | DS124: 0 | DT124: 0 | DU124: 0 | DV124: 0 | DW124: 0 | DX124: 0 | DY124: 0 | DZ124: 0 | EA124: 0 | EB124: 0 | EC124: 0 | ED124: 0 | EE124: 0 | EF124: 0 | EG124: 0 | EH124: 0 | EI124: 0 | EJ124: 0 | EK124: 0 | EL124: 0 | EM124: 0 | EN124: 0 | EO124: 0 | EP124: 0 | EQ124: 0 | ER124: 0 | ES124: 0 | ET124: 0 | EU124: 0 | EV124: 0 | EW124: 0 | EX124: 0 | EY124: 0 | EZ124: 0 | FA124: 0 | FB124: 0 | FC124: 0 | FD124: 0 | FE124: 0 | FF124: 0 | FG124: 0 | FH124: 0 | FI124: 0 | FJ124: 0 | FK124: 0 | FL124: 0 | FM124: 0 | FN124: 0 | FO124: 0 | FP124: 0 | FQ124: 0 | FR124: 0 | FS124: 0 | FT124: 0 | FU124: 0 | FV124: 0 | FW124: 0 | FX124: 0 | FY124: 0 | FZ124: 0 | GA124: 0 | GB124: 0 | GC124: 0 | GD124: 0 | GE124: 0 | GF124: 0 | GG124: 0 | GH124: 0
CV125: 0 | CW125: 0 | CX125: 0 | CY125: 0 | CZ125: 0 | DA125: 0 | DB125: 0 | DC125: 0 | DD125: 0 | DE125: 0 | DF125: 0 | DG125: 0 | DH125: 0 | DI125: 0 | DJ125: 0 | DK125: 0 | DL125: 0 | DM125: 0 | DN125: 0 | DO125: 0 | DP125: 0 | DQ125: 0 | DR125: 0 | DS125: 0 | DT125: 0 | DU125: 0 | DV125: 0 | DW125: 0 | DX125: 0 | DY125: 0 | DZ125: 0 | EA125: 0 | EB125: 0 | EC125: 0 | ED125: 0 | EE125: 0 | EF125: 0 | EG125: 0 | EH125: 0 | EI125: 0 | EJ125: 0 | EK125: 0 | EL125: 0 | EM125: 0 | EN125: 0 | EO125: 0 | EP125: 0 | EQ125: 0 | ER125: 0 | ES125: 0 | ET125: 0 | EU125: 0 | EV125: 0 | EW125: 0 | EX125: 0 | EY125: 0 | EZ125: 0 | FA125: 0 | FB125: 0 | FC125: 0 | FD125: 0 | FE125: 0 | FF125: 0 | FG125: 0 | FH125: 0 | FI125: 0 | FJ125: 0 | FK125: 0 | FL125: 0 | FM125: 0 | FN125: 0 | FO125: 0 | FP125: 0 | FQ125: 0 | FR125: 0 | FS125: 0 | FT125: 0 | FU125: 0 | FV125: 0 | FW125: 0 | FX125: 0 | FY125: 0 | FZ125: 0 | GA125: 0 | GB125: 0 | GC125: 0 | GD125: 0 | GE125: 0 | GF125: 0 | GG125: 0 | GH125: 0
CV126: 0 | CW126: 0 | CX126: 0 | CY126: 0 | CZ126: 0 | DA126: 0 | DB126: 0 | DC126: 0 | DD126: 0 | DE126: 0 | DF126: 0 | DG126: 0 | DH126: 0 | DI126: 0 | DJ126: 0 | DK126: 0 | DL126: 0 | DM126: 0 | DN126: 0 | DO126: 0 | DP126: 0 | DQ126: 0 | DR126: 0 | DS126: 0 | DT126: 0 | DU126: 0 | DV126: 0 | DW126: 0 | DX126: 0 | DY126: 0 | DZ126: 0 | EA126: 0 | EB126: 0 | EC126: 0 | ED126: 0 | EE126: 0 | EF126: 0 | EG126: 0 | EH126: 0 | EI126: 0 | EJ126: 0 | EK126: 0 | EL126: 0 | EM126: 0 | EN126: 0 | EO126: 0 | EP126: 0 | EQ126: 0 | ER126: 0 | ES126: 0 | ET126: 0 | EU126: 0 | EV126: 0 | EW126: 0 | EX126: 0 | EY126: 0 | EZ126: 0 | FA126: 0 | FB126: 0 | FC126: 0 | FD126: 0 | FE126: 0 | FF126: 0 | FG126: 0 | FH126: 0 | FI126: 0 | FJ126: 0 | FK126: 0 | FL126: 0 | FM126: 0 | FN126: 0 | FO126: 0 | FP126: 0 | FQ126: 0 | FR126: 0 | FS126: 0 | FT126: 0 | FU126: 0 | FV126: 0 | FW126: 0 | FX126: 0 | FY126: 0 | FZ126: 0 | GA126: 0 | GB126: 0 | GC126: 0 | GD126: 0 | GE126: 0 | GF126: 0 | GG126: 0 | GH126: 0
CV127: 0 | CW127: 0 | CX127: 0 | CY127: 0 | CZ127: 0 | DA127: 0 | DB127: 0 | DC127: 0 | DD127: 0 | DE127: 0 | DF127: 0 | DG127: 0 | DH127: 0 | DI127: 0 | DJ127: 0 | DK127: 0 | DL127: 0 | DM127: 0 | DN127: 0 | DO127: 0 | DP127: 0 | DQ127: 0 | DR127: 0 | DS127: 0 | DT127: 0 | DU127: 0 | DV127: 0 | DW127: 0 | DX127: 0 | DY127: 0 | DZ127: 0 | EA127: 0 | EB127: 0 | EC127: 0 | ED127: 0 | EE127: 0 | EF127: 0 | EG127: 0 | EH127: 0 | EI127: 0 | EJ127: 0 | EK127: 0 | EL127: 0 | EM127: 0 | EN127: 0 | EO127: 0 | EP127: 0 | EQ127: 0 | ER127: 0 | ES127: 0 | ET127: 0 | EU127: 0 | EV127: 0 | EW127: 0 | EX127: 0 | EY127: 0 | EZ127: 0 | FA127: 0 | FB127: 0 | FC127: 0 | FD127: 0 | FE127: 0 | FF127: 0 | FG127: 0 | FH127: 0 | FI127: 0 | FJ127: 0 | FK127: 0 | FL127: 0 | FM127: 0 | FN127: 0 | FO127: 0 | FP127: 0 | FQ127: 0 | FR127: 0 | FS127: 0 | FT127: 0 | FU127: 0 | FV127: 0 | FW127: 0 | FX127: 0 | FY127: 0 | FZ127: 0 | GA127: 0 | GB127: 0 | GC127: 0 | GD127: 0 | GE127: 0 | GF127: 0 | GG127: 0 | GH127: 0
CV128: 0 | CW128: 0 | CX128: 0 | CY128: 0 | CZ128: 0 | DA128: 0 | DB128: 0 | DC128: 0 | DD128: 0 | DE128: 0 | DF128: 0 | DG128: 0 | DH128: 0 | DI128: 0 | DJ128: 0 | DK128: 0 | DL128: 0 | DM128: 0 | DN128: 0 | DO128: 0 | DP128: 0 | DQ128: 0 | DR128: 0 | DS128: 0 | DT128: 0 | DU128: 0 | DV128: 0 | DW128: 0 | DX128: 0 | DY128: 0 | DZ128: 0 | EA128: 0 | EB128: 0 | EC128: 0 | ED128: 0 | EE128: 0 | EF128: 0 | EG128: 0 | EH128: 0 | EI128: 0 | EJ128: 0 | EK128: 0 | EL128: 0 | EM128: 0 | EN128: 0 | EO128: 0 | EP128: 0 | EQ128: 0 | ER128: 0 | ES128: 0 | ET128: 0 | EU128: 0 | EV128: 0 | EW128: 0 | EX128: 0 | EY128: 0 | EZ128: 0 | FA128: 0 | FB128: 0 | FC128: 0 | FD128: 0 | FE128: 0 | FF128: 0 | FG128: 0 | FH128: 0 | FI128: 0 | FJ128: 0 | FK128: 0 | FL128: 0 | FM128: 0 | FN128: 0 | FO128: 0 | FP128: 0 | FQ128: 0 | FR128: 0 | FS128: 0 | FT128: 0 | FU128: 0 | FV128: 0 | FW128: 0 | FX128: 0 | FY128: 0 | FZ128: 0 | GA128: 0 | GB128: 0 | GC128: 0 | GD128: 0 | GE128: 0 | GF128: 0 | GG128: 0 | GH128: 0
CV129: 0 | CW129: 0 | CX129: 0 | CY129: 0 | CZ129: 0 | DA129: 0 | DB129: 0 | DC129: 0 | DD129: 0 | DE129: 0 | DF129: 0 | DG129: 0 | DH129: 0 | DI129: 0 | DJ129: 0 | DK129: 0 | DL129: 0 | DM129: 0 | DN129: 0 | DO129: 0 | DP129: 0 | DQ129: 0 | DR129: 0 | DS129: 0 | DT129: 0 | DU129: 0 | DV129: 0 | DW129: 0 | DX129: 0 | DY129: 0 | DZ129: 0 | EA129: 0 | EB129: 0 | EC129: 0 | ED129: 0 | EE129: 0 | EF129: 0 | EG129: 0 | EH129: 0 | EI129: 0 | EJ129: 0 | EK129: 0 | EL129: 0 | EM129: 0 | EN129: 0 | EO129: 0 | EP129: 0 | EQ129: 0 | ER129: 0 | ES129: 0 | ET129: 0 | EU129: 0 | EV129: 0 | EW129: 0 | EX129: 0 | EY129: 0 | EZ129: 0 | FA129: 0 | FB129: 0 | FC129: 0 | FD129: 0 | FE129: 0 | FF129: 0 | FG129: 0 | FH129: 0 | FI129: 0 | FJ129: 0 | FK129: 0 | FL129: 0 | FM129: 0 | FN129: 0 | FO129: 0 | FP129: 0 | FQ129: 0 | FR129: 0 | FS129: 0 | FT129: 0 | FU129: 0 | FV129: 0 | FW129: 0 | FX129: 0 | FY129: 0 | FZ129: 0 | GA129: 0 | GB129: 0 | GC129: 0 | GD129: 0 | GE129: 0 | GF129: 0 | GG129: 0 | GH129: 0
CV130: 0 | CW130: 0 | CX130: 0 | CY130: 0 | CZ130: 0 | DA130: 0 | DB130: 0 | DC130: 0 | DD130: 0 | DE130: 0 | DF130: 0 | DG130: 0 | DH130: 0 | DI130: 0 | DJ130: 0 | DK130: 0 | DL130: 0 | DM130: 0 | DN130: 0 | DO130: 0 | DP130: 0 | DQ130: 0 | DR130: 0 | DS130: 0 | DT130: 0 | DU130: 0 | DV130: 0 | DW130: 0 | DX130: 0 | DY130: 0 | DZ130: 0 | EA130: 0 | EB130: 0 | EC130: 0 | ED130: 0 | EE130: 0 | EF130: 0 | EG130: 0 | EH130: 0 | EI130: 0 | EJ130: 0 | EK130: 0 | EL130: 0 | EM130: 0 | EN130: 0 | EO130: 0 | EP130: 0 | EQ130: 0 | ER130: 0 | ES130: 0 | ET130: 0 | EU130: 0 | EV130: 0 | EW130: 0 | EX130: 0 | EY130: 0 | EZ130: 0 | FA130: 0 | FB130: 0 | FC130: 0 | FD130: 0 | FE130: 0 | FF130: 0 | FG130: 0 | FH130: 0 | FI130: 0 | FJ130: 0 | FK130: 0 | FL130: 0 | FM130: 0 | FN130: 0 | FO130: 0 | FP130: 0 | FQ130: 0 | FR130: 0 | FS130: 0 | FT130: 0 | FU130: 0 | FV130: 0 | FW130: 0 | FX130: 0 | FY130: 0 | FZ130: 0 | GA130: 0 | GB130: 0 | GC130: 0 | GD130: 0 | GE130: 0 | GF130: 0 | GG130: 0 | GH130: 0
CV131: 0 | CW131: 0 | CX131: 0 | CY131: 0 | CZ131: 0 | DA131: 0 | DB131: 0 | DC131: 0 | DD131: 0 | DE131: 0 | DF131: 0 | DG131: 0 | DH131: 0 | DI131: 0 | DJ131: 0 | DK131: 0 | DL131: 0 | DM131: 0 | DN131: 0 | DO131: 0 | DP131: 0 | DQ131: 0 | DR131: 0 | DS131: 0 | DT131: 0 | DU131: 0 | DV131: 0 | DW131: 0 | DX131: 0 | DY131: 0 | DZ131: 0 | EA131: 0 | EB131: 0 | EC131: 0 | ED131: 0 | EE131: 0 | EF131: 0 | EG131: 0 | EH131: 0 | EI131: 0 | EJ131: 0 | EK131: 0 | EL131: 0 | EM131: 0 | EN131: 0 | EO131: 0 | EP131: 0 | EQ131: 0 | ER131: 0 | ES131: 0 | ET131: 0 | EU131: 0 | EV131: 0 | EW131: 0 | EX131: 0 | EY131: 0 | EZ131: 0 | FA131: 0 | FB131: 0 | FC131: 0 | FD131: 0 | FE131: 0 | FF131: 0 | FG131: 0 | FH131: 0 | FI131: 0 | FJ131: 0 | FK131: 0 | FL131: 0 | FM131: 0 | FN131: 0 | FO131: 0 | FP131: 0 | FQ131: 0 | FR131: 0 | FS131: 0 | FT131: 0 | FU131: 0 | FV131: 0 | FW131: 0 | FX131: 0 | FY131: 0 | FZ131: 0 | GA131: 0 | GB131: 0 | GC131: 0 | GD131: 0 | GE131: 0 | GF131: 0 | GG131: 0 | GH131: 0
CV132: 0 | CW132: 0 | CX132: 0 | CY132: 0 | CZ132: 0 | DA132: 0 | DB132: 0 | DC132: 0 | DD132: 0 | DE132: 0 | DF132: 0 | DG132: 0 | DH132: 0 | DI132: 0 | DJ132: 0 | DK132: 0 | DL132: 0 | DM132: 0 | DN132: 0 | DO132: 0 | DP132: 0 | DQ132: 0 | DR132: 0 | DS132: 0 | DT132: 0 | DU132: 0 | DV132: 0 | DW132: 0 | DX132: 0 | DY132: 0 | DZ132: 0 | EA132: 0 | EB132: 0 | EC132: 0 | ED132: 0 | EE132: 0 | EF132: 0 | EG132: 0 | EH132: 0 | EI132: 0 | EJ132: 0 | EK132: 0 | EL132: 0 | EM132: 0 | EN132: 0 | EO132: 0 | EP132: 0 | EQ132: 0 | ER132: 0 | ES132: 0 | ET132: 0 | EU132: 0 | EV132: 0 | EW132: 0 | EX132: 0 | EY132: 0 | EZ132: 0 | FA132: 0 | FB132: 0 | FC132: 0 | FD132: 0 | FE132: 0 | FF132: 0 | FG132: 0 | FH132: 0 | FI132: 0 | FJ132: 0 | FK132: 0 | FL132: 0 | FM132: 0 | FN132: 0 | FO132: 0 | FP132: 0 | FQ132: 0 | FR132: 0 | FS132: 0 | FT132: 0 | FU132: 0 | FV132: 0 | FW132: 0 | FX132: 0 | FY132: 0 | FZ132: 0 | GA132: 0 | GB132: 0 | GC132: 0 | GD132: 0 | GE132: 0 | GF132: 0 | GG132: 0 | GH132: 0
CV133: 0 | CW133: 0 | CX133: 0 | CY133: 0 | CZ133: 0 | DA133: 0 | DB133: 0 | DC133: 0 | DD133: 0 | DE133: 0 | DF133: 0 | DG133: 0 | DH133: 0 | DI133: 0 | DJ133: 0 | DK133: 0 | DL133: 0 | DM133: 0 | DN133: 0 | DO133: 0 | DP133: 0 | DQ133: 0 | DR133: 0 | DS133: 0 | DT133: 0 | DU133: 0 | DV133: 0 | DW133: 0 | DX133: 0 | DY133: 0 | DZ133: 0 | EA133: 0 | EB133: 0 | EC133: 0 | ED133: 0 | EE133: 0 | EF133: 0 | EG133: 0 | EH133: 0 | EI133: 0 | EJ133: 0 | EK133: 0 | EL133: 0 | EM133: 0 | EN133: 0 | EO133: 0 | EP133: 0 | EQ133: 0 | ER133: 0 | ES133: 0 | ET133: 0 | EU133: 0 | EV133: 0 | EW133: 0 | EX133: 0 | EY133: 0 | EZ133: 0 | FA133: 0 | FB133: 0 | FC133: 0 | FD133: 0 | FE133: 0 | FF133: 0 | FG133: 0 | FH133: 0 | FI133: 0 | FJ133: 0 | FK133: 0 | FL133: 0 | FM133: 0 | FN133: 0 | FO133: 0 | FP133: 0 | FQ133: 0 | FR133: 0 | FS133: 0 | FT133: 0 | FU133: 0 | FV133: 0 | FW133: 0 | FX133: 0 | FY133: 0 | FZ133: 0 | GA133: 0 | GB133: 0 | GC133: 0 | GD133: 0 | GE133: 0 | GF133: 0 | GG133: 0 | GH133: 0
CV134: 0 | CW134: =IFERROR($D134*I134,"") -> 0 | CX134: =IFERROR($D134*J134,"") -> 0 | CY134: =IFERROR($D134*K134,"") -> 0 | CZ134: =IFERROR($D134*L134,"") -> 0 | DA134: =IFERROR($D134*M134,"") -> 0 | DB134: =IFERROR($D134*N134,"") -> 0 | DC134: =IFERROR($D134*O134,"") -> 0 | DD134: =IFERROR($D134*P134,"") -> 0 | DE134: =IFERROR($D134*Q134,"") -> 0 | DF134: =IFERROR($D134*R134,"") -> 0 | DG134: =IFERROR($D134*S134,"") -> 0 | DH134: =IFERROR($D134*T134,"") -> 0 | DI134: =IFERROR($D134*U134,"") -> 0 | DJ134: =IFERROR($D134*V134,"") -> 0 | DK134: =IFERROR($D134*W134,"") -> 0 | DL134: =IFERROR($D134*X134,"") -> 0 | DM134: =IFERROR($D134*Y134,"") -> 0 | DN134: =IFERROR($D134*Z134,"") -> 0 | DO134: =IFERROR($D134*AA134,"") -> 0 | DP134: =IFERROR($D134*AB134,"") -> 0 | DQ134: =IFERROR($D134*AC134,"") -> 0 | DR134: =IFERROR($D134*AD134,"") -> 0 | DS134: =IFERROR($D134*AE134,"") -> 0 | DT134: =IFERROR($D134*AF134,"") -> 0 | DU134: =IFERROR($D134*AG134,"") -> 0 | DV134: =IFERROR($D134*AH134,"") -> 0 | DW134: =IFERROR($D134*AI134,"") -> 0 | DX134: =IFERROR($D134*AJ134,"") -> 0 | DY134: =IFERROR($D134*AK134,"") -> 0 | DZ134: =IFERROR($D134*AL134,"") -> 0 | EA134: =IFERROR($D134*AM134,"") -> 0 | EB134: =IFERROR($D134*AN134,"") -> 0 | EC134: =IFERROR($D134*AO134,"") -> 0 | ED134: =IFERROR($D134*AP134,"") -> 0 | EE134: =IFERROR($D134*AQ134,"") -> 0 | EF134: =IFERROR($D134*AR134,"") -> 0 | EG134: =IFERROR($D134*AS134,"") -> 0 | EH134: =IFERROR($D134*AT134,"") -> 0 | EI134: =IFERROR($D134*AU134,"") -> 0 | EJ134: =IFERROR($D134*AV134,"") -> 0 | EK134: =IFERROR($D134*AW134,"") -> 0 | EL134: =IFERROR($D134*AX134,"") -> 0 | EM134: =IFERROR($D134*AY134,"") -> 0 | EN134: =IFERROR($D134*AZ134,"") -> 0 | EO134: =IFERROR($D134*BA134,"") -> 0 | EP134: =IFERROR($D134*BB134,"") -> 0 | EQ134: =IFERROR($D134*BC134,"") -> 0 | ER134: =IFERROR($D134*BD134,"") -> 0 | ES134: =IFERROR($D134*BE134,"") -> 0 | ET134: =IFERROR($D134*BF134,"") -> 0 | EU134: =IFERROR($D134*BG134,"") -> 0 | EV134: =IFERROR($D134*BH134,"") -> 0 | EW134: =IFERROR($D134*BI134,"") -> 0 | EX134: =IFERROR($D134*BJ134,"") -> 0 | EY134: =IFERROR($D134*BK134,"") -> 0 | EZ134: =IFERROR($D134*BL134,"") -> 0 | FA134: =IFERROR($D134*BM134,"") -> 0 | FB134: =IFERROR($D134*BN134,"") -> 0 | FC134: =IFERROR($D134*BO134,"") -> 0 | FD134: =IFERROR($D134*BP134,"") -> 0 | FE134: =IFERROR($D134*BQ134,"") -> 0 | FF134: =IFERROR($D134*BR134,"") -> 0 | FG134: =IFERROR($D134*BS134,"") -> 0 | FH134: =IFERROR($D134*BT134,"") -> 0 | FI134: =IFERROR($D134*BU134,"") -> 0 | FJ134: =IFERROR($D134*BV134,"") -> 0 | FK134: =IFERROR($D134*BW134,"") -> 0 | FL134: =IFERROR($D134*BX134,"") -> 0 | FM134: =IFERROR($D134*BY134,"") -> 0 | FN134: =IFERROR($D134*BZ134,"") -> 0 | FO134: =IFERROR($D134*CA134,"") -> 0 | FP134: =IFERROR($D134*CB134,"") -> 0 | FQ134: =IFERROR($D134*CC134,"") -> 0 | FR134: =IFERROR($D134*CD134,"") -> 0 | FS134: =IFERROR($D134*CE134,"") -> 0 | FT134: =IFERROR($D134*CF134,"") -> 0 | FU134: =IFERROR($D134*CG134,"") -> 0 | FV134: =IFERROR($D134*CH134,"") -> 0 | FW134: =IFERROR($D134*CI134,"") -> 0 | FX134: =IFERROR($D134*CJ134,"") -> 0 | FY134: =IFERROR($D134*CK134,"") -> 0 | FZ134: =IFERROR($D134*CL134,"") -> 0 | GA134: =IFERROR($D134*CM134,"") -> 0 | GB134: =IFERROR($D134*CN134,"") -> 0 | GC134: =IFERROR($D134*CO134,"") -> 0 | GD134: =IFERROR($D134*CP134,"") -> 0 | GE134: =IFERROR($D134*CQ134,"") -> 0 | GF134: =IFERROR($D134*CR134,"") -> 0 | GG134: =IFERROR($D134*CS134,"") -> 0 | GH134: =IFERROR($D134*CT134,"") -> 0
CV135: =IFERROR($D135*H135,"") -> 0 | CW135: 0 | CX135: 0 | CY135: 0 | CZ135: 0 | DA135: 0 | DB135: 0 | DC135: 0 | DD135: 0 | DE135: 0 | DF135: 0 | DG135: 0 | DH135: 0 | DI135: 0 | DJ135: 0 | DK135: 0 | DL135: 0 | DM135: 0 | DN135: 0 | DO135: 0 | DP135: 0 | DQ135: 0 | DR135: 0 | DS135: 0 | DT135: 0 | DU135: 0 | DV135: 0 | DW135: 0 | DX135: 0 | DY135: 0 | DZ135: 0 | EA135: 0 | EB135: 0 | EC135: 0 | ED135: 0 | EE135: 0 | EF135: 0 | EG135: 0 | EH135: 0 | EI135: 0 | EJ135: 0 | EK135: 0 | EL135: 0 | EM135: 0 | EN135: 0 | EO135: 0 | EP135: 0 | EQ135: 0 | ER135: 0 | ES135: 0 | ET135: 0 | EU135: 0 | EV135: 0 | EW135: 0 | EX135: 0 | EY135: 0 | EZ135: 0 | FA135: 0 | FB135: 0 | FC135: 0 | FD135: 0 | FE135: 0 | FF135: 0 | FG135: 0 | FH135: 0 | FI135: 0 | FJ135: 0 | FK135: 0 | FL135: 0 | FM135: 0 | FN135: 0 | FO135: 0 | FP135: 0 | FQ135: 0 | FR135: 0 | FS135: 0 | FT135: 0 | FU135: 0 | FV135: 0 | FW135: 0 | FX135: 0 | FY135: 0 | FZ135: 0 | GA135: 0 | GB135: 0 | GC135: 0 | GD135: 0 | GE135: 0 | GF135: 0 | GG135: 0 | GH135: 0
CV136: 0 | CW136: 0 | CX136: 0 | CY136: 0 | CZ136: 0 | DA136: 0 | DB136: 0 | DC136: 0 | DD136: 0 | DE136: 0 | DF136: 0 | DG136: 0 | DH136: 0 | DI136: 0 | DJ136: 0 | DK136: 0 | DL136: 0 | DM136: 0 | DN136: 0 | DO136: 0 | DP136: 0 | DQ136: 0 | DR136: 0 | DS136: 0 | DT136: 0 | DU136: 0 | DV136: 0 | DW136: 0 | DX136: 0 | DY136: 0 | DZ136: 0 | EA136: 0 | EB136: 0 | EC136: 0 | ED136: 0 | EE136: 0 | EF136: 0 | EG136: 0 | EH136: 0 | EI136: 0 | EJ136: 0 | EK136: 0 | EL136: 0 | EM136: 0 | EN136: 0 | EO136: 0 | EP136: 0 | EQ136: 0 | ER136: 0 | ES136: 0 | ET136: 0 | EU136: 0 | EV136: 0 | EW136: 0 | EX136: 0 | EY136: 0 | EZ136: 0 | FA136: 0 | FB136: 0 | FC136: 0 | FD136: 0 | FE136: 0 | FF136: 0 | FG136: 0 | FH136: 0 | FI136: 0 | FJ136: 0 | FK136: 0 | FL136: 0 | FM136: 0 | FN136: 0 | FO136: 0 | FP136: 0 | FQ136: 0 | FR136: 0 | FS136: 0 | FT136: 0 | FU136: 0 | FV136: 0 | FW136: 0 | FX136: 0 | FY136: 0 | FZ136: 0 | GA136: 0 | GB136: 0 | GC136: 0 | GD136: 0 | GE136: 0 | GF136: 0 | GG136: 0 | GH136: 0
CV137: 0 | CW137: 0 | CX137: 0 | CY137: 0 | CZ137: 0 | DA137: 0 | DB137: 0 | DC137: 0 | DD137: 0 | DE137: 0 | DF137: 0 | DG137: 0 | DH137: 0 | DI137: 0 | DJ137: 0 | DK137: 0 | DL137: 0 | DM137: 0 | DN137: 0 | DO137: 0 | DP137: 0 | DQ137: 0 | DR137: 0 | DS137: 0 | DT137: 0 | DU137: 0 | DV137: 0 | DW137: 0 | DX137: 0 | DY137: 0 | DZ137: 0 | EA137: 0 | EB137: 0 | EC137: 0 | ED137: 0 | EE137: 0 | EF137: 0 | EG137: 0 | EH137: 0 | EI137: 0 | EJ137: 0 | EK137: 0 | EL137: 0 | EM137: 0 | EN137: 0 | EO137: 0 | EP137: 0 | EQ137: 0 | ER137: 0 | ES137: 0 | ET137: 0 | EU137: 0 | EV137: 0 | EW137: 0 | EX137: 0 | EY137: 0 | EZ137: 0 | FA137: 0 | FB137: 0 | FC137: 0 | FD137: 0 | FE137: 0 | FF137: 0 | FG137: 0 | FH137: 0 | FI137: 0 | FJ137: 0 | FK137: 0 | FL137: 0 | FM137: 0 | FN137: 0 | FO137: 0 | FP137: 0 | FQ137: 0 | FR137: 0 | FS137: 0 | FT137: 0 | FU137: 0 | FV137: 0 | FW137: 0 | FX137: 0 | FY137: 0 | FZ137: 0 | GA137: 0 | GB137: 0 | GC137: 0 | GD137: 0 | GE137: 0 | GF137: 0 | GG137: 0 | GH137: 0
CV138: 0 | CW138: 0 | CX138: 0 | CY138: 0 | CZ138: 0 | DA138: 0 | DB138: 0 | DC138: 0 | DD138: 0 | DE138: 0 | DF138: 0 | DG138: 0 | DH138: 0 | DI138: 0 | DJ138: 0 | DK138: 0 | DL138: 0 | DM138: 0 | DN138: 0 | DO138: 0 | DP138: 0 | DQ138: 0 | DR138: 0 | DS138: 0 | DT138: 0 | DU138: 0 | DV138: 0 | DW138: 0 | DX138: 0 | DY138: 0 | DZ138: 0 | EA138: 0 | EB138: 0 | EC138: 0 | ED138: 0 | EE138: 0 | EF138: 0 | EG138: 0 | EH138: 0 | EI138: 0 | EJ138: 0 | EK138: 0 | EL138: 0 | EM138: 0 | EN138: 0 | EO138: 0 | EP138: 0 | EQ138: 0 | ER138: 0 | ES138: 0 | ET138: 0 | EU138: 0 | EV138: 0 | EW138: 0 | EX138: 0 | EY138: 0 | EZ138: 0 | FA138: 0 | FB138: 0 | FC138: 0 | FD138: 0 | FE138: 0 | FF138: 0 | FG138: 0 | FH138: 0 | FI138: 0 | FJ138: 0 | FK138: 0 | FL138: 0 | FM138: 0 | FN138: 0 | FO138: 0 | FP138: 0 | FQ138: 0 | FR138: 0 | FS138: 0 | FT138: 0 | FU138: 0 | FV138: 0 | FW138: 0 | FX138: 0 | FY138: 0 | FZ138: 0 | GA138: 0 | GB138: 0 | GC138: 0 | GD138: 0 | GE138: 0 | GF138: 0 | GG138: 0 | GH138: 0
CV139: 0 | CW139: 0 | CX139: 0 | CY139: 0 | CZ139: 0 | DA139: 0 | DB139: 0 | DC139: 0 | DD139: 0 | DE139: 0 | DF139: 0 | DG139: 0 | DH139: 0 | DI139: 0 | DJ139: 0 | DK139: 0 | DL139: 0 | DM139: 0 | DN139: 0 | DO139: 0 | DP139: 0 | DQ139: 0 | DR139: 0 | DS139: 0 | DT139: 0 | DU139: 0 | DV139: 0 | DW139: 0 | DX139: 0 | DY139: 0 | DZ139: 0 | EA139: 0 | EB139: 0 | EC139: 0 | ED139: 0 | EE139: 0 | EF139: 0 | EG139: 0 | EH139: 0 | EI139: 0 | EJ139: 0 | EK139: 0 | EL139: 0 | EM139: 0 | EN139: 0 | EO139: 0 | EP139: 0 | EQ139: 0 | ER139: 0 | ES139: 0 | ET139: 0 | EU139: 0 | EV139: 0 | EW139: 0 | EX139: 0 | EY139: 0 | EZ139: 0 | FA139: 0 | FB139: 0 | FC139: 0 | FD139: 0 | FE139: 0 | FF139: 0 | FG139: 0 | FH139: 0 | FI139: 0 | FJ139: 0 | FK139: 0 | FL139: 0 | FM139: 0 | FN139: 0 | FO139: 0 | FP139: 0 | FQ139: 0 | FR139: 0 | FS139: 0 | FT139: 0 | FU139: 0 | FV139: 0 | FW139: 0 | FX139: 0 | FY139: 0 | FZ139: 0 | GA139: 0 | GB139: 0 | GC139: 0 | GD139: 0 | GE139: 0 | GF139: 0 | GG139: 0 | GH139: 0
CV140: 0 | CW140: 0 | CX140: 0 | CY140: 0 | CZ140: 0 | DA140: 0 | DB140: 0 | DC140: 0 | DD140: 0 | DE140: 0 | DF140: 0 | DG140: 0 | DH140: 0 | DI140: 0 | DJ140: 0 | DK140: 0 | DL140: 0 | DM140: 0 | DN140: 0 | DO140: 0 | DP140: 0 | DQ140: 0 | DR140: 0 | DS140: 0 | DT140: 0 | DU140: 0 | DV140: 0 | DW140: 0 | DX140: 0 | DY140: 0 | DZ140: 0 | EA140: 0 | EB140: 0 | EC140: 0 | ED140: 0 | EE140: 0 | EF140: 0 | EG140: 0 | EH140: 0 | EI140: 0 | EJ140: 0 | EK140: 0 | EL140: 0 | EM140: 0 | EN140: 0 | EO140: 0 | EP140: 0 | EQ140: 0 | ER140: 0 | ES140: 0 | ET140: 0 | EU140: 0 | EV140: 0 | EW140: 0 | EX140: 0 | EY140: 0 | EZ140: 0 | FA140: 0 | FB140: 0 | FC140: 0 | FD140: 0 | FE140: 0 | FF140: 0 | FG140: 0 | FH140: 0 | FI140: 0 | FJ140: 0 | FK140: 0 | FL140: 0 | FM140: 0 | FN140: 0 | FO140: 0 | FP140: 0 | FQ140: 0 | FR140: 0 | FS140: 0 | FT140: 0 | FU140: 0 | FV140: 0 | FW140: 0 | FX140: 0 | FY140: 0 | FZ140: 0 | GA140: 0 | GB140: 0 | GC140: 0 | GD140: 0 | GE140: 0 | GF140: 0 | GG140: 0 | GH140: 0
CV141: 0 | CW141: 0 | CX141: 0 | CY141: 0 | CZ141: 0 | DA141: 0 | DB141: 0 | DC141: 0 | DD141: 0 | DE141: 0 | DF141: 0 | DG141: 0 | DH141: 0 | DI141: 0 | DJ141: 0 | DK141: 0 | DL141: 0 | DM141: 0 | DN141: 0 | DO141: 0 | DP141: 0 | DQ141: 0 | DR141: 0 | DS141: 0 | DT141: 0 | DU141: 0 | DV141: 0 | DW141: 0 | DX141: 0 | DY141: 0 | DZ141: 0 | EA141: 0 | EB141: 0 | EC141: 0 | ED141: 0 | EE141: 0 | EF141: 0 | EG141: 0 | EH141: 0 | EI141: 0 | EJ141: 0 | EK141: 0 | EL141: 0 | EM141: 0 | EN141: 0 | EO141: 0 | EP141: 0 | EQ141: 0 | ER141: 0 | ES141: 0 | ET141: 0 | EU141: 0 | EV141: 0 | EW141: 0 | EX141: 0 | EY141: 0 | EZ141: 0 | FA141: 0 | FB141: 0 | FC141: 0 | FD141: 0 | FE141: 0 | FF141: 0 | FG141: 0 | FH141: 0 | FI141: 0 | FJ141: 0 | FK141: 0 | FL141: 0 | FM141: 0 | FN141: 0 | FO141: 0 | FP141: 0 | FQ141: 0 | FR141: 0 | FS141: 0 | FT141: 0 | FU141: 0 | FV141: 0 | FW141: 0 | FX141: 0 | FY141: 0 | FZ141: 0 | GA141: 0 | GB141: 0 | GC141: 0 | GD141: 0 | GE141: 0 | GF141: 0 | GG141: 0 | GH141: 0
CV142: 0 | CW142: 0 | CX142: 0 | CY142: 0 | CZ142: 0 | DA142: 0 | DB142: 0 | DC142: 0 | DD142: 0 | DE142: 0 | DF142: 0 | DG142: 0 | DH142: 0 | DI142: 0 | DJ142: 0 | DK142: 0 | DL142: 0 | DM142: 0 | DN142: 0 | DO142: 0 | DP142: 0 | DQ142: 0 | DR142: 0 | DS142: 0 | DT142: 0 | DU142: 0 | DV142: 0 | DW142: 0 | DX142: 0 | DY142: 0 | DZ142: 0 | EA142: 0 | EB142: 0 | EC142: 0 | ED142: 0 | EE142: 0 | EF142: 0 | EG142: 0 | EH142: 0 | EI142: 0 | EJ142: 0 | EK142: 0 | EL142: 0 | EM142: 0 | EN142: 0 | EO142: 0 | EP142: 0 | EQ142: 0 | ER142: 0 | ES142: 0 | ET142: 0 | EU142: 0 | EV142: 0 | EW142: 0 | EX142: 0 | EY142: 0 | EZ142: 0 | FA142: 0 | FB142: 0 | FC142: 0 | FD142: 0 | FE142: 0 | FF142: 0 | FG142: 0 | FH142: 0 | FI142: 0 | FJ142: 0 | FK142: 0 | FL142: 0 | FM142: 0 | FN142: 0 | FO142: 0 | FP142: 0 | FQ142: 0 | FR142: 0 | FS142: 0 | FT142: 0 | FU142: 0 | FV142: 0 | FW142: 0 | FX142: 0 | FY142: 0 | FZ142: 0 | GA142: 0 | GB142: 0 | GC142: 0 | GD142: 0 | GE142: 0 | GF142: 0 | GG142: 0 | GH142: 0
CV143: 0 | CW143: 0 | CX143: 0 | CY143: 0 | CZ143: 0 | DA143: 0 | DB143: 0 | DC143: 0 | DD143: 0 | DE143: 0 | DF143: 0 | DG143: 0 | DH143: 0 | DI143: 0 | DJ143: 0 | DK143: 0 | DL143: 0 | DM143: 0 | DN143: 0 | DO143: 0 | DP143: 0 | DQ143: 0 | DR143: 0 | DS143: 0 | DT143: 0 | DU143: 0 | DV143: 0 | DW143: 0 | DX143: 0 | DY143: 0 | DZ143: 0 | EA143: 0 | EB143: 0 | EC143: 0 | ED143: 0 | EE143: 0 | EF143: 0 | EG143: 0 | EH143: 0 | EI143: 0 | EJ143: 0 | EK143: 0 | EL143: 0 | EM143: 0 | EN143: 0 | EO143: 0 | EP143: 0 | EQ143: 0 | ER143: 0 | ES143: 0 | ET143: 0 | EU143: 0 | EV143: 0 | EW143: 0 | EX143: 0 | EY143: 0 | EZ143: 0 | FA143: 0 | FB143: 0 | FC143: 0 | FD143: 0 | FE143: 0 | FF143: 0 | FG143: 0 | FH143: 0 | FI143: 0 | FJ143: 0 | FK143: 0 | FL143: 0 | FM143: 0 | FN143: 0 | FO143: 0 | FP143: 0 | FQ143: 0 | FR143: 0 | FS143: 0 | FT143: 0 | FU143: 0 | FV143: 0 | FW143: 0 | FX143: 0 | FY143: 0 | FZ143: 0 | GA143: 0 | GB143: 0 | GC143: 0 | GD143: 0 | GE143: 0 | GF143: 0 | GG143: 0 | GH143: 0
CV144: 0 | CW144: 0 | CX144: 0 | CY144: 0 | CZ144: 0 | DA144: 0 | DB144: 0 | DC144: 0 | DD144: 0 | DE144: 0 | DF144: 0 | DG144: 0 | DH144: 0 | DI144: 0 | DJ144: 0 | DK144: 0 | DL144: 0 | DM144: 0 | DN144: 0 | DO144: 0 | DP144: 0 | DQ144: 0 | DR144: 0 | DS144: 0 | DT144: 0 | DU144: 0 | DV144: 0 | DW144: 0 | DX144: 0 | DY144: 0 | DZ144: 0 | EA144: 0 | EB144: 0 | EC144: 0 | ED144: 0 | EE144: 0 | EF144: 0 | EG144: 0 | EH144: 0 | EI144: 0 | EJ144: 0 | EK144: 0 | EL144: 0 | EM144: 0 | EN144: 0 | EO144: 0 | EP144: 0 | EQ144: 0 | ER144: 0 | ES144: 0 | ET144: 0 | EU144: 0 | EV144: 0 | EW144: 0 | EX144: 0 | EY144: 0 | EZ144: 0 | FA144: 0 | FB144: 0 | FC144: 0 | FD144: 0 | FE144: 0 | FF144: 0 | FG144: 0 | FH144: 0 | FI144: 0 | FJ144: 0 | FK144: 0 | FL144: 0 | FM144: 0 | FN144: 0 | FO144: 0 | FP144: 0 | FQ144: 0 | FR144: 0 | FS144: 0 | FT144: 0 | FU144: 0 | FV144: 0 | FW144: 0 | FX144: 0 | FY144: 0 | FZ144: 0 | GA144: 0 | GB144: 0 | GC144: 0 | GD144: 0 | GE144: 0 | GF144: 0 | GG144: 0 | GH144: 0
CV145: 0 | CW145: 0 | CX145: 0 | CY145: 0 | CZ145: 0 | DA145: 0 | DB145: 0 | DC145: 0 | DD145: 0 | DE145: 0 | DF145: 0 | DG145: 0 | DH145: 0 | DI145: 0 | DJ145: 0 | DK145: 0 | DL145: 0 | DM145: 0 | DN145: 0 | DO145: 0 | DP145: 0 | DQ145: 0 | DR145: 0 | DS145: 0 | DT145: 0 | DU145: 0 | DV145: 0 | DW145: 0 | DX145: 0 | DY145: 0 | DZ145: 0 | EA145: 0 | EB145: 0 | EC145: 0 | ED145: 0 | EE145: 0 | EF145: 0 | EG145: 0 | EH145: 0 | EI145: 0 | EJ145: 0 | EK145: 0 | EL145: 0 | EM145: 0 | EN145: 0 | EO145: 0 | EP145: 0 | EQ145: 0 | ER145: 0 | ES145: 0 | ET145: 0 | EU145: 0 | EV145: 0 | EW145: 0 | EX145: 0 | EY145: 0 | EZ145: 0 | FA145: 0 | FB145: 0 | FC145: 0 | FD145: 0 | FE145: 0 | FF145: 0 | FG145: 0 | FH145: 0 | FI145: 0 | FJ145: 0 | FK145: 0 | FL145: 0 | FM145: 0 | FN145: 0 | FO145: 0 | FP145: 0 | FQ145: 0 | FR145: 0 | FS145: 0 | FT145: 0 | FU145: 0 | FV145: 0 | FW145: 0 | FX145: 0 | FY145: 0 | FZ145: 0 | GA145: 0 | GB145: 0 | GC145: 0 | GD145: 0 | GE145: 0 | GF145: 0 | GG145: 0 | GH145: 0
CV146: 0 | CW146: 0 | CX146: 0 | CY146: 0 | CZ146: 0 | DA146: 0 | DB146: 0 | DC146: 0 | DD146: 0 | DE146: 0 | DF146: 0 | DG146: 0 | DH146: 0 | DI146: 0 | DJ146: 0 | DK146: 0 | DL146: 0 | DM146: 0 | DN146: 0 | DO146: 0 | DP146: 0 | DQ146: 0 | DR146: 0 | DS146: 0 | DT146: 0 | DU146: 0 | DV146: 0 | DW146: 0 | DX146: 0 | DY146: 0 | DZ146: 0 | EA146: 0 | EB146: 0 | EC146: 0 | ED146: 0 | EE146: 0 | EF146: 0 | EG146: 0 | EH146: 0 | EI146: 0 | EJ146: 0 | EK146: 0 | EL146: 0 | EM146: 0 | EN146: 0 | EO146: 0 | EP146: 0 | EQ146: 0 | ER146: 0 | ES146: 0 | ET146: 0 | EU146: 0 | EV146: 0 | EW146: 0 | EX146: 0 | EY146: 0 | EZ146: 0 | FA146: 0 | FB146: 0 | FC146: 0 | FD146: 0 | FE146: 0 | FF146: 0 | FG146: 0 | FH146: 0 | FI146: 0 | FJ146: 0 | FK146: 0 | FL146: 0 | FM146: 0 | FN146: 0 | FO146: 0 | FP146: 0 | FQ146: 0 | FR146: 0 | FS146: 0 | FT146: 0 | FU146: 0 | FV146: 0 | FW146: 0 | FX146: 0 | FY146: 0 | FZ146: 0 | GA146: 0 | GB146: 0 | GC146: 0 | GD146: 0 | GE146: 0 | GF146: 0 | GG146: 0 | GH146: 0
CV147: 0 | CW147: 0 | CX147: 0 | CY147: 0 | CZ147: 0 | DA147: 0 | DB147: 0 | DC147: 0 | DD147: 0 | DE147: 0 | DF147: 0 | DG147: 0 | DH147: 0 | DI147: 0 | DJ147: 0 | DK147: 0 | DL147: 0 | DM147: 0 | DN147: 0 | DO147: 0 | DP147: 0 | DQ147: 0 | DR147: 0 | DS147: 0 | DT147: 0 | DU147: 0 | DV147: 0 | DW147: 0 | DX147: 0 | DY147: 0 | DZ147: 0 | EA147: 0 | EB147: 0 | EC147: 0 | ED147: 0 | EE147: 0 | EF147: 0 | EG147: 0 | EH147: 0 | EI147: 0 | EJ147: 0 | EK147: 0 | EL147: 0 | EM147: 0 | EN147: 0 | EO147: 0 | EP147: 0 | EQ147: 0 | ER147: 0 | ES147: 0 | ET147: 0 | EU147: 0 | EV147: 0 | EW147: 0 | EX147: 0 | EY147: 0 | EZ147: 0 | FA147: 0 | FB147: 0 | FC147: 0 | FD147: 0 | FE147: 0 | FF147: 0 | FG147: 0 | FH147: 0 | FI147: 0 | FJ147: 0 | FK147: 0 | FL147: 0 | FM147: 0 | FN147: 0 | FO147: 0 | FP147: 0 | FQ147: 0 | FR147: 0 | FS147: 0 | FT147: 0 | FU147: 0 | FV147: 0 | FW147: 0 | FX147: 0 | FY147: 0 | FZ147: 0 | GA147: 0 | GB147: 0 | GC147: 0 | GD147: 0 | GE147: 0 | GF147: 0 | GG147: 0 | GH147: 0
CV148: 0 | CW148: 0 | CX148: 0 | CY148: 0 | CZ148: 0 | DA148: 0 | DB148: 0 | DC148: 0 | DD148: 0 | DE148: 0 | DF148: 0 | DG148: 0 | DH148: 0 | DI148: 0 | DJ148: 0 | DK148: 0 | DL148: 0 | DM148: 0 | DN148: 0 | DO148: 0 | DP148: 0 | DQ148: 0 | DR148: 0 | DS148: 0 | DT148: 0 | DU148: 0 | DV148: 0 | DW148: 0 | DX148: 0 | DY148: 0 | DZ148: 0 | EA148: 0 | EB148: 0 | EC148: 0 | ED148: 0 | EE148: 0 | EF148: 0 | EG148: 0 | EH148: 0 | EI148: 0 | EJ148: 0 | EK148: 0 | EL148: 0 | EM148: 0 | EN148: 0 | EO148: 0 | EP148: 0 | EQ148: 0 | ER148: 0 | ES148: 0 | ET148: 0 | EU148: 0 | EV148: 0 | EW148: 0 | EX148: 0 | EY148: 0 | EZ148: 0 | FA148: 0 | FB148: 0 | FC148: 0 | FD148: 0 | FE148: 0 | FF148: 0 | FG148: 0 | FH148: 0 | FI148: 0 | FJ148: 0 | FK148: 0 | FL148: 0 | FM148: 0 | FN148: 0 | FO148: 0 | FP148: 0 | FQ148: 0 | FR148: 0 | FS148: 0 | FT148: 0 | FU148: 0 | FV148: 0 | FW148: 0 | FX148: 0 | FY148: 0 | FZ148: 0 | GA148: 0 | GB148: 0 | GC148: 0 | GD148: 0 | GE148: 0 | GF148: 0 | GG148: 0 | GH148: 0
CV149: 0 | CW149: 0 | CX149: 0 | CY149: 0 | CZ149: 0 | DA149: 0 | DB149: 0 | DC149: 0 | DD149: 0 | DE149: 0 | DF149: 0 | DG149: 0 | DH149: 0 | DI149: 0 | DJ149: 0 | DK149: 0 | DL149: 0 | DM149: 0 | DN149: 0 | DO149: 0 | DP149: 0 | DQ149: 0 | DR149: 0 | DS149: 0 | DT149: 0 | DU149: 0 | DV149: 0 | DW149: 0 | DX149: 0 | DY149: 0 | DZ149: 0 | EA149: 0 | EB149: 0 | EC149: 0 | ED149: 0 | EE149: 0 | EF149: 0 | EG149: 0 | EH149: 0 | EI149: 0 | EJ149: 0 | EK149: 0 | EL149: 0 | EM149: 0 | EN149: 0 | EO149: 0 | EP149: 0 | EQ149: 0 | ER149: 0 | ES149: 0 | ET149: 0 | EU149: 0 | EV149: 0 | EW149: 0 | EX149: 0 | EY149: 0 | EZ149: 0 | FA149: 0 | FB149: 0 | FC149: 0 | FD149: 0 | FE149: 0 | FF149: 0 | FG149: 0 | FH149: 0 | FI149: 0 | FJ149: 0 | FK149: 0 | FL149: 0 | FM149: 0 | FN149: 0 | FO149: 0 | FP149: 0 | FQ149: 0 | FR149: 0 | FS149: 0 | FT149: 0 | FU149: 0 | FV149: 0 | FW149: 0 | FX149: 0 | FY149: 0 | FZ149: 0 | GA149: 0 | GB149: 0 | GC149: 0 | GD149: 0 | GE149: 0 | GF149: 0 | GG149: 0 | GH149: 0
CV150: 0 | CW150: 0 | CX150: 0 | CY150: 0 | CZ150: 0 | DA150: 0 | DB150: 0 | DC150: 0 | DD150: 0 | DE150: 0 | DF150: 0 | DG150: 0 | DH150: 0 | DI150: 0 | DJ150: 0 | DK150: 0 | DL150: 0 | DM150: 0 | DN150: 0 | DO150: 0 | DP150: 0 | DQ150: 0 | DR150: 0 | DS150: 0 | DT150: 0 | DU150: 0 | DV150: 0 | DW150: 0 | DX150: 0 | DY150: 0 | DZ150: 0 | EA150: 0 | EB150: 0 | EC150: 0 | ED150: 0 | EE150: 0 | EF150: 0 | EG150: 0 | EH150: 0 | EI150: 0 | EJ150: 0 | EK150: 0 | EL150: 0 | EM150: 0 | EN150: 0 | EO150: 0 | EP150: 0 | EQ150: 0 | ER150: 0 | ES150: 0 | ET150: 0 | EU150: 0 | EV150: 0 | EW150: 0 | EX150: 0 | EY150: 0 | EZ150: 0 | FA150: 0 | FB150: 0 | FC150: 0 | FD150: 0 | FE150: 0 | FF150: 0 | FG150: 0 | FH150: 0 | FI150: 0 | FJ150: 0 | FK150: 0 | FL150: 0 | FM150: 0 | FN150: 0 | FO150: 0 | FP150: 0 | FQ150: 0 | FR150: 0 | FS150: 0 | FT150: 0 | FU150: 0 | FV150: 0 | FW150: 0 | FX150: 0 | FY150: 0 | FZ150: 0 | GA150: 0 | GB150: 0 | GC150: 0 | GD150: 0 | GE150: 0 | GF150: 0 | GG150: 0 | GH150: 0
CV151: 0 | CW151: 0 | CX151: 0 | CY151: 0 | CZ151: 0 | DA151: 0 | DB151: 0 | DC151: 0 | DD151: 0 | DE151: 0 | DF151: 0 | DG151: 0 | DH151: 0 | DI151: 0 | DJ151: 0 | DK151: 0 | DL151: 0 | DM151: 0 | DN151: 0 | DO151: 0 | DP151: 0 | DQ151: 0 | DR151: 0 | DS151: 0 | DT151: 0 | DU151: 0 | DV151: 0 | DW151: 0 | DX151: 0 | DY151: 0 | DZ151: 0 | EA151: 0 | EB151: 0 | EC151: 0 | ED151: 0 | EE151: 0 | EF151: 0 | EG151: 0 | EH151: 0 | EI151: 0 | EJ151: 0 | EK151: 0 | EL151: 0 | EM151: 0 | EN151: 0 | EO151: 0 | EP151: 0 | EQ151: 0 | ER151: 0 | ES151: 0 | ET151: 0 | EU151: 0 | EV151: 0 | EW151: 0 | EX151: 0 | EY151: 0 | EZ151: 0 | FA151: 0 | FB151: 0 | FC151: 0 | FD151: 0 | FE151: 0 | FF151: 0 | FG151: 0 | FH151: 0 | FI151: 0 | FJ151: 0 | FK151: 0 | FL151: 0 | FM151: 0 | FN151: 0 | FO151: 0 | FP151: 0 | FQ151: 0 | FR151: 0 | FS151: 0 | FT151: 0 | FU151: 0 | FV151: 0 | FW151: 0 | FX151: 0 | FY151: 0 | FZ151: 0 | GA151: 0 | GB151: 0 | GC151: 0 | GD151: 0 | GE151: 0 | GF151: 0 | GG151: 0 | GH151: 0
CV152: 0 | CW152: 0 | CX152: 0 | CY152: 0 | CZ152: 0 | DA152: 0 | DB152: 0 | DC152: 0 | DD152: 0 | DE152: 0 | DF152: 0 | DG152: 0 | DH152: 0 | DI152: 0 | DJ152: 0 | DK152: 0 | DL152: 0 | DM152: 0 | DN152: 0 | DO152: 0 | DP152: 0 | DQ152: 0 | DR152: 0 | DS152: 0 | DT152: 0 | DU152: 0 | DV152: 0 | DW152: 0 | DX152: 0 | DY152: 0 | DZ152: 0 | EA152: 0 | EB152: 0 | EC152: 0 | ED152: 0 | EE152: 0 | EF152: 0 | EG152: 0 | EH152: 0 | EI152: 0 | EJ152: 0 | EK152: 0 | EL152: 0 | EM152: 0 | EN152: 0 | EO152: 0 | EP152: 0 | EQ152: 0 | ER152: 0 | ES152: 0 | ET152: 0 | EU152: 0 | EV152: 0 | EW152: 0 | EX152: 0 | EY152: 0 | EZ152: 0 | FA152: 0 | FB152: 0 | FC152: 0 | FD152: 0 | FE152: 0 | FF152: 0 | FG152: 0 | FH152: 0 | FI152: 0 | FJ152: 0 | FK152: 0 | FL152: 0 | FM152: 0 | FN152: 0 | FO152: 0 | FP152: 0 | FQ152: 0 | FR152: 0 | FS152: 0 | FT152: 0 | FU152: 0 | FV152: 0 | FW152: 0 | FX152: 0 | FY152: 0 | FZ152: 0 | GA152: 0 | GB152: 0 | GC152: 0 | GD152: 0 | GE152: 0 | GF152: 0 | GG152: 0 | GH152: 0
CV153: 0 | CW153: 0 | CX153: 0 | CY153: 0 | CZ153: 0 | DA153: 0 | DB153: 0 | DC153: 0 | DD153: 0 | DE153: 0 | DF153: 0 | DG153: 0 | DH153: 0 | DI153: 0 | DJ153: 0 | DK153: 0 | DL153: 0 | DM153: 0 | DN153: 0 | DO153: 0 | DP153: 0 | DQ153: 0 | DR153: 0 | DS153: 0 | DT153: 0 | DU153: 0 | DV153: 0 | DW153: 0 | DX153: 0 | DY153: 0 | DZ153: 0 | EA153: 0 | EB153: 0 | EC153: 0 | ED153: 0 | EE153: 0 | EF153: 0 | EG153: 0 | EH153: 0 | EI153: 0 | EJ153: 0 | EK153: 0 | EL153: 0 | EM153: 0 | EN153: 0 | EO153: 0 | EP153: 0 | EQ153: 0 | ER153: 0 | ES153: 0 | ET153: 0 | EU153: 0 | EV153: 0 | EW153: 0 | EX153: 0 | EY153: 0 | EZ153: 0 | FA153: 0 | FB153: 0 | FC153: 0 | FD153: 0 | FE153: 0 | FF153: 0 | FG153: 0 | FH153: 0 | FI153: 0 | FJ153: 0 | FK153: 0 | FL153: 0 | FM153: 0 | FN153: 0 | FO153: 0 | FP153: 0 | FQ153: 0 | FR153: 0 | FS153: 0 | FT153: 0 | FU153: 0 | FV153: 0 | FW153: 0 | FX153: 0 | FY153: 0 | FZ153: 0 | GA153: 0 | GB153: 0 | GC153: 0 | GD153: 0 | GE153: 0 | GF153: 0 | GG153: 0 | GH153: 0
CV154: 0 | CW154: 0 | CX154: 0 | CY154: 0 | CZ154: 0 | DA154: 0 | DB154: 0 | DC154: 0 | DD154: 0 | DE154: 0 | DF154: 0 | DG154: 0 | DH154: 0 | DI154: 0 | DJ154: 0 | DK154: 0 | DL154: 0 | DM154: 0 | DN154: 0 | DO154: 0 | DP154: 0 | DQ154: 0 | DR154: 0 | DS154: 0 | DT154: 0 | DU154: 0 | DV154: 0 | DW154: 0 | DX154: 0 | DY154: 0 | DZ154: 0 | EA154: 0 | EB154: 0 | EC154: 0 | ED154: 0 | EE154: 0 | EF154: 0 | EG154: 0 | EH154: 0 | EI154: 0 | EJ154: 0 | EK154: 0 | EL154: 0 | EM154: 0 | EN154: 0 | EO154: 0 | EP154: 0 | EQ154: 0 | ER154: 0 | ES154: 0 | ET154: 0 | EU154: 0 | EV154: 0 | EW154: 0 | EX154: 0 | EY154: 0 | EZ154: 0 | FA154: 0 | FB154: 0 | FC154: 0 | FD154: 0 | FE154: 0 | FF154: 0 | FG154: 0 | FH154: 0 | FI154: 0 | FJ154: 0 | FK154: 0 | FL154: 0 | FM154: 0 | FN154: 0 | FO154: 0 | FP154: 0 | FQ154: 0 | FR154: 0 | FS154: 0 | FT154: 0 | FU154: 0 | FV154: 0 | FW154: 0 | FX154: 0 | FY154: 0 | FZ154: 0 | GA154: 0 | GB154: 0 | GC154: 0 | GD154: 0 | GE154: 0 | GF154: 0 | GG154: 0 | GH154: 0
CV155: 0 | CW155: 0 | CX155: 0 | CY155: 0 | CZ155: 0 | DA155: 0 | DB155: 0 | DC155: 0 | DD155: 0 | DE155: 0 | DF155: 0 | DG155: 0 | DH155: 0 | DI155: 0 | DJ155: 0 | DK155: 0 | DL155: 0 | DM155: 0 | DN155: 0 | DO155: 0 | DP155: 0 | DQ155: 0 | DR155: 0 | DS155: 0 | DT155: 0 | DU155: 0 | DV155: 0 | DW155: 0 | DX155: 0 | DY155: 0 | DZ155: 0 | EA155: 0 | EB155: 0 | EC155: 0 | ED155: 0 | EE155: 0 | EF155: 0 | EG155: 0 | EH155: 0 | EI155: 0 | EJ155: 0 | EK155: 0 | EL155: 0 | EM155: 0 | EN155: 0 | EO155: 0 | EP155: 0 | EQ155: 0 | ER155: 0 | ES155: 0 | ET155: 0 | EU155: 0 | EV155: 0 | EW155: 0 | EX155: 0 | EY155: 0 | EZ155: 0 | FA155: 0 | FB155: 0 | FC155: 0 | FD155: 0 | FE155: 0 | FF155: 0 | FG155: 0 | FH155: 0 | FI155: 0 | FJ155: 0 | FK155: 0 | FL155: 0 | FM155: 0 | FN155: 0 | FO155: 0 | FP155: 0 | FQ155: 0 | FR155: 0 | FS155: 0 | FT155: 0 | FU155: 0 | FV155: 0 | FW155: 0 | FX155: 0 | FY155: 0 | FZ155: 0 | GA155: 0 | GB155: 0 | GC155: 0 | GD155: 0 | GE155: 0 | GF155: 0 | GG155: 0 | GH155: 0
CV156: 0 | CW156: 0 | CX156: 0 | CY156: 0 | CZ156: 0 | DA156: 0 | DB156: 0 | DC156: 0 | DD156: 0 | DE156: 0 | DF156: 0 | DG156: 0 | DH156: 0 | DI156: 0 | DJ156: 0 | DK156: 0 | DL156: 0 | DM156: 0 | DN156: 0 | DO156: 0 | DP156: 0 | DQ156: 0 | DR156: 0 | DS156: 0 | DT156: 0 | DU156: 0 | DV156: 0 | DW156: 0 | DX156: 0 | DY156: 0 | DZ156: 0 | EA156: 0 | EB156: 0 | EC156: 0 | ED156: 0 | EE156: 0 | EF156: 0 | EG156: 0 | EH156: 0 | EI156: 0 | EJ156: 0 | EK156: 0 | EL156: 0 | EM156: 0 | EN156: 0 | EO156: 0 | EP156: 0 | EQ156: 0 | ER156: 0 | ES156: 0 | ET156: 0 | EU156: 0 | EV156: 0 | EW156: 0 | EX156: 0 | EY156: 0 | EZ156: 0 | FA156: 0 | FB156: 0 | FC156: 0 | FD156: 0 | FE156: 0 | FF156: 0 | FG156: 0 | FH156: 0 | FI156: 0 | FJ156: 0 | FK156: 0 | FL156: 0 | FM156: 0 | FN156: 0 | FO156: 0 | FP156: 0 | FQ156: 0 | FR156: 0 | FS156: 0 | FT156: 0 | FU156: 0 | FV156: 0 | FW156: 0 | FX156: 0 | FY156: 0 | FZ156: 0 | GA156: 0 | GB156: 0 | GC156: 0 | GD156: 0 | GE156: 0 | GF156: 0 | GG156: 0 | GH156: 0
CV157: 0 | CW157: 0 | CX157: 0 | CY157: 0 | CZ157: 0 | DA157: 0 | DB157: 0 | DC157: 0 | DD157: 0 | DE157: 0 | DF157: 0 | DG157: 0 | DH157: 0 | DI157: 0 | DJ157: 0 | DK157: 0 | DL157: 0 | DM157: 0 | DN157: 0 | DO157: 0 | DP157: 0 | DQ157: 0 | DR157: 0 | DS157: 0 | DT157: 0 | DU157: 0 | DV157: 0 | DW157: 0 | DX157: 0 | DY157: 0 | DZ157: 0 | EA157: 0 | EB157: 0 | EC157: 0 | ED157: 0 | EE157: 0 | EF157: 0 | EG157: 0 | EH157: 0 | EI157: 0 | EJ157: 0 | EK157: 0 | EL157: 0 | EM157: 0 | EN157: 0 | EO157: 0 | EP157: 0 | EQ157: 0 | ER157: 0 | ES157: 0 | ET157: 0 | EU157: 0 | EV157: 0 | EW157: 0 | EX157: 0 | EY157: 0 | EZ157: 0 | FA157: 0 | FB157: 0 | FC157: 0 | FD157: 0 | FE157: 0 | FF157: 0 | FG157: 0 | FH157: 0 | FI157: 0 | FJ157: 0 | FK157: 0 | FL157: 0 | FM157: 0 | FN157: 0 | FO157: 0 | FP157: 0 | FQ157: 0 | FR157: 0 | FS157: 0 | FT157: 0 | FU157: 0 | FV157: 0 | FW157: 0 | FX157: 0 | FY157: 0 | FZ157: 0 | GA157: 0 | GB157: 0 | GC157: 0 | GD157: 0 | GE157: 0 | GF157: 0 | GG157: 0 | GH157: 0
CV158: 0 | CW158: 0 | CX158: 0 | CY158: 0 | CZ158: 0 | DA158: 0 | DB158: 0 | DC158: 0 | DD158: 0 | DE158: 0 | DF158: 0 | DG158: 0 | DH158: 0 | DI158: 0 | DJ158: 0 | DK158: 0 | DL158: 0 | DM158: 0 | DN158: 0 | DO158: 0 | DP158: 0 | DQ158: 0 | DR158: 0 | DS158: 0 | DT158: 0 | DU158: 0 | DV158: 0 | DW158: 0 | DX158: 0 | DY158: 0 | DZ158: 0 | EA158: 0 | EB158: 0 | EC158: 0 | ED158: 0 | EE158: 0 | EF158: 0 | EG158: 0 | EH158: 0 | EI158: 0 | EJ158: 0 | EK158: 0 | EL158: 0 | EM158: 0 | EN158: 0 | EO158: 0 | EP158: 0 | EQ158: 0 | ER158: 0 | ES158: 0 | ET158: 0 | EU158: 0 | EV158: 0 | EW158: 0 | EX158: 0 | EY158: 0 | EZ158: 0 | FA158: 0 | FB158: 0 | FC158: 0 | FD158: 0 | FE158: 0 | FF158: 0 | FG158: 0 | FH158: 0 | FI158: 0 | FJ158: 0 | FK158: 0 | FL158: 0 | FM158: 0 | FN158: 0 | FO158: 0 | FP158: 0 | FQ158: 0 | FR158: 0 | FS158: 0 | FT158: 0 | FU158: 0 | FV158: 0 | FW158: 0 | FX158: 0 | FY158: 0 | FZ158: 0 | GA158: 0 | GB158: 0 | GC158: 0 | GD158: 0 | GE158: 0 | GF158: 0 | GG158: 0 | GH158: 0
CV159: 0 | CW159: 0 | CX159: 0 | CY159: 0 | CZ159: 0 | DA159: 0 | DB159: 0 | DC159: 0 | DD159: 0 | DE159: 0 | DF159: 0 | DG159: 0 | DH159: 0 | DI159: 0 | DJ159: 0 | DK159: 0 | DL159: 0 | DM159: 0 | DN159: 0 | DO159: 0 | DP159: 0 | DQ159: 0 | DR159: 0 | DS159: 0 | DT159: 0 | DU159: 0 | DV159: 0 | DW159: 0 | DX159: 0 | DY159: 0 | DZ159: 0 | EA159: 0 | EB159: 0 | EC159: 0 | ED159: 0 | EE159: 0 | EF159: 0 | EG159: 0 | EH159: 0 | EI159: 0 | EJ159: 0 | EK159: 0 | EL159: 0 | EM159: 0 | EN159: 0 | EO159: 0 | EP159: 0 | EQ159: 0 | ER159: 0 | ES159: 0 | ET159: 0 | EU159: 0 | EV159: 0 | EW159: 0 | EX159: 0 | EY159: 0 | EZ159: 0 | FA159: 0 | FB159: 0 | FC159: 0 | FD159: 0 | FE159: 0 | FF159: 0 | FG159: 0 | FH159: 0 | FI159: 0 | FJ159: 0 | FK159: 0 | FL159: 0 | FM159: 0 | FN159: 0 | FO159: 0 | FP159: 0 | FQ159: 0 | FR159: 0 | FS159: 0 | FT159: 0 | FU159: 0 | FV159: 0 | FW159: 0 | FX159: 0 | FY159: 0 | FZ159: 0 | GA159: 0 | GB159: 0 | GC159: 0 | GD159: 0 | GE159: 0 | GF159: 0 | GG159: 0 | GH159: 0
CV160: 0 | CW160: 0 | CX160: 0 | CY160: 0 | CZ160: 0 | DA160: 0 | DB160: 0 | DC160: 0 | DD160: 0 | DE160: 0 | DF160: 0 | DG160: 0 | DH160: 0 | DI160: 0 | DJ160: 0 | DK160: 0 | DL160: 0 | DM160: 0 | DN160: 0 | DO160: 0 | DP160: 0 | DQ160: 0 | DR160: 0 | DS160: 0 | DT160: 0 | DU160: 0 | DV160: 0 | DW160: 0 | DX160: 0 | DY160: 0 | DZ160: 0 | EA160: 0 | EB160: 0 | EC160: 0 | ED160: 0 | EE160: 0 | EF160: 0 | EG160: 0 | EH160: 0 | EI160: 0 | EJ160: 0 | EK160: 0 | EL160: 0 | EM160: 0 | EN160: 0 | EO160: 0 | EP160: 0 | EQ160: 0 | ER160: 0 | ES160: 0 | ET160: 0 | EU160: 0 | EV160: 0 | EW160: 0 | EX160: 0 | EY160: 0 | EZ160: 0 | FA160: 0 | FB160: 0 | FC160: 0 | FD160: 0 | FE160: 0 | FF160: 0 | FG160: 0 | FH160: 0 | FI160: 0 | FJ160: 0 | FK160: 0 | FL160: 0 | FM160: 0 | FN160: 0 | FO160: 0 | FP160: 0 | FQ160: 0 | FR160: 0 | FS160: 0 | FT160: 0 | FU160: 0 | FV160: 0 | FW160: 0 | FX160: 0 | FY160: 0 | FZ160: 0 | GA160: 0 | GB160: 0 | GC160: 0 | GD160: 0 | GE160: 0 | GF160: 0 | GG160: 0 | GH160: 0
CV161: 0 | CW161: 0 | CX161: 0 | CY161: 0 | CZ161: 0 | DA161: 0 | DB161: 0 | DC161: 0 | DD161: 0 | DE161: 0 | DF161: 0 | DG161: 0 | DH161: 0 | DI161: 0 | DJ161: 0 | DK161: 0 | DL161: 0 | DM161: 0 | DN161: 0 | DO161: 0 | DP161: 0 | DQ161: 0 | DR161: 0 | DS161: 0 | DT161: 0 | DU161: 0 | DV161: 0 | DW161: 0 | DX161: 0 | DY161: 0 | DZ161: 0 | EA161: 0 | EB161: 0 | EC161: 0 | ED161: 0 | EE161: 0 | EF161: 0 | EG161: 0 | EH161: 0 | EI161: 0 | EJ161: 0 | EK161: 0 | EL161: 0 | EM161: 0 | EN161: 0 | EO161: 0 | EP161: 0 | EQ161: 0 | ER161: 0 | ES161: 0 | ET161: 0 | EU161: 0 | EV161: 0 | EW161: 0 | EX161: 0 | EY161: 0 | EZ161: 0 | FA161: 0 | FB161: 0 | FC161: 0 | FD161: 0 | FE161: 0 | FF161: 0 | FG161: 0 | FH161: 0 | FI161: 0 | FJ161: 0 | FK161: 0 | FL161: 0 | FM161: 0 | FN161: 0 | FO161: 0 | FP161: 0 | FQ161: 0 | FR161: 0 | FS161: 0 | FT161: 0 | FU161: 0 | FV161: 0 | FW161: 0 | FX161: 0 | FY161: 0 | FZ161: 0 | GA161: 0 | GB161: 0 | GC161: 0 | GD161: 0 | GE161: 0 | GF161: 0 | GG161: 0 | GH161: 0
CV162: 0 | CW162: 0 | CX162: 0 | CY162: 0 | CZ162: 0 | DA162: 0 | DB162: 0 | DC162: 0 | DD162: 0 | DE162: 0 | DF162: 0 | DG162: 0 | DH162: 0 | DI162: 0 | DJ162: 0 | DK162: 0 | DL162: 0 | DM162: 0 | DN162: 0 | DO162: 0 | DP162: 0 | DQ162: 0 | DR162: 0 | DS162: 0 | DT162: 0 | DU162: 0 | DV162: 0 | DW162: 0 | DX162: 0 | DY162: 0 | DZ162: 0 | EA162: 0 | EB162: 0 | EC162: 0 | ED162: 0 | EE162: 0 | EF162: 0 | EG162: 0 | EH162: 0 | EI162: 0 | EJ162: 0 | EK162: 0 | EL162: 0 | EM162: 0 | EN162: 0 | EO162: 0 | EP162: 0 | EQ162: 0 | ER162: 0 | ES162: 0 | ET162: 0 | EU162: 0 | EV162: 0 | EW162: 0 | EX162: 0 | EY162: 0 | EZ162: 0 | FA162: 0 | FB162: 0 | FC162: 0 | FD162: 0 | FE162: 0 | FF162: 0 | FG162: 0 | FH162: 0 | FI162: 0 | FJ162: 0 | FK162: 0 | FL162: 0 | FM162: 0 | FN162: 0 | FO162: 0 | FP162: 0 | FQ162: 0 | FR162: 0 | FS162: 0 | FT162: 0 | FU162: 0 | FV162: 0 | FW162: 0 | FX162: 0 | FY162: 0 | FZ162: 0 | GA162: 0 | GB162: 0 | GC162: 0 | GD162: 0 | GE162: 0 | GF162: 0 | GG162: 0 | GH162: 0
CV163: 0 | CW163: 0 | CX163: 0 | CY163: 0 | CZ163: 0 | DA163: 0 | DB163: 0 | DC163: 0 | DD163: 0 | DE163: 0 | DF163: 0 | DG163: 0 | DH163: 0 | DI163: 0 | DJ163: 0 | DK163: 0 | DL163: 0 | DM163: 0 | DN163: 0 | DO163: 0 | DP163: 0 | DQ163: 0 | DR163: 0 | DS163: 0 | DT163: 0 | DU163: 0 | DV163: 0 | DW163: 0 | DX163: 0 | DY163: 0 | DZ163: 0 | EA163: 0 | EB163: 0 | EC163: 0 | ED163: 0 | EE163: 0 | EF163: 0 | EG163: 0 | EH163: 0 | EI163: 0 | EJ163: 0 | EK163: 0 | EL163: 0 | EM163: 0 | EN163: 0 | EO163: 0 | EP163: 0 | EQ163: 0 | ER163: 0 | ES163: 0 | ET163: 0 | EU163: 0 | EV163: 0 | EW163: 0 | EX163: 0 | EY163: 0 | EZ163: 0 | FA163: 0 | FB163: 0 | FC163: 0 | FD163: 0 | FE163: 0 | FF163: 0 | FG163: 0 | FH163: 0 | FI163: 0 | FJ163: 0 | FK163: 0 | FL163: 0 | FM163: 0 | FN163: 0 | FO163: 0 | FP163: 0 | FQ163: 0 | FR163: 0 | FS163: 0 | FT163: 0 | FU163: 0 | FV163: 0 | FW163: 0 | FX163: 0 | FY163: 0 | FZ163: 0 | GA163: 0 | GB163: 0 | GC163: 0 | GD163: 0 | GE163: 0 | GF163: 0 | GG163: 0 | GH163: 0
CV164: 0 | CW164: 0 | CX164: 0 | CY164: 0 | CZ164: 0 | DA164: 0 | DB164: 0 | DC164: 0 | DD164: 0 | DE164: 0 | DF164: 0 | DG164: 0 | DH164: 0 | DI164: 0 | DJ164: 0 | DK164: 0 | DL164: 0 | DM164: 0 | DN164: 0 | DO164: 0 | DP164: 0 | DQ164: 0 | DR164: 0 | DS164: 0 | DT164: 0 | DU164: 0 | DV164: 0 | DW164: 0 | DX164: 0 | DY164: 0 | DZ164: 0 | EA164: 0 | EB164: 0 | EC164: 0 | ED164: 0 | EE164: 0 | EF164: 0 | EG164: 0 | EH164: 0 | EI164: 0 | EJ164: 0 | EK164: 0 | EL164: 0 | EM164: 0 | EN164: 0 | EO164: 0 | EP164: 0 | EQ164: 0 | ER164: 0 | ES164: 0 | ET164: 0 | EU164: 0 | EV164: 0 | EW164: 0 | EX164: 0 | EY164: 0 | EZ164: 0 | FA164: 0 | FB164: 0 | FC164: 0 | FD164: 0 | FE164: 0 | FF164: 0 | FG164: 0 | FH164: 0 | FI164: 0 | FJ164: 0 | FK164: 0 | FL164: 0 | FM164: 0 | FN164: 0 | FO164: 0 | FP164: 0 | FQ164: 0 | FR164: 0 | FS164: 0 | FT164: 0 | FU164: 0 | FV164: 0 | FW164: 0 | FX164: 0 | FY164: 0 | FZ164: 0 | GA164: 0 | GB164: 0 | GC164: 0 | GD164: 0 | GE164: 0 | GF164: 0 | GG164: 0 | GH164: 0
CV165: 0 | CW165: 0 | CX165: 0 | CY165: 0 | CZ165: 0 | DA165: 0 | DB165: 0 | DC165: 0 | DD165: 0 | DE165: 0 | DF165: 0 | DG165: 0 | DH165: 0 | DI165: 0 | DJ165: 0 | DK165: 0 | DL165: 0 | DM165: 0 | DN165: 0 | DO165: 0 | DP165: 0 | DQ165: 0 | DR165: 0 | DS165: 0 | DT165: 0 | DU165: 0 | DV165: 0 | DW165: 0 | DX165: 0 | DY165: 0 | DZ165: 0 | EA165: 0 | EB165: 0 | EC165: 0 | ED165: 0 | EE165: 0 | EF165: 0 | EG165: 0 | EH165: 0 | EI165: 0 | EJ165: 0 | EK165: 0 | EL165: 0 | EM165: 0 | EN165: 0 | EO165: 0 | EP165: 0 | EQ165: 0 | ER165: 0 | ES165: 0 | ET165: 0 | EU165: 0 | EV165: 0 | EW165: 0 | EX165: 0 | EY165: 0 | EZ165: 0 | FA165: 0 | FB165: 0 | FC165: 0 | FD165: 0 | FE165: 0 | FF165: 0 | FG165: 0 | FH165: 0 | FI165: 0 | FJ165: 0 | FK165: 0 | FL165: 0 | FM165: 0 | FN165: 0 | FO165: 0 | FP165: 0 | FQ165: 0 | FR165: 0 | FS165: 0 | FT165: 0 | FU165: 0 | FV165: 0 | FW165: 0 | FX165: 0 | FY165: 0 | FZ165: 0 | GA165: 0 | GB165: 0 | GC165: 0 | GD165: 0 | GE165: 0 | GF165: 0 | GG165: 0 | GH165: 0
CV166: 0 | CW166: 0 | CX166: 0 | CY166: 0 | CZ166: 0 | DA166: 0 | DB166: 0 | DC166: 0 | DD166: 0 | DE166: 0 | DF166: 0 | DG166: 0 | DH166: 0 | DI166: 0 | DJ166: 0 | DK166: 0 | DL166: 0 | DM166: 0 | DN166: 0 | DO166: 0 | DP166: 0 | DQ166: 0 | DR166: 0 | DS166: 0 | DT166: 0 | DU166: 0 | DV166: 0 | DW166: 0 | DX166: 0 | DY166: 0 | DZ166: 0 | EA166: 0 | EB166: 0 | EC166: 0 | ED166: 0 | EE166: 0 | EF166: 0 | EG166: 0 | EH166: 0 | EI166: 0 | EJ166: 0 | EK166: 0 | EL166: 0 | EM166: 0 | EN166: 0 | EO166: 0 | EP166: 0 | EQ166: 0 | ER166: 0 | ES166: 0 | ET166: 0 | EU166: 0 | EV166: 0 | EW166: 0 | EX166: 0 | EY166: 0 | EZ166: 0 | FA166: 0 | FB166: 0 | FC166: 0 | FD166: 0 | FE166: 0 | FF166: 0 | FG166: 0 | FH166: 0 | FI166: 0 | FJ166: 0 | FK166: 0 | FL166: 0 | FM166: 0 | FN166: 0 | FO166: 0 | FP166: 0 | FQ166: 0 | FR166: 0 | FS166: 0 | FT166: 0 | FU166: 0 | FV166: 0 | FW166: 0 | FX166: 0 | FY166: 0 | FZ166: 0 | GA166: 0 | GB166: 0 | GC166: 0 | GD166: 0 | GE166: 0 | GF166: 0 | GG166: 0 | GH166: 0
CV167: 0 | CW167: 0 | CX167: 0 | CY167: 0 | CZ167: 0 | DA167: 0 | DB167: 0 | DC167: 0 | DD167: 0 | DE167: 0 | DF167: 0 | DG167: 0 | DH167: 0 | DI167: 0 | DJ167: 0 | DK167: 0 | DL167: 0 | DM167: 0 | DN167: 0 | DO167: 0 | DP167: 0 | DQ167: 0 | DR167: 0 | DS167: 0 | DT167: 0 | DU167: 0 | DV167: 0 | DW167: 0 | DX167: 0 | DY167: 0 | DZ167: 0 | EA167: 0 | EB167: 0 | EC167: 0 | ED167: 0 | EE167: 0 | EF167: 0 | EG167: 0 | EH167: 0 | EI167: 0 | EJ167: 0 | EK167: 0 | EL167: 0 | EM167: 0 | EN167: 0 | EO167: 0 | EP167: 0 | EQ167: 0 | ER167: 0 | ES167: 0 | ET167: 0 | EU167: 0 | EV167: 0 | EW167: 0 | EX167: 0 | EY167: 0 | EZ167: 0 | FA167: 0 | FB167: 0 | FC167: 0 | FD167: 0 | FE167: 0 | FF167: 0 | FG167: 0 | FH167: 0 | FI167: 0 | FJ167: 0 | FK167: 0 | FL167: 0 | FM167: 0 | FN167: 0 | FO167: 0 | FP167: 0 | FQ167: 0 | FR167: 0 | FS167: 0 | FT167: 0 | FU167: 0 | FV167: 0 | FW167: 0 | FX167: 0 | FY167: 0 | FZ167: 0 | GA167: 0 | GB167: 0 | GC167: 0 | GD167: 0 | GE167: 0 | GF167: 0 | GG167: 0 | GH167: 0
CV168: 0 | CW168: 0 | CX168: 0 | CY168: 0 | CZ168: 0 | DA168: 0 | DB168: 0 | DC168: 0 | DD168: 0 | DE168: 0 | DF168: 0 | DG168: 0 | DH168: 0 | DI168: 0 | DJ168: 0 | DK168: 0 | DL168: 0 | DM168: 0 | DN168: 0 | DO168: 0 | DP168: 0 | DQ168: 0 | DR168: 0 | DS168: 0 | DT168: 0 | DU168: 0 | DV168: 0 | DW168: 0 | DX168: 0 | DY168: 0 | DZ168: 0 | EA168: 0 | EB168: 0 | EC168: 0 | ED168: 0 | EE168: 0 | EF168: 0 | EG168: 0 | EH168: 0 | EI168: 0 | EJ168: 0 | EK168: 0 | EL168: 0 | EM168: 0 | EN168: 0 | EO168: 0 | EP168: 0 | EQ168: 0 | ER168: 0 | ES168: 0 | ET168: 0 | EU168: 0 | EV168: 0 | EW168: 0 | EX168: 0 | EY168: 0 | EZ168: 0 | FA168: 0 | FB168: 0 | FC168: 0 | FD168: 0 | FE168: 0 | FF168: 0 | FG168: 0 | FH168: 0 | FI168: 0 | FJ168: 0 | FK168: 0 | FL168: 0 | FM168: 0 | FN168: 0 | FO168: 0 | FP168: 0 | FQ168: 0 | FR168: 0 | FS168: 0 | FT168: 0 | FU168: 0 | FV168: 0 | FW168: 0 | FX168: 0 | FY168: 0 | FZ168: 0 | GA168: 0 | GB168: 0 | GC168: 0 | GD168: 0 | GE168: 0 | GF168: 0 | GG168: 0 | GH168: 0
CV169: 0 | CW169: 0 | CX169: 0 | CY169: 0 | CZ169: 0 | DA169: 0 | DB169: 0 | DC169: 0 | DD169: 0 | DE169: 0 | DF169: 0 | DG169: 0 | DH169: 0 | DI169: 0 | DJ169: 0 | DK169: 0 | DL169: 0 | DM169: 0 | DN169: 0 | DO169: 0 | DP169: 0 | DQ169: 0 | DR169: 0 | DS169: 0 | DT169: 0 | DU169: 0 | DV169: 0 | DW169: 0 | DX169: 0 | DY169: 0 | DZ169: 0 | EA169: 0 | EB169: 0 | EC169: 0 | ED169: 0 | EE169: 0 | EF169: 0 | EG169: 0 | EH169: 0 | EI169: 0 | EJ169: 0 | EK169: 0 | EL169: 0 | EM169: 0 | EN169: 0 | EO169: 0 | EP169: 0 | EQ169: 0 | ER169: 0 | ES169: 0 | ET169: 0 | EU169: 0 | EV169: 0 | EW169: 0 | EX169: 0 | EY169: 0 | EZ169: 0 | FA169: 0 | FB169: 0 | FC169: 0 | FD169: 0 | FE169: 0 | FF169: 0 | FG169: 0 | FH169: 0 | FI169: 0 | FJ169: 0 | FK169: 0 | FL169: 0 | FM169: 0 | FN169: 0 | FO169: 0 | FP169: 0 | FQ169: 0 | FR169: 0 | FS169: 0 | FT169: 0 | FU169: 0 | FV169: 0 | FW169: 0 | FX169: 0 | FY169: 0 | FZ169: 0 | GA169: 0 | GB169: 0 | GC169: 0 | GD169: 0 | GE169: 0 | GF169: 0 | GG169: 0 | GH169: 0
CV170: 0 | CW170: 0 | CX170: 0 | CY170: 0 | CZ170: 0 | DA170: 0 | DB170: 0 | DC170: 0 | DD170: 0 | DE170: 0 | DF170: 0 | DG170: 0 | DH170: 0 | DI170: 0 | DJ170: 0 | DK170: 0 | DL170: 0 | DM170: 0 | DN170: 0 | DO170: 0 | DP170: 0 | DQ170: 0 | DR170: 0 | DS170: 0 | DT170: 0 | DU170: 0 | DV170: 0 | DW170: 0 | DX170: 0 | DY170: 0 | DZ170: 0 | EA170: 0 | EB170: 0 | EC170: 0 | ED170: 0 | EE170: 0 | EF170: 0 | EG170: 0 | EH170: 0 | EI170: 0 | EJ170: 0 | EK170: 0 | EL170: 0 | EM170: 0 | EN170: 0 | EO170: 0 | EP170: 0 | EQ170: 0 | ER170: 0 | ES170: 0 | ET170: 0 | EU170: 0 | EV170: 0 | EW170: 0 | EX170: 0 | EY170: 0 | EZ170: 0 | FA170: 0 | FB170: 0 | FC170: 0 | FD170: 0 | FE170: 0 | FF170: 0 | FG170: 0 | FH170: 0 | FI170: 0 | FJ170: 0 | FK170: 0 | FL170: 0 | FM170: 0 | FN170: 0 | FO170: 0 | FP170: 0 | FQ170: 0 | FR170: 0 | FS170: 0 | FT170: 0 | FU170: 0 | FV170: 0 | FW170: 0 | FX170: 0 | FY170: 0 | FZ170: 0 | GA170: 0 | GB170: 0 | GC170: 0 | GD170: 0 | GE170: 0 | GF170: 0 | GG170: 0 | GH170: 0
CV171: 0 | CW171: 0 | CX171: 0 | CY171: 0 | CZ171: 0 | DA171: 0 | DB171: 0 | DC171: 0 | DD171: 0 | DE171: 0 | DF171: 0 | DG171: 0 | DH171: 0 | DI171: 0 | DJ171: 0 | DK171: 0 | DL171: 0 | DM171: 0 | DN171: 0 | DO171: 0 | DP171: 0 | DQ171: 0 | DR171: 0 | DS171: 0 | DT171: 0 | DU171: 0 | DV171: 0 | DW171: 0 | DX171: 0 | DY171: 0 | DZ171: 0 | EA171: 0 | EB171: 0 | EC171: 0 | ED171: 0 | EE171: 0 | EF171: 0 | EG171: 0 | EH171: 0 | EI171: 0 | EJ171: 0 | EK171: 0 | EL171: 0 | EM171: 0 | EN171: 0 | EO171: 0 | EP171: 0 | EQ171: 0 | ER171: 0 | ES171: 0 | ET171: 0 | EU171: 0 | EV171: 0 | EW171: 0 | EX171: 0 | EY171: 0 | EZ171: 0 | FA171: 0 | FB171: 0 | FC171: 0 | FD171: 0 | FE171: 0 | FF171: 0 | FG171: 0 | FH171: 0 | FI171: 0 | FJ171: 0 | FK171: 0 | FL171: 0 | FM171: 0 | FN171: 0 | FO171: 0 | FP171: 0 | FQ171: 0 | FR171: 0 | FS171: 0 | FT171: 0 | FU171: 0 | FV171: 0 | FW171: 0 | FX171: 0 | FY171: 0 | FZ171: 0 | GA171: 0 | GB171: 0 | GC171: 0 | GD171: 0 | GE171: 0 | GF171: 0 | GG171: 0 | GH171: 0
CV172: 0 | CW172: 0 | CX172: 0 | CY172: 0 | CZ172: 0 | DA172: 0 | DB172: 0 | DC172: 0 | DD172: 0 | DE172: 0 | DF172: 0 | DG172: 0 | DH172: 0 | DI172: 0 | DJ172: 0 | DK172: 0 | DL172: 0 | DM172: 0 | DN172: 0 | DO172: 0 | DP172: 0 | DQ172: 0 | DR172: 0 | DS172: 0 | DT172: 0 | DU172: 0 | DV172: 0 | DW172: 0 | DX172: 0 | DY172: 0 | DZ172: 0 | EA172: 0 | EB172: 0 | EC172: 0 | ED172: 0 | EE172: 0 | EF172: 0 | EG172: 0 | EH172: 0 | EI172: 0 | EJ172: 0 | EK172: 0 | EL172: 0 | EM172: 0 | EN172: 0 | EO172: 0 | EP172: 0 | EQ172: 0 | ER172: 0 | ES172: 0 | ET172: 0 | EU172: 0 | EV172: 0 | EW172: 0 | EX172: 0 | EY172: 0 | EZ172: 0 | FA172: 0 | FB172: 0 | FC172: 0 | FD172: 0 | FE172: 0 | FF172: 0 | FG172: 0 | FH172: 0 | FI172: 0 | FJ172: 0 | FK172: 0 | FL172: 0 | FM172: 0 | FN172: 0 | FO172: 0 | FP172: 0 | FQ172: 0 | FR172: 0 | FS172: 0 | FT172: 0 | FU172: 0 | FV172: 0 | FW172: 0 | FX172: 0 | FY172: 0 | FZ172: 0 | GA172: 0 | GB172: 0 | GC172: 0 | GD172: 0 | GE172: 0 | GF172: 0 | GG172: 0 | GH172: 0
CV173: 0 | CW173: 0 | CX173: 0 | CY173: 0 | CZ173: 0 | DA173: 0 | DB173: 0 | DC173: 0 | DD173: 0 | DE173: 0 | DF173: 0 | DG173: 0 | DH173: 0 | DI173: 0 | DJ173: 0 | DK173: 0 | DL173: 0 | DM173: 0 | DN173: 0 | DO173: 0 | DP173: 0 | DQ173: 0 | DR173: 0 | DS173: 0 | DT173: 0 | DU173: 0 | DV173: 0 | DW173: 0 | DX173: 0 | DY173: 0 | DZ173: 0 | EA173: 0 | EB173: 0 | EC173: 0 | ED173: 0 | EE173: 0 | EF173: 0 | EG173: 0 | EH173: 0 | EI173: 0 | EJ173: 0 | EK173: 0 | EL173: 0 | EM173: 0 | EN173: 0 | EO173: 0 | EP173: 0 | EQ173: 0 | ER173: 0 | ES173: 0 | ET173: 0 | EU173: 0 | EV173: 0 | EW173: 0 | EX173: 0 | EY173: 0 | EZ173: 0 | FA173: 0 | FB173: 0 | FC173: 0 | FD173: 0 | FE173: 0 | FF173: 0 | FG173: 0 | FH173: 0 | FI173: 0 | FJ173: 0 | FK173: 0 | FL173: 0 | FM173: 0 | FN173: 0 | FO173: 0 | FP173: 0 | FQ173: 0 | FR173: 0 | FS173: 0 | FT173: 0 | FU173: 0 | FV173: 0 | FW173: 0 | FX173: 0 | FY173: 0 | FZ173: 0 | GA173: 0 | GB173: 0 | GC173: 0 | GD173: 0 | GE173: 0 | GF173: 0 | GG173: 0 | GH173: 0
CV174: 0 | CW174: 0 | CX174: 0 | CY174: 0 | CZ174: 0 | DA174: 0 | DB174: 0 | DC174: 0 | DD174: 0 | DE174: 0 | DF174: 0 | DG174: 0 | DH174: 0 | DI174: 0 | DJ174: 0 | DK174: 0 | DL174: 0 | DM174: 0 | DN174: 0 | DO174: 0 | DP174: 0 | DQ174: 0 | DR174: 0 | DS174: 0 | DT174: 0 | DU174: 0 | DV174: 0 | DW174: 0 | DX174: 0 | DY174: 0 | DZ174: 0 | EA174: 0 | EB174: 0 | EC174: 0 | ED174: 0 | EE174: 0 | EF174: 0 | EG174: 0 | EH174: 0 | EI174: 0 | EJ174: 0 | EK174: 0 | EL174: 0 | EM174: 0 | EN174: 0 | EO174: 0 | EP174: 0 | EQ174: 0 | ER174: 0 | ES174: 0 | ET174: 0 | EU174: 0 | EV174: 0 | EW174: 0 | EX174: 0 | EY174: 0 | EZ174: 0 | FA174: 0 | FB174: 0 | FC174: 0 | FD174: 0 | FE174: 0 | FF174: 0 | FG174: 0 | FH174: 0 | FI174: 0 | FJ174: 0 | FK174: 0 | FL174: 0 | FM174: 0 | FN174: 0 | FO174: 0 | FP174: 0 | FQ174: 0 | FR174: 0 | FS174: 0 | FT174: 0 | FU174: 0 | FV174: 0 | FW174: 0 | FX174: 0 | FY174: 0 | FZ174: 0 | GA174: 0 | GB174: 0 | GC174: 0 | GD174: 0 | GE174: 0 | GF174: 0 | GG174: 0 | GH174: 0
CV175: 0 | CW175: 0 | CX175: 0 | CY175: 0 | CZ175: 0 | DA175: 0 | DB175: 0 | DC175: 0 | DD175: 0 | DE175: 0 | DF175: 0 | DG175: 0 | DH175: 0 | DI175: 0 | DJ175: 0 | DK175: 0 | DL175: 0 | DM175: 0 | DN175: 0 | DO175: 0 | DP175: 0 | DQ175: 0 | DR175: 0 | DS175: 0 | DT175: 0 | DU175: 0 | DV175: 0 | DW175: 0 | DX175: 0 | DY175: 0 | DZ175: 0 | EA175: 0 | EB175: 0 | EC175: 0 | ED175: 0 | EE175: 0 | EF175: 0 | EG175: 0 | EH175: 0 | EI175: 0 | EJ175: 0 | EK175: 0 | EL175: 0 | EM175: 0 | EN175: 0 | EO175: 0 | EP175: 0 | EQ175: 0 | ER175: 0 | ES175: 0 | ET175: 0 | EU175: 0 | EV175: 0 | EW175: 0 | EX175: 0 | EY175: 0 | EZ175: 0 | FA175: 0 | FB175: 0 | FC175: 0 | FD175: 0 | FE175: 0 | FF175: 0 | FG175: 0 | FH175: 0 | FI175: 0 | FJ175: 0 | FK175: 0 | FL175: 0 | FM175: 0 | FN175: 0 | FO175: 0 | FP175: 0 | FQ175: 0 | FR175: 0 | FS175: 0 | FT175: 0 | FU175: 0 | FV175: 0 | FW175: 0 | FX175: 0 | FY175: 0 | FZ175: 0 | GA175: 0 | GB175: 0 | GC175: 0 | GD175: 0 | GE175: 0 | GF175: 0 | GG175: 0 | GH175: 0
CV176: 0 | CW176: 0 | CX176: 0 | CY176: 0 | CZ176: 0 | DA176: 0 | DB176: 0 | DC176: 0 | DD176: 0 | DE176: 0 | DF176: 0 | DG176: 0 | DH176: 0 | DI176: 0 | DJ176: 0 | DK176: 0 | DL176: 0 | DM176: 0 | DN176: 0 | DO176: 0 | DP176: 0 | DQ176: 0 | DR176: 0 | DS176: 0 | DT176: 0 | DU176: 0 | DV176: 0 | DW176: 0 | DX176: 0 | DY176: 0 | DZ176: 0 | EA176: 0 | EB176: 0 | EC176: 0 | ED176: 0 | EE176: 0 | EF176: 0 | EG176: 0 | EH176: 0 | EI176: 0 | EJ176: 0 | EK176: 0 | EL176: 0 | EM176: 0 | EN176: 0 | EO176: 0 | EP176: 0 | EQ176: 0 | ER176: 0 | ES176: 0 | ET176: 0 | EU176: 0 | EV176: 0 | EW176: 0 | EX176: 0 | EY176: 0 | EZ176: 0 | FA176: 0 | FB176: 0 | FC176: 0 | FD176: 0 | FE176: 0 | FF176: 0 | FG176: 0 | FH176: 0 | FI176: 0 | FJ176: 0 | FK176: 0 | FL176: 0 | FM176: 0 | FN176: 0 | FO176: 0 | FP176: 0 | FQ176: 0 | FR176: 0 | FS176: 0 | FT176: 0 | FU176: 0 | FV176: 0 | FW176: 0 | FX176: 0 | FY176: 0 | FZ176: 0 | GA176: 0 | GB176: 0 | GC176: 0 | GD176: 0 | GE176: 0 | GF176: 0 | GG176: 0 | GH176: 0
CV177: 0 | CW177: 0 | CX177: 0 | CY177: 0 | CZ177: 0 | DA177: 0 | DB177: 0 | DC177: 0 | DD177: 0 | DE177: 0 | DF177: 0 | DG177: 0 | DH177: 0 | DI177: 0 | DJ177: 0 | DK177: 0 | DL177: 0 | DM177: 0 | DN177: 0 | DO177: 0 | DP177: 0 | DQ177: 0 | DR177: 0 | DS177: 0 | DT177: 0 | DU177: 0 | DV177: 0 | DW177: 0 | DX177: 0 | DY177: 0 | DZ177: 0 | EA177: 0 | EB177: 0 | EC177: 0 | ED177: 0 | EE177: 0 | EF177: 0 | EG177: 0 | EH177: 0 | EI177: 0 | EJ177: 0 | EK177: 0 | EL177: 0 | EM177: 0 | EN177: 0 | EO177: 0 | EP177: 0 | EQ177: 0 | ER177: 0 | ES177: 0 | ET177: 0 | EU177: 0 | EV177: 0 | EW177: 0 | EX177: 0 | EY177: 0 | EZ177: 0 | FA177: 0 | FB177: 0 | FC177: 0 | FD177: 0 | FE177: 0 | FF177: 0 | FG177: 0 | FH177: 0 | FI177: 0 | FJ177: 0 | FK177: 0 | FL177: 0 | FM177: 0 | FN177: 0 | FO177: 0 | FP177: 0 | FQ177: 0 | FR177: 0 | FS177: 0 | FT177: 0 | FU177: 0 | FV177: 0 | FW177: 0 | FX177: 0 | FY177: 0 | FZ177: 0 | GA177: 0 | GB177: 0 | GC177: 0 | GD177: 0 | GE177: 0 | GF177: 0 | GG177: 0 | GH177: 0
CV178: 0 | CW178: 0 | CX178: 0 | CY178: 0 | CZ178: 0 | DA178: 0 | DB178: 0 | DC178: 0 | DD178: 0 | DE178: 0 | DF178: 0 | DG178: 0 | DH178: 0 | DI178: 0 | DJ178: 0 | DK178: 0 | DL178: 0 | DM178: 0 | DN178: 0 | DO178: 0 | DP178: 0 | DQ178: 0 | DR178: 0 | DS178: 0 | DT178: 0 | DU178: 0 | DV178: 0 | DW178: 0 | DX178: 0 | DY178: 0 | DZ178: 0 | EA178: 0 | EB178: 0 | EC178: 0 | ED178: 0 | EE178: 0 | EF178: 0 | EG178: 0 | EH178: 0 | EI178: 0 | EJ178: 0 | EK178: 0 | EL178: 0 | EM178: 0 | EN178: 0 | EO178: 0 | EP178: 0 | EQ178: 0 | ER178: 0 | ES178: 0 | ET178: 0 | EU178: 0 | EV178: 0 | EW178: 0 | EX178: 0 | EY178: 0 | EZ178: 0 | FA178: 0 | FB178: 0 | FC178: 0 | FD178: 0 | FE178: 0 | FF178: 0 | FG178: 0 | FH178: 0 | FI178: 0 | FJ178: 0 | FK178: 0 | FL178: 0 | FM178: 0 | FN178: 0 | FO178: 0 | FP178: 0 | FQ178: 0 | FR178: 0 | FS178: 0 | FT178: 0 | FU178: 0 | FV178: 0 | FW178: 0 | FX178: 0 | FY178: 0 | FZ178: 0 | GA178: 0 | GB178: 0 | GC178: 0 | GD178: 0 | GE178: 0 | GF178: 0 | GG178: 0 | GH178: 0
CV179: 0 | CW179: 0 | CX179: 0 | CY179: 0 | CZ179: 0 | DA179: 0 | DB179: 0 | DC179: 0 | DD179: 0 | DE179: 0 | DF179: 0 | DG179: 0 | DH179: 0 | DI179: 0 | DJ179: 0 | DK179: 0 | DL179: 0 | DM179: 0 | DN179: 0 | DO179: 0 | DP179: 0 | DQ179: 0 | DR179: 0 | DS179: 0 | DT179: 0 | DU179: 0 | DV179: 0 | DW179: 0 | DX179: 0 | DY179: 0 | DZ179: 0 | EA179: 0 | EB179: 0 | EC179: 0 | ED179: 0 | EE179: 0 | EF179: 0 | EG179: 0 | EH179: 0 | EI179: 0 | EJ179: 0 | EK179: 0 | EL179: 0 | EM179: 0 | EN179: 0 | EO179: 0 | EP179: 0 | EQ179: 0 | ER179: 0 | ES179: 0 | ET179: 0 | EU179: 0 | EV179: 0 | EW179: 0 | EX179: 0 | EY179: 0 | EZ179: 0 | FA179: 0 | FB179: 0 | FC179: 0 | FD179: 0 | FE179: 0 | FF179: 0 | FG179: 0 | FH179: 0 | FI179: 0 | FJ179: 0 | FK179: 0 | FL179: 0 | FM179: 0 | FN179: 0 | FO179: 0 | FP179: 0 | FQ179: 0 | FR179: 0 | FS179: 0 | FT179: 0 | FU179: 0 | FV179: 0 | FW179: 0 | FX179: 0 | FY179: 0 | FZ179: 0 | GA179: 0 | GB179: 0 | GC179: 0 | GD179: 0 | GE179: 0 | GF179: 0 | GG179: 0 | GH179: 0
CV180: 0 | CW180: 0 | CX180: 0 | CY180: 0 | CZ180: 0 | DA180: 0 | DB180: 0 | DC180: 0 | DD180: 0 | DE180: 0 | DF180: 0 | DG180: 0 | DH180: 0 | DI180: 0 | DJ180: 0 | DK180: 0 | DL180: 0 | DM180: 0 | DN180: 0 | DO180: 0 | DP180: 0 | DQ180: 0 | DR180: 0 | DS180: 0 | DT180: 0 | DU180: 0 | DV180: 0 | DW180: 0 | DX180: 0 | DY180: 0 | DZ180: 0 | EA180: 0 | EB180: 0 | EC180: 0 | ED180: 0 | EE180: 0 | EF180: 0 | EG180: 0 | EH180: 0 | EI180: 0 | EJ180: 0 | EK180: 0 | EL180: 0 | EM180: 0 | EN180: 0 | EO180: 0 | EP180: 0 | EQ180: 0 | ER180: 0 | ES180: 0 | ET180: 0 | EU180: 0 | EV180: 0 | EW180: 0 | EX180: 0 | EY180: 0 | EZ180: 0 | FA180: 0 | FB180: 0 | FC180: 0 | FD180: 0 | FE180: 0 | FF180: 0 | FG180: 0 | FH180: 0 | FI180: 0 | FJ180: 0 | FK180: 0 | FL180: 0 | FM180: 0 | FN180: 0 | FO180: 0 | FP180: 0 | FQ180: 0 | FR180: 0 | FS180: 0 | FT180: 0 | FU180: 0 | FV180: 0 | FW180: 0 | FX180: 0 | FY180: 0 | FZ180: 0 | GA180: 0 | GB180: 0 | GC180: 0 | GD180: 0 | GE180: 0 | GF180: 0 | GG180: 0 | GH180: 0
CV181: 0 | CW181: 0 | CX181: 0 | CY181: 0 | CZ181: 0 | DA181: 0 | DB181: 0 | DC181: 0 | DD181: 0 | DE181: 0 | DF181: 0 | DG181: 0 | DH181: 0 | DI181: 0 | DJ181: 0 | DK181: 0 | DL181: 0 | DM181: 0 | DN181: 0 | DO181: 0 | DP181: 0 | DQ181: 0 | DR181: 0 | DS181: 0 | DT181: 0 | DU181: 0 | DV181: 0 | DW181: 0 | DX181: 0 | DY181: 0 | DZ181: 0 | EA181: 0 | EB181: 0 | EC181: 0 | ED181: 0 | EE181: 0 | EF181: 0 | EG181: 0 | EH181: 0 | EI181: 0 | EJ181: 0 | EK181: 0 | EL181: 0 | EM181: 0 | EN181: 0 | EO181: 0 | EP181: 0 | EQ181: 0 | ER181: 0 | ES181: 0 | ET181: 0 | EU181: 0 | EV181: 0 | EW181: 0 | EX181: 0 | EY181: 0 | EZ181: 0 | FA181: 0 | FB181: 0 | FC181: 0 | FD181: 0 | FE181: 0 | FF181: 0 | FG181: 0 | FH181: 0 | FI181: 0 | FJ181: 0 | FK181: 0 | FL181: 0 | FM181: 0 | FN181: 0 | FO181: 0 | FP181: 0 | FQ181: 0 | FR181: 0 | FS181: 0 | FT181: 0 | FU181: 0 | FV181: 0 | FW181: 0 | FX181: 0 | FY181: 0 | FZ181: 0 | GA181: 0 | GB181: 0 | GC181: 0 | GD181: 0 | GE181: 0 | GF181: 0 | GG181: 0 | GH181: 0
CV182: 0 | CW182: 0 | CX182: 0 | CY182: 0 | CZ182: 0 | DA182: 0 | DB182: 0 | DC182: 0 | DD182: 0 | DE182: 0 | DF182: 0 | DG182: 0 | DH182: 0 | DI182: 0 | DJ182: 0 | DK182: 0 | DL182: 0 | DM182: 0 | DN182: 0 | DO182: 0 | DP182: 0 | DQ182: 0 | DR182: 0 | DS182: 0 | DT182: 0 | DU182: 0 | DV182: 0 | DW182: 0 | DX182: 0 | DY182: 0 | DZ182: 0 | EA182: 0 | EB182: 0 | EC182: 0 | ED182: 0 | EE182: 0 | EF182: 0 | EG182: 0 | EH182: 0 | EI182: 0 | EJ182: 0 | EK182: 0 | EL182: 0 | EM182: 0 | EN182: 0 | EO182: 0 | EP182: 0 | EQ182: 0 | ER182: 0 | ES182: 0 | ET182: 0 | EU182: 0 | EV182: 0 | EW182: 0 | EX182: 0 | EY182: 0 | EZ182: 0 | FA182: 0 | FB182: 0 | FC182: 0 | FD182: 0 | FE182: 0 | FF182: 0 | FG182: 0 | FH182: 0 | FI182: 0 | FJ182: 0 | FK182: 0 | FL182: 0 | FM182: 0 | FN182: 0 | FO182: 0 | FP182: 0 | FQ182: 0 | FR182: 0 | FS182: 0 | FT182: 0 | FU182: 0 | FV182: 0 | FW182: 0 | FX182: 0 | FY182: 0 | FZ182: 0 | GA182: 0 | GB182: 0 | GC182: 0 | GD182: 0 | GE182: 0 | GF182: 0 | GG182: 0 | GH182: 0
CV183: 0 | CW183: 0 | CX183: 0 | CY183: 0 | CZ183: 0 | DA183: 0 | DB183: 0 | DC183: 0 | DD183: 0 | DE183: 0 | DF183: 0 | DG183: 0 | DH183: 0 | DI183: 0 | DJ183: 0 | DK183: 0 | DL183: 0 | DM183: 0 | DN183: 0 | DO183: 0 | DP183: 0 | DQ183: 0 | DR183: 0 | DS183: 0 | DT183: 0 | DU183: 0 | DV183: 0 | DW183: 0 | DX183: 0 | DY183: 0 | DZ183: 0 | EA183: 0 | EB183: 0 | EC183: 0 | ED183: 0 | EE183: 0 | EF183: 0 | EG183: 0 | EH183: 0 | EI183: 0 | EJ183: 0 | EK183: 0 | EL183: 0 | EM183: 0 | EN183: 0 | EO183: 0 | EP183: 0 | EQ183: 0 | ER183: 0 | ES183: 0 | ET183: 0 | EU183: 0 | EV183: 0 | EW183: 0 | EX183: 0 | EY183: 0 | EZ183: 0 | FA183: 0 | FB183: 0 | FC183: 0 | FD183: 0 | FE183: 0 | FF183: 0 | FG183: 0 | FH183: 0 | FI183: 0 | FJ183: 0 | FK183: 0 | FL183: 0 | FM183: 0 | FN183: 0 | FO183: 0 | FP183: 0 | FQ183: 0 | FR183: 0 | FS183: 0 | FT183: 0 | FU183: 0 | FV183: 0 | FW183: 0 | FX183: 0 | FY183: 0 | FZ183: 0 | GA183: 0 | GB183: 0 | GC183: 0 | GD183: 0 | GE183: 0 | GF183: 0 | GG183: 0 | GH183: 0
CV184: 0 | CW184: 0 | CX184: 0 | CY184: 0 | CZ184: 0 | DA184: 0 | DB184: 0 | DC184: 0 | DD184: 0 | DE184: 0 | DF184: 0 | DG184: 0 | DH184: 0 | DI184: 0 | DJ184: 0 | DK184: 0 | DL184: 0 | DM184: 0 | DN184: 0 | DO184: 0 | DP184: 0 | DQ184: 0 | DR184: 0 | DS184: 0 | DT184: 0 | DU184: 0 | DV184: 0 | DW184: 0 | DX184: 0 | DY184: 0 | DZ184: 0 | EA184: 0 | EB184: 0 | EC184: 0 | ED184: 0 | EE184: 0 | EF184: 0 | EG184: 0 | EH184: 0 | EI184: 0 | EJ184: 0 | EK184: 0 | EL184: 0 | EM184: 0 | EN184: 0 | EO184: 0 | EP184: 0 | EQ184: 0 | ER184: 0 | ES184: 0 | ET184: 0 | EU184: 0 | EV184: 0 | EW184: 0 | EX184: 0 | EY184: 0 | EZ184: 0 | FA184: 0 | FB184: 0 | FC184: 0 | FD184: 0 | FE184: 0 | FF184: 0 | FG184: 0 | FH184: 0 | FI184: 0 | FJ184: 0 | FK184: 0 | FL184: 0 | FM184: 0 | FN184: 0 | FO184: 0 | FP184: 0 | FQ184: 0 | FR184: 0 | FS184: 0 | FT184: 0 | FU184: 0 | FV184: 0 | FW184: 0 | FX184: 0 | FY184: 0 | FZ184: 0 | GA184: 0 | GB184: 0 | GC184: 0 | GD184: 0 | GE184: 0 | GF184: 0 | GG184: 0 | GH184: 0
CV185: 0 | CW185: 0 | CX185: 0 | CY185: 0 | CZ185: 0 | DA185: 0 | DB185: 0 | DC185: 0 | DD185: 0 | DE185: 0 | DF185: 0 | DG185: 0 | DH185: 0 | DI185: 0 | DJ185: 0 | DK185: 0 | DL185: 0 | DM185: 0 | DN185: 0 | DO185: 0 | DP185: 0 | DQ185: 0 | DR185: 0 | DS185: 0 | DT185: 0 | DU185: 0 | DV185: 0 | DW185: 0 | DX185: 0 | DY185: 0 | DZ185: 0 | EA185: 0 | EB185: 0 | EC185: 0 | ED185: 0 | EE185: 0 | EF185: 0 | EG185: 0 | EH185: 0 | EI185: 0 | EJ185: 0 | EK185: 0 | EL185: 0 | EM185: 0 | EN185: 0 | EO185: 0 | EP185: 0 | EQ185: 0 | ER185: 0 | ES185: 0 | ET185: 0 | EU185: 0 | EV185: 0 | EW185: 0 | EX185: 0 | EY185: 0 | EZ185: 0 | FA185: 0 | FB185: 0 | FC185: 0 | FD185: 0 | FE185: 0 | FF185: 0 | FG185: 0 | FH185: 0 | FI185: 0 | FJ185: 0 | FK185: 0 | FL185: 0 | FM185: 0 | FN185: 0 | FO185: 0 | FP185: 0 | FQ185: 0 | FR185: 0 | FS185: 0 | FT185: 0 | FU185: 0 | FV185: 0 | FW185: 0 | FX185: 0 | FY185: 0 | FZ185: 0 | GA185: 0 | GB185: 0 | GC185: 0 | GD185: 0 | GE185: 0 | GF185: 0 | GG185: 0 | GH185: 0
